Workbook

Sheet 00. MENU
B7: Parque Nacional do Iguaçu - Serviço de Passeio Terrestre e Embarcado em Atrativo Específico
B9: 01. PC
B10: Painel de controle das principais variáveis do modelo. Nesta aba é possível alterar variáveis como prazo do Projeto, preço do ingresso, NIG e etc. Além de alterar as premissas, é possível visualizar os principais outputs do modelo resumido.
B11: 02. WACC
B12: Cálculo do WACC, que representa o retorno mínimo exigido para o Projeto.
B13: 03. (a) DEMANDA
B14: Apresenta o cálculo da demanda de visitantes.
B15: 03. (b) DEMANDA INPUT
B16: Aba de entrada dos inputs relacionados à demanda utilizada como auxiliar para o cálculo de visitantes anuais.
B17: 04. RECEITAS
B18: Aba responsável pelo cálculo das receitas do Projeto.
B19: 05. (a) CAPEX
B20: Apresenta o CAPEX projetado para cada ano do Projeto.
B21: 05. (b) CAPEX INPUT
B22: Aba de entrada dos inputs relacionados ao CAPEX utilizada como auxiliar para o cálculo dos investimentos. Utilizada para inserir os valores na moeda de referência dos preços.
B23: 05. (c) RECAPEX INPUT
B24: Aba de entrada dos inputs relacionados ao RECAPEX utilizada como auxiliar para o cálculo dos reinvestimentos. Utilizada para inserir os valores na moeda de referência dos preços.
B25: 06. D&A FISCAL
B26: Calcula a amortização fiscais dos ativos.
B27: 07. (a) OPEX
B28: Apresenta o OPEX projetado para cada ano do Projeto.
B29: 07. (b) OPEX INPUT
B30: Aba de entrada dos inputs relacionados às despesas operacionais. Utilizada para inserir os valores na moeda de referência dos preços.
B31: 08. NIG
B32: Apresenta a Necessidade de Investimento em Giro e variação de capital de giro calculada.
B33: 09. OUTORGAS E REEMBOLSOS
B34: Apresenta o cálculo da outorga fixa, outorga variável, encargos acessórios e reembolsos dos estudos contratados, BNDES e remuneração da B3.
B35: 10. (a) TRIBUTOS PROJETO - LR
B36: Apresenta o cálculo dos tributos no regime de Lucro Real.
B37: 10. (b) TRIBUTOS ACIONISTA - LR
B38: Apresenta o cálculo dos tributos no regime de Lucro Real considerando o benefício fiscal da dívida.
B39: 10. (c) TRIBUTOS - LP
B40: Apresenta o cálculo dos tributos no regime de Lucro Presumido.
B41: 11. FCD
B42: Apresenta o fluxo de caixa da dívida em termos nominais.
B43: 12. EQUITY
B44: Apresenta os saldos de caixa, capital integralizado e lucros e prejuízos.
B45: 13. DRE
B46: Apresenta a Demonstração do Resultado do Exercício, incluindo indicadores de rentabilidade.
B47: 14. DFC
B48: Apresenta o Demonstrativo de Fluxo de Caixa pelo método indireto.
B49: 15. FCL - UGC
B50: Apresenta a visão do Fluxo de Caixa Livre do Projeto por Unidade Geradora de Caixa (UGC).
B51: 16. DF'S ACIONISTA
B52: Apresenta a DRE, Fluxo de Caixa e Balanço Patrimonial em termos reais e nominais.
B53: 17. USOS E FONTES
B54: Apresenta o Quadro de Usos e Fontes.
B55: 18. COVENANTS
B56: Apresenta os principais indicadores de endividamento.
B57: 19. ÍNDICES
B58: Apresenta a projeção de inflação.
B59: 20. RISCO
B60: Apresenta a sensibilidade da TIR de Projeto em relação a variações de CAPEX, OPEX e demanda.
B62: Padrão de formatação utilizado - Legenda
B63: Células com fundo amarelo e fonte azul | F63: Inputs (Podem ser alteradas)
B64: Células com fonte verde | F64: Células que têm origem em outra aba (Não alterar)
B65: Células com fonte preta | F65: Fórmulas (Não alterar)

Sheet 01. PC
B6: Painel de Controle
B7: Prazo contratual | E7: Cenários | I7: Ingresso | O7: UGC's
B9: Ano inicial | C9: 2025 | E9: Cenário escolhido | F9: 3 | G9: 3 | I9: Passeio embarcado c/ transporte terrestre | J9: 2 | K9: 3 | L9: Passeio de barco s/ transporte terrestre | O9: UGC | Q9: Considera? | R9: Interessado | S9: Ticket médio | T9: Aceita Ticket
B10: Prazo da concessão | C10: 15 | E10: Referencial | G10: 1 | I10: 200 | J10: 1.575757576 | K10: 1.575757576 | L10: =I10*$L$12/$I$12 -> 160 | O10: Cachoeirismo | P10: =IF(Q10="Sim",1,0) -> 1 | Q10: Sim | R10: 0.3026315789 | S10: 190 | T10: 0.02173913043
B11: Ano final | C11: =ano_inicial+C10-1 -> 2039 | E11: Agressivo | G11: 1.0665 | I11: 300 | J11: 1.181818182 | K11: 1 | L11: =I11*$L$12/$I$12 -> 240 | O11: Rafting | P11: =IF(Q11="Sim",1,0) -> 1 | Q11: Sim | R11: 0.2960526316 | S11: 190 | T11: 0.02222222222
E12: Conservador | G12: 0.9335 | I12: 386 | J12: 1 | K12: 1 | L12: =I12*0.8 -> 308.8 | O12: Aluguel de Caiaque | P12: 0 | Q12: Não | R12: 0.2302631579 | S12: 77.42857143 | T12: 0.5428571429
B13: Data-base do modelo econômico financeiro | E13: Projeção de demanda | F13: 2 | G13: 3 | I13: 500 | J13: 1 | K13: 0.5151515152 | L13: =I13*$L$12/$I$12 -> 400 | O13: Aluguel de Bicicleta | P13: 0 | Q13: Não | R13: 0.375 | S13: 58.59649123 | T13: 0.4736842105
B14: Data-base | C14: 2024-10-01 | E14: Regressão 30 anos | I14: 600 | J14: 1 | K14: 0.3636363636 | L14: =I14*$L$12/$I$12 -> 480 | O14: Arvorismo | P14: 0 | Q14: Não | R14: 0.3092105263 | S14: 61.70212766 | T14: 0.2553191489
E15: Regressão 5 anos + PIB | I15: Tipo de ingresso | O15: Teleférico | P15: 0 | Q15: Não | R15: 0.5592105263 | S15: 102.5882353 | T15: 0.3294117647
E16: Capacidade instalada | I16: Inteira | K16: =1-K17-K18 -> 0.6899299696 | O16: A&B | P16: 1 | Q16: Sim | R16: 0.5 | S16: =94.108998980951/2 -> 47.05449949 | T16: 1
E17: Visitas por ano | G17: 713309 | I17: Meia | K17: 0.2118935628 | O17: Souvenir | P17: 1 | Q17: Sim | R17: 0.3 | S17: =35.3106382978723/2 -> 17.65531915 | T17: 1
I18: Isentos | K18: 0.09817646762 | O18: Locker | P18: 0 | Q18: Não | R18: 0.1876424089 | S18: 10 | T18: 1
B20: Análise de projetos | E20: Capital de giro | I20: Outorgas e ressarcimentos | O20: Análise de sensibilidade
B22: TIR de Projeto - Real (% a.a.) | C22: =IRR('14. DFC'!D34:AL34) -> 0.09556423902 | E22: Premissas | F22: 1 | G22: 3 | I22: Outorgas | O22: Variáveis
B23: WACC - Real (% a.a.) | C23: =(1+INDEX('10. (a) TRIBUTOS PROJETO - LR'!$D$107:$AL$107,1,prazo))^(1/(prazo-1))-1 -> 0.09556423902 | E23: Prazo médio de recebimento (meses) | G23: 1 | I23: Outorga fixa (R$ milhões) | K23: 36.047308 | O23: Demanda | Q23: ='20. RISCO'!C9 -> 0
B24: VPL do Projeto (R$ milhões) | C24: =NPV($C$23,'14. DFC'!E34:AL34)+'14. DFC'!D34 -> 0 | E24: Prazo médio de pagamento (meses) | G24: 0 | I24: Outorga variável (% ROB) | K24: 0.09 | O24: Opex | Q24: ='20. RISCO'!C10 -> 0
B25: TIR de Acionista - Real (% a.a.) | C25: =IRR('14. DFC'!D45:AL45) -> 0.09869841773 | I25: Encargos Acessórios (% ROB) | K25: 0.09 | O25: Capex | Q25: ='20. RISCO'!C11 -> 0
B26: VPL do Acionista (R$ milhões) | C26: =NPV('02. WACC'!$H$33,'14. DFC'!D45:AG45) -> -5.778797737 | E26: Contas a Receber | I26: Reembolsos e Ressarcimentos | O26: Outorga variável (p.p.) | Q26: 0
B27: Payback Simples (anos) | C27: =COUNTIF('14. DFC'!$D$35:$AL$35,"<0")+1 -> 10 | E27: Visitação em dezembro | G27: 0.10180938 | I27: Estudos (R$ milhões) | K27: 0.98335 | O27: Encargos acessórios (p.p.) | Q27: 0
B28: Payback Descontado (anos) | C28: =COUNTIF('14. DFC'!$D$37:$AL$37,"<0")+1 -> 15 | I28: BNDES (R$ milhões)
I29: Parcela fixa (R$ milhões) | K29: 1.4
I30: Parcela variável (%) | K30: 0.01
I31: B3 (R$ milhões) | K31: 0.61347811
B33: Tributação | I33: D&A Fiscal | O33: Valor do contrato
B35: Alíquotas | C35: Lucro Real | E35: Lucro Presumido | I35: Classe de ativo | K35: Vida útil (anos) | O35: Descrição | Q35: Valor (R$ milhões)
B36: ISS | C36: 0.05 | E36: 0.05 | I36: Edificações | K36: 25 | O36: CAPEX | Q36: ='05. CAPEX'!$AS$14 -> 47.55925287
B37: ICMS | C37: 0.195 | E37: 0.195 | I37: Instalações | K37: 10 | O37: Outorga Fixa | Q37: =SUMIF('09. OUTORGAS E REEMBOLSOS'!B:B,O37,'09. OUTORGAS E REEMBOLSOS'!AN:AN) -> 36.047308
B38: PIS/COFINS | C38: 0.0925 | E38: 0.0365 | I38: Veículos | K38: 5 | O38: Outorga Variável | Q38: =SUMIF('09. OUTORGAS E REEMBOLSOS'!B:B,O38,'09. OUTORGAS E REEMBOLSOS'!AN:AN) -> 131.7938366
B39: IRPJ/CSLL | C39: 0.34 | E39: 0.34 | I39: Equipamentos e Mobiliário | K39: 10 | O39: Encargos Acessórios | Q39: =SUMIF('09. OUTORGAS E REEMBOLSOS'!B:B,O39,'09. OUTORGAS E REEMBOLSOS'!AN:AN) -> 131.7938366
B40: Bse de cálculo | I40: Outorga Fixa e Reembolsos | K40: =prazo -> 15 | O40: Total | Q40: =SUM(Q36:Q39) -> 347.194234
B41: ISS | C41: 0.32 | E41: Receitas, ex. A&B e Souvenirs | I41: Inteira | K41: =1-K42-K43 -> 0.7899299696
B42: ICMS | C42: Receitas | E42: Receitas de A&B e Souvenirs | I42: Meia | K42: 0.1618935628
B43: PIS/COFINS | C43: Receitas | E43: Receita total | I43: Isentos | K43: 0.04817646762
B44: IRPJ/CSLL | C44: LAIR | E44: 0.32
B48: Premissas de financiamento (termos nominais)
B50: nº | E50: Ano de início | F50: Sistema | G50: Prazo (anos) | I50: Carência (anos) | K50: Capex (R$ milhões) | L50: Captação (%) | M50: Captação (R$ milhões) | O50: Carência de juros? (s/n)
B51: Financiamento 01 | E51: =IFERROR(SMALL(IF('05. CAPEX'!I$14:AQ$14<>0, COLUMN('05. CAPEX'!I$14:AQ$14)-COLUMN('05. CAPEX'!I$14)+1), ROW(A1)),"-") -> 1 | F51: SAC | G51: =IF(ISNUMBER(E51),prazo-E51+1,"-") -> 15 | I51: 0 | K51: =IFERROR(INDEX('05. CAPEX'!I$14:AQ$14, SMALL(IF('05. CAPEX'!I$14:AQ$14<>0, COLUMN('05. CAPEX'!I$14:AQ$14)-COLUMN('05. CAPEX'!I$14)+1), ROW(A1)))*INDEX('06. D&A FISCAL'!$D$431:$AL$431,1,'01. PC'!E51),0) -> 23.66005543 | L51: =IF(K51<>0,'02. WACC'!$H$45,0) -> 0.2424978996 | M51: =IF(SUMIF('12. EQUITY'!$D$11:$AL$11,E51,'12. EQUITY'!$D$15:$AL$15)<K51,(K51-SUMIF('12. EQUITY'!$D$11:$AL$11,E51,'12. EQUITY'!$D$15:$AL$15))*L51,0) -> 5.737513746 | O51: n | Q51: 25
B52: Financiamento 02 | E52: =IFERROR(SMALL(IF('05. CAPEX'!I$14:AQ$14<>0, COLUMN('05. CAPEX'!I$14:AQ$14)-COLUMN('05. CAPEX'!I$14)+1), ROW(A2)),"-") -> 2 | F52: SAC | G52: 14 | I52: 0 | K52: =IFERROR(INDEX('05. CAPEX'!I$14:AQ$14, SMALL(IF('05. CAPEX'!I$14:AQ$14<>0, COLUMN('05. CAPEX'!I$14:AQ$14)-COLUMN('05. CAPEX'!I$14)+1), ROW(A2)))*INDEX('06. D&A FISCAL'!$D$431:$AL$431,1,'01. PC'!E52),0) -> 16.9130867 | L52: =IF(K52<>0,'02. WACC'!$H$45,0) -> 0.2424978996 | M52: =IF(SUMIF('12. EQUITY'!$D$11:$AL$11,E52,'12. EQUITY'!$D$15:$AL$15)<K52,(K52-SUMIF('12. EQUITY'!$D$11:$AL$11,E52,'12. EQUITY'!$D$15:$AL$15))*L52,0) -> 4.101388 | O52: n
B53: Financiamento 03 | E53: =IFERROR(SMALL(IF('05. CAPEX'!I$14:AQ$14<>0, COLUMN('05. CAPEX'!I$14:AQ$14)-COLUMN('05. CAPEX'!I$14)+1), ROW(A3)),"-") -> 3 | F53: SAC | G53: 13 | I53: 0 | K53: =IFERROR(INDEX('05. CAPEX'!I$14:AQ$14, SMALL(IF('05. CAPEX'!I$14:AQ$14<>0, COLUMN('05. CAPEX'!I$14:AQ$14)-COLUMN('05. CAPEX'!I$14)+1), ROW(A3)))*INDEX('06. D&A FISCAL'!$D$431:$AL$431,1,'01. PC'!E53),0) -> 6.473379378 | L53: =IF(K53<>0,'02. WACC'!$H$45,0) -> 0.2424978996 | M53: =IF(SUMIF('12. EQUITY'!$D$11:$AL$11,E53,'12. EQUITY'!$D$15:$AL$15)<K53,(K53-SUMIF('12. EQUITY'!$D$11:$AL$11,E53,'12. EQUITY'!$D$15:$AL$15))*L53,0) -> 1.569780903 | O53: n
B54: Financiamento 04 | E54: =IFERROR(SMALL(IF('05. CAPEX'!I$14:AQ$14<>0, COLUMN('05. CAPEX'!I$14:AQ$14)-COLUMN('05. CAPEX'!I$14)+1), ROW(A4)),"-") -> 6 | F54: SAC | G54: 10 | I54: 0 | K54: =IFERROR(INDEX('05. CAPEX'!I$14:AQ$14, SMALL(IF('05. CAPEX'!I$14:AQ$14<>0, COLUMN('05. CAPEX'!I$14:AQ$14)-COLUMN('05. CAPEX'!I$14)+1), ROW(A4)))*INDEX('06. D&A FISCAL'!$D$431:$AL$431,1,'01. PC'!E54),0) -> 0.9726860082 | L54: =IF(K54<>0,'02. WACC'!$H$45,0) -> 0.2424978996 | M54: =IF(SUMIF('12. EQUITY'!$D$11:$AL$11,E54,'12. EQUITY'!$D$15:$AL$15)<K54,(K54-SUMIF('12. EQUITY'!$D$11:$AL$11,E54,'12. EQUITY'!$D$15:$AL$15))*L54,0) -> 0 | O54: n
B55: Financiamento 05 | E55: =IFERROR(SMALL(IF('05. CAPEX'!I$14:AQ$14<>0, COLUMN('05. CAPEX'!I$14:AQ$14)-COLUMN('05. CAPEX'!I$14)+1), ROW(A5)),"-") -> 11 | F55: SAC | G55: 5 | I55: 0 | K55: =IFERROR(INDEX('05. CAPEX'!I$14:AQ$14, SMALL(IF('05. CAPEX'!I$14:AQ$14<>0, COLUMN('05. CAPEX'!I$14:AQ$14)-COLUMN('05. CAPEX'!I$14)+1), ROW(A5)))*INDEX('06. D&A FISCAL'!$D$431:$AL$431,1,'01. PC'!E55),0) -> 1.155245852 | L55: =IF(K55<>0,'02. WACC'!$H$45,0) -> 0.2424978996 | M55: =IF(SUMIF('12. EQUITY'!$D$11:$AL$11,E55,'12. EQUITY'!$D$15:$AL$15)<K55,(K55-SUMIF('12. EQUITY'!$D$11:$AL$11,E55,'12. EQUITY'!$D$15:$AL$15))*L55,0) -> 0 | O55: n
B56: Financiamento 06 | E56: =IFERROR(SMALL(IF('05. CAPEX'!I$14:AQ$14<>0, COLUMN('05. CAPEX'!I$14:AQ$14)-COLUMN('05. CAPEX'!I$14)+1), ROW(A6)),"-") -> - | F56: SAC | G56: - | I56: 0 | K56: =IFERROR(INDEX('05. CAPEX'!I$14:AQ$14, SMALL(IF('05. CAPEX'!I$14:AQ$14<>0, COLUMN('05. CAPEX'!I$14:AQ$14)-COLUMN('05. CAPEX'!I$14)+1), ROW(A6)))*INDEX('06. D&A FISCAL'!$D$431:$AL$431,1,'01. PC'!E56),0) -> 0 | L56: =IF(K56<>0,'02. WACC'!$H$45,0) -> 0 | M56: =IF(SUMIF('12. EQUITY'!$D$11:$AL$11,E56,'12. EQUITY'!$D$15:$AL$15)<K56,(K56-SUMIF('12. EQUITY'!$D$11:$AL$11,E56,'12. EQUITY'!$D$15:$AL$15))*L56,0) -> 0 | O56: n
B57: Financiamento 07 | E57: =IFERROR(SMALL(IF('05. CAPEX'!I$14:AQ$14<>0, COLUMN('05. CAPEX'!I$14:AQ$14)-COLUMN('05. CAPEX'!I$14)+1), ROW(A7)),"-") -> - | F57: SAC | G57: - | I57: 0 | K57: =IFERROR(INDEX('05. CAPEX'!I$14:AQ$14, SMALL(IF('05. CAPEX'!I$14:AQ$14<>0, COLUMN('05. CAPEX'!I$14:AQ$14)-COLUMN('05. CAPEX'!I$14)+1), ROW(A7)))*INDEX('06. D&A FISCAL'!$D$431:$AL$431,1,'01. PC'!E57),0) -> 0 | L57: =IF(K57<>0,'02. WACC'!$H$45,0) -> 0 | M57: =IF(SUMIF('12. EQUITY'!$D$11:$AL$11,E57,'12. EQUITY'!$D$15:$AL$15)<K57,(K57-SUMIF('12. EQUITY'!$D$11:$AL$11,E57,'12. EQUITY'!$D$15:$AL$15))*L57,0) -> 0 | O57: n
B58: Financiamento 08 | E58: =IFERROR(SMALL(IF('05. CAPEX'!I$14:AQ$14<>0, COLUMN('05. CAPEX'!I$14:AQ$14)-COLUMN('05. CAPEX'!I$14)+1), ROW(A8)),"-") -> - | F58: SAC | G58: - | I58: 0 | K58: =IFERROR(INDEX('05. CAPEX'!I$14:AQ$14, SMALL(IF('05. CAPEX'!I$14:AQ$14<>0, COLUMN('05. CAPEX'!I$14:AQ$14)-COLUMN('05. CAPEX'!I$14)+1), ROW(A8)))*INDEX('06. D&A FISCAL'!$D$431:$AL$431,1,'01. PC'!E58),0) -> 0 | L58: =IF(K58<>0,'02. WACC'!$H$45,0) -> 0 | M58: =IF(SUMIF('12. EQUITY'!$D$11:$AL$11,E58,'12. EQUITY'!$D$15:$AL$15)<K58,(K58-SUMIF('12. EQUITY'!$D$11:$AL$11,E58,'12. EQUITY'!$D$15:$AL$15))*L58,0) -> 0 | O58: n
B59: Financiamento 09 | E59: =IFERROR(SMALL(IF('05. CAPEX'!I$14:AQ$14<>0, COLUMN('05. CAPEX'!I$14:AQ$14)-COLUMN('05. CAPEX'!I$14)+1), ROW(A9)),"-") -> - | F59: SAC | G59: - | I59: 0 | K59: =IFERROR(INDEX('05. CAPEX'!I$14:AQ$14, SMALL(IF('05. CAPEX'!I$14:AQ$14<>0, COLUMN('05. CAPEX'!I$14:AQ$14)-COLUMN('05. CAPEX'!I$14)+1), ROW(A9)))*INDEX('06. D&A FISCAL'!$D$431:$AL$431,1,'01. PC'!E59),0) -> 0 | L59: =IF(K59<>0,'02. WACC'!$H$45,0) -> 0 | M59: =IF(SUMIF('12. EQUITY'!$D$11:$AL$11,E59,'12. EQUITY'!$D$15:$AL$15)<K59,(K59-SUMIF('12. EQUITY'!$D$11:$AL$11,E59,'12. EQUITY'!$D$15:$AL$15))*L59,0) -> 0 | O59: n
B60: Financiamento 10 | E60: =IFERROR(SMALL(IF('05. CAPEX'!I$14:AQ$14<>0, COLUMN('05. CAPEX'!I$14:AQ$14)-COLUMN('05. CAPEX'!I$14)+1), ROW(A10)),"-") -> - | F60: SAC | G60: - | I60: 0 | K60: =IFERROR(INDEX('05. CAPEX'!I$14:AQ$14, SMALL(IF('05. CAPEX'!I$14:AQ$14<>0, COLUMN('05. CAPEX'!I$14:AQ$14)-COLUMN('05. CAPEX'!I$14)+1), ROW(A10)))*INDEX('06. D&A FISCAL'!$D$431:$AL$431,1,'01. PC'!E60),0) -> 0 | L60: =IF(K60<>0,'02. WACC'!$H$45,0) -> 0 | M60: =IF(SUMIF('12. EQUITY'!$D$11:$AL$11,E60,'12. EQUITY'!$D$15:$AL$15)<K60,(K60-SUMIF('12. EQUITY'!$D$11:$AL$11,E60,'12. EQUITY'!$D$15:$AL$15))*L60,0) -> 0 | O60: n
B62: Principais outputs
B64: Fluxo de Caixa Livre do Projeto (R$ milhões)
B80: Margem de Contribuição de cada UGC
B82: UGC | C82: ∑ FCL (R$ milhões) | E82: [%]
B83: Bilheteria | C83: =VLOOKUP(B83,'15. FCL - UGC'!$B$13:$AI$134,34,0) -> 1016.846492 | E83: =C83/$C$91 -> 0.9707000592
B84: A&B | C84: =VLOOKUP(B84,'15. FCL - UGC'!$B$13:$AI$134,34,0) -> 21.44609505 | E84: =C84/$C$91 -> 0.02047283036
B85: Aluguel de Bicicleta | C85: =VLOOKUP(B85,'15. FCL - UGC'!$B$13:$AI$134,34,0) -> 0 | E85: 0
B86: Demais UGCs | C86: =SUM(C87:C90) -> 9.246745367 | E86: 0.008827110431
B87: Souvenir | C87: =VLOOKUP(B87,'15. FCL - UGC'!$B$13:$AI$134,34,0) -> 3.079759586 | E87: 0.002939994224
B88: Locker | C88: =VLOOKUP(B88,'15. FCL - UGC'!$B$13:$AI$134,34,0) -> 0 | E88: 0
B89: Cachoeirismo | C89: =VLOOKUP(B89,'15. FCL - UGC'!$B$13:$AI$134,34,0) -> 5.309966738 | E89: 0.005068990322
B90: Rafting | C90: =VLOOKUP(B90,'15. FCL - UGC'!$B$13:$AI$134,34,0) -> 0.857019043 | E90: 0.0008181258846
B91: Total | C91: =SUM(C83:C86) -> 1047.539332 | D91: =SUM(D83:D86) -> 0 | E91: =SUM(E83:E86) -> 1
B96: Fluxo de Caixa da Dívida (R$ milhões)
B112: Índice de Cobertura do Serviço da Dívida (ICSD)
B128: Fluxo de Caixa do Acionista (R$ milhões)

Sheet 02. WACC
F5: Data Referência | H5: 2024-10-01 | J5: =$H$5 -> 2024-10-01
B7: WACC | H7: Lucro Real | J7: Lucro Presumido
B9: Custo Médio Ponderado de Capital - WACC BRL Nominal | H9: =H47 -> 0.1345663259 | J9: =J47 -> 0.1488035944
B11: Custo Médio Ponderado de Capital - WACC BRL Real | H11: =H49 -> 0.09556423902 | J11: =J49 -> 0.1093120842
B13: Custo de Capital Próprio | H13: Valor | J13: Valor
B15: Beta Realavancado | H15: =H18*(1+(H17)*(1-H19)) -> 1.042798231 | J15: =J18*(1+(J17)*(1-J19)) -> 1.13650201
B17: D/E Projeto | E17: Global | F17: Recreation | H17: 0.3201283528 | J17: =J45/J44 -> 0.3201283528
B18: Beta Desalavancado | E18: Global | F18: Recreation | H18: 0.8609026597 | J18: =H18 -> 0.8609026597
B19: Alíquota Imposto | H19: 0.34 | J19: 0
B21: Ke nominal (USD) | H21: =H23+H26*(H28)+H27 -> 0.1378601468 | J21: =J23+J26*(J28)+J27 -> 0.1442341798
B23: Taxa Livre Risco (Rf) | H23: 0.042475 | J23: =H23 -> 0.042475
B25: Retorno Histórico de Mercado - EUA (Rm) - S&P500 | H25: 0.1092635242 | J25: =H25 -> 0.1092635242
B26: Beta Alavancado | H26: =H15 -> 1.042798231 | J26: =J15 -> 1.13650201
B27: Risco Brasil | H27: 0.02445065134 | J27: =H27 -> 0.02445065134
B28: Industry Risk Premium (IRP) » Prêmio para o Risco de Mercado (Rm - Rf) | H28: 0.0680232219 | J28: =H28 -> 0.0680232219
B29: Inflação BR/Inflação USA | H29: =((1+H31)/(1+H30)-1) -> 0.01392583281 | J29: =H29 -> 0.01392583281
B30: Inflação EUA | H30: 0.02137648187 | J30: =H30 -> 0.02137648187
B31: Inflação Brasil | H31: 0.0356 | J31: =H31 -> 0.0356
B32: Ke Nominal (BRL) | H32: =(1+H21)*(1+H29)-1 -> 0.153705797 | J32: =(1+J21)*(1+J29)-1 -> 0.1601685937
B33: Ke Real (BRL) | H33: =((1+H32)/(1+H31))-1 -> 0.1140457676 | J33: =((1+J32)/(1+J31))-1 -> 0.1202863979
B35: Custo da Dívida | H35: Valor | J35: Valor
G36: 1. Debêntures
B37: Taxa de Juros Nominal | E37: Composição da Dívida: | F37: 3. Debêntures e BNDES | G37: 2. BNDES | H37: =CHOOSE(LEFT(F37,1),C67,C59,AVERAGE(C59,C67)) -> 0.1133022115 | J37: =H37 -> 0.1133022115
B38: Alíquota Imposto | G38: 3. Debêntures e BNDES | H38: 0.34 | J38: 0
B39: Kd Nominal (BRL) | H39: =((H37))*(1-H38) -> 0.07477945957 | J39: =((J37))*(1-J38) -> 0.1133022115
B40: Kd Real (BRL) | H40: =(1+H39)/(1+H31)-1 -> 0.03783261836 | J40: =(1+J39)/(1+J31)-1 -> 0.07503110417
B42: Estrutura de Capital | H42: Valor | J42: Valor
B44: % Equity | H44: =1/(1+H17) -> 0.7575021004 | J44: =1-J45 -> 0.7575021004
B45: % Debt | H45: =1-H44 -> 0.2424978996 | J45: =H45 -> 0.2424978996
B47: WACC Nominal (BRL) | H47: =(H32*H44)+(H39*H45) -> 0.1345663259 | J47: =(J32*J44)+(J39*J45) -> 0.1488035944
B49: WACC Real (BRL) | H49: =(1+H47)/(1+H31)-1 -> 0.09556423902 | J49: =(1+J47)/(1+J31)-1 -> 0.1093120842
B51: Dívida
B53: BNDES
B55: Kd Nominal | C55: Valor | D55: Referência
B56: Parcela fixa da TLP - out/2024 | C56: 0.0631 | D56: TLP
B57: Remuneração BNDES | C57: 0.015 | D57: BNDES - Finem
B58: Inflação Brasil | C58: =H31 -> 0.0356 | D58: Projeção Focus | E58: 2
B59: Kd Nominal | C59: =(1+C56)*(1+C57)*(1+C58)-1 -> 0.1174605554 | D59: = (1+TPL) x (1+BNDES) x (1 + Inflação) - 1 | E59: 2
B60: Taxa Financiamento Real | C60: =((1+C59)/(1+C58)-1) -> 0.0790465 | D60: = (1 + Kd Nominal)/(1+Inflação Brasil)
B62: Debêntures incentivadas
B64: Kd Nominal
B65: Média de spreads praticados (index. IPCA) | C65: 0.07101570833 | D65: ANBIMA
B66: Inflação Brasil | C66: =H31 -> 0.0356 | D66: Projeção Focus
B67: Kd Nominal | C67: =(1+C65)*(1+C66)-1 -> 0.1091438676 | D67: = (1 + Média dos spreads) x (1 + Inflação Brasil) - 1
B69: Média Taxa Real | C69: =CHOOSE(LEFT(F37,1),C65,C60,AVERAGE(C60,C65)) -> 0.07503110417

Sheet 03. (a) DEMANDA
B6: Demanda
B7: Prazo | D7: =IF(D9<=ano_final,1,0) -> 1 | E7: 1 | F7: 1 | G7: 1 | H7: 1 | I7: 1 | J7: 1 | K7: 1 | L7: 1 | M7: 1 | N7: 1 | O7: 1 | P7: 1 | Q7: 1 | R7: 1 | S7: 0 | T7: 0 | U7: 0 | V7: 0 | W7: 0 | X7: 0 | Y7: 0 | Z7: 0 | AA7: 0 | AB7: 0 | AC7: 0 | AD7: 0 | AE7: 0 | AF7: 0 | AG7: 0 | AH7: 0 | AI7: 0 | AJ7: 0 | AK7: 0 | AL7: 0
B9: Ano | D9: =ano_inicial -> 2025 | E9: =D9+1 -> 2026 | F9: =E9+1 -> 2027 | G9: 2028 | H9: 2029 | I9: 2030 | J9: 2031 | K9: 2032 | L9: 2033 | M9: 2034 | N9: 2035 | O9: 2036 | P9: 2037 | Q9: 2038 | R9: 2039 | S9: 2040 | T9: 2041 | U9: 2042 | V9: 2043 | W9: 2044 | X9: 2045 | Y9: 2046 | Z9: 2047 | AA9: 2048 | AB9: 2049 | AC9: 2050 | AD9: 2051 | AE9: 2052 | AF9: 2053 | AG9: 2054 | AH9: 2055 | AI9: 2056 | AJ9: 2057 | AK9: 2058 | AL9: 2059
D11: 1 | E11: =D11+1 -> 2 | F11: =E11+1 -> 3 | G11: 4 | H11: 5 | I11: 6 | J11: 7 | K11: 8 | L11: 9 | M11: 10 | N11: 11 | O11: 12 | P11: 13 | Q11: 14 | R11: 15 | S11: 16 | T11: 17 | U11: 18 | V11: 19 | W11: 20 | X11: 21 | Y11: 22 | Z11: 23 | AA11: 24 | AB11: 25 | AC11: 26 | AD11: 27 | AE11: 28 | AF11: 29 | AG11: 30 | AH11: 31 | AI11: 32 | AJ11: 33 | AK11: 34 | AL11: 35 | AN11: Total | AP11: Risco
B13: Projeção de demanda | D13: =IF(D15<='01. PC'!$G$17,D15,'01. PC'!$G$17) -> 270577.7755 | E13: =IF(E15<='01. PC'!$G$17,E15,'01. PC'!$G$17) -> 296590.7516 | F13: =IF(F15<='01. PC'!$G$17,F15,'01. PC'!$G$17) -> 324328.6839 | G13: =IF(G15<='01. PC'!$G$17,G15,'01. PC'!$G$17) -> 353484.8327 | H13: =IF(H15<='01. PC'!$G$17,H15,'01. PC'!$G$17) -> 384173.8827 | I13: =IF(I15<='01. PC'!$G$17,I15,'01. PC'!$G$17) -> 390410.052 | J13: =IF(J15<='01. PC'!$G$17,J15,'01. PC'!$G$17) -> 396635.0405 | K13: =IF(K15<='01. PC'!$G$17,K15,'01. PC'!$G$17) -> 402844.1612 | L13: =IF(L15<='01. PC'!$G$17,L15,'01. PC'!$G$17) -> 409034.8455 | M13: =IF(M15<='01. PC'!$G$17,M15,'01. PC'!$G$17) -> 415205.1749 | N13: =IF(N15<='01. PC'!$G$17,N15,'01. PC'!$G$17) -> 421352.991 | O13: =IF(O15<='01. PC'!$G$17,O15,'01. PC'!$G$17) -> 427474.821 | P13: =IF(P15<='01. PC'!$G$17,P15,'01. PC'!$G$17) -> 433566.9618 | Q13: =IF(Q15<='01. PC'!$G$17,Q15,'01. PC'!$G$17) -> 439627.4322 | R13: =IF(R15<='01. PC'!$G$17,R15,'01. PC'!$G$17) -> 445654.0161 | S13: =IF(S15<='01. PC'!$G$17,S15,'01. PC'!$G$17) -> 0 | T13: =IF(T15<='01. PC'!$G$17,T15,'01. PC'!$G$17) -> 0 | U13: =IF(U15<='01. PC'!$G$17,U15,'01. PC'!$G$17) -> 0 | V13: =IF(V15<='01. PC'!$G$17,V15,'01. PC'!$G$17) -> 0 | W13: =IF(W15<='01. PC'!$G$17,W15,'01. PC'!$G$17) -> 0 | X13: =IF(X15<='01. PC'!$G$17,X15,'01. PC'!$G$17) -> 0 | Y13: =IF(Y15<='01. PC'!$G$17,Y15,'01. PC'!$G$17) -> 0 | Z13: =IF(Z15<='01. PC'!$G$17,Z15,'01. PC'!$G$17) -> 0 | AA13: =IF(AA15<='01. PC'!$G$17,AA15,'01. PC'!$G$17) -> 0 | AB13: =IF(AB15<='01. PC'!$G$17,AB15,'01. PC'!$G$17) -> 0 | AC13: =IF(AC15<='01. PC'!$G$17,AC15,'01. PC'!$G$17) -> 0 | AD13: =IF(AD15<='01. PC'!$G$17,AD15,'01. PC'!$G$17) -> 0 | AE13: =IF(AE15<='01. PC'!$G$17,AE15,'01. PC'!$G$17) -> 0 | AF13: =IF(AF15<='01. PC'!$G$17,AF15,'01. PC'!$G$17) -> 0 | AG13: =IF(AG15<='01. PC'!$G$17,AG15,'01. PC'!$G$17) -> 0 | AH13: =IF(AH15<='01. PC'!$G$17,AH15,'01. PC'!$G$17) -> 0 | AI13: =IF(AI15<='01. PC'!$G$17,AI15,'01. PC'!$G$17) -> 0 | AJ13: =IF(AJ15<='01. PC'!$G$17,AJ15,'01. PC'!$G$17) -> 0 | AK13: =IF(AK15<='01. PC'!$G$17,AK15,'01. PC'!$G$17) -> 0 | AL13: =IF(AL15<='01. PC'!$G$17,AL15,'01. PC'!$G$17) -> 0 | AN13: =SUM(D13:AL13) -> 5810961.423 | AP13: ='01. PC'!$Q$23 -> 0
B15: Visitantes potenciais | D15: =D16*D7 -> 270577.7755 | E15: =E16*E7 -> 296590.7516 | F15: 324328.6839 | G15: 353484.8327 | H15: 384173.8827 | I15: 390410.052 | J15: 396635.0405 | K15: 402844.1612 | L15: 409034.8455 | M15: 415205.1749 | N15: 421352.991 | O15: 427474.821 | P15: 433566.9618 | Q15: 439627.4322 | R15: 445654.0161 | S15: 0 | T15: 0 | U15: 0 | V15: 0 | W15: 0 | X15: 0 | Y15: 0 | Z15: 0 | AA15: 0 | AB15: 0 | AC15: 0 | AD15: 0 | AE15: 0 | AF15: 0 | AG15: 0 | AH15: 0 | AI15: 0 | AJ15: 0 | AK15: 0 | AL15: 0 | AN15: =SUM(D15:AL15) -> 5810961.423
B16: Cenário Escolhido (visit./ano) | D16: =IFERROR(VLOOKUP(D$9,'03. (b) DEMANDA INPUT'!$B$7:$D$37,IF('01. PC'!$F$13=1,2,3),0)*CHOOSE('01. PC'!$F$9,'01. PC'!$G$10,'01. PC'!$G$11,'01. PC'!$G$12)*CHOOSE('01. PC'!$J$9,'01. PC'!$K$10,'01. PC'!$K$11,'01. PC'!$K$12,'01. PC'!$K$13,'01. PC'!$K$14)*(1+$AP13),0) -> 270577.7755 | E16: =IFERROR(VLOOKUP(E$9,'03. (b) DEMANDA INPUT'!$B$7:$D$37,IF('01. PC'!$F$13=1,2,3),0)*CHOOSE('01. PC'!$F$9,'01. PC'!$G$10,'01. PC'!$G$11,'01. PC'!$G$12)*CHOOSE('01. PC'!$J$9,'01. PC'!$K$10,'01. PC'!$K$11,'01. PC'!$K$12,'01. PC'!$K$13,'01. PC'!$K$14)*(1+$AP13),0) -> 296590.7516 | F16: =IFERROR(VLOOKUP(F$9,'03. (b) DEMANDA INPUT'!$B$7:$D$37,IF('01. PC'!$F$13=1,2,3),0)*CHOOSE('01. PC'!$F$9,'01. PC'!$G$10,'01. PC'!$G$11,'01. PC'!$G$12)*CHOOSE('01. PC'!$J$9,'01. PC'!$K$10,'01. PC'!$K$11,'01. PC'!$K$12,'01. PC'!$K$13,'01. PC'!$K$14)*(1+$AP13),0) -> 324328.6839 | G16: =IFERROR(VLOOKUP(G$9,'03. (b) DEMANDA INPUT'!$B$7:$D$37,IF('01. PC'!$F$13=1,2,3),0)*CHOOSE('01. PC'!$F$9,'01. PC'!$G$10,'01. PC'!$G$11,'01. PC'!$G$12)*CHOOSE('01. PC'!$J$9,'01. PC'!$K$10,'01. PC'!$K$11,'01. PC'!$K$12,'01. PC'!$K$13,'01. PC'!$K$14)*(1+$AP13),0) -> 353484.8327 | H16: =IFERROR(VLOOKUP(H$9,'03. (b) DEMANDA INPUT'!$B$7:$D$37,IF('01. PC'!$F$13=1,2,3),0)*CHOOSE('01. PC'!$F$9,'01. PC'!$G$10,'01. PC'!$G$11,'01. PC'!$G$12)*CHOOSE('01. PC'!$J$9,'01. PC'!$K$10,'01. PC'!$K$11,'01. PC'!$K$12,'01. PC'!$K$13,'01. PC'!$K$14)*(1+$AP13),0) -> 384173.8827 | I16: =IFERROR(VLOOKUP(I$9,'03. (b) DEMANDA INPUT'!$B$7:$D$37,IF('01. PC'!$F$13=1,2,3),0)*CHOOSE('01. PC'!$F$9,'01. PC'!$G$10,'01. PC'!$G$11,'01. PC'!$G$12)*CHOOSE('01. PC'!$J$9,'01. PC'!$K$10,'01. PC'!$K$11,'01. PC'!$K$12,'01. PC'!$K$13,'01. PC'!$K$14)*(1+$AP13),0) -> 390410.052 | J16: =IFERROR(VLOOKUP(J$9,'03. (b) DEMANDA INPUT'!$B$7:$D$37,IF('01. PC'!$F$13=1,2,3),0)*CHOOSE('01. PC'!$F$9,'01. PC'!$G$10,'01. PC'!$G$11,'01. PC'!$G$12)*CHOOSE('01. PC'!$J$9,'01. PC'!$K$10,'01. PC'!$K$11,'01. PC'!$K$12,'01. PC'!$K$13,'01. PC'!$K$14)*(1+$AP13),0) -> 396635.0405 | K16: =IFERROR(VLOOKUP(K$9,'03. (b) DEMANDA INPUT'!$B$7:$D$37,IF('01. PC'!$F$13=1,2,3),0)*CHOOSE('01. PC'!$F$9,'01. PC'!$G$10,'01. PC'!$G$11,'01. PC'!$G$12)*CHOOSE('01. PC'!$J$9,'01. PC'!$K$10,'01. PC'!$K$11,'01. PC'!$K$12,'01. PC'!$K$13,'01. PC'!$K$14)*(1+$AP13),0) -> 402844.1612 | L16: =IFERROR(VLOOKUP(L$9,'03. (b) DEMANDA INPUT'!$B$7:$D$37,IF('01. PC'!$F$13=1,2,3),0)*CHOOSE('01. PC'!$F$9,'01. PC'!$G$10,'01. PC'!$G$11,'01. PC'!$G$12)*CHOOSE('01. PC'!$J$9,'01. PC'!$K$10,'01. PC'!$K$11,'01. PC'!$K$12,'01. PC'!$K$13,'01. PC'!$K$14)*(1+$AP13),0) -> 409034.8455 | M16: =IFERROR(VLOOKUP(M$9,'03. (b) DEMANDA INPUT'!$B$7:$D$37,IF('01. PC'!$F$13=1,2,3),0)*CHOOSE('01. PC'!$F$9,'01. PC'!$G$10,'01. PC'!$G$11,'01. PC'!$G$12)*CHOOSE('01. PC'!$J$9,'01. PC'!$K$10,'01. PC'!$K$11,'01. PC'!$K$12,'01. PC'!$K$13,'01. PC'!$K$14)*(1+$AP13),0) -> 415205.1749 | N16: =IFERROR(VLOOKUP(N$9,'03. (b) DEMANDA INPUT'!$B$7:$D$37,IF('01. PC'!$F$13=1,2,3),0)*CHOOSE('01. PC'!$F$9,'01. PC'!$G$10,'01. PC'!$G$11,'01. PC'!$G$12)*CHOOSE('01. PC'!$J$9,'01. PC'!$K$10,'01. PC'!$K$11,'01. PC'!$K$12,'01. PC'!$K$13,'01. PC'!$K$14)*(1+$AP13),0) -> 421352.991 | O16: =IFERROR(VLOOKUP(O$9,'03. (b) DEMANDA INPUT'!$B$7:$D$37,IF('01. PC'!$F$13=1,2,3),0)*CHOOSE('01. PC'!$F$9,'01. PC'!$G$10,'01. PC'!$G$11,'01. PC'!$G$12)*CHOOSE('01. PC'!$J$9,'01. PC'!$K$10,'01. PC'!$K$11,'01. PC'!$K$12,'01. PC'!$K$13,'01. PC'!$K$14)*(1+$AP13),0) -> 427474.821 | P16: =IFERROR(VLOOKUP(P$9,'03. (b) DEMANDA INPUT'!$B$7:$D$37,IF('01. PC'!$F$13=1,2,3),0)*CHOOSE('01. PC'!$F$9,'01. PC'!$G$10,'01. PC'!$G$11,'01. PC'!$G$12)*CHOOSE('01. PC'!$J$9,'01. PC'!$K$10,'01. PC'!$K$11,'01. PC'!$K$12,'01. PC'!$K$13,'01. PC'!$K$14)*(1+$AP13),0) -> 433566.9618 | Q16: =IFERROR(VLOOKUP(Q$9,'03. (b) DEMANDA INPUT'!$B$7:$D$37,IF('01. PC'!$F$13=1,2,3),0)*CHOOSE('01. PC'!$F$9,'01. PC'!$G$10,'01. PC'!$G$11,'01. PC'!$G$12)*CHOOSE('01. PC'!$J$9,'01. PC'!$K$10,'01. PC'!$K$11,'01. PC'!$K$12,'01. PC'!$K$13,'01. PC'!$K$14)*(1+$AP13),0) -> 439627.4322 | R16: =IFERROR(VLOOKUP(R$9,'03. (b) DEMANDA INPUT'!$B$7:$D$37,IF('01. PC'!$F$13=1,2,3),0)*CHOOSE('01. PC'!$F$9,'01. PC'!$G$10,'01. PC'!$G$11,'01. PC'!$G$12)*CHOOSE('01. PC'!$J$9,'01. PC'!$K$10,'01. PC'!$K$11,'01. PC'!$K$12,'01. PC'!$K$13,'01. PC'!$K$14)*(1+$AP13),0) -> 445654.0161 | S16: =IFERROR(VLOOKUP(S$9,'03. (b) DEMANDA INPUT'!$B$7:$D$37,IF('01. PC'!$F$13=1,2,3),0)*CHOOSE('01. PC'!$F$9,'01. PC'!$G$10,'01. PC'!$G$11,'01. PC'!$G$12)*CHOOSE('01. PC'!$J$9,'01. PC'!$K$10,'01. PC'!$K$11,'01. PC'!$K$12,'01. PC'!$K$13,'01. PC'!$K$14)*(1+$AP13),0) -> 451644.6999 | T16: =IFERROR(VLOOKUP(T$9,'03. (b) DEMANDA INPUT'!$B$7:$D$37,IF('01. PC'!$F$13=1,2,3),0)*CHOOSE('01. PC'!$F$9,'01. PC'!$G$10,'01. PC'!$G$11,'01. PC'!$G$12)*CHOOSE('01. PC'!$J$9,'01. PC'!$K$10,'01. PC'!$K$11,'01. PC'!$K$12,'01. PC'!$K$13,'01. PC'!$K$14)*(1+$AP13),0) -> 457597.4777 | U16: =IFERROR(VLOOKUP(U$9,'03. (b) DEMANDA INPUT'!$B$7:$D$37,IF('01. PC'!$F$13=1,2,3),0)*CHOOSE('01. PC'!$F$9,'01. PC'!$G$10,'01. PC'!$G$11,'01. PC'!$G$12)*CHOOSE('01. PC'!$J$9,'01. PC'!$K$10,'01. PC'!$K$11,'01. PC'!$K$12,'01. PC'!$K$13,'01. PC'!$K$14)*(1+$AP13),0) -> 463511.1844 | V16: =IFERROR(VLOOKUP(V$9,'03. (b) DEMANDA INPUT'!$B$7:$D$37,IF('01. PC'!$F$13=1,2,3),0)*CHOOSE('01. PC'!$F$9,'01. PC'!$G$10,'01. PC'!$G$11,'01. PC'!$G$12)*CHOOSE('01. PC'!$J$9,'01. PC'!$K$10,'01. PC'!$K$11,'01. PC'!$K$12,'01. PC'!$K$13,'01. PC'!$K$14)*(1+$AP13),0) -> 469384.8683 | W16: =IFERROR(VLOOKUP(W$9,'03. (b) DEMANDA INPUT'!$B$7:$D$37,IF('01. PC'!$F$13=1,2,3),0)*CHOOSE('01. PC'!$F$9,'01. PC'!$G$10,'01. PC'!$G$11,'01. PC'!$G$12)*CHOOSE('01. PC'!$J$9,'01. PC'!$K$10,'01. PC'!$K$11,'01. PC'!$K$12,'01. PC'!$K$13,'01. PC'!$K$14)*(1+$AP13),0) -> 475216.0157 | X16: =IFERROR(VLOOKUP(X$9,'03. (b) DEMANDA INPUT'!$B$7:$D$37,IF('01. PC'!$F$13=1,2,3),0)*CHOOSE('01. PC'!$F$9,'01. PC'!$G$10,'01. PC'!$G$11,'01. PC'!$G$12)*CHOOSE('01. PC'!$J$9,'01. PC'!$K$10,'01. PC'!$K$11,'01. PC'!$K$12,'01. PC'!$K$13,'01. PC'!$K$14)*(1+$AP13),0) -> 481001.9436 | Y16: =IFERROR(VLOOKUP(Y$9,'03. (b) DEMANDA INPUT'!$B$7:$D$37,IF('01. PC'!$F$13=1,2,3),0)*CHOOSE('01. PC'!$F$9,'01. PC'!$G$10,'01. PC'!$G$11,'01. PC'!$G$12)*CHOOSE('01. PC'!$J$9,'01. PC'!$K$10,'01. PC'!$K$11,'01. PC'!$K$12,'01. PC'!$K$13,'01. PC'!$K$14)*(1+$AP13),0) -> 486740.0139 | Z16: =IFERROR(VLOOKUP(Z$9,'03. (b) DEMANDA INPUT'!$B$7:$D$37,IF('01. PC'!$F$13=1,2,3),0)*CHOOSE('01. PC'!$F$9,'01. PC'!$G$10,'01. PC'!$G$11,'01. PC'!$G$12)*CHOOSE('01. PC'!$J$9,'01. PC'!$K$10,'01. PC'!$K$11,'01. PC'!$K$12,'01. PC'!$K$13,'01. PC'!$K$14)*(1+$AP13),0) -> 492428.5049 | AA16: =IFERROR(VLOOKUP(AA$9,'03. (b) DEMANDA INPUT'!$B$7:$D$37,IF('01. PC'!$F$13=1,2,3),0)*CHOOSE('01. PC'!$F$9,'01. PC'!$G$10,'01. PC'!$G$11,'01. PC'!$G$12)*CHOOSE('01. PC'!$J$9,'01. PC'!$K$10,'01. PC'!$K$11,'01. PC'!$K$12,'01. PC'!$K$13,'01. PC'!$K$14)*(1+$AP13),0) -> 498065.3477 | AB16: =IFERROR(VLOOKUP(AB$9,'03. (b) DEMANDA INPUT'!$B$7:$D$37,IF('01. PC'!$F$13=1,2,3),0)*CHOOSE('01. PC'!$F$9,'01. PC'!$G$10,'01. PC'!$G$11,'01. PC'!$G$12)*CHOOSE('01. PC'!$J$9,'01. PC'!$K$10,'01. PC'!$K$11,'01. PC'!$K$12,'01. PC'!$K$13,'01. PC'!$K$14)*(1+$AP13),0) -> 503646.6551 | AC16: =IFERROR(VLOOKUP(AC$9,'03. (b) DEMANDA INPUT'!$B$7:$D$37,IF('01. PC'!$F$13=1,2,3),0)*CHOOSE('01. PC'!$F$9,'01. PC'!$G$10,'01. PC'!$G$11,'01. PC'!$G$12)*CHOOSE('01. PC'!$J$9,'01. PC'!$K$10,'01. PC'!$K$11,'01. PC'!$K$12,'01. PC'!$K$13,'01. PC'!$K$14)*(1+$AP13),0) -> 509168.1873 | AD16: =IFERROR(VLOOKUP(AD$9,'03. (b) DEMANDA INPUT'!$B$7:$D$37,IF('01. PC'!$F$13=1,2,3),0)*CHOOSE('01. PC'!$F$9,'01. PC'!$G$10,'01. PC'!$G$11,'01. PC'!$G$12)*CHOOSE('01. PC'!$J$9,'01. PC'!$K$10,'01. PC'!$K$11,'01. PC'!$K$12,'01. PC'!$K$13,'01. PC'!$K$14)*(1+$AP13),0) -> 514626.855 | AE16: =IFERROR(VLOOKUP(AE$9,'03. (b) DEMANDA INPUT'!$B$7:$D$37,IF('01. PC'!$F$13=1,2,3),0)*CHOOSE('01. PC'!$F$9,'01. PC'!$G$10,'01. PC'!$G$11,'01. PC'!$G$12)*CHOOSE('01. PC'!$J$9,'01. PC'!$K$10,'01. PC'!$K$11,'01. PC'!$K$12,'01. PC'!$K$13,'01. PC'!$K$14)*(1+$AP13),0) -> 520020.5344 | AF16: =IFERROR(VLOOKUP(AF$9,'03. (b) DEMANDA INPUT'!$B$7:$D$37,IF('01. PC'!$F$13=1,2,3),0)*CHOOSE('01. PC'!$F$9,'01. PC'!$G$10,'01. PC'!$G$11,'01. PC'!$G$12)*CHOOSE('01. PC'!$J$9,'01. PC'!$K$10,'01. PC'!$K$11,'01. PC'!$K$12,'01. PC'!$K$13,'01. PC'!$K$14)*(1+$AP13),0) -> 525345.6472 | AG16: =IFERROR(VLOOKUP(AG$9,'03. (b) DEMANDA INPUT'!$B$7:$D$37,IF('01. PC'!$F$13=1,2,3),0)*CHOOSE('01. PC'!$F$9,'01. PC'!$G$10,'01. PC'!$G$11,'01. PC'!$G$12)*CHOOSE('01. PC'!$J$9,'01. PC'!$K$10,'01. PC'!$K$11,'01. PC'!$K$12,'01. PC'!$K$13,'01. PC'!$K$14)*(1+$AP13),0) -> 530597.7208 | AH16: =IFERROR(VLOOKUP(AH$9,'03. (b) DEMANDA INPUT'!$B$7:$D$37,IF('01. PC'!$F$13=1,2,3),0)*CHOOSE('01. PC'!$F$9,'01. PC'!$G$10,'01. PC'!$G$11,'01. PC'!$G$12)*CHOOSE('01. PC'!$J$9,'01. PC'!$K$10,'01. PC'!$K$11,'01. PC'!$K$12,'01. PC'!$K$13,'01. PC'!$K$14)*(1+$AP13),0) -> 0 | AI16: =IFERROR(VLOOKUP(AI$9,'03. (b) DEMANDA INPUT'!$B$7:$D$37,IF('01. PC'!$F$13=1,2,3),0)*CHOOSE('01. PC'!$F$9,'01. PC'!$G$10,'01. PC'!$G$11,'01. PC'!$G$12)*CHOOSE('01. PC'!$J$9,'01. PC'!$K$10,'01. PC'!$K$11,'01. PC'!$K$12,'01. PC'!$K$13,'01. PC'!$K$14)*(1+$AP13),0) -> 0 | AJ16: =IFERROR(VLOOKUP(AJ$9,'03. (b) DEMANDA INPUT'!$B$7:$D$37,IF('01. PC'!$F$13=1,2,3),0)*CHOOSE('01. PC'!$F$9,'01. PC'!$G$10,'01. PC'!$G$11,'01. PC'!$G$12)*CHOOSE('01. PC'!$J$9,'01. PC'!$K$10,'01. PC'!$K$11,'01. PC'!$K$12,'01. PC'!$K$13,'01. PC'!$K$14)*(1+$AP13),0) -> 0 | AK16: =IFERROR(VLOOKUP(AK$9,'03. (b) DEMANDA INPUT'!$B$7:$D$37,IF('01. PC'!$F$13=1,2,3),0)*CHOOSE('01. PC'!$F$9,'01. PC'!$G$10,'01. PC'!$G$11,'01. PC'!$G$12)*CHOOSE('01. PC'!$J$9,'01. PC'!$K$10,'01. PC'!$K$11,'01. PC'!$K$12,'01. PC'!$K$13,'01. PC'!$K$14)*(1+$AP13),0) -> 0 | AL16: =IFERROR(VLOOKUP(AL$9,'03. (b) DEMANDA INPUT'!$B$7:$D$37,IF('01. PC'!$F$13=1,2,3),0)*CHOOSE('01. PC'!$F$9,'01. PC'!$G$10,'01. PC'!$G$11,'01. PC'!$G$12)*CHOOSE('01. PC'!$J$9,'01. PC'!$K$10,'01. PC'!$K$11,'01. PC'!$K$12,'01. PC'!$K$13,'01. PC'!$K$14)*(1+$AP13),0) -> 0 | AN16: =SUM(D16:AL16) -> 13189957.08
B17: Crescimento anual (%) | D17: 0 | E17: =IFERROR(E13/D13-1,0) -> 0.09613862793 | F17: 0.09352258023 | G17: 0.08989691691 | H17: 0.08681857649 | I17: 0.01623267384 | J17: 0.0159447444 | K17: 0.01565449352 | L17: 0.01536744202 | M17: 0.01508509472 | N17: 0.01480669439 | O17: 0.01452898195 | P17: 0.01425146122 | Q17: 0.01397816457 | R17: 0.01370838907 | S17: -1 | T17: 0 | U17: 0 | V17: 0 | W17: 0 | X17: 0 | Y17: 0 | Z17: 0 | AA17: 0 | AB17: 0 | AC17: 0 | AD17: 0 | AE17: 0 | AF17: 0 | AG17: 0 | AH17: 0 | AI17: 0 | AJ17: 0 | AK17: 0 | AL17: 0 | AN17: -
B19: Bilheteria | D19: =D21+D43 -> 270577.7755 | E19: 296590.7516 | F19: 324328.6839 | G19: 353484.8327 | H19: 384173.8827 | I19: 390410.052 | J19: 396635.0405 | K19: 402844.1612 | L19: 409034.8455 | M19: 415205.1749 | N19: 421352.991 | O19: 427474.821 | P19: 433566.9618 | Q19: 439627.4322 | R19: 445654.0161 | S19: 0 | T19: 0 | U19: 0 | V19: 0 | W19: 0 | X19: 0 | Y19: 0 | Z19: 0 | AA19: 0 | AB19: 0 | AC19: 0 | AD19: 0 | AE19: 0 | AF19: 0 | AG19: 0 | AH19: 0 | AI19: 0 | AJ19: 0 | AK19: 0 | AL19: 0 | AN19: =SUM(D19:AL19) -> 5810961.423
B21: Passeio de barco | C21: 0.9809797302 | D21: =D13*$C21 -> 265431.3132 | E21: 290949.5155 | F21: 318159.8649 | G21: 346761.4558 | H21: 376866.7918 | I21: 382984.3475 | J21: 389090.935 | K21: 395181.9565 | L21: 401254.8923 | M21: 407307.8604 | N21: 413338.7434 | O21: 419344.1346 | P21: 425320.4012 | Q21: 431265.5998 | R21: 437177.5564 | S21: 0 | T21: 0 | U21: 0 | V21: 0 | W21: 0 | X21: 0 | Y21: 0 | Z21: 0 | AA21: 0 | AB21: 0 | AC21: 0 | AD21: 0 | AE21: 0 | AF21: 0 | AG21: 0 | AH21: 0 | AI21: 0 | AJ21: 0 | AK21: 0 | AL21: 0 | AN21: =SUM(D21:AL21) -> 5700435.368
B23: Passeio de barco + transporte até o cais | D23: =D21-D28-D33-D38 -> 188957.4893 | E23: 207123.603 | F23: 226494.3368 | G23: 246855.4794 | H23: 268287.1207 | I23: 272642.1381 | J23: 276989.3473 | K23: 281325.4752 | L23: 285648.7281 | M23: 289957.7662 | N23: 294251.0823 | O23: 298526.2509 | P23: 302780.6862 | Q23: 307013.0045 | R23: 311221.6582 | S23: 0 | T23: 0 | U23: 0 | V23: 0 | W23: 0 | X23: 0 | Y23: 0 | Z23: 0 | AA23: 0 | AB23: 0 | AC23: 0 | AD23: 0 | AE23: 0 | AF23: 0 | AG23: 0 | AH23: 0 | AI23: 0 | AJ23: 0 | AK23: 0 | AL23: 0 | AN23: =SUM(D23:AL23) -> 4058074.166
B24: Inteira | C24: ='01. PC'!$K16 -> 0.6899299696 | D24: =D$23*$C24 -> 130367.4348 | E24: =E$23*$C24 -> 142900.7812 | F24: 156265.2309 | G24: 170312.9934 | H24: 185099.3251 | I24: 188103.982 | J24: 191103.2519 | K24: 194094.8766 | L24: 197077.6183 | M24: 200050.5529 | N24: 203012.6403 | O24: 205962.2072 | P24: 208897.4697 | Q24: 211817.4729 | R24: 214721.1492 | S24: 0 | T24: 0 | U24: 0 | V24: 0 | W24: 0 | X24: 0 | Y24: 0 | Z24: 0 | AA24: 0 | AB24: 0 | AC24: 0 | AD24: 0 | AE24: 0 | AF24: 0 | AG24: 0 | AN24: =SUM(D24:AL24) -> 2799786.986
B25: Meia | C25: ='01. PC'!$K17 -> 0.2118935628 | D25: =D$23*$C25 -> 40038.87561 | E25: 43888.15818 | F25: 47992.69197 | G25: 52307.08702 | H25: 56848.31385 | I25: 57771.11399 | J25: 58692.25964 | K25: 59611.05723 | L25: 60527.1267 | M25: 61440.18414 | N25: 62349.91017 | O25: 63255.79089 | P25: 64157.27834 | Q25: 65054.07933 | R25: 65945.86597 | S25: 0 | T25: 0 | U25: 0 | V25: 0 | W25: 0 | X25: 0 | Y25: 0 | Z25: 0 | AA25: 0 | AB25: 0 | AC25: 0 | AD25: 0 | AE25: 0 | AF25: 0 | AG25: 0 | AH25: 0 | AI25: =AI$23*$C25 -> 0 | AJ25: =AJ$23*$C25 -> 0 | AK25: =AK$23*$C25 -> 0 | AL25: =AL$23*$C25 -> 0 | AN25: =SUM(D25:AL25) -> 859879.793
B26: Isentos | C26: ='01. PC'!$K18 -> 0.09817646762 | D26: 18551.17883 | E26: 20334.66371 | F26: 22236.41393 | G26: 24235.39898 | H26: 26339.48182 | I26: 26767.04204 | J26: 27193.83568 | K26: 27619.54141 | L26: 28043.98311 | M26: 28467.02925 | N26: 28888.53185 | O26: 29308.25281 | P26: 29725.93824 | Q26: 30141.4523 | R26: 30554.64305 | S26: 0 | T26: 0 | U26: 0 | V26: 0 | W26: 0 | X26: 0 | Y26: 0 | Z26: 0 | AA26: 0 | AB26: 0 | AC26: 0 | AD26: 0 | AE26: 0 | AF26: 0 | AG26: 0 | AN26: =SUM(D26:AL26) -> 398407.387
B28: Passeio de barco + transporte até o cais (privativo) | C28: 0.005 | D28: =D$13*$C28 -> 1352.888878 | E28: =E$13*$C28 -> 1482.953758 | F28: 1621.64342 | G28: 1767.424163 | H28: 1920.869413 | I28: 1952.05026 | J28: 1983.175203 | K28: 2014.220806 | L28: 2045.174227 | M28: 2076.025874 | N28: 2106.764955 | O28: 2137.374105 | P28: 2167.834809 | Q28: 2198.137161 | R28: 2228.27008 | S28: 0 | T28: 0 | U28: 0 | V28: 0 | W28: 0 | X28: 0 | Y28: 0 | Z28: 0 | AA28: 0 | AB28: 0 | AC28: 0 | AD28: 0 | AE28: 0 | AF28: 0 | AG28: 0 | AH28: 0 | AI28: 0 | AJ28: 0 | AK28: 0 | AL28: 0 | AN28: =SUM(D28:AL28) -> 29054.80711
B29: Inteira | C29: =C24 -> 0.6899299696 | D29: =D$28*$C29 -> 933.3985821 | E29: =E$28*$C29 -> 1023.134241 | F29: 1118.820395 | G29: 1219.398899 | H29: 1325.265376 | I29: 1346.777977 | J29: 1368.252007 | K29: 1389.671299 | L29: 1411.026993 | M29: 1432.312468 | N29: 1453.520281 | O29: 1474.638451 | P29: 1495.654204 | Q29: 1516.560705 | R29: 1537.350309 | S29: 0 | T29: 0 | U29: 0 | V29: 0 | W29: 0 | X29: 0 | Y29: 0 | Z29: 0 | AA29: 0 | AB29: 0 | AC29: 0 | AD29: 0 | AE29: 0 | AF29: 0 | AG29: 0 | AN29: =SUM(D29:AL29) -> 20045.78219
B30: Meia | C30: =C25 -> 0.2118935628 | D30: =D$28*$C30 -> 286.6684443 | E30: 314.2283552 | F30: 343.6158017 | G30: 374.5058029 | H30: 407.0198636 | I30: 413.6268843 | J30: 420.2220592 | K30: 426.8004228 | L30: 433.3592535 | M30: 439.8965189 | N30: 446.4099322 | O30: 452.8958141 | P30: 459.3502412 | Q30: 465.7711144 | R30: 472.1560861 | S30: 0 | T30: 0 | U30: 0 | V30: 0 | W30: 0 | X30: 0 | Y30: 0 | Z30: 0 | AA30: 0 | AB30: 0 | AC30: 0 | AD30: 0 | AE30: 0 | AF30: 0 | AG30: 0 | AH30: 0 | AI30: =AI$28*$C30 -> 0 | AJ30: =AJ$28*$C30 -> 0 | AK30: =AK$28*$C30 -> 0 | AL30: =AL$28*$C30 -> 0 | AN30: =SUM(D30:AL30) -> 6156.526594
B31: Isentos | C31: =C26 -> 0.09817646762 | D31: 132.8218511 | E31: 145.5911616 | F31: 159.2072227 | G31: 173.5194612 | H31: 188.5841738 | I31: 191.6453992 | J31: 194.7011361 | K31: 197.7490837 | L31: 200.7879813 | M31: 203.816887 | N31: 206.8347414 | O31: 209.8398396 | P31: 212.830364 | Q31: 215.8053418 | R31: 218.7636854 | S31: 0 | T31: 0 | U31: 0 | V31: 0 | W31: 0 | X31: 0 | Y31: 0 | Z31: 0 | AA31: 0 | AB31: 0 | AC31: 0 | AD31: 0 | AE31: 0 | AF31: 0 | AG31: 0 | AN31: =SUM(D31:AL31) -> 2852.49833
B33: Passeio de barco + trilha de bicicleta | D33: =D$13*VLOOKUP($B55,'01. PC'!$O$10:$T$18,4,0)*VLOOKUP($B55,'01. PC'!$O$10:$T$18,6,0) -> 48063.15749 | E33: =E$13*VLOOKUP($B55,'01. PC'!$O$10:$T$18,4,0)*VLOOKUP($B55,'01. PC'!$O$10:$T$18,6,0) -> 52683.88351 | F33: =F$13*VLOOKUP($B55,'01. PC'!$O$10:$T$18,4,0)*VLOOKUP($B55,'01. PC'!$O$10:$T$18,6,0) -> 57611.01623 | G33: =G$13*VLOOKUP($B55,'01. PC'!$O$10:$T$18,4,0)*VLOOKUP($B55,'01. PC'!$O$10:$T$18,6,0) -> 62790.06897 | H33: =H$13*VLOOKUP($B55,'01. PC'!$O$10:$T$18,4,0)*VLOOKUP($B55,'01. PC'!$O$10:$T$18,6,0) -> 68241.41337 | I33: =I$13*VLOOKUP($B55,'01. PC'!$O$10:$T$18,4,0)*VLOOKUP($B55,'01. PC'!$O$10:$T$18,6,0) -> 69349.15398 | J33: =J$13*VLOOKUP($B55,'01. PC'!$O$10:$T$18,4,0)*VLOOKUP($B55,'01. PC'!$O$10:$T$18,6,0) -> 70454.90851 | K33: =K$13*VLOOKUP($B55,'01. PC'!$O$10:$T$18,4,0)*VLOOKUP($B55,'01. PC'!$O$10:$T$18,6,0) -> 71557.84442 | L33: =L$13*VLOOKUP($B55,'01. PC'!$O$10:$T$18,4,0)*VLOOKUP($B55,'01. PC'!$O$10:$T$18,6,0) -> 72657.50545 | M33: =M$13*VLOOKUP($B55,'01. PC'!$O$10:$T$18,4,0)*VLOOKUP($B55,'01. PC'!$O$10:$T$18,6,0) -> 73753.5508 | N33: =N$13*VLOOKUP($B55,'01. PC'!$O$10:$T$18,4,0)*VLOOKUP($B55,'01. PC'!$O$10:$T$18,6,0) -> 74845.59708 | O33: =O$13*VLOOKUP($B55,'01. PC'!$O$10:$T$18,4,0)*VLOOKUP($B55,'01. PC'!$O$10:$T$18,6,0) -> 75933.02741 | P33: =P$13*VLOOKUP($B55,'01. PC'!$O$10:$T$18,4,0)*VLOOKUP($B55,'01. PC'!$O$10:$T$18,6,0) -> 77015.18401 | Q33: =Q$13*VLOOKUP($B55,'01. PC'!$O$10:$T$18,4,0)*VLOOKUP($B55,'01. PC'!$O$10:$T$18,6,0) -> 78091.71493 | R33: =R$13*VLOOKUP($B55,'01. PC'!$O$10:$T$18,4,0)*VLOOKUP($B55,'01. PC'!$O$10:$T$18,6,0) -> 79162.22654 | S33: =S$13*VLOOKUP($B55,'01. PC'!$O$10:$T$18,4,0)*VLOOKUP($B55,'01. PC'!$O$10:$T$18,6,0) -> 0 | T33: =T$13*VLOOKUP($B55,'01. PC'!$O$10:$T$18,4,0)*VLOOKUP($B55,'01. PC'!$O$10:$T$18,6,0) -> 0 | U33: =U$13*VLOOKUP($B55,'01. PC'!$O$10:$T$18,4,0)*VLOOKUP($B55,'01. PC'!$O$10:$T$18,6,0) -> 0 | V33: =V$13*VLOOKUP($B55,'01. PC'!$O$10:$T$18,4,0)*VLOOKUP($B55,'01. PC'!$O$10:$T$18,6,0) -> 0 | W33: =W$13*VLOOKUP($B55,'01. PC'!$O$10:$T$18,4,0)*VLOOKUP($B55,'01. PC'!$O$10:$T$18,6,0) -> 0 | X33: =X$13*VLOOKUP($B55,'01. PC'!$O$10:$T$18,4,0)*VLOOKUP($B55,'01. PC'!$O$10:$T$18,6,0) -> 0 | Y33: =Y$13*VLOOKUP($B55,'01. PC'!$O$10:$T$18,4,0)*VLOOKUP($B55,'01. PC'!$O$10:$T$18,6,0) -> 0 | Z33: =Z$13*VLOOKUP($B55,'01. PC'!$O$10:$T$18,4,0)*VLOOKUP($B55,'01. PC'!$O$10:$T$18,6,0) -> 0 | AA33: =AA$13*VLOOKUP($B55,'01. PC'!$O$10:$T$18,4,0)*VLOOKUP($B55,'01. PC'!$O$10:$T$18,6,0) -> 0 | AB33: =AB$13*VLOOKUP($B55,'01. PC'!$O$10:$T$18,4,0)*VLOOKUP($B55,'01. PC'!$O$10:$T$18,6,0) -> 0 | AC33: =AC$13*VLOOKUP($B55,'01. PC'!$O$10:$T$18,4,0)*VLOOKUP($B55,'01. PC'!$O$10:$T$18,6,0) -> 0 | AD33: =AD$13*VLOOKUP($B55,'01. PC'!$O$10:$T$18,4,0)*VLOOKUP($B55,'01. PC'!$O$10:$T$18,6,0) -> 0 | AE33: =AE$13*VLOOKUP($B55,'01. PC'!$O$10:$T$18,4,0)*VLOOKUP($B55,'01. PC'!$O$10:$T$18,6,0) -> 0 | AF33: =AF$13*VLOOKUP($B55,'01. PC'!$O$10:$T$18,4,0)*VLOOKUP($B55,'01. PC'!$O$10:$T$18,6,0) -> 0 | AG33: =AG$13*VLOOKUP($B55,'01. PC'!$O$10:$T$18,4,0)*VLOOKUP($B55,'01. PC'!$O$10:$T$18,6,0) -> 0 | AH33: =AH$13*VLOOKUP($B55,'01. PC'!$O$10:$T$18,4,0)*VLOOKUP($B55,'01. PC'!$O$10:$T$18,6,0) -> 0 | AI33: =AI$13*VLOOKUP($B55,'01. PC'!$O$10:$T$18,4,0)*VLOOKUP($B55,'01. PC'!$O$10:$T$18,6,0) -> 0 | AJ33: =AJ$13*VLOOKUP($B55,'01. PC'!$O$10:$T$18,4,0)*VLOOKUP($B55,'01. PC'!$O$10:$T$18,6,0) -> 0 | AK33: =AK$13*VLOOKUP($B55,'01. PC'!$O$10:$T$18,4,0)*VLOOKUP($B55,'01. PC'!$O$10:$T$18,6,0) -> 0 | AL33: =AL$13*VLOOKUP($B55,'01. PC'!$O$10:$T$18,4,0)*VLOOKUP($B55,'01. PC'!$O$10:$T$18,6,0) -> 0 | AN33: =SUM(D33:AL33) -> 1032210.253
B34: Inteira | C34: =C29 -> 0.6899299696 | D34: =D$33*$C34 -> 33160.21279 | E34: =E$33*$C34 -> 36348.19015 | F34: 39747.56668 | G34: 43320.75037 | H34: 47081.79625 | I34: 47846.0597 | J34: 48608.95289 | K34: 49369.90143 | L34: 50128.59052 | M34: 50884.78506 | N34: 51638.22052 | O34: 52388.4713 | P34: 53135.08356 | Q34: 53877.81451 | R34: 54616.39255 | S34: 0 | T34: 0 | U34: 0 | V34: 0 | W34: 0 | X34: 0 | Y34: 0 | Z34: 0 | AA34: 0 | AB34: 0 | AC34: 0 | AD34: 0 | AE34: 0 | AF34: 0 | AG34: 0 | AN34: =SUM(D34:AL34) -> 712152.7883
B35: Meia | C35: =C30 -> 0.2118935628 | D35: =D$33*$C35 -> 10184.27368 | E35: 11163.37578 | F35: 12207.40348 | G35: 13304.81142 | H35: 14459.91621 | I35: 14694.63931 | J35: 14928.94158 | K35: 15162.6466 | L35: 15395.65769 | M35: 15627.90264 | N35: 15859.30022 | O35: 16089.71971 | P35: 16319.02173 | Q35: 16547.1317 | R35: 16773.96622 | S35: 0 | T35: 0 | U35: 0 | V35: 0 | W35: 0 | X35: 0 | Y35: 0 | Z35: 0 | AA35: 0 | AB35: 0 | AC35: 0 | AD35: 0 | AE35: 0 | AF35: 0 | AG35: 0 | AH35: 0 | AI35: =AI$33*$C35 -> 0 | AJ35: =AJ$33*$C35 -> 0 | AK35: =AK$33*$C35 -> 0 | AL35: =AL$33*$C35 -> 0 | AN35: =SUM(D35:AL35) -> 218718.708
B36: Isentos | C36: =C31 -> 0.09817646762 | D36: 4718.671025 | E36: 5172.317583 | F36: 5656.046069 | G36: 6164.507173 | H36: 6699.700911 | I36: 6808.45497 | J36: 6917.014045 | K36: 7025.296396 | L36: 7133.257231 | M36: 7240.863092 | N36: 7348.076339 | O36: 7454.836408 | P36: 7561.078719 | Q36: 7666.768722 | R36: 7771.867771 | S36: 0 | T36: 0 | U36: 0 | V36: 0 | W36: 0 | X36: 0 | Y36: 0 | Z36: 0 | AA36: 0 | AB36: 0 | AC36: 0 | AD36: 0 | AE36: 0 | AF36: 0 | AG36: 0 | AN36: =SUM(D36:AL36) -> 101338.7565
B38: Passeio de barco + trilha a pé | C38: 0.1 | D38: =D$13*$C38 -> 27057.77755 | E38: =E$13*$C38 -> 29659.07516 | F38: 32432.86839 | G38: 35348.48327 | H38: 38417.38827 | I38: 39041.0052 | J38: 39663.50405 | K38: 40284.41612 | L38: 40903.48455 | M38: 41520.51749 | N38: 42135.2991 | O38: 42747.4821 | P38: 43356.69618 | Q38: 43962.74322 | R38: 44565.40161 | S38: 0 | T38: 0 | U38: 0 | V38: 0 | W38: 0 | X38: 0 | Y38: 0 | Z38: 0 | AA38: 0 | AB38: 0 | AC38: 0 | AD38: 0 | AE38: 0 | AF38: 0 | AG38: 0 | AH38: 0 | AI38: 0 | AJ38: 0 | AK38: 0 | AL38: 0 | AN38: =SUM(D38:AL38) -> 581096.1423
B39: Inteira | C39: =C34 -> 0.6899299696 | D39: =D$38*$C39 -> 18667.97164 | E39: =E$38*$C39 -> 20462.68482 | F39: 22376.40791 | G39: 24387.97799 | H39: 26505.30752 | I39: 26935.55953 | J39: 27365.04015 | K39: 27793.42599 | L39: 28220.53985 | M39: 28646.24937 | N39: 29070.40563 | O39: 29492.76903 | P39: 29913.08408 | Q39: 30331.21409 | R39: 30747.00618 | S39: 0 | T39: 0 | U39: 0 | V39: 0 | W39: 0 | X39: 0 | Y39: 0 | Z39: 0 | AA39: 0 | AB39: 0 | AC39: 0 | AD39: 0 | AE39: 0 | AF39: 0 | AG39: 0 | AN39: =SUM(D39:AL39) -> 400915.6438
B40: Meia | C40: =C35 -> 0.2118935628 | D40: =D$38*$C40 -> 5733.368885 | E40: 6284.567103 | F40: 6872.316035 | G40: 7490.116058 | H40: 8140.397272 | I40: 8272.537686 | J40: 8404.441185 | K40: 8536.008455 | L40: 8667.18507 | M40: 8797.930378 | N40: 8928.198644 | O40: 9057.916281 | P40: 9187.004824 | Q40: 9315.422289 | R40: 9443.121722 | S40: 0 | T40: 0 | U40: 0 | V40: 0 | W40: 0 | X40: 0 | Y40: 0 | Z40: 0 | AA40: 0 | AB40: 0 | AC40: 0 | AD40: 0 | AE40: 0 | AF40: 0 | AG40: 0 | AH40: 0 | AI40: =AI$38*$C40 -> 0 | AJ40: =AJ$38*$C40 -> 0 | AK40: =AK$38*$C40 -> 0 | AL40: =AL$38*$C40 -> 0 | AN40: =SUM(D40:AL40) -> 123130.5319
B41: Isentos | C41: =C36 -> 0.09817646762 | D41: 2656.437022 | E41: 2911.823232 | F41: 3184.144454 | G41: 3470.389223 | H41: 3771.683476 | I41: 3832.907983 | J41: 3894.022721 | K41: 3954.981675 | L41: 4015.759626 | M41: 4076.337741 | N41: 4136.694828 | O41: 4196.796792 | P41: 4256.607279 | Q41: 4316.106836 | R41: 4375.273708 | S41: 0 | T41: 0 | U41: 0 | V41: 0 | W41: 0 | X41: 0 | Y41: 0 | Z41: 0 | AA41: 0 | AB41: 0 | AC41: 0 | AD41: 0 | AE41: 0 | AF41: 0 | AG41: 0 | AN41: =SUM(D41:AL41) -> 57049.9666
B43: Transporte até o cais | D43: =D45 -> 5146.462296 | E43: =E45 -> 5641.23612 | F43: 6168.819078 | G43: 6723.376894 | H43: 7307.090905 | I43: 7425.704528 | J43: 7544.105489 | K43: 7662.204639 | L43: 7779.953125 | M43: 7897.314455 | N43: 8014.247576 | O43: 8130.686435 | P43: 8246.560597 | Q43: 8361.832378 | R43: 8476.45963 | S43: 0 | T43: 0 | U43: 0 | V43: 0 | W43: 0 | X43: 0 | Y43: 0 | Z43: 0 | AA43: 0 | AB43: 0 | AC43: 0 | AD43: 0 | AE43: 0 | AF43: 0 | AG43: 0 | AH43: 0 | AI43: 0 | AJ43: 0 | AK43: 0 | AL43: 0 | AN43: =SUM(D43:AL43) -> 110526.0541
B45: Transporte até o cais | D45: =D13-D21 -> 5146.462296 | E45: 5641.23612 | F45: 6168.819078 | G45: 6723.376894 | H45: 7307.090905 | I45: 7425.704528 | J45: 7544.105489 | K45: 7662.204639 | L45: 7779.953125 | M45: 7897.314455 | N45: 8014.247576 | O45: 8130.686435 | P45: 8246.560597 | Q45: 8361.832378 | R45: 8476.45963 | S45: 0 | T45: 0 | U45: 0 | V45: 0 | W45: 0 | X45: 0 | Y45: 0 | Z45: 0 | AA45: 0 | AB45: 0 | AC45: 0 | AD45: 0 | AE45: 0 | AF45: 0 | AG45: 0 | AH45: 0 | AI45: 0 | AJ45: 0 | AK45: 0 | AL45: 0 | AN45: =SUM(D45:AL45) -> 110526.0541
B46: Inteira | C46: =C39 -> 0.6899299696 | D46: =D$45*$C46 -> 3550.698576 | E46: =E$45*$C46 -> 3892.057865 | F46: 4256.053159 | G46: 4638.659216 | H46: 5041.381006 | I46: 5123.2161 | J46: 5204.904471 | K46: 5286.384614 | L46: 5367.622823 | M46: 5448.593922 | N46: 5529.269587 | O46: 5609.604245 | P46: 5689.549302 | Q46: 5769.078759 | R46: 5848.163535 | S46: 0 | T46: 0 | U46: 0 | V46: 0 | W46: 0 | X46: 0 | Y46: 0 | Z46: 0 | AA46: 0 | AB46: 0 | AC46: 0 | AD46: 0 | AE46: 0 | AF46: 0 | AG46: 0 | AN46: =SUM(D46:AL46) -> 76255.23718
B47: Meia | C47: =C40 -> 0.2118935628 | D47: =D$45*$C47 -> 1090.502232 | E47: 1195.34162 | F47: 1307.133052 | G47: 1424.640284 | H47: 1548.325525 | I47: 1573.458988 | J47: 1598.54739 | K47: 1623.57184 | L47: 1648.521986 | M47: 1673.390096 | N47: 1698.167472 | O47: 1722.840116 | P47: 1747.393105 | Q47: 1771.818454 | R47: 1796.107231 | S47: 0 | T47: 0 | U47: 0 | V47: 0 | W47: 0 | X47: 0 | Y47: 0 | Z47: 0 | AA47: 0 | AB47: 0 | AC47: 0 | AD47: 0 | AE47: 0 | AF47: 0 | AG47: 0 | AH47: 0 | AI47: =AI$45*$C47 -> 0 | AJ47: =AJ$45*$C47 -> 0 | AK47: =AK$45*$C47 -> 0 | AL47: =AL$45*$C47 -> 0 | AN47: =SUM(D47:AL47) -> 23419.75939
B48: Isentos | C48: =C41 -> 0.09817646762 | D48: 505.261489 | E48: 553.8366353 | F48: 605.6328665 | G48: 660.0773939 | H48: 717.3843737 | I48: 729.0294402 | J48: 740.6536283 | K48: 752.2481857 | L48: 763.8083161 | M48: 775.3304369 | N48: 786.8105177 | O48: 798.2420735 | P48: 809.6181895 | Q48: 820.9351658 | R48: 832.1888644 | S48: 0 | T48: 0 | U48: 0 | V48: 0 | W48: 0 | X48: 0 | Y48: 0 | Z48: 0 | AA48: 0 | AB48: 0 | AC48: 0 | AD48: 0 | AE48: 0 | AF48: 0 | AG48: 0 | AN48: =SUM(D48:AL48) -> 10851.05758
B50: Outras UGC's | D50: =SUM(D52:D60) -> 220022.4543 | E50: =SUM(E52:E60) -> 241175.1112 | F50: 263730.4298 | G50: 287438.9824 | H50: 312394.0257 | I50: 317465.016 | J50: 322526.9145 | K50: 327575.91 | L50: 332609.9138 | M50: 337627.3659 | N50: 342626.5111 | O50: 347604.5255 | P50: 352558.3979 | Q50: 357486.5172 | R50: 362387.0815 | S50: 0 | T50: 0 | U50: 0 | V50: 0 | W50: 0 | X50: 0 | Y50: 0 | Z50: 0 | AA50: 0 | AB50: 0 | AC50: 0 | AD50: 0 | AE50: 0 | AF50: 0 | AG50: 0 | AH50: 0 | AI50: 0 | AJ50: 0 | AK50: 0 | AL50: 0 | AN50: =SUM(D50:AL50) -> 4725229.157
A52: =VLOOKUP($B52,'01. PC'!$O$10:$P$18,2,0) -> 1 | B52: ='01. PC'!O10 -> Cachoeirismo | D52: =D$13*VLOOKUP($B52,'01. PC'!$O$10:$T$18,4,0)*VLOOKUP($B52,'01. PC'!$O$10:$T$18,6,0)*$A52 -> 1780.116944 | E52: =E$13*VLOOKUP($B52,'01. PC'!$O$10:$T$18,4,0)*VLOOKUP($B52,'01. PC'!$O$10:$T$18,6,0)*$A52 -> 1951.254945 | F52: =F$13*VLOOKUP($B52,'01. PC'!$O$10:$T$18,4,0)*VLOOKUP($B52,'01. PC'!$O$10:$T$18,6,0)*$A52 -> 2133.741342 | G52: =G$13*VLOOKUP($B52,'01. PC'!$O$10:$T$18,4,0)*VLOOKUP($B52,'01. PC'!$O$10:$T$18,6,0)*$A52 -> 2325.55811 | H52: =H$13*VLOOKUP($B52,'01. PC'!$O$10:$T$18,4,0)*VLOOKUP($B52,'01. PC'!$O$10:$T$18,6,0)*$A52 -> 2527.459755 | I52: =I$13*VLOOKUP($B52,'01. PC'!$O$10:$T$18,4,0)*VLOOKUP($B52,'01. PC'!$O$10:$T$18,6,0)*$A52 -> 2568.487184 | J52: =J$13*VLOOKUP($B52,'01. PC'!$O$10:$T$18,4,0)*VLOOKUP($B52,'01. PC'!$O$10:$T$18,6,0)*$A52 -> 2609.441056 | K52: =K$13*VLOOKUP($B52,'01. PC'!$O$10:$T$18,4,0)*VLOOKUP($B52,'01. PC'!$O$10:$T$18,6,0)*$A52 -> 2650.290534 | L52: =L$13*VLOOKUP($B52,'01. PC'!$O$10:$T$18,4,0)*VLOOKUP($B52,'01. PC'!$O$10:$T$18,6,0)*$A52 -> 2691.01872 | M52: =M$13*VLOOKUP($B52,'01. PC'!$O$10:$T$18,4,0)*VLOOKUP($B52,'01. PC'!$O$10:$T$18,6,0)*$A52 -> 2731.612992 | N52: =N$13*VLOOKUP($B52,'01. PC'!$O$10:$T$18,4,0)*VLOOKUP($B52,'01. PC'!$O$10:$T$18,6,0)*$A52 -> 2772.059151 | O52: =O$13*VLOOKUP($B52,'01. PC'!$O$10:$T$18,4,0)*VLOOKUP($B52,'01. PC'!$O$10:$T$18,6,0)*$A52 -> 2812.334349 | P52: =P$13*VLOOKUP($B52,'01. PC'!$O$10:$T$18,4,0)*VLOOKUP($B52,'01. PC'!$O$10:$T$18,6,0)*$A52 -> 2852.414223 | Q52: =Q$13*VLOOKUP($B52,'01. PC'!$O$10:$T$18,4,0)*VLOOKUP($B52,'01. PC'!$O$10:$T$18,6,0)*$A52 -> 2892.285738 | R52: =R$13*VLOOKUP($B52,'01. PC'!$O$10:$T$18,4,0)*VLOOKUP($B52,'01. PC'!$O$10:$T$18,6,0)*$A52 -> 2931.934316 | S52: =S$13*VLOOKUP($B52,'01. PC'!$O$10:$T$18,4,0)*VLOOKUP($B52,'01. PC'!$O$10:$T$18,6,0)*$A52 -> 0 | T52: =T$13*VLOOKUP($B52,'01. PC'!$O$10:$T$18,4,0)*VLOOKUP($B52,'01. PC'!$O$10:$T$18,6,0)*$A52 -> 0 | U52: =U$13*VLOOKUP($B52,'01. PC'!$O$10:$T$18,4,0)*VLOOKUP($B52,'01. PC'!$O$10:$T$18,6,0)*$A52 -> 0 | V52: =V$13*VLOOKUP($B52,'01. PC'!$O$10:$T$18,4,0)*VLOOKUP($B52,'01. PC'!$O$10:$T$18,6,0)*$A52 -> 0 | W52: =W$13*VLOOKUP($B52,'01. PC'!$O$10:$T$18,4,0)*VLOOKUP($B52,'01. PC'!$O$10:$T$18,6,0)*$A52 -> 0 | X52: =X$13*VLOOKUP($B52,'01. PC'!$O$10:$T$18,4,0)*VLOOKUP($B52,'01. PC'!$O$10:$T$18,6,0)*$A52 -> 0 | Y52: =Y$13*VLOOKUP($B52,'01. PC'!$O$10:$T$18,4,0)*VLOOKUP($B52,'01. PC'!$O$10:$T$18,6,0)*$A52 -> 0 | Z52: =Z$13*VLOOKUP($B52,'01. PC'!$O$10:$T$18,4,0)*VLOOKUP($B52,'01. PC'!$O$10:$T$18,6,0)*$A52 -> 0 | AA52: =AA$13*VLOOKUP($B52,'01. PC'!$O$10:$T$18,4,0)*VLOOKUP($B52,'01. PC'!$O$10:$T$18,6,0)*$A52 -> 0 | AB52: =AB$13*VLOOKUP($B52,'01. PC'!$O$10:$T$18,4,0)*VLOOKUP($B52,'01. PC'!$O$10:$T$18,6,0)*$A52 -> 0 | AC52: =AC$13*VLOOKUP($B52,'01. PC'!$O$10:$T$18,4,0)*VLOOKUP($B52,'01. PC'!$O$10:$T$18,6,0)*$A52 -> 0 | AD52: =AD$13*VLOOKUP($B52,'01. PC'!$O$10:$T$18,4,0)*VLOOKUP($B52,'01. PC'!$O$10:$T$18,6,0)*$A52 -> 0 | AE52: =AE$13*VLOOKUP($B52,'01. PC'!$O$10:$T$18,4,0)*VLOOKUP($B52,'01. PC'!$O$10:$T$18,6,0)*$A52 -> 0 | AF52: =AF$13*VLOOKUP($B52,'01. PC'!$O$10:$T$18,4,0)*VLOOKUP($B52,'01. PC'!$O$10:$T$18,6,0)*$A52 -> 0 | AG52: =AG$13*VLOOKUP($B52,'01. PC'!$O$10:$T$18,4,0)*VLOOKUP($B52,'01. PC'!$O$10:$T$18,6,0)*$A52 -> 0 | AH52: =AH$13*VLOOKUP($B52,'01. PC'!$O$10:$T$18,4,0)*VLOOKUP($B52,'01. PC'!$O$10:$T$18,6,0)*$A52 -> 0 | AI52: =AI$13*VLOOKUP($B52,'01. PC'!$O$10:$T$18,4,0)*VLOOKUP($B52,'01. PC'!$O$10:$T$18,6,0)*$A52 -> 0 | AJ52: =AJ$13*VLOOKUP($B52,'01. PC'!$O$10:$T$18,4,0)*VLOOKUP($B52,'01. PC'!$O$10:$T$18,6,0)*$A52 -> 0 | AK52: =AK$13*VLOOKUP($B52,'01. PC'!$O$10:$T$18,4,0)*VLOOKUP($B52,'01. PC'!$O$10:$T$18,6,0)*$A52 -> 0 | AL52: =AL$13*VLOOKUP($B52,'01. PC'!$O$10:$T$18,4,0)*VLOOKUP($B52,'01. PC'!$O$10:$T$18,6,0)*$A52 -> 0 | AN52: =SUM(D52:AL52) -> 38230.00936
A53: =VLOOKUP($B53,'01. PC'!$O$10:$P$18,2,0) -> 1 | B53: ='01. PC'!O11 -> Rafting | D53: =D$13*VLOOKUP($B53,'01. PC'!$O$10:$T$18,4,0)*VLOOKUP($B53,'01. PC'!$O$10:$T$18,6,0)*$A53 -> 1780.116944 | E53: =E$13*VLOOKUP($B53,'01. PC'!$O$10:$T$18,4,0)*VLOOKUP($B53,'01. PC'!$O$10:$T$18,6,0)*$A53 -> 1951.254945 | F53: =F$13*VLOOKUP($B53,'01. PC'!$O$10:$T$18,4,0)*VLOOKUP($B53,'01. PC'!$O$10:$T$18,6,0)*$A53 -> 2133.741342 | G53: =G$13*VLOOKUP($B53,'01. PC'!$O$10:$T$18,4,0)*VLOOKUP($B53,'01. PC'!$O$10:$T$18,6,0)*$A53 -> 2325.55811 | H53: =H$13*VLOOKUP($B53,'01. PC'!$O$10:$T$18,4,0)*VLOOKUP($B53,'01. PC'!$O$10:$T$18,6,0)*$A53 -> 2527.459755 | I53: =I$13*VLOOKUP($B53,'01. PC'!$O$10:$T$18,4,0)*VLOOKUP($B53,'01. PC'!$O$10:$T$18,6,0)*$A53 -> 2568.487184 | J53: =J$13*VLOOKUP($B53,'01. PC'!$O$10:$T$18,4,0)*VLOOKUP($B53,'01. PC'!$O$10:$T$18,6,0)*$A53 -> 2609.441056 | K53: =K$13*VLOOKUP($B53,'01. PC'!$O$10:$T$18,4,0)*VLOOKUP($B53,'01. PC'!$O$10:$T$18,6,0)*$A53 -> 2650.290534 | L53: =L$13*VLOOKUP($B53,'01. PC'!$O$10:$T$18,4,0)*VLOOKUP($B53,'01. PC'!$O$10:$T$18,6,0)*$A53 -> 2691.01872 | M53: =M$13*VLOOKUP($B53,'01. PC'!$O$10:$T$18,4,0)*VLOOKUP($B53,'01. PC'!$O$10:$T$18,6,0)*$A53 -> 2731.612992 | N53: =N$13*VLOOKUP($B53,'01. PC'!$O$10:$T$18,4,0)*VLOOKUP($B53,'01. PC'!$O$10:$T$18,6,0)*$A53 -> 2772.059151 | O53: =O$13*VLOOKUP($B53,'01. PC'!$O$10:$T$18,4,0)*VLOOKUP($B53,'01. PC'!$O$10:$T$18,6,0)*$A53 -> 2812.334349 | P53: =P$13*VLOOKUP($B53,'01. PC'!$O$10:$T$18,4,0)*VLOOKUP($B53,'01. PC'!$O$10:$T$18,6,0)*$A53 -> 2852.414223 | Q53: =Q$13*VLOOKUP($B53,'01. PC'!$O$10:$T$18,4,0)*VLOOKUP($B53,'01. PC'!$O$10:$T$18,6,0)*$A53 -> 2892.285738 | R53: =R$13*VLOOKUP($B53,'01. PC'!$O$10:$T$18,4,0)*VLOOKUP($B53,'01. PC'!$O$10:$T$18,6,0)*$A53 -> 2931.934316 | S53: =S$13*VLOOKUP($B53,'01. PC'!$O$10:$T$18,4,0)*VLOOKUP($B53,'01. PC'!$O$10:$T$18,6,0)*$A53 -> 0 | T53: =T$13*VLOOKUP($B53,'01. PC'!$O$10:$T$18,4,0)*VLOOKUP($B53,'01. PC'!$O$10:$T$18,6,0)*$A53 -> 0 | U53: =U$13*VLOOKUP($B53,'01. PC'!$O$10:$T$18,4,0)*VLOOKUP($B53,'01. PC'!$O$10:$T$18,6,0)*$A53 -> 0 | V53: =V$13*VLOOKUP($B53,'01. PC'!$O$10:$T$18,4,0)*VLOOKUP($B53,'01. PC'!$O$10:$T$18,6,0)*$A53 -> 0 | W53: =W$13*VLOOKUP($B53,'01. PC'!$O$10:$T$18,4,0)*VLOOKUP($B53,'01. PC'!$O$10:$T$18,6,0)*$A53 -> 0 | X53: =X$13*VLOOKUP($B53,'01. PC'!$O$10:$T$18,4,0)*VLOOKUP($B53,'01. PC'!$O$10:$T$18,6,0)*$A53 -> 0 | Y53: =Y$13*VLOOKUP($B53,'01. PC'!$O$10:$T$18,4,0)*VLOOKUP($B53,'01. PC'!$O$10:$T$18,6,0)*$A53 -> 0 | Z53: =Z$13*VLOOKUP($B53,'01. PC'!$O$10:$T$18,4,0)*VLOOKUP($B53,'01. PC'!$O$10:$T$18,6,0)*$A53 -> 0 | AA53: =AA$13*VLOOKUP($B53,'01. PC'!$O$10:$T$18,4,0)*VLOOKUP($B53,'01. PC'!$O$10:$T$18,6,0)*$A53 -> 0 | AB53: =AB$13*VLOOKUP($B53,'01. PC'!$O$10:$T$18,4,0)*VLOOKUP($B53,'01. PC'!$O$10:$T$18,6,0)*$A53 -> 0 | AC53: =AC$13*VLOOKUP($B53,'01. PC'!$O$10:$T$18,4,0)*VLOOKUP($B53,'01. PC'!$O$10:$T$18,6,0)*$A53 -> 0 | AD53: =AD$13*VLOOKUP($B53,'01. PC'!$O$10:$T$18,4,0)*VLOOKUP($B53,'01. PC'!$O$10:$T$18,6,0)*$A53 -> 0 | AE53: =AE$13*VLOOKUP($B53,'01. PC'!$O$10:$T$18,4,0)*VLOOKUP($B53,'01. PC'!$O$10:$T$18,6,0)*$A53 -> 0 | AF53: =AF$13*VLOOKUP($B53,'01. PC'!$O$10:$T$18,4,0)*VLOOKUP($B53,'01. PC'!$O$10:$T$18,6,0)*$A53 -> 0 | AG53: =AG$13*VLOOKUP($B53,'01. PC'!$O$10:$T$18,4,0)*VLOOKUP($B53,'01. PC'!$O$10:$T$18,6,0)*$A53 -> 0 | AH53: =AH$13*VLOOKUP($B53,'01. PC'!$O$10:$T$18,4,0)*VLOOKUP($B53,'01. PC'!$O$10:$T$18,6,0)*$A53 -> 0 | AI53: =AI$13*VLOOKUP($B53,'01. PC'!$O$10:$T$18,4,0)*VLOOKUP($B53,'01. PC'!$O$10:$T$18,6,0)*$A53 -> 0 | AJ53: =AJ$13*VLOOKUP($B53,'01. PC'!$O$10:$T$18,4,0)*VLOOKUP($B53,'01. PC'!$O$10:$T$18,6,0)*$A53 -> 0 | AK53: =AK$13*VLOOKUP($B53,'01. PC'!$O$10:$T$18,4,0)*VLOOKUP($B53,'01. PC'!$O$10:$T$18,6,0)*$A53 -> 0 | AL53: =AL$13*VLOOKUP($B53,'01. PC'!$O$10:$T$18,4,0)*VLOOKUP($B53,'01. PC'!$O$10:$T$18,6,0)*$A53 -> 0 | AN53: =SUM(D53:AL53) -> 38230.00936
A54: =VLOOKUP($B54,'01. PC'!$O$10:$P$18,2,0) -> 0 | B54: ='01. PC'!O12 -> Aluguel de Caiaque | D54: =D$13*VLOOKUP($B54,'01. PC'!$O$10:$T$18,4,0)*VLOOKUP($B54,'01. PC'!$O$10:$T$18,6,0)*$A54 -> 0 | E54: =E$13*VLOOKUP($B54,'01. PC'!$O$10:$T$18,4,0)*VLOOKUP($B54,'01. PC'!$O$10:$T$18,6,0)*$A54 -> 0 | F54: =F$13*VLOOKUP($B54,'01. PC'!$O$10:$T$18,4,0)*VLOOKUP($B54,'01. PC'!$O$10:$T$18,6,0)*$A54 -> 0 | G54: =G$13*VLOOKUP($B54,'01. PC'!$O$10:$T$18,4,0)*VLOOKUP($B54,'01. PC'!$O$10:$T$18,6,0)*$A54 -> 0 | H54: =H$13*VLOOKUP($B54,'01. PC'!$O$10:$T$18,4,0)*VLOOKUP($B54,'01. PC'!$O$10:$T$18,6,0)*$A54 -> 0 | I54: =I$13*VLOOKUP($B54,'01. PC'!$O$10:$T$18,4,0)*VLOOKUP($B54,'01. PC'!$O$10:$T$18,6,0)*$A54 -> 0 | J54: =J$13*VLOOKUP($B54,'01. PC'!$O$10:$T$18,4,0)*VLOOKUP($B54,'01. PC'!$O$10:$T$18,6,0)*$A54 -> 0 | K54: =K$13*VLOOKUP($B54,'01. PC'!$O$10:$T$18,4,0)*VLOOKUP($B54,'01. PC'!$O$10:$T$18,6,0)*$A54 -> 0 | L54: =L$13*VLOOKUP($B54,'01. PC'!$O$10:$T$18,4,0)*VLOOKUP($B54,'01. PC'!$O$10:$T$18,6,0)*$A54 -> 0 | M54: =M$13*VLOOKUP($B54,'01. PC'!$O$10:$T$18,4,0)*VLOOKUP($B54,'01. PC'!$O$10:$T$18,6,0)*$A54 -> 0 | N54: =N$13*VLOOKUP($B54,'01. PC'!$O$10:$T$18,4,0)*VLOOKUP($B54,'01. PC'!$O$10:$T$18,6,0)*$A54 -> 0 | O54: =O$13*VLOOKUP($B54,'01. PC'!$O$10:$T$18,4,0)*VLOOKUP($B54,'01. PC'!$O$10:$T$18,6,0)*$A54 -> 0 | P54: =P$13*VLOOKUP($B54,'01. PC'!$O$10:$T$18,4,0)*VLOOKUP($B54,'01. PC'!$O$10:$T$18,6,0)*$A54 -> 0 | Q54: =Q$13*VLOOKUP($B54,'01. PC'!$O$10:$T$18,4,0)*VLOOKUP($B54,'01. PC'!$O$10:$T$18,6,0)*$A54 -> 0 | R54: =R$13*VLOOKUP($B54,'01. PC'!$O$10:$T$18,4,0)*VLOOKUP($B54,'01. PC'!$O$10:$T$18,6,0)*$A54 -> 0 | S54: =S$13*VLOOKUP($B54,'01. PC'!$O$10:$T$18,4,0)*VLOOKUP($B54,'01. PC'!$O$10:$T$18,6,0)*$A54 -> 0 | T54: =T$13*VLOOKUP($B54,'01. PC'!$O$10:$T$18,4,0)*VLOOKUP($B54,'01. PC'!$O$10:$T$18,6,0)*$A54 -> 0 | U54: =U$13*VLOOKUP($B54,'01. PC'!$O$10:$T$18,4,0)*VLOOKUP($B54,'01. PC'!$O$10:$T$18,6,0)*$A54 -> 0 | V54: =V$13*VLOOKUP($B54,'01. PC'!$O$10:$T$18,4,0)*VLOOKUP($B54,'01. PC'!$O$10:$T$18,6,0)*$A54 -> 0 | W54: =W$13*VLOOKUP($B54,'01. PC'!$O$10:$T$18,4,0)*VLOOKUP($B54,'01. PC'!$O$10:$T$18,6,0)*$A54 -> 0 | X54: =X$13*VLOOKUP($B54,'01. PC'!$O$10:$T$18,4,0)*VLOOKUP($B54,'01. PC'!$O$10:$T$18,6,0)*$A54 -> 0 | Y54: =Y$13*VLOOKUP($B54,'01. PC'!$O$10:$T$18,4,0)*VLOOKUP($B54,'01. PC'!$O$10:$T$18,6,0)*$A54 -> 0 | Z54: =Z$13*VLOOKUP($B54,'01. PC'!$O$10:$T$18,4,0)*VLOOKUP($B54,'01. PC'!$O$10:$T$18,6,0)*$A54 -> 0 | AA54: =AA$13*VLOOKUP($B54,'01. PC'!$O$10:$T$18,4,0)*VLOOKUP($B54,'01. PC'!$O$10:$T$18,6,0)*$A54 -> 0 | AB54: =AB$13*VLOOKUP($B54,'01. PC'!$O$10:$T$18,4,0)*VLOOKUP($B54,'01. PC'!$O$10:$T$18,6,0)*$A54 -> 0 | AC54: =AC$13*VLOOKUP($B54,'01. PC'!$O$10:$T$18,4,0)*VLOOKUP($B54,'01. PC'!$O$10:$T$18,6,0)*$A54 -> 0 | AD54: =AD$13*VLOOKUP($B54,'01. PC'!$O$10:$T$18,4,0)*VLOOKUP($B54,'01. PC'!$O$10:$T$18,6,0)*$A54 -> 0 | AE54: =AE$13*VLOOKUP($B54,'01. PC'!$O$10:$T$18,4,0)*VLOOKUP($B54,'01. PC'!$O$10:$T$18,6,0)*$A54 -> 0 | AF54: =AF$13*VLOOKUP($B54,'01. PC'!$O$10:$T$18,4,0)*VLOOKUP($B54,'01. PC'!$O$10:$T$18,6,0)*$A54 -> 0 | AG54: =AG$13*VLOOKUP($B54,'01. PC'!$O$10:$T$18,4,0)*VLOOKUP($B54,'01. PC'!$O$10:$T$18,6,0)*$A54 -> 0 | AH54: =AH$13*VLOOKUP($B54,'01. PC'!$O$10:$T$18,4,0)*VLOOKUP($B54,'01. PC'!$O$10:$T$18,6,0)*$A54 -> 0 | AI54: =AI$13*VLOOKUP($B54,'01. PC'!$O$10:$T$18,4,0)*VLOOKUP($B54,'01. PC'!$O$10:$T$18,6,0)*$A54 -> 0 | AJ54: =AJ$13*VLOOKUP($B54,'01. PC'!$O$10:$T$18,4,0)*VLOOKUP($B54,'01. PC'!$O$10:$T$18,6,0)*$A54 -> 0 | AK54: =AK$13*VLOOKUP($B54,'01. PC'!$O$10:$T$18,4,0)*VLOOKUP($B54,'01. PC'!$O$10:$T$18,6,0)*$A54 -> 0 | AL54: =AL$13*VLOOKUP($B54,'01. PC'!$O$10:$T$18,4,0)*VLOOKUP($B54,'01. PC'!$O$10:$T$18,6,0)*$A54 -> 0 | AN54: 0
A55: =VLOOKUP($B55,'01. PC'!$O$10:$P$18,2,0) -> 0 | B55: ='01. PC'!O13 -> Aluguel de Bicicleta | D55: =D$13*VLOOKUP($B55,'01. PC'!$O$10:$T$18,4,0)*VLOOKUP($B55,'01. PC'!$O$10:$T$18,6,0)*$A55 -> 0 | E55: =E$13*VLOOKUP($B55,'01. PC'!$O$10:$T$18,4,0)*VLOOKUP($B55,'01. PC'!$O$10:$T$18,6,0)*$A55 -> 0 | F55: =F$13*VLOOKUP($B55,'01. PC'!$O$10:$T$18,4,0)*VLOOKUP($B55,'01. PC'!$O$10:$T$18,6,0)*$A55 -> 0 | G55: =G$13*VLOOKUP($B55,'01. PC'!$O$10:$T$18,4,0)*VLOOKUP($B55,'01. PC'!$O$10:$T$18,6,0)*$A55 -> 0 | H55: =H$13*VLOOKUP($B55,'01. PC'!$O$10:$T$18,4,0)*VLOOKUP($B55,'01. PC'!$O$10:$T$18,6,0)*$A55 -> 0 | I55: =I$13*VLOOKUP($B55,'01. PC'!$O$10:$T$18,4,0)*VLOOKUP($B55,'01. PC'!$O$10:$T$18,6,0)*$A55 -> 0 | J55: =J$13*VLOOKUP($B55,'01. PC'!$O$10:$T$18,4,0)*VLOOKUP($B55,'01. PC'!$O$10:$T$18,6,0)*$A55 -> 0 | K55: =K$13*VLOOKUP($B55,'01. PC'!$O$10:$T$18,4,0)*VLOOKUP($B55,'01. PC'!$O$10:$T$18,6,0)*$A55 -> 0 | L55: =L$13*VLOOKUP($B55,'01. PC'!$O$10:$T$18,4,0)*VLOOKUP($B55,'01. PC'!$O$10:$T$18,6,0)*$A55 -> 0 | M55: =M$13*VLOOKUP($B55,'01. PC'!$O$10:$T$18,4,0)*VLOOKUP($B55,'01. PC'!$O$10:$T$18,6,0)*$A55 -> 0 | N55: =N$13*VLOOKUP($B55,'01. PC'!$O$10:$T$18,4,0)*VLOOKUP($B55,'01. PC'!$O$10:$T$18,6,0)*$A55 -> 0 | O55: =O$13*VLOOKUP($B55,'01. PC'!$O$10:$T$18,4,0)*VLOOKUP($B55,'01. PC'!$O$10:$T$18,6,0)*$A55 -> 0 | P55: =P$13*VLOOKUP($B55,'01. PC'!$O$10:$T$18,4,0)*VLOOKUP($B55,'01. PC'!$O$10:$T$18,6,0)*$A55 -> 0 | Q55: =Q$13*VLOOKUP($B55,'01. PC'!$O$10:$T$18,4,0)*VLOOKUP($B55,'01. PC'!$O$10:$T$18,6,0)*$A55 -> 0 | R55: =R$13*VLOOKUP($B55,'01. PC'!$O$10:$T$18,4,0)*VLOOKUP($B55,'01. PC'!$O$10:$T$18,6,0)*$A55 -> 0 | S55: =S$13*VLOOKUP($B55,'01. PC'!$O$10:$T$18,4,0)*VLOOKUP($B55,'01. PC'!$O$10:$T$18,6,0)*$A55 -> 0 | T55: =T$13*VLOOKUP($B55,'01. PC'!$O$10:$T$18,4,0)*VLOOKUP($B55,'01. PC'!$O$10:$T$18,6,0)*$A55 -> 0 | U55: =U$13*VLOOKUP($B55,'01. PC'!$O$10:$T$18,4,0)*VLOOKUP($B55,'01. PC'!$O$10:$T$18,6,0)*$A55 -> 0 | V55: =V$13*VLOOKUP($B55,'01. PC'!$O$10:$T$18,4,0)*VLOOKUP($B55,'01. PC'!$O$10:$T$18,6,0)*$A55 -> 0 | W55: =W$13*VLOOKUP($B55,'01. PC'!$O$10:$T$18,4,0)*VLOOKUP($B55,'01. PC'!$O$10:$T$18,6,0)*$A55 -> 0 | X55: =X$13*VLOOKUP($B55,'01. PC'!$O$10:$T$18,4,0)*VLOOKUP($B55,'01. PC'!$O$10:$T$18,6,0)*$A55 -> 0 | Y55: =Y$13*VLOOKUP($B55,'01. PC'!$O$10:$T$18,4,0)*VLOOKUP($B55,'01. PC'!$O$10:$T$18,6,0)*$A55 -> 0 | Z55: =Z$13*VLOOKUP($B55,'01. PC'!$O$10:$T$18,4,0)*VLOOKUP($B55,'01. PC'!$O$10:$T$18,6,0)*$A55 -> 0 | AA55: =AA$13*VLOOKUP($B55,'01. PC'!$O$10:$T$18,4,0)*VLOOKUP($B55,'01. PC'!$O$10:$T$18,6,0)*$A55 -> 0 | AB55: =AB$13*VLOOKUP($B55,'01. PC'!$O$10:$T$18,4,0)*VLOOKUP($B55,'01. PC'!$O$10:$T$18,6,0)*$A55 -> 0 | AC55: =AC$13*VLOOKUP($B55,'01. PC'!$O$10:$T$18,4,0)*VLOOKUP($B55,'01. PC'!$O$10:$T$18,6,0)*$A55 -> 0 | AD55: =AD$13*VLOOKUP($B55,'01. PC'!$O$10:$T$18,4,0)*VLOOKUP($B55,'01. PC'!$O$10:$T$18,6,0)*$A55 -> 0 | AE55: =AE$13*VLOOKUP($B55,'01. PC'!$O$10:$T$18,4,0)*VLOOKUP($B55,'01. PC'!$O$10:$T$18,6,0)*$A55 -> 0 | AF55: =AF$13*VLOOKUP($B55,'01. PC'!$O$10:$T$18,4,0)*VLOOKUP($B55,'01. PC'!$O$10:$T$18,6,0)*$A55 -> 0 | AG55: =AG$13*VLOOKUP($B55,'01. PC'!$O$10:$T$18,4,0)*VLOOKUP($B55,'01. PC'!$O$10:$T$18,6,0)*$A55 -> 0 | AH55: =AH$13*VLOOKUP($B55,'01. PC'!$O$10:$T$18,4,0)*VLOOKUP($B55,'01. PC'!$O$10:$T$18,6,0)*$A55 -> 0 | AI55: =AI$13*VLOOKUP($B55,'01. PC'!$O$10:$T$18,4,0)*VLOOKUP($B55,'01. PC'!$O$10:$T$18,6,0)*$A55 -> 0 | AJ55: =AJ$13*VLOOKUP($B55,'01. PC'!$O$10:$T$18,4,0)*VLOOKUP($B55,'01. PC'!$O$10:$T$18,6,0)*$A55 -> 0 | AK55: =AK$13*VLOOKUP($B55,'01. PC'!$O$10:$T$18,4,0)*VLOOKUP($B55,'01. PC'!$O$10:$T$18,6,0)*$A55 -> 0 | AL55: =AL$13*VLOOKUP($B55,'01. PC'!$O$10:$T$18,4,0)*VLOOKUP($B55,'01. PC'!$O$10:$T$18,6,0)*$A55 -> 0 | AN55: 0
A56: =VLOOKUP($B56,'01. PC'!$O$10:$P$18,2,0) -> 0 | B56: ='01. PC'!O14 -> Arvorismo | D56: =D$13*VLOOKUP($B56,'01. PC'!$O$10:$T$18,4,0)*VLOOKUP($B56,'01. PC'!$O$10:$T$18,6,0)*$A56 -> 0 | E56: =E$13*VLOOKUP($B56,'01. PC'!$O$10:$T$18,4,0)*VLOOKUP($B56,'01. PC'!$O$10:$T$18,6,0)*$A56 -> 0 | F56: =F$13*VLOOKUP($B56,'01. PC'!$O$10:$T$18,4,0)*VLOOKUP($B56,'01. PC'!$O$10:$T$18,6,0)*$A56 -> 0 | G56: =G$13*VLOOKUP($B56,'01. PC'!$O$10:$T$18,4,0)*VLOOKUP($B56,'01. PC'!$O$10:$T$18,6,0)*$A56 -> 0 | H56: =H$13*VLOOKUP($B56,'01. PC'!$O$10:$T$18,4,0)*VLOOKUP($B56,'01. PC'!$O$10:$T$18,6,0)*$A56 -> 0 | I56: =I$13*VLOOKUP($B56,'01. PC'!$O$10:$T$18,4,0)*VLOOKUP($B56,'01. PC'!$O$10:$T$18,6,0)*$A56 -> 0 | J56: =J$13*VLOOKUP($B56,'01. PC'!$O$10:$T$18,4,0)*VLOOKUP($B56,'01. PC'!$O$10:$T$18,6,0)*$A56 -> 0 | K56: =K$13*VLOOKUP($B56,'01. PC'!$O$10:$T$18,4,0)*VLOOKUP($B56,'01. PC'!$O$10:$T$18,6,0)*$A56 -> 0 | L56: =L$13*VLOOKUP($B56,'01. PC'!$O$10:$T$18,4,0)*VLOOKUP($B56,'01. PC'!$O$10:$T$18,6,0)*$A56 -> 0 | M56: =M$13*VLOOKUP($B56,'01. PC'!$O$10:$T$18,4,0)*VLOOKUP($B56,'01. PC'!$O$10:$T$18,6,0)*$A56 -> 0 | N56: =N$13*VLOOKUP($B56,'01. PC'!$O$10:$T$18,4,0)*VLOOKUP($B56,'01. PC'!$O$10:$T$18,6,0)*$A56 -> 0 | O56: =O$13*VLOOKUP($B56,'01. PC'!$O$10:$T$18,4,0)*VLOOKUP($B56,'01. PC'!$O$10:$T$18,6,0)*$A56 -> 0 | P56: =P$13*VLOOKUP($B56,'01. PC'!$O$10:$T$18,4,0)*VLOOKUP($B56,'01. PC'!$O$10:$T$18,6,0)*$A56 -> 0 | Q56: =Q$13*VLOOKUP($B56,'01. PC'!$O$10:$T$18,4,0)*VLOOKUP($B56,'01. PC'!$O$10:$T$18,6,0)*$A56 -> 0 | R56: =R$13*VLOOKUP($B56,'01. PC'!$O$10:$T$18,4,0)*VLOOKUP($B56,'01. PC'!$O$10:$T$18,6,0)*$A56 -> 0 | S56: =S$13*VLOOKUP($B56,'01. PC'!$O$10:$T$18,4,0)*VLOOKUP($B56,'01. PC'!$O$10:$T$18,6,0)*$A56 -> 0 | T56: =T$13*VLOOKUP($B56,'01. PC'!$O$10:$T$18,4,0)*VLOOKUP($B56,'01. PC'!$O$10:$T$18,6,0)*$A56 -> 0 | U56: =U$13*VLOOKUP($B56,'01. PC'!$O$10:$T$18,4,0)*VLOOKUP($B56,'01. PC'!$O$10:$T$18,6,0)*$A56 -> 0 | V56: =V$13*VLOOKUP($B56,'01. PC'!$O$10:$T$18,4,0)*VLOOKUP($B56,'01. PC'!$O$10:$T$18,6,0)*$A56 -> 0 | W56: =W$13*VLOOKUP($B56,'01. PC'!$O$10:$T$18,4,0)*VLOOKUP($B56,'01. PC'!$O$10:$T$18,6,0)*$A56 -> 0 | X56: =X$13*VLOOKUP($B56,'01. PC'!$O$10:$T$18,4,0)*VLOOKUP($B56,'01. PC'!$O$10:$T$18,6,0)*$A56 -> 0 | Y56: =Y$13*VLOOKUP($B56,'01. PC'!$O$10:$T$18,4,0)*VLOOKUP($B56,'01. PC'!$O$10:$T$18,6,0)*$A56 -> 0 | Z56: =Z$13*VLOOKUP($B56,'01. PC'!$O$10:$T$18,4,0)*VLOOKUP($B56,'01. PC'!$O$10:$T$18,6,0)*$A56 -> 0 | AA56: =AA$13*VLOOKUP($B56,'01. PC'!$O$10:$T$18,4,0)*VLOOKUP($B56,'01. PC'!$O$10:$T$18,6,0)*$A56 -> 0 | AB56: =AB$13*VLOOKUP($B56,'01. PC'!$O$10:$T$18,4,0)*VLOOKUP($B56,'01. PC'!$O$10:$T$18,6,0)*$A56 -> 0 | AC56: =AC$13*VLOOKUP($B56,'01. PC'!$O$10:$T$18,4,0)*VLOOKUP($B56,'01. PC'!$O$10:$T$18,6,0)*$A56 -> 0 | AD56: =AD$13*VLOOKUP($B56,'01. PC'!$O$10:$T$18,4,0)*VLOOKUP($B56,'01. PC'!$O$10:$T$18,6,0)*$A56 -> 0 | AE56: =AE$13*VLOOKUP($B56,'01. PC'!$O$10:$T$18,4,0)*VLOOKUP($B56,'01. PC'!$O$10:$T$18,6,0)*$A56 -> 0 | AF56: =AF$13*VLOOKUP($B56,'01. PC'!$O$10:$T$18,4,0)*VLOOKUP($B56,'01. PC'!$O$10:$T$18,6,0)*$A56 -> 0 | AG56: =AG$13*VLOOKUP($B56,'01. PC'!$O$10:$T$18,4,0)*VLOOKUP($B56,'01. PC'!$O$10:$T$18,6,0)*$A56 -> 0 | AH56: =AH$13*VLOOKUP($B56,'01. PC'!$O$10:$T$18,4,0)*VLOOKUP($B56,'01. PC'!$O$10:$T$18,6,0)*$A56 -> 0 | AI56: =AI$13*VLOOKUP($B56,'01. PC'!$O$10:$T$18,4,0)*VLOOKUP($B56,'01. PC'!$O$10:$T$18,6,0)*$A56 -> 0 | AJ56: =AJ$13*VLOOKUP($B56,'01. PC'!$O$10:$T$18,4,0)*VLOOKUP($B56,'01. PC'!$O$10:$T$18,6,0)*$A56 -> 0 | AK56: =AK$13*VLOOKUP($B56,'01. PC'!$O$10:$T$18,4,0)*VLOOKUP($B56,'01. PC'!$O$10:$T$18,6,0)*$A56 -> 0 | AL56: =AL$13*VLOOKUP($B56,'01. PC'!$O$10:$T$18,4,0)*VLOOKUP($B56,'01. PC'!$O$10:$T$18,6,0)*$A56 -> 0 | AN56: 0
A57: =VLOOKUP($B57,'01. PC'!$O$10:$P$18,2,0) -> 0 | B57: ='01. PC'!O15 -> Teleférico | D57: =D$13*VLOOKUP($B57,'01. PC'!$O$10:$T$18,4,0)*VLOOKUP($B57,'01. PC'!$O$10:$T$18,6,0)*$A57 -> 0 | E57: =E$13*VLOOKUP($B57,'01. PC'!$O$10:$T$18,4,0)*VLOOKUP($B57,'01. PC'!$O$10:$T$18,6,0)*$A57 -> 0 | F57: =F$13*VLOOKUP($B57,'01. PC'!$O$10:$T$18,4,0)*VLOOKUP($B57,'01. PC'!$O$10:$T$18,6,0)*$A57 -> 0 | G57: =G$13*VLOOKUP($B57,'01. PC'!$O$10:$T$18,4,0)*VLOOKUP($B57,'01. PC'!$O$10:$T$18,6,0)*$A57 -> 0 | H57: =H$13*VLOOKUP($B57,'01. PC'!$O$10:$T$18,4,0)*VLOOKUP($B57,'01. PC'!$O$10:$T$18,6,0)*$A57 -> 0 | I57: =I$13*VLOOKUP($B57,'01. PC'!$O$10:$T$18,4,0)*VLOOKUP($B57,'01. PC'!$O$10:$T$18,6,0)*$A57 -> 0 | J57: =J$13*VLOOKUP($B57,'01. PC'!$O$10:$T$18,4,0)*VLOOKUP($B57,'01. PC'!$O$10:$T$18,6,0)*$A57 -> 0 | K57: =K$13*VLOOKUP($B57,'01. PC'!$O$10:$T$18,4,0)*VLOOKUP($B57,'01. PC'!$O$10:$T$18,6,0)*$A57 -> 0 | L57: =L$13*VLOOKUP($B57,'01. PC'!$O$10:$T$18,4,0)*VLOOKUP($B57,'01. PC'!$O$10:$T$18,6,0)*$A57 -> 0 | M57: =M$13*VLOOKUP($B57,'01. PC'!$O$10:$T$18,4,0)*VLOOKUP($B57,'01. PC'!$O$10:$T$18,6,0)*$A57 -> 0 | N57: =N$13*VLOOKUP($B57,'01. PC'!$O$10:$T$18,4,0)*VLOOKUP($B57,'01. PC'!$O$10:$T$18,6,0)*$A57 -> 0 | O57: =O$13*VLOOKUP($B57,'01. PC'!$O$10:$T$18,4,0)*VLOOKUP($B57,'01. PC'!$O$10:$T$18,6,0)*$A57 -> 0 | P57: =P$13*VLOOKUP($B57,'01. PC'!$O$10:$T$18,4,0)*VLOOKUP($B57,'01. PC'!$O$10:$T$18,6,0)*$A57 -> 0 | Q57: =Q$13*VLOOKUP($B57,'01. PC'!$O$10:$T$18,4,0)*VLOOKUP($B57,'01. PC'!$O$10:$T$18,6,0)*$A57 -> 0 | R57: =R$13*VLOOKUP($B57,'01. PC'!$O$10:$T$18,4,0)*VLOOKUP($B57,'01. PC'!$O$10:$T$18,6,0)*$A57 -> 0 | S57: =S$13*VLOOKUP($B57,'01. PC'!$O$10:$T$18,4,0)*VLOOKUP($B57,'01. PC'!$O$10:$T$18,6,0)*$A57 -> 0 | T57: =T$13*VLOOKUP($B57,'01. PC'!$O$10:$T$18,4,0)*VLOOKUP($B57,'01. PC'!$O$10:$T$18,6,0)*$A57 -> 0 | U57: =U$13*VLOOKUP($B57,'01. PC'!$O$10:$T$18,4,0)*VLOOKUP($B57,'01. PC'!$O$10:$T$18,6,0)*$A57 -> 0 | V57: =V$13*VLOOKUP($B57,'01. PC'!$O$10:$T$18,4,0)*VLOOKUP($B57,'01. PC'!$O$10:$T$18,6,0)*$A57 -> 0 | W57: =W$13*VLOOKUP($B57,'01. PC'!$O$10:$T$18,4,0)*VLOOKUP($B57,'01. PC'!$O$10:$T$18,6,0)*$A57 -> 0 | X57: =X$13*VLOOKUP($B57,'01. PC'!$O$10:$T$18,4,0)*VLOOKUP($B57,'01. PC'!$O$10:$T$18,6,0)*$A57 -> 0 | Y57: =Y$13*VLOOKUP($B57,'01. PC'!$O$10:$T$18,4,0)*VLOOKUP($B57,'01. PC'!$O$10:$T$18,6,0)*$A57 -> 0 | Z57: =Z$13*VLOOKUP($B57,'01. PC'!$O$10:$T$18,4,0)*VLOOKUP($B57,'01. PC'!$O$10:$T$18,6,0)*$A57 -> 0 | AA57: =AA$13*VLOOKUP($B57,'01. PC'!$O$10:$T$18,4,0)*VLOOKUP($B57,'01. PC'!$O$10:$T$18,6,0)*$A57 -> 0 | AB57: =AB$13*VLOOKUP($B57,'01. PC'!$O$10:$T$18,4,0)*VLOOKUP($B57,'01. PC'!$O$10:$T$18,6,0)*$A57 -> 0 | AC57: =AC$13*VLOOKUP($B57,'01. PC'!$O$10:$T$18,4,0)*VLOOKUP($B57,'01. PC'!$O$10:$T$18,6,0)*$A57 -> 0 | AD57: =AD$13*VLOOKUP($B57,'01. PC'!$O$10:$T$18,4,0)*VLOOKUP($B57,'01. PC'!$O$10:$T$18,6,0)*$A57 -> 0 | AE57: =AE$13*VLOOKUP($B57,'01. PC'!$O$10:$T$18,4,0)*VLOOKUP($B57,'01. PC'!$O$10:$T$18,6,0)*$A57 -> 0 | AF57: =AF$13*VLOOKUP($B57,'01. PC'!$O$10:$T$18,4,0)*VLOOKUP($B57,'01. PC'!$O$10:$T$18,6,0)*$A57 -> 0 | AG57: =AG$13*VLOOKUP($B57,'01. PC'!$O$10:$T$18,4,0)*VLOOKUP($B57,'01. PC'!$O$10:$T$18,6,0)*$A57 -> 0 | AH57: =AH$13*VLOOKUP($B57,'01. PC'!$O$10:$T$18,4,0)*VLOOKUP($B57,'01. PC'!$O$10:$T$18,6,0)*$A57 -> 0 | AI57: =AI$13*VLOOKUP($B57,'01. PC'!$O$10:$T$18,4,0)*VLOOKUP($B57,'01. PC'!$O$10:$T$18,6,0)*$A57 -> 0 | AJ57: =AJ$13*VLOOKUP($B57,'01. PC'!$O$10:$T$18,4,0)*VLOOKUP($B57,'01. PC'!$O$10:$T$18,6,0)*$A57 -> 0 | AK57: =AK$13*VLOOKUP($B57,'01. PC'!$O$10:$T$18,4,0)*VLOOKUP($B57,'01. PC'!$O$10:$T$18,6,0)*$A57 -> 0 | AL57: =AL$13*VLOOKUP($B57,'01. PC'!$O$10:$T$18,4,0)*VLOOKUP($B57,'01. PC'!$O$10:$T$18,6,0)*$A57 -> 0 | AN57: 0
A58: =VLOOKUP($B58,'01. PC'!$O$10:$P$18,2,0) -> 1 | B58: ='01. PC'!O16 -> A&B | D58: =D$13*VLOOKUP($B58,'01. PC'!$O$10:$T$18,4,0)*VLOOKUP($B58,'01. PC'!$O$10:$T$18,6,0)*$A58 -> 135288.8877 | E58: =E$13*VLOOKUP($B58,'01. PC'!$O$10:$T$18,4,0)*VLOOKUP($B58,'01. PC'!$O$10:$T$18,6,0)*$A58 -> 148295.3758 | F58: =F$13*VLOOKUP($B58,'01. PC'!$O$10:$T$18,4,0)*VLOOKUP($B58,'01. PC'!$O$10:$T$18,6,0)*$A58 -> 162164.342 | G58: =G$13*VLOOKUP($B58,'01. PC'!$O$10:$T$18,4,0)*VLOOKUP($B58,'01. PC'!$O$10:$T$18,6,0)*$A58 -> 176742.4163 | H58: =H$13*VLOOKUP($B58,'01. PC'!$O$10:$T$18,4,0)*VLOOKUP($B58,'01. PC'!$O$10:$T$18,6,0)*$A58 -> 192086.9413 | I58: =I$13*VLOOKUP($B58,'01. PC'!$O$10:$T$18,4,0)*VLOOKUP($B58,'01. PC'!$O$10:$T$18,6,0)*$A58 -> 195205.026 | J58: =J$13*VLOOKUP($B58,'01. PC'!$O$10:$T$18,4,0)*VLOOKUP($B58,'01. PC'!$O$10:$T$18,6,0)*$A58 -> 198317.5203 | K58: =K$13*VLOOKUP($B58,'01. PC'!$O$10:$T$18,4,0)*VLOOKUP($B58,'01. PC'!$O$10:$T$18,6,0)*$A58 -> 201422.0806 | L58: =L$13*VLOOKUP($B58,'01. PC'!$O$10:$T$18,4,0)*VLOOKUP($B58,'01. PC'!$O$10:$T$18,6,0)*$A58 -> 204517.4227 | M58: =M$13*VLOOKUP($B58,'01. PC'!$O$10:$T$18,4,0)*VLOOKUP($B58,'01. PC'!$O$10:$T$18,6,0)*$A58 -> 207602.5874 | N58: =N$13*VLOOKUP($B58,'01. PC'!$O$10:$T$18,4,0)*VLOOKUP($B58,'01. PC'!$O$10:$T$18,6,0)*$A58 -> 210676.4955 | O58: =O$13*VLOOKUP($B58,'01. PC'!$O$10:$T$18,4,0)*VLOOKUP($B58,'01. PC'!$O$10:$T$18,6,0)*$A58 -> 213737.4105 | P58: =P$13*VLOOKUP($B58,'01. PC'!$O$10:$T$18,4,0)*VLOOKUP($B58,'01. PC'!$O$10:$T$18,6,0)*$A58 -> 216783.4809 | Q58: =Q$13*VLOOKUP($B58,'01. PC'!$O$10:$T$18,4,0)*VLOOKUP($B58,'01. PC'!$O$10:$T$18,6,0)*$A58 -> 219813.7161 | R58: =R$13*VLOOKUP($B58,'01. PC'!$O$10:$T$18,4,0)*VLOOKUP($B58,'01. PC'!$O$10:$T$18,6,0)*$A58 -> 222827.008 | S58: =S$13*VLOOKUP($B58,'01. PC'!$O$10:$T$18,4,0)*VLOOKUP($B58,'01. PC'!$O$10:$T$18,6,0)*$A58 -> 0 | T58: =T$13*VLOOKUP($B58,'01. PC'!$O$10:$T$18,4,0)*VLOOKUP($B58,'01. PC'!$O$10:$T$18,6,0)*$A58 -> 0 | U58: =U$13*VLOOKUP($B58,'01. PC'!$O$10:$T$18,4,0)*VLOOKUP($B58,'01. PC'!$O$10:$T$18,6,0)*$A58 -> 0 | V58: =V$13*VLOOKUP($B58,'01. PC'!$O$10:$T$18,4,0)*VLOOKUP($B58,'01. PC'!$O$10:$T$18,6,0)*$A58 -> 0 | W58: =W$13*VLOOKUP($B58,'01. PC'!$O$10:$T$18,4,0)*VLOOKUP($B58,'01. PC'!$O$10:$T$18,6,0)*$A58 -> 0 | X58: =X$13*VLOOKUP($B58,'01. PC'!$O$10:$T$18,4,0)*VLOOKUP($B58,'01. PC'!$O$10:$T$18,6,0)*$A58 -> 0 | Y58: =Y$13*VLOOKUP($B58,'01. PC'!$O$10:$T$18,4,0)*VLOOKUP($B58,'01. PC'!$O$10:$T$18,6,0)*$A58 -> 0 | Z58: =Z$13*VLOOKUP($B58,'01. PC'!$O$10:$T$18,4,0)*VLOOKUP($B58,'01. PC'!$O$10:$T$18,6,0)*$A58 -> 0 | AA58: =AA$13*VLOOKUP($B58,'01. PC'!$O$10:$T$18,4,0)*VLOOKUP($B58,'01. PC'!$O$10:$T$18,6,0)*$A58 -> 0 | AB58: =AB$13*VLOOKUP($B58,'01. PC'!$O$10:$T$18,4,0)*VLOOKUP($B58,'01. PC'!$O$10:$T$18,6,0)*$A58 -> 0 | AC58: =AC$13*VLOOKUP($B58,'01. PC'!$O$10:$T$18,4,0)*VLOOKUP($B58,'01. PC'!$O$10:$T$18,6,0)*$A58 -> 0 | AD58: =AD$13*VLOOKUP($B58,'01. PC'!$O$10:$T$18,4,0)*VLOOKUP($B58,'01. PC'!$O$10:$T$18,6,0)*$A58 -> 0 | AE58: =AE$13*VLOOKUP($B58,'01. PC'!$O$10:$T$18,4,0)*VLOOKUP($B58,'01. PC'!$O$10:$T$18,6,0)*$A58 -> 0 | AF58: =AF$13*VLOOKUP($B58,'01. PC'!$O$10:$T$18,4,0)*VLOOKUP($B58,'01. PC'!$O$10:$T$18,6,0)*$A58 -> 0 | AG58: =AG$13*VLOOKUP($B58,'01. PC'!$O$10:$T$18,4,0)*VLOOKUP($B58,'01. PC'!$O$10:$T$18,6,0)*$A58 -> 0 | AH58: =AH$13*VLOOKUP($B58,'01. PC'!$O$10:$T$18,4,0)*VLOOKUP($B58,'01. PC'!$O$10:$T$18,6,0)*$A58 -> 0 | AI58: =AI$13*VLOOKUP($B58,'01. PC'!$O$10:$T$18,4,0)*VLOOKUP($B58,'01. PC'!$O$10:$T$18,6,0)*$A58 -> 0 | AJ58: =AJ$13*VLOOKUP($B58,'01. PC'!$O$10:$T$18,4,0)*VLOOKUP($B58,'01. PC'!$O$10:$T$18,6,0)*$A58 -> 0 | AK58: =AK$13*VLOOKUP($B58,'01. PC'!$O$10:$T$18,4,0)*VLOOKUP($B58,'01. PC'!$O$10:$T$18,6,0)*$A58 -> 0 | AL58: =AL$13*VLOOKUP($B58,'01. PC'!$O$10:$T$18,4,0)*VLOOKUP($B58,'01. PC'!$O$10:$T$18,6,0)*$A58 -> 0 | AN58: 2905480.711
A59: =VLOOKUP($B59,'01. PC'!$O$10:$P$18,2,0) -> 1 | B59: Souvenir | D59: =D$13*VLOOKUP($B59,'01. PC'!$O$10:$T$18,4,0)*VLOOKUP($B59,'01. PC'!$O$10:$T$18,6,0)*$A59 -> 81173.33265 | E59: =E$13*VLOOKUP($B59,'01. PC'!$O$10:$T$18,4,0)*VLOOKUP($B59,'01. PC'!$O$10:$T$18,6,0)*$A59 -> 88977.22548 | F59: =F$13*VLOOKUP($B59,'01. PC'!$O$10:$T$18,4,0)*VLOOKUP($B59,'01. PC'!$O$10:$T$18,6,0)*$A59 -> 97298.60518 | G59: =G$13*VLOOKUP($B59,'01. PC'!$O$10:$T$18,4,0)*VLOOKUP($B59,'01. PC'!$O$10:$T$18,6,0)*$A59 -> 106045.4498 | H59: =H$13*VLOOKUP($B59,'01. PC'!$O$10:$T$18,4,0)*VLOOKUP($B59,'01. PC'!$O$10:$T$18,6,0)*$A59 -> 115252.1648 | I59: =I$13*VLOOKUP($B59,'01. PC'!$O$10:$T$18,4,0)*VLOOKUP($B59,'01. PC'!$O$10:$T$18,6,0)*$A59 -> 117123.0156 | J59: =J$13*VLOOKUP($B59,'01. PC'!$O$10:$T$18,4,0)*VLOOKUP($B59,'01. PC'!$O$10:$T$18,6,0)*$A59 -> 118990.5122 | K59: =K$13*VLOOKUP($B59,'01. PC'!$O$10:$T$18,4,0)*VLOOKUP($B59,'01. PC'!$O$10:$T$18,6,0)*$A59 -> 120853.2484 | L59: =L$13*VLOOKUP($B59,'01. PC'!$O$10:$T$18,4,0)*VLOOKUP($B59,'01. PC'!$O$10:$T$18,6,0)*$A59 -> 122710.4536 | M59: =M$13*VLOOKUP($B59,'01. PC'!$O$10:$T$18,4,0)*VLOOKUP($B59,'01. PC'!$O$10:$T$18,6,0)*$A59 -> 124561.5525 | N59: =N$13*VLOOKUP($B59,'01. PC'!$O$10:$T$18,4,0)*VLOOKUP($B59,'01. PC'!$O$10:$T$18,6,0)*$A59 -> 126405.8973 | O59: =O$13*VLOOKUP($B59,'01. PC'!$O$10:$T$18,4,0)*VLOOKUP($B59,'01. PC'!$O$10:$T$18,6,0)*$A59 -> 128242.4463 | P59: =P$13*VLOOKUP($B59,'01. PC'!$O$10:$T$18,4,0)*VLOOKUP($B59,'01. PC'!$O$10:$T$18,6,0)*$A59 -> 130070.0885 | Q59: =Q$13*VLOOKUP($B59,'01. PC'!$O$10:$T$18,4,0)*VLOOKUP($B59,'01. PC'!$O$10:$T$18,6,0)*$A59 -> 131888.2297 | R59: =R$13*VLOOKUP($B59,'01. PC'!$O$10:$T$18,4,0)*VLOOKUP($B59,'01. PC'!$O$10:$T$18,6,0)*$A59 -> 133696.2048 | S59: =S$13*VLOOKUP($B59,'01. PC'!$O$10:$T$18,4,0)*VLOOKUP($B59,'01. PC'!$O$10:$T$18,6,0)*$A59 -> 0 | T59: =T$13*VLOOKUP($B59,'01. PC'!$O$10:$T$18,4,0)*VLOOKUP($B59,'01. PC'!$O$10:$T$18,6,0)*$A59 -> 0 | U59: =U$13*VLOOKUP($B59,'01. PC'!$O$10:$T$18,4,0)*VLOOKUP($B59,'01. PC'!$O$10:$T$18,6,0)*$A59 -> 0 | V59: =V$13*VLOOKUP($B59,'01. PC'!$O$10:$T$18,4,0)*VLOOKUP($B59,'01. PC'!$O$10:$T$18,6,0)*$A59 -> 0 | W59: =W$13*VLOOKUP($B59,'01. PC'!$O$10:$T$18,4,0)*VLOOKUP($B59,'01. PC'!$O$10:$T$18,6,0)*$A59 -> 0 | X59: =X$13*VLOOKUP($B59,'01. PC'!$O$10:$T$18,4,0)*VLOOKUP($B59,'01. PC'!$O$10:$T$18,6,0)*$A59 -> 0 | Y59: =Y$13*VLOOKUP($B59,'01. PC'!$O$10:$T$18,4,0)*VLOOKUP($B59,'01. PC'!$O$10:$T$18,6,0)*$A59 -> 0 | Z59: =Z$13*VLOOKUP($B59,'01. PC'!$O$10:$T$18,4,0)*VLOOKUP($B59,'01. PC'!$O$10:$T$18,6,0)*$A59 -> 0 | AA59: =AA$13*VLOOKUP($B59,'01. PC'!$O$10:$T$18,4,0)*VLOOKUP($B59,'01. PC'!$O$10:$T$18,6,0)*$A59 -> 0 | AB59: =AB$13*VLOOKUP($B59,'01. PC'!$O$10:$T$18,4,0)*VLOOKUP($B59,'01. PC'!$O$10:$T$18,6,0)*$A59 -> 0 | AC59: =AC$13*VLOOKUP($B59,'01. PC'!$O$10:$T$18,4,0)*VLOOKUP($B59,'01. PC'!$O$10:$T$18,6,0)*$A59 -> 0 | AD59: =AD$13*VLOOKUP($B59,'01. PC'!$O$10:$T$18,4,0)*VLOOKUP($B59,'01. PC'!$O$10:$T$18,6,0)*$A59 -> 0 | AE59: =AE$13*VLOOKUP($B59,'01. PC'!$O$10:$T$18,4,0)*VLOOKUP($B59,'01. PC'!$O$10:$T$18,6,0)*$A59 -> 0 | AF59: =AF$13*VLOOKUP($B59,'01. PC'!$O$10:$T$18,4,0)*VLOOKUP($B59,'01. PC'!$O$10:$T$18,6,0)*$A59 -> 0 | AG59: =AG$13*VLOOKUP($B59,'01. PC'!$O$10:$T$18,4,0)*VLOOKUP($B59,'01. PC'!$O$10:$T$18,6,0)*$A59 -> 0 | AH59: =AH$13*VLOOKUP($B59,'01. PC'!$O$10:$T$18,4,0)*VLOOKUP($B59,'01. PC'!$O$10:$T$18,6,0)*$A59 -> 0 | AI59: =AI$13*VLOOKUP($B59,'01. PC'!$O$10:$T$18,4,0)*VLOOKUP($B59,'01. PC'!$O$10:$T$18,6,0)*$A59 -> 0 | AJ59: =AJ$13*VLOOKUP($B59,'01. PC'!$O$10:$T$18,4,0)*VLOOKUP($B59,'01. PC'!$O$10:$T$18,6,0)*$A59 -> 0 | AK59: =AK$13*VLOOKUP($B59,'01. PC'!$O$10:$T$18,4,0)*VLOOKUP($B59,'01. PC'!$O$10:$T$18,6,0)*$A59 -> 0 | AL59: =AL$13*VLOOKUP($B59,'01. PC'!$O$10:$T$18,4,0)*VLOOKUP($B59,'01. PC'!$O$10:$T$18,6,0)*$A59 -> 0 | AN59: 1743288.427
A60: =VLOOKUP($B60,'01. PC'!$O$10:$P$18,2,0) -> 0 | B60: Locker | D60: =D$13*VLOOKUP($B60,'01. PC'!$O$10:$T$18,4,0)*VLOOKUP($B60,'01. PC'!$O$10:$T$18,6,0)*$A60 -> 0 | E60: =E$13*VLOOKUP($B60,'01. PC'!$O$10:$T$18,4,0)*VLOOKUP($B60,'01. PC'!$O$10:$T$18,6,0)*$A60 -> 0 | F60: =F$13*VLOOKUP($B60,'01. PC'!$O$10:$T$18,4,0)*VLOOKUP($B60,'01. PC'!$O$10:$T$18,6,0)*$A60 -> 0 | G60: =G$13*VLOOKUP($B60,'01. PC'!$O$10:$T$18,4,0)*VLOOKUP($B60,'01. PC'!$O$10:$T$18,6,0)*$A60 -> 0 | H60: =H$13*VLOOKUP($B60,'01. PC'!$O$10:$T$18,4,0)*VLOOKUP($B60,'01. PC'!$O$10:$T$18,6,0)*$A60 -> 0 | I60: =I$13*VLOOKUP($B60,'01. PC'!$O$10:$T$18,4,0)*VLOOKUP($B60,'01. PC'!$O$10:$T$18,6,0)*$A60 -> 0 | J60: =J$13*VLOOKUP($B60,'01. PC'!$O$10:$T$18,4,0)*VLOOKUP($B60,'01. PC'!$O$10:$T$18,6,0)*$A60 -> 0 | K60: =K$13*VLOOKUP($B60,'01. PC'!$O$10:$T$18,4,0)*VLOOKUP($B60,'01. PC'!$O$10:$T$18,6,0)*$A60 -> 0 | L60: =L$13*VLOOKUP($B60,'01. PC'!$O$10:$T$18,4,0)*VLOOKUP($B60,'01. PC'!$O$10:$T$18,6,0)*$A60 -> 0 | M60: =M$13*VLOOKUP($B60,'01. PC'!$O$10:$T$18,4,0)*VLOOKUP($B60,'01. PC'!$O$10:$T$18,6,0)*$A60 -> 0 | N60: =N$13*VLOOKUP($B60,'01. PC'!$O$10:$T$18,4,0)*VLOOKUP($B60,'01. PC'!$O$10:$T$18,6,0)*$A60 -> 0 | O60: =O$13*VLOOKUP($B60,'01. PC'!$O$10:$T$18,4,0)*VLOOKUP($B60,'01. PC'!$O$10:$T$18,6,0)*$A60 -> 0 | P60: =P$13*VLOOKUP($B60,'01. PC'!$O$10:$T$18,4,0)*VLOOKUP($B60,'01. PC'!$O$10:$T$18,6,0)*$A60 -> 0 | Q60: =Q$13*VLOOKUP($B60,'01. PC'!$O$10:$T$18,4,0)*VLOOKUP($B60,'01. PC'!$O$10:$T$18,6,0)*$A60 -> 0 | R60: =R$13*VLOOKUP($B60,'01. PC'!$O$10:$T$18,4,0)*VLOOKUP($B60,'01. PC'!$O$10:$T$18,6,0)*$A60 -> 0 | S60: =S$13*VLOOKUP($B60,'01. PC'!$O$10:$T$18,4,0)*VLOOKUP($B60,'01. PC'!$O$10:$T$18,6,0)*$A60 -> 0 | T60: =T$13*VLOOKUP($B60,'01. PC'!$O$10:$T$18,4,0)*VLOOKUP($B60,'01. PC'!$O$10:$T$18,6,0)*$A60 -> 0 | U60: =U$13*VLOOKUP($B60,'01. PC'!$O$10:$T$18,4,0)*VLOOKUP($B60,'01. PC'!$O$10:$T$18,6,0)*$A60 -> 0 | V60: =V$13*VLOOKUP($B60,'01. PC'!$O$10:$T$18,4,0)*VLOOKUP($B60,'01. PC'!$O$10:$T$18,6,0)*$A60 -> 0 | W60: =W$13*VLOOKUP($B60,'01. PC'!$O$10:$T$18,4,0)*VLOOKUP($B60,'01. PC'!$O$10:$T$18,6,0)*$A60 -> 0 | X60: =X$13*VLOOKUP($B60,'01. PC'!$O$10:$T$18,4,0)*VLOOKUP($B60,'01. PC'!$O$10:$T$18,6,0)*$A60 -> 0 | Y60: =Y$13*VLOOKUP($B60,'01. PC'!$O$10:$T$18,4,0)*VLOOKUP($B60,'01. PC'!$O$10:$T$18,6,0)*$A60 -> 0 | Z60: =Z$13*VLOOKUP($B60,'01. PC'!$O$10:$T$18,4,0)*VLOOKUP($B60,'01. PC'!$O$10:$T$18,6,0)*$A60 -> 0 | AA60: =AA$13*VLOOKUP($B60,'01. PC'!$O$10:$T$18,4,0)*VLOOKUP($B60,'01. PC'!$O$10:$T$18,6,0)*$A60 -> 0 | AB60: =AB$13*VLOOKUP($B60,'01. PC'!$O$10:$T$18,4,0)*VLOOKUP($B60,'01. PC'!$O$10:$T$18,6,0)*$A60 -> 0 | AC60: =AC$13*VLOOKUP($B60,'01. PC'!$O$10:$T$18,4,0)*VLOOKUP($B60,'01. PC'!$O$10:$T$18,6,0)*$A60 -> 0 | AD60: =AD$13*VLOOKUP($B60,'01. PC'!$O$10:$T$18,4,0)*VLOOKUP($B60,'01. PC'!$O$10:$T$18,6,0)*$A60 -> 0 | AE60: =AE$13*VLOOKUP($B60,'01. PC'!$O$10:$T$18,4,0)*VLOOKUP($B60,'01. PC'!$O$10:$T$18,6,0)*$A60 -> 0 | AF60: =AF$13*VLOOKUP($B60,'01. PC'!$O$10:$T$18,4,0)*VLOOKUP($B60,'01. PC'!$O$10:$T$18,6,0)*$A60 -> 0 | AG60: =AG$13*VLOOKUP($B60,'01. PC'!$O$10:$T$18,4,0)*VLOOKUP($B60,'01. PC'!$O$10:$T$18,6,0)*$A60 -> 0 | AH60: =AH$13*VLOOKUP($B60,'01. PC'!$O$10:$T$18,4,0)*VLOOKUP($B60,'01. PC'!$O$10:$T$18,6,0)*$A60 -> 0 | AI60: =AI$13*VLOOKUP($B60,'01. PC'!$O$10:$T$18,4,0)*VLOOKUP($B60,'01. PC'!$O$10:$T$18,6,0)*$A60 -> 0 | AJ60: =AJ$13*VLOOKUP($B60,'01. PC'!$O$10:$T$18,4,0)*VLOOKUP($B60,'01. PC'!$O$10:$T$18,6,0)*$A60 -> 0 | AK60: =AK$13*VLOOKUP($B60,'01. PC'!$O$10:$T$18,4,0)*VLOOKUP($B60,'01. PC'!$O$10:$T$18,6,0)*$A60 -> 0 | AL60: =AL$13*VLOOKUP($B60,'01. PC'!$O$10:$T$18,4,0)*VLOOKUP($B60,'01. PC'!$O$10:$T$18,6,0)*$A60 -> 0 | AN60: 0

Sheet 03. (b) DEMANDA INPUT
C7: Visitantes potenciais (PIB) | D7: Visitantes potenciais (regressão)
B8: =ano_inicial -> 2025 | C8: 244017.5108 | D8: 289853
B9: =B8+1 -> 2026 | C9: 266838.6581 | D9: 317719.0697
B10: 2027 | C10: 290826.6307 | D10: 347432.9769
B11: 2028 | C11: 316075.7848 | D11: 378666.1304
B12: 2029 | C12: 341016.262 | D12: 411541.3848
B13: 2030 | C13: 366609.9276 | D13: 418221.8018
B14: 2031 | C14: 392719.709 | D14: 424890.2416
B15: 2032 | C15: 419177.9934 | D15: 431541.6831
B16: 2033 | C16: 445829.9407 | D16: 438173.3749
B17: 2034 | C17: 472520.5782 | D17: 444783.2618
B18: 2035 | C18: 499085.1243 | D18: 451369.0316
B19: 2036 | C19: 525333.4434 | D19: 457926.9641
B20: 2037 | C20: 551065.7884 | D20: 464453.0925
B21: 2038 | C21: 576106.7274 | D21: 470945.2942
B22: 2039 | C22: 600278.6054 | D22: 477401.1956
B23: 2040 | C23: 623410.6695 | D23: 483818.6394
B24: 2041 | C24: 645338.1098 | D24: 490195.4769
B25: 2042 | C25: 665919.0218 | D25: 496530.46
B26: 2043 | C26: 685025.9586 | D26: 502822.5691
B27: 2044 | C27: 702514.6696 | D27: 509069.1116
B28: 2045 | C28: 718249.7212 | D28: 515267.2133
B29: 2046 | C29: 732110.038 | D29: 521414.0481
B30: 2047 | C30: 744006.8903 | D30: 527507.7717
B31: 2048 | C31: 753861.4261 | D31: 533546.1679
B32: 2049 | C32: 761577.5499 | D32: 539525.0724
B33: 2050 | C33: 767070.6999 | D33: 545439.9435
B34: 2051 | C34: 770297.3157 | D34: 551287.4719
B35: 2052 | C35: 771251.507 | D35: 557065.3823
B36: 2053 | C36: 769920.0274 | D36: 562769.8416
B37: 2054 | C37: 766293.8289 | D37: 568396.0588

Sheet 04. RECEITAS
B6: Receitas (R$ milhões)
B7: Prazo | D7: =IF(D9<=ano_final,1,0) -> 1 | E7: 1 | F7: 1 | G7: 1 | H7: 1 | I7: 1 | J7: 1 | K7: 1 | L7: 1 | M7: 1 | N7: 1 | O7: 1 | P7: 1 | Q7: 1 | R7: 1 | S7: 0 | T7: 0 | U7: 0 | V7: 0 | W7: 0 | X7: 0 | Y7: 0 | Z7: 0 | AA7: 0 | AB7: 0 | AC7: 0 | AD7: 0 | AE7: 0 | AF7: 0 | AG7: 0 | AH7: 0 | AI7: 0 | AJ7: 0 | AK7: 0 | AL7: 0
B9: Ano | D9: =ano_inicial -> 2025 | E9: =D9+1 -> 2026 | F9: =E9+1 -> 2027 | G9: 2028 | H9: 2029 | I9: 2030 | J9: 2031 | K9: 2032 | L9: 2033 | M9: 2034 | N9: 2035 | O9: 2036 | P9: 2037 | Q9: 2038 | R9: 2039 | S9: 2040 | T9: 2041 | U9: 2042 | V9: 2043 | W9: 2044 | X9: 2045 | Y9: 2046 | Z9: 2047 | AA9: 2048 | AB9: 2049 | AC9: 2050 | AD9: 2051 | AE9: 2052 | AF9: 2053 | AG9: 2054 | AH9: 2055 | AI9: 2056 | AJ9: 2057 | AK9: 2058 | AL9: 2059
D11: 1 | E11: =D11+1 -> 2 | F11: =E11+1 -> 3 | G11: 4 | H11: 5 | I11: 6 | J11: 7 | K11: 8 | L11: 9 | M11: 10 | N11: 11 | O11: 12 | P11: 13 | Q11: 14 | R11: 15 | S11: 16 | T11: 17 | U11: 18 | V11: 19 | W11: 20 | X11: 21 | Y11: 22 | Z11: 23 | AA11: 24 | AB11: 25 | AC11: 26 | AD11: 27 | AE11: 28 | AF11: 29 | AG11: 30 | AH11: 31 | AI11: 32 | AJ11: 33 | AK11: 34 | AL11: 35 | AN11: Total
B13: Receita Total | D13: =D15+D44 -> 68.18623658 | E13: 74.74156781 | F13: 81.73159208 | G13: 89.07901022 | H13: 96.81272309 | I13: 98.38425244 | J13: 99.9529642 | K13: 101.5176772 | L13: 103.0777443 | M13: 104.6326818 | N13: 106.1819459 | O13: 107.7246615 | P13: 109.2598953 | Q13: 110.7871481 | R13: 112.3058615 | S13: 0 | T13: 0 | U13: 0 | V13: 0 | W13: 0 | X13: 0 | Y13: 0 | Z13: 0 | AA13: 0 | AB13: 0 | AC13: 0 | AD13: 0 | AE13: 0 | AF13: 0 | AG13: 0 | AH13: 0 | AI13: 0 | AJ13: 0 | AK13: 0 | AL13: 0 | AN13: =SUM(D13:AL13) -> 1464.375962
B15: Bilheteria | D15: =D17+D39 -> 59.71070015 | E15: 65.45120493 | F15: 71.5723705 | G15: 78.00650594 | H15: 84.77891974 | I15: 86.1551083 | J15: 87.52882948 | K15: 88.89904897 | L15: 90.26519995 | M15: 91.62685904 | N15: 92.98354994 | O15: 94.33450626 | P15: 95.67891082 | Q15: 97.01632638 | R15: 98.34626393 | S15: 0 | T15: 0 | U15: 0 | V15: 0 | W15: 0 | X15: 0 | Y15: 0 | Z15: 0 | AA15: 0 | AB15: 0 | AC15: 0 | AD15: 0 | AE15: 0 | AF15: 0 | AG15: 0 | AH15: 0 | AI15: 0 | AJ15: 0 | AK15: 0 | AL15: 0 | AN15: =SUM(D15:AL15) -> 1282.354304
B17: Passeio de barco | D17: =D19+D24+D29+D34 -> 59.46494317 | E17: =E19+E24+E29+E34 -> 65.18182121 | F17: 71.27779332 | G17: 77.68544718 | H17: 84.42998712 | I17: 85.80051156 | J17: 87.16857879 | K17: 88.53315874 | L17: 89.89368692 | M17: 91.2497417 | N17: 92.60084874 | O17: 93.9462448 | P17: 95.28511607 | Q17: 96.6170271 | R17: 97.9414909 | S17: 0 | T17: 0 | U17: 0 | V17: 0 | W17: 0 | X17: 0 | Y17: 0 | Z17: 0 | AA17: 0 | AB17: 0 | AC17: 0 | AD17: 0 | AE17: 0 | AF17: 0 | AG17: 0 | AH17: 0 | AI17: 0 | AJ17: 0 | AK17: 0 | AL17: 0 | AN17: =SUM(D17:AL17) -> 1277.076397
B19: Passeio de barco + transporte até o cais | D19: =SUM(D20:D22)/10^6 -> 45.11606179 | E19: 49.45345807 | F19: 54.07847307 | G19: 58.93996107 | H19: 64.05704459 | I19: 65.09686171 | J19: 66.13481453 | K19: 67.17012155 | L19: 68.2023545 | M19: 69.23119348 | N19: 70.2562786 | O19: 71.27703081 | P19: 72.29283265 | Q19: 73.30335376 | R19: 74.30822465 | S19: 0 | T19: 0 | U19: 0 | V19: 0 | W19: 0 | X19: 0 | Y19: 0 | Z19: 0 | AA19: 0 | AB19: 0 | AC19: 0 | AD19: 0 | AE19: 0 | AF19: 0 | AG19: 0 | AH19: 0 | AI19: 0 | AJ19: 0 | AK19: 0 | AL19: 0 | AN19: =SUM(D19:AL19) -> 968.9180648
B20: Inteira | C20: =CHOOSE('01. PC'!$J$9,'01. PC'!$I$10,'01. PC'!$I$11,'01. PC'!$I$12,'01. PC'!$I$13,'01. PC'!$I$14) -> 300 | D20: =$C20*'03. (a) DEMANDA'!D24 -> 39110230.45 | E20: =$C20*'03. (a) DEMANDA'!E24 -> 42870234.35 | F20: =$C20*'03. (a) DEMANDA'!F24 -> 46879569.28 | G20: =$C20*'03. (a) DEMANDA'!G24 -> 51093898.02 | H20: =$C20*'03. (a) DEMANDA'!H24 -> 55529797.52 | I20: =$C20*'03. (a) DEMANDA'!I24 -> 56431194.61 | J20: =$C20*'03. (a) DEMANDA'!J24 -> 57330975.58 | K20: =$C20*'03. (a) DEMANDA'!K24 -> 58228462.97 | L20: =$C20*'03. (a) DEMANDA'!L24 -> 59123285.5 | M20: =$C20*'03. (a) DEMANDA'!M24 -> 60015165.86 | N20: =$C20*'03. (a) DEMANDA'!N24 -> 60903792.08 | O20: =$C20*'03. (a) DEMANDA'!O24 -> 61788662.17 | P20: =$C20*'03. (a) DEMANDA'!P24 -> 62669240.9 | Q20: =$C20*'03. (a) DEMANDA'!Q24 -> 63545241.86 | R20: =$C20*'03. (a) DEMANDA'!R24 -> 64416344.76 | S20: =$C20*'03. (a) DEMANDA'!S24 -> 0 | T20: =$C20*'03. (a) DEMANDA'!T24 -> 0 | U20: =$C20*'03. (a) DEMANDA'!U24 -> 0 | V20: =$C20*'03. (a) DEMANDA'!V24 -> 0 | W20: =$C20*'03. (a) DEMANDA'!W24 -> 0 | X20: =$C20*'03. (a) DEMANDA'!X24 -> 0 | Y20: =$C20*'03. (a) DEMANDA'!Y24 -> 0 | Z20: =$C20*'03. (a) DEMANDA'!Z24 -> 0 | AA20: =$C20*'03. (a) DEMANDA'!AA24 -> 0 | AB20: =$C20*'03. (a) DEMANDA'!AB24 -> 0 | AC20: =$C20*'03. (a) DEMANDA'!AC24 -> 0 | AD20: =$C20*'03. (a) DEMANDA'!AD24 -> 0 | AE20: =$C20*'03. (a) DEMANDA'!AE24 -> 0 | AF20: =$C20*'03. (a) DEMANDA'!AF24 -> 0 | AG20: =$C20*'03. (a) DEMANDA'!AG24 -> 0 | AN20: =SUM(D20:AL20) -> 839936095.9
B21: Meia | C21: =C20/2 -> 150 | D21: =$C21*'03. (a) DEMANDA'!D25 -> 6005831.342 | E21: =$C21*'03. (a) DEMANDA'!E25 -> 6583223.727 | F21: =$C21*'03. (a) DEMANDA'!F25 -> 7198903.796 | G21: =$C21*'03. (a) DEMANDA'!G25 -> 7846063.053 | H21: =$C21*'03. (a) DEMANDA'!H25 -> 8527247.078 | I21: =$C21*'03. (a) DEMANDA'!I25 -> 8665667.099 | J21: =$C21*'03. (a) DEMANDA'!J25 -> 8803838.946 | K21: =$C21*'03. (a) DEMANDA'!K25 -> 8941658.585 | L21: =$C21*'03. (a) DEMANDA'!L25 -> 9079069.005 | M21: =$C21*'03. (a) DEMANDA'!M25 -> 9216027.621 | N21: =$C21*'03. (a) DEMANDA'!N25 -> 9352486.525 | O21: =$C21*'03. (a) DEMANDA'!O25 -> 9488368.633 | P21: =$C21*'03. (a) DEMANDA'!P25 -> 9623591.751 | Q21: =$C21*'03. (a) DEMANDA'!Q25 -> 9758111.9 | R21: =$C21*'03. (a) DEMANDA'!R25 -> 9891879.895 | S21: =$C21*'03. (a) DEMANDA'!S25 -> 0 | T21: =$C21*'03. (a) DEMANDA'!T25 -> 0 | U21: =$C21*'03. (a) DEMANDA'!U25 -> 0 | V21: =$C21*'03. (a) DEMANDA'!V25 -> 0 | W21: =$C21*'03. (a) DEMANDA'!W25 -> 0 | X21: =$C21*'03. (a) DEMANDA'!X25 -> 0 | Y21: =$C21*'03. (a) DEMANDA'!Y25 -> 0 | Z21: =$C21*'03. (a) DEMANDA'!Z25 -> 0 | AA21: =$C21*'03. (a) DEMANDA'!AA25 -> 0 | AB21: =$C21*'03. (a) DEMANDA'!AB25 -> 0 | AC21: =$C21*'03. (a) DEMANDA'!AC25 -> 0 | AD21: =$C21*'03. (a) DEMANDA'!AD25 -> 0 | AE21: =$C21*'03. (a) DEMANDA'!AE25 -> 0 | AF21: =$C21*'03. (a) DEMANDA'!AF25 -> 0 | AG21: =$C21*'03. (a) DEMANDA'!AG25 -> 0 | AN21: =SUM(D21:AL21) -> 128981969
B22: Isentos | D22: =$C22*'03. (a) DEMANDA'!D26 -> 0 | E22: =$C22*'03. (a) DEMANDA'!E26 -> 0 | F22: =$C22*'03. (a) DEMANDA'!F26 -> 0 | G22: =$C22*'03. (a) DEMANDA'!G26 -> 0 | H22: =$C22*'03. (a) DEMANDA'!H26 -> 0 | I22: =$C22*'03. (a) DEMANDA'!I26 -> 0 | J22: =$C22*'03. (a) DEMANDA'!J26 -> 0 | K22: =$C22*'03. (a) DEMANDA'!K26 -> 0 | L22: =$C22*'03. (a) DEMANDA'!L26 -> 0 | M22: =$C22*'03. (a) DEMANDA'!M26 -> 0 | N22: =$C22*'03. (a) DEMANDA'!N26 -> 0 | O22: =$C22*'03. (a) DEMANDA'!O26 -> 0 | P22: =$C22*'03. (a) DEMANDA'!P26 -> 0 | Q22: =$C22*'03. (a) DEMANDA'!Q26 -> 0 | R22: =$C22*'03. (a) DEMANDA'!R26 -> 0 | S22: =$C22*'03. (a) DEMANDA'!S26 -> 0 | T22: =$C22*'03. (a) DEMANDA'!T26 -> 0 | U22: =$C22*'03. (a) DEMANDA'!U26 -> 0 | V22: =$C22*'03. (a) DEMANDA'!V26 -> 0 | W22: =$C22*'03. (a) DEMANDA'!W26 -> 0 | X22: =$C22*'03. (a) DEMANDA'!X26 -> 0 | Y22: =$C22*'03. (a) DEMANDA'!Y26 -> 0 | Z22: =$C22*'03. (a) DEMANDA'!Z26 -> 0 | AA22: =$C22*'03. (a) DEMANDA'!AA26 -> 0 | AB22: =$C22*'03. (a) DEMANDA'!AB26 -> 0 | AC22: =$C22*'03. (a) DEMANDA'!AC26 -> 0 | AD22: =$C22*'03. (a) DEMANDA'!AD26 -> 0 | AE22: =$C22*'03. (a) DEMANDA'!AE26 -> 0 | AF22: =$C22*'03. (a) DEMANDA'!AF26 -> 0 | AG22: =$C22*'03. (a) DEMANDA'!AG26 -> 0 | AN22: =SUM(D22:AL22) -> 0
B24: Passeio de barco + transporte até o cais (privativo) | D24: =SUM(D25:D27)/10^6 -> 0 | E24: =SUM(E25:E27)/10^6 -> 0 | F24: 0 | G24: 0 | H24: 0 | I24: 0 | J24: 0 | K24: 0 | L24: 0 | M24: 0 | N24: 0 | O24: 0 | P24: 0 | Q24: 0 | R24: 0 | S24: 0 | T24: 0 | U24: 0 | V24: 0 | W24: 0 | X24: 0 | Y24: 0 | Z24: 0 | AA24: 0 | AB24: 0 | AC24: 0 | AD24: 0 | AE24: 0 | AF24: 0 | AG24: 0 | AN24: =SUM(D24:AL24) -> 0
B25: Inteira | C25: 0 | D25: =$C25*'03. (a) DEMANDA'!D29 -> 0 | E25: =$C25*'03. (a) DEMANDA'!E29 -> 0 | F25: =$C25*'03. (a) DEMANDA'!F29 -> 0 | G25: =$C25*'03. (a) DEMANDA'!G29 -> 0 | H25: =$C25*'03. (a) DEMANDA'!H29 -> 0 | I25: =$C25*'03. (a) DEMANDA'!I29 -> 0 | J25: =$C25*'03. (a) DEMANDA'!J29 -> 0 | K25: =$C25*'03. (a) DEMANDA'!K29 -> 0 | L25: =$C25*'03. (a) DEMANDA'!L29 -> 0 | M25: =$C25*'03. (a) DEMANDA'!M29 -> 0 | N25: =$C25*'03. (a) DEMANDA'!N29 -> 0 | O25: =$C25*'03. (a) DEMANDA'!O29 -> 0 | P25: =$C25*'03. (a) DEMANDA'!P29 -> 0 | Q25: =$C25*'03. (a) DEMANDA'!Q29 -> 0 | R25: =$C25*'03. (a) DEMANDA'!R29 -> 0 | S25: =$C25*'03. (a) DEMANDA'!S29 -> 0 | T25: =$C25*'03. (a) DEMANDA'!T29 -> 0 | U25: =$C25*'03. (a) DEMANDA'!U29 -> 0 | V25: =$C25*'03. (a) DEMANDA'!V29 -> 0 | W25: =$C25*'03. (a) DEMANDA'!W29 -> 0 | X25: =$C25*'03. (a) DEMANDA'!X29 -> 0 | Y25: =$C25*'03. (a) DEMANDA'!Y29 -> 0 | Z25: =$C25*'03. (a) DEMANDA'!Z29 -> 0 | AA25: =$C25*'03. (a) DEMANDA'!AA29 -> 0 | AB25: =$C25*'03. (a) DEMANDA'!AB29 -> 0 | AC25: =$C25*'03. (a) DEMANDA'!AC29 -> 0 | AD25: =$C25*'03. (a) DEMANDA'!AD29 -> 0 | AE25: =$C25*'03. (a) DEMANDA'!AE29 -> 0 | AF25: =$C25*'03. (a) DEMANDA'!AF29 -> 0 | AG25: =$C25*'03. (a) DEMANDA'!AG29 -> 0 | AN25: =SUM(D25:AL25) -> 0
B26: Meia | C26: =C25/2 -> 0 | D26: =$C26*'03. (a) DEMANDA'!D30 -> 0 | E26: =$C26*'03. (a) DEMANDA'!E30 -> 0 | F26: =$C26*'03. (a) DEMANDA'!F30 -> 0 | G26: =$C26*'03. (a) DEMANDA'!G30 -> 0 | H26: =$C26*'03. (a) DEMANDA'!H30 -> 0 | I26: =$C26*'03. (a) DEMANDA'!I30 -> 0 | J26: =$C26*'03. (a) DEMANDA'!J30 -> 0 | K26: =$C26*'03. (a) DEMANDA'!K30 -> 0 | L26: =$C26*'03. (a) DEMANDA'!L30 -> 0 | M26: =$C26*'03. (a) DEMANDA'!M30 -> 0 | N26: =$C26*'03. (a) DEMANDA'!N30 -> 0 | O26: =$C26*'03. (a) DEMANDA'!O30 -> 0 | P26: =$C26*'03. (a) DEMANDA'!P30 -> 0 | Q26: =$C26*'03. (a) DEMANDA'!Q30 -> 0 | R26: =$C26*'03. (a) DEMANDA'!R30 -> 0 | S26: =$C26*'03. (a) DEMANDA'!S30 -> 0 | T26: =$C26*'03. (a) DEMANDA'!T30 -> 0 | U26: =$C26*'03. (a) DEMANDA'!U30 -> 0 | V26: =$C26*'03. (a) DEMANDA'!V30 -> 0 | W26: =$C26*'03. (a) DEMANDA'!W30 -> 0 | X26: =$C26*'03. (a) DEMANDA'!X30 -> 0 | Y26: =$C26*'03. (a) DEMANDA'!Y30 -> 0 | Z26: =$C26*'03. (a) DEMANDA'!Z30 -> 0 | AA26: =$C26*'03. (a) DEMANDA'!AA30 -> 0 | AB26: =$C26*'03. (a) DEMANDA'!AB30 -> 0 | AC26: =$C26*'03. (a) DEMANDA'!AC30 -> 0 | AD26: =$C26*'03. (a) DEMANDA'!AD30 -> 0 | AE26: =$C26*'03. (a) DEMANDA'!AE30 -> 0 | AF26: =$C26*'03. (a) DEMANDA'!AF30 -> 0 | AG26: =$C26*'03. (a) DEMANDA'!AG30 -> 0 | AN26: =SUM(D26:AL26) -> 0
B27: Isentos | D27: =$C27*'03. (a) DEMANDA'!D31 -> 0 | E27: =$C27*'03. (a) DEMANDA'!E31 -> 0 | F27: =$C27*'03. (a) DEMANDA'!F31 -> 0 | G27: =$C27*'03. (a) DEMANDA'!G31 -> 0 | H27: =$C27*'03. (a) DEMANDA'!H31 -> 0 | I27: =$C27*'03. (a) DEMANDA'!I31 -> 0 | J27: =$C27*'03. (a) DEMANDA'!J31 -> 0 | K27: =$C27*'03. (a) DEMANDA'!K31 -> 0 | L27: =$C27*'03. (a) DEMANDA'!L31 -> 0 | M27: =$C27*'03. (a) DEMANDA'!M31 -> 0 | N27: =$C27*'03. (a) DEMANDA'!N31 -> 0 | O27: =$C27*'03. (a) DEMANDA'!O31 -> 0 | P27: =$C27*'03. (a) DEMANDA'!P31 -> 0 | Q27: =$C27*'03. (a) DEMANDA'!Q31 -> 0 | R27: =$C27*'03. (a) DEMANDA'!R31 -> 0 | S27: =$C27*'03. (a) DEMANDA'!S31 -> 0 | T27: =$C27*'03. (a) DEMANDA'!T31 -> 0 | U27: =$C27*'03. (a) DEMANDA'!U31 -> 0 | V27: =$C27*'03. (a) DEMANDA'!V31 -> 0 | W27: =$C27*'03. (a) DEMANDA'!W31 -> 0 | X27: =$C27*'03. (a) DEMANDA'!X31 -> 0 | Y27: =$C27*'03. (a) DEMANDA'!Y31 -> 0 | Z27: =$C27*'03. (a) DEMANDA'!Z31 -> 0 | AA27: =$C27*'03. (a) DEMANDA'!AA31 -> 0 | AB27: =$C27*'03. (a) DEMANDA'!AB31 -> 0 | AC27: =$C27*'03. (a) DEMANDA'!AC31 -> 0 | AD27: =$C27*'03. (a) DEMANDA'!AD31 -> 0 | AE27: =$C27*'03. (a) DEMANDA'!AE31 -> 0 | AF27: =$C27*'03. (a) DEMANDA'!AF31 -> 0 | AG27: =$C27*'03. (a) DEMANDA'!AG31 -> 0 | AN27: =SUM(D27:AL27) -> 0
B29: Passeio de barco + trilha de bicicleta | D29: =SUM(D30:D32)/10^6 -> 9.18056391 | E29: =SUM(E30:E32)/10^6 -> 10.06317073 | F29: 11.00430442 | G29: 11.99355746 | H29: 13.03482105 | I29: 13.24641104 | J29: 13.45762168 | K29: 13.66829393 | L29: 13.87834065 | M29: 14.08769673 | N29: 14.29628895 | O29: 14.50399948 | P29: 14.71070266 | Q29: 14.91633129 | R29: 15.12081016 | S29: 0 | T29: 0 | U29: 0 | V29: 0 | W29: 0 | X29: 0 | Y29: 0 | Z29: 0 | AA29: 0 | AB29: 0 | AC29: 0 | AD29: 0 | AE29: 0 | AF29: 0 | AG29: 0 | AN29: =SUM(D29:AL29) -> 197.1629141
B30: Inteira | C30: =CHOOSE('01. PC'!$J$9,'01. PC'!$L$10,'01. PC'!$L$11,'01. PC'!$L$12,'01. PC'!$L$13,'01. PC'!$L$14) -> 240 | D30: =$C30*'03. (a) DEMANDA'!D34 -> 7958451.069 | E30: =$C30*'03. (a) DEMANDA'!E34 -> 8723565.635 | F30: =$C30*'03. (a) DEMANDA'!F34 -> 9539416.002 | G30: =$C30*'03. (a) DEMANDA'!G34 -> 10396980.09 | H30: =$C30*'03. (a) DEMANDA'!H34 -> 11299631.1 | I30: =$C30*'03. (a) DEMANDA'!I34 -> 11483054.33 | J30: =$C30*'03. (a) DEMANDA'!J34 -> 11666148.69 | K30: =$C30*'03. (a) DEMANDA'!K34 -> 11848776.34 | L30: =$C30*'03. (a) DEMANDA'!L34 -> 12030861.73 | M30: =$C30*'03. (a) DEMANDA'!M34 -> 12212348.41 | N30: =$C30*'03. (a) DEMANDA'!N34 -> 12393172.93 | O30: =$C30*'03. (a) DEMANDA'!O34 -> 12573233.11 | P30: =$C30*'03. (a) DEMANDA'!P34 -> 12752420.06 | Q30: =$C30*'03. (a) DEMANDA'!Q34 -> 12930675.48 | R30: =$C30*'03. (a) DEMANDA'!R34 -> 13107934.21 | S30: =$C30*'03. (a) DEMANDA'!S34 -> 0 | T30: =$C30*'03. (a) DEMANDA'!T34 -> 0 | U30: =$C30*'03. (a) DEMANDA'!U34 -> 0 | V30: =$C30*'03. (a) DEMANDA'!V34 -> 0 | W30: =$C30*'03. (a) DEMANDA'!W34 -> 0 | X30: =$C30*'03. (a) DEMANDA'!X34 -> 0 | Y30: =$C30*'03. (a) DEMANDA'!Y34 -> 0 | Z30: =$C30*'03. (a) DEMANDA'!Z34 -> 0 | AA30: =$C30*'03. (a) DEMANDA'!AA34 -> 0 | AB30: =$C30*'03. (a) DEMANDA'!AB34 -> 0 | AC30: =$C30*'03. (a) DEMANDA'!AC34 -> 0 | AD30: =$C30*'03. (a) DEMANDA'!AD34 -> 0 | AE30: =$C30*'03. (a) DEMANDA'!AE34 -> 0 | AF30: =$C30*'03. (a) DEMANDA'!AF34 -> 0 | AG30: =$C30*'03. (a) DEMANDA'!AG34 -> 0 | AN30: =SUM(D30:AL30) -> 170916669.2
B31: Meia | C31: =C30/2 -> 120 | D31: =$C31*'03. (a) DEMANDA'!D35 -> 1222112.841 | E31: =$C31*'03. (a) DEMANDA'!E35 -> 1339605.093 | F31: =$C31*'03. (a) DEMANDA'!F35 -> 1464888.418 | G31: =$C31*'03. (a) DEMANDA'!G35 -> 1596577.37 | H31: =$C31*'03. (a) DEMANDA'!H35 -> 1735189.945 | I31: =$C31*'03. (a) DEMANDA'!I35 -> 1763356.717 | J31: =$C31*'03. (a) DEMANDA'!J35 -> 1791472.989 | K31: =$C31*'03. (a) DEMANDA'!K35 -> 1819517.592 | L31: =$C31*'03. (a) DEMANDA'!L35 -> 1847478.923 | M31: =$C31*'03. (a) DEMANDA'!M35 -> 1875348.317 | N31: =$C31*'03. (a) DEMANDA'!N35 -> 1903116.027 | O31: =$C31*'03. (a) DEMANDA'!O35 -> 1930766.365 | P31: =$C31*'03. (a) DEMANDA'!P35 -> 1958282.607 | Q31: =$C31*'03. (a) DEMANDA'!Q35 -> 1985655.804 | R31: =$C31*'03. (a) DEMANDA'!R35 -> 2012875.946 | S31: =$C31*'03. (a) DEMANDA'!S35 -> 0 | T31: =$C31*'03. (a) DEMANDA'!T35 -> 0 | U31: =$C31*'03. (a) DEMANDA'!U35 -> 0 | V31: =$C31*'03. (a) DEMANDA'!V35 -> 0 | W31: =$C31*'03. (a) DEMANDA'!W35 -> 0 | X31: =$C31*'03. (a) DEMANDA'!X35 -> 0 | Y31: =$C31*'03. (a) DEMANDA'!Y35 -> 0 | Z31: =$C31*'03. (a) DEMANDA'!Z35 -> 0 | AA31: =$C31*'03. (a) DEMANDA'!AA35 -> 0 | AB31: =$C31*'03. (a) DEMANDA'!AB35 -> 0 | AC31: =$C31*'03. (a) DEMANDA'!AC35 -> 0 | AD31: =$C31*'03. (a) DEMANDA'!AD35 -> 0 | AE31: =$C31*'03. (a) DEMANDA'!AE35 -> 0 | AF31: =$C31*'03. (a) DEMANDA'!AF35 -> 0 | AG31: =$C31*'03. (a) DEMANDA'!AG35 -> 0 | AN31: =SUM(D31:AL31) -> 26246244.95
B32: Isentos | D32: =$C32*'03. (a) DEMANDA'!D36 -> 0 | E32: =$C32*'03. (a) DEMANDA'!E36 -> 0 | F32: =$C32*'03. (a) DEMANDA'!F36 -> 0 | G32: =$C32*'03. (a) DEMANDA'!G36 -> 0 | H32: =$C32*'03. (a) DEMANDA'!H36 -> 0 | I32: =$C32*'03. (a) DEMANDA'!I36 -> 0 | J32: =$C32*'03. (a) DEMANDA'!J36 -> 0 | K32: =$C32*'03. (a) DEMANDA'!K36 -> 0 | L32: =$C32*'03. (a) DEMANDA'!L36 -> 0 | M32: =$C32*'03. (a) DEMANDA'!M36 -> 0 | N32: =$C32*'03. (a) DEMANDA'!N36 -> 0 | O32: =$C32*'03. (a) DEMANDA'!O36 -> 0 | P32: =$C32*'03. (a) DEMANDA'!P36 -> 0 | Q32: =$C32*'03. (a) DEMANDA'!Q36 -> 0 | R32: =$C32*'03. (a) DEMANDA'!R36 -> 0 | S32: =$C32*'03. (a) DEMANDA'!S36 -> 0 | T32: =$C32*'03. (a) DEMANDA'!T36 -> 0 | U32: =$C32*'03. (a) DEMANDA'!U36 -> 0 | V32: =$C32*'03. (a) DEMANDA'!V36 -> 0 | W32: =$C32*'03. (a) DEMANDA'!W36 -> 0 | X32: =$C32*'03. (a) DEMANDA'!X36 -> 0 | Y32: =$C32*'03. (a) DEMANDA'!Y36 -> 0 | Z32: =$C32*'03. (a) DEMANDA'!Z36 -> 0 | AA32: =$C32*'03. (a) DEMANDA'!AA36 -> 0 | AB32: =$C32*'03. (a) DEMANDA'!AB36 -> 0 | AC32: =$C32*'03. (a) DEMANDA'!AC36 -> 0 | AD32: =$C32*'03. (a) DEMANDA'!AD36 -> 0 | AE32: =$C32*'03. (a) DEMANDA'!AE36 -> 0 | AF32: =$C32*'03. (a) DEMANDA'!AF36 -> 0 | AG32: =$C32*'03. (a) DEMANDA'!AG36 -> 0 | AH32: =$C32*'03. (a) DEMANDA'!AH36 -> 0 | AI32: =$C32*'03. (a) DEMANDA'!AI36 -> 0 | AJ32: =$C32*'03. (a) DEMANDA'!AJ36 -> 0 | AK32: =$C32*'03. (a) DEMANDA'!AK36 -> 0 | AL32: =$C32*'03. (a) DEMANDA'!AL36 -> 0 | AN32: =SUM(D32:AL32) -> 0
B34: Passeio de barco + trilha a pé | D34: =SUM(D35:D37)/10^6 -> 5.168317461 | E34: =SUM(E35:E37)/10^6 -> 5.66519241 | F34: 6.195015822 | G34: 6.751928644 | H34: 7.338121478 | I34: 7.45723881 | J34: 7.576142577 | K34: 7.694743252 | L34: 7.812991773 | M34: 7.930851494 | N34: 8.048281188 | O34: 8.16521452 | P34: 8.281580758 | Q34: 8.397342057 | R34: 8.512456089 | S34: 0 | T34: 0 | U34: 0 | V34: 0 | W34: 0 | X34: 0 | Y34: 0 | Z34: 0 | AA34: 0 | AB34: 0 | AC34: 0 | AD34: 0 | AE34: 0 | AF34: 0 | AG34: 0 | AH34: 0 | AI34: 0 | AJ34: 0 | AK34: 0 | AL34: 0 | AN34: =SUM(D34:AL34) -> 110.9954183
B35: Inteira | C35: =C30 -> 240 | D35: =$C35*'03. (a) DEMANDA'!D39 -> 4480313.194 | E35: =$C35*'03. (a) DEMANDA'!E39 -> 4911044.358 | F35: =$C35*'03. (a) DEMANDA'!F39 -> 5370337.897 | G35: =$C35*'03. (a) DEMANDA'!G39 -> 5853114.717 | H35: =$C35*'03. (a) DEMANDA'!H39 -> 6361273.805 | I35: =$C35*'03. (a) DEMANDA'!I39 -> 6464534.288 | J35: =$C35*'03. (a) DEMANDA'!J39 -> 6567609.635 | K35: =$C35*'03. (a) DEMANDA'!K39 -> 6670422.237 | L35: =$C35*'03. (a) DEMANDA'!L39 -> 6772929.564 | M35: =$C35*'03. (a) DEMANDA'!M39 -> 6875099.848 | N35: =$C35*'03. (a) DEMANDA'!N39 -> 6976897.351 | O35: =$C35*'03. (a) DEMANDA'!O39 -> 7078264.566 | P35: =$C35*'03. (a) DEMANDA'!P39 -> 7179140.179 | Q35: =$C35*'03. (a) DEMANDA'!Q39 -> 7279491.382 | R35: =$C35*'03. (a) DEMANDA'!R39 -> 7379281.482 | S35: =$C35*'03. (a) DEMANDA'!S39 -> 0 | T35: =$C35*'03. (a) DEMANDA'!T39 -> 0 | U35: =$C35*'03. (a) DEMANDA'!U39 -> 0 | V35: =$C35*'03. (a) DEMANDA'!V39 -> 0 | W35: =$C35*'03. (a) DEMANDA'!W39 -> 0 | X35: =$C35*'03. (a) DEMANDA'!X39 -> 0 | Y35: =$C35*'03. (a) DEMANDA'!Y39 -> 0 | Z35: =$C35*'03. (a) DEMANDA'!Z39 -> 0 | AA35: =$C35*'03. (a) DEMANDA'!AA39 -> 0 | AB35: =$C35*'03. (a) DEMANDA'!AB39 -> 0 | AC35: =$C35*'03. (a) DEMANDA'!AC39 -> 0 | AD35: =$C35*'03. (a) DEMANDA'!AD39 -> 0 | AE35: =$C35*'03. (a) DEMANDA'!AE39 -> 0 | AF35: =$C35*'03. (a) DEMANDA'!AF39 -> 0 | AG35: =$C35*'03. (a) DEMANDA'!AG39 -> 0 | AH35: =$C35*'03. (a) DEMANDA'!AH39 -> 0 | AI35: =$C35*'03. (a) DEMANDA'!AI39 -> 0 | AJ35: =$C35*'03. (a) DEMANDA'!AJ39 -> 0 | AK35: =$C35*'03. (a) DEMANDA'!AK39 -> 0 | AL35: =$C35*'03. (a) DEMANDA'!AL39 -> 0 | AN35: =SUM(D35:AL35) -> 96219754.5
B36: Meia | C36: =C31 -> 120 | D36: =$C36*'03. (a) DEMANDA'!D40 -> 688004.2662 | E36: =$C36*'03. (a) DEMANDA'!E40 -> 754148.0524 | F36: =$C36*'03. (a) DEMANDA'!F40 -> 824677.9242 | G36: =$C36*'03. (a) DEMANDA'!G40 -> 898813.927 | H36: =$C36*'03. (a) DEMANDA'!H40 -> 976847.6727 | I36: =$C36*'03. (a) DEMANDA'!I40 -> 992704.5223 | J36: =$C36*'03. (a) DEMANDA'!J40 -> 1008532.942 | K36: =$C36*'03. (a) DEMANDA'!K40 -> 1024321.015 | L36: =$C36*'03. (a) DEMANDA'!L40 -> 1040062.208 | M36: =$C36*'03. (a) DEMANDA'!M40 -> 1055751.645 | N36: =$C36*'03. (a) DEMANDA'!N40 -> 1071383.837 | O36: =$C36*'03. (a) DEMANDA'!O40 -> 1086949.954 | P36: =$C36*'03. (a) DEMANDA'!P40 -> 1102440.579 | Q36: =$C36*'03. (a) DEMANDA'!Q40 -> 1117850.675 | R36: =$C36*'03. (a) DEMANDA'!R40 -> 1133174.607 | S36: =$C36*'03. (a) DEMANDA'!S40 -> 0 | T36: =$C36*'03. (a) DEMANDA'!T40 -> 0 | U36: =$C36*'03. (a) DEMANDA'!U40 -> 0 | V36: =$C36*'03. (a) DEMANDA'!V40 -> 0 | W36: =$C36*'03. (a) DEMANDA'!W40 -> 0 | X36: =$C36*'03. (a) DEMANDA'!X40 -> 0 | Y36: =$C36*'03. (a) DEMANDA'!Y40 -> 0 | Z36: =$C36*'03. (a) DEMANDA'!Z40 -> 0 | AA36: =$C36*'03. (a) DEMANDA'!AA40 -> 0 | AB36: =$C36*'03. (a) DEMANDA'!AB40 -> 0 | AC36: =$C36*'03. (a) DEMANDA'!AC40 -> 0 | AD36: =$C36*'03. (a) DEMANDA'!AD40 -> 0 | AE36: =$C36*'03. (a) DEMANDA'!AE40 -> 0 | AF36: =$C36*'03. (a) DEMANDA'!AF40 -> 0 | AG36: =$C36*'03. (a) DEMANDA'!AG40 -> 0 | AH36: =$C36*'03. (a) DEMANDA'!AH40 -> 0 | AI36: =$C36*'03. (a) DEMANDA'!AI40 -> 0 | AJ36: =$C36*'03. (a) DEMANDA'!AJ40 -> 0 | AK36: =$C36*'03. (a) DEMANDA'!AK40 -> 0 | AL36: =$C36*'03. (a) DEMANDA'!AL40 -> 0 | AN36: =SUM(D36:AL36) -> 14775663.83
B37: Isentos | D37: =$C37*'03. (a) DEMANDA'!D41 -> 0 | E37: =$C37*'03. (a) DEMANDA'!E41 -> 0 | F37: =$C37*'03. (a) DEMANDA'!F41 -> 0 | G37: =$C37*'03. (a) DEMANDA'!G41 -> 0 | H37: =$C37*'03. (a) DEMANDA'!H41 -> 0 | I37: =$C37*'03. (a) DEMANDA'!I41 -> 0 | J37: =$C37*'03. (a) DEMANDA'!J41 -> 0 | K37: =$C37*'03. (a) DEMANDA'!K41 -> 0 | L37: =$C37*'03. (a) DEMANDA'!L41 -> 0 | M37: =$C37*'03. (a) DEMANDA'!M41 -> 0 | N37: =$C37*'03. (a) DEMANDA'!N41 -> 0 | O37: =$C37*'03. (a) DEMANDA'!O41 -> 0 | P37: =$C37*'03. (a) DEMANDA'!P41 -> 0 | Q37: =$C37*'03. (a) DEMANDA'!Q41 -> 0 | R37: =$C37*'03. (a) DEMANDA'!R41 -> 0 | S37: =$C37*'03. (a) DEMANDA'!S41 -> 0 | T37: =$C37*'03. (a) DEMANDA'!T41 -> 0 | U37: =$C37*'03. (a) DEMANDA'!U41 -> 0 | V37: =$C37*'03. (a) DEMANDA'!V41 -> 0 | W37: =$C37*'03. (a) DEMANDA'!W41 -> 0 | X37: =$C37*'03. (a) DEMANDA'!X41 -> 0 | Y37: =$C37*'03. (a) DEMANDA'!Y41 -> 0 | Z37: =$C37*'03. (a) DEMANDA'!Z41 -> 0 | AA37: =$C37*'03. (a) DEMANDA'!AA41 -> 0 | AB37: =$C37*'03. (a) DEMANDA'!AB41 -> 0 | AC37: =$C37*'03. (a) DEMANDA'!AC41 -> 0 | AD37: =$C37*'03. (a) DEMANDA'!AD41 -> 0 | AE37: =$C37*'03. (a) DEMANDA'!AE41 -> 0 | AF37: =$C37*'03. (a) DEMANDA'!AF41 -> 0 | AG37: =$C37*'03. (a) DEMANDA'!AG41 -> 0 | AH37: =$C37*'03. (a) DEMANDA'!AH41 -> 0 | AI37: =$C37*'03. (a) DEMANDA'!AI41 -> 0 | AJ37: =$C37*'03. (a) DEMANDA'!AJ41 -> 0 | AK37: =$C37*'03. (a) DEMANDA'!AK41 -> 0 | AL37: =$C37*'03. (a) DEMANDA'!AL41 -> 0 | AN37: =SUM(D37:AL37) -> 0
B39: Transporte até o cais | D39: =SUM(D40:D42)/10^6 -> 0.2457569815 | E39: =SUM(E40:E42)/10^6 -> 0.2693837205 | F39: 0.2945771811 | G39: 0.3210587615 | H39: 0.3489326261 | I39: 0.3545967356 | J39: 0.3602506899 | K39: 0.365890232 | L39: 0.371513029 | M39: 0.3771173382 | N39: 0.3827011994 | O39: 0.3882614582 | P39: 0.3937947513 | Q39: 0.3992992791 | R39: 0.404773029 | S39: 0 | T39: 0 | U39: 0 | V39: 0 | W39: 0 | X39: 0 | Y39: 0 | Z39: 0 | AA39: 0 | AB39: 0 | AC39: 0 | AD39: 0 | AE39: 0 | AF39: 0 | AG39: 0 | AH39: 0 | AI39: 0 | AJ39: 0 | AK39: 0 | AL39: 0 | AN39: =SUM(D39:AL39) -> 5.277907012
B40: Inteira | C40: =C20-C30 -> 60 | D40: =$C40*'03. (a) DEMANDA'!D46 -> 213041.9145 | E40: =$C40*'03. (a) DEMANDA'!E46 -> 233523.4719 | F40: =$C40*'03. (a) DEMANDA'!F46 -> 255363.1895 | G40: =$C40*'03. (a) DEMANDA'!G46 -> 278319.553 | H40: =$C40*'03. (a) DEMANDA'!H46 -> 302482.8604 | I40: =$C40*'03. (a) DEMANDA'!I46 -> 307392.966 | J40: =$C40*'03. (a) DEMANDA'!J46 -> 312294.2682 | K40: =$C40*'03. (a) DEMANDA'!K46 -> 317183.0768 | L40: =$C40*'03. (a) DEMANDA'!L46 -> 322057.3694 | M40: =$C40*'03. (a) DEMANDA'!M46 -> 326915.6353 | N40: =$C40*'03. (a) DEMANDA'!N46 -> 331756.1752 | O40: =$C40*'03. (a) DEMANDA'!O46 -> 336576.2547 | P40: =$C40*'03. (a) DEMANDA'!P46 -> 341372.9581 | Q40: =$C40*'03. (a) DEMANDA'!Q46 -> 346144.7255 | R40: =$C40*'03. (a) DEMANDA'!R46 -> 350889.8121 | S40: =$C40*'03. (a) DEMANDA'!S46 -> 0 | T40: =$C40*'03. (a) DEMANDA'!T46 -> 0 | U40: =$C40*'03. (a) DEMANDA'!U46 -> 0 | V40: =$C40*'03. (a) DEMANDA'!V46 -> 0 | W40: =$C40*'03. (a) DEMANDA'!W46 -> 0 | X40: =$C40*'03. (a) DEMANDA'!X46 -> 0 | Y40: =$C40*'03. (a) DEMANDA'!Y46 -> 0 | Z40: =$C40*'03. (a) DEMANDA'!Z46 -> 0 | AA40: =$C40*'03. (a) DEMANDA'!AA46 -> 0 | AB40: =$C40*'03. (a) DEMANDA'!AB46 -> 0 | AC40: =$C40*'03. (a) DEMANDA'!AC46 -> 0 | AD40: =$C40*'03. (a) DEMANDA'!AD46 -> 0 | AE40: =$C40*'03. (a) DEMANDA'!AE46 -> 0 | AF40: =$C40*'03. (a) DEMANDA'!AF46 -> 0 | AG40: =$C40*'03. (a) DEMANDA'!AG46 -> 0 | AH40: =$C40*'03. (a) DEMANDA'!AH46 -> 0 | AI40: =$C40*'03. (a) DEMANDA'!AI46 -> 0 | AJ40: =$C40*'03. (a) DEMANDA'!AJ46 -> 0 | AK40: =$C40*'03. (a) DEMANDA'!AK46 -> 0 | AL40: =$C40*'03. (a) DEMANDA'!AL46 -> 0 | AN40: =SUM(D40:AL40) -> 4575314.231
B41: Meia | C41: =C40/2 -> 30 | D41: =$C41*'03. (a) DEMANDA'!D47 -> 32715.06695 | E41: =$C41*'03. (a) DEMANDA'!E47 -> 35860.2486 | F41: =$C41*'03. (a) DEMANDA'!F47 -> 39213.99157 | G41: =$C41*'03. (a) DEMANDA'!G47 -> 42739.20851 | H41: =$C41*'03. (a) DEMANDA'!H47 -> 46449.76576 | I41: =$C41*'03. (a) DEMANDA'!I47 -> 47203.76965 | J41: =$C41*'03. (a) DEMANDA'!J47 -> 47956.4217 | K41: =$C41*'03. (a) DEMANDA'!K47 -> 48707.15519 | L41: =$C41*'03. (a) DEMANDA'!L47 -> 49455.65957 | M41: =$C41*'03. (a) DEMANDA'!M47 -> 50201.70288 | N41: =$C41*'03. (a) DEMANDA'!N47 -> 50945.02415 | O41: =$C41*'03. (a) DEMANDA'!O47 -> 51685.20349 | P41: =$C41*'03. (a) DEMANDA'!P47 -> 52421.79316 | Q41: =$C41*'03. (a) DEMANDA'!Q47 -> 53154.55362 | R41: =$C41*'03. (a) DEMANDA'!R47 -> 53883.21692 | S41: =$C41*'03. (a) DEMANDA'!S47 -> 0 | T41: =$C41*'03. (a) DEMANDA'!T47 -> 0 | U41: =$C41*'03. (a) DEMANDA'!U47 -> 0 | V41: =$C41*'03. (a) DEMANDA'!V47 -> 0 | W41: =$C41*'03. (a) DEMANDA'!W47 -> 0 | X41: =$C41*'03. (a) DEMANDA'!X47 -> 0 | Y41: =$C41*'03. (a) DEMANDA'!Y47 -> 0 | Z41: =$C41*'03. (a) DEMANDA'!Z47 -> 0 | AA41: =$C41*'03. (a) DEMANDA'!AA47 -> 0 | AB41: =$C41*'03. (a) DEMANDA'!AB47 -> 0 | AC41: =$C41*'03. (a) DEMANDA'!AC47 -> 0 | AD41: =$C41*'03. (a) DEMANDA'!AD47 -> 0 | AE41: =$C41*'03. (a) DEMANDA'!AE47 -> 0 | AF41: =$C41*'03. (a) DEMANDA'!AF47 -> 0 | AG41: =$C41*'03. (a) DEMANDA'!AG47 -> 0 | AH41: =$C41*'03. (a) DEMANDA'!AH47 -> 0 | AI41: =$C41*'03. (a) DEMANDA'!AI47 -> 0 | AJ41: =$C41*'03. (a) DEMANDA'!AJ47 -> 0 | AK41: =$C41*'03. (a) DEMANDA'!AK47 -> 0 | AL41: =$C41*'03. (a) DEMANDA'!AL47 -> 0 | AN41: =SUM(D41:AL41) -> 702592.7817
B42: Isentos | D42: =$C42*'03. (a) DEMANDA'!D48 -> 0 | E42: =$C42*'03. (a) DEMANDA'!E48 -> 0 | F42: =$C42*'03. (a) DEMANDA'!F48 -> 0 | G42: =$C42*'03. (a) DEMANDA'!G48 -> 0 | H42: =$C42*'03. (a) DEMANDA'!H48 -> 0 | I42: =$C42*'03. (a) DEMANDA'!I48 -> 0 | J42: =$C42*'03. (a) DEMANDA'!J48 -> 0 | K42: =$C42*'03. (a) DEMANDA'!K48 -> 0 | L42: =$C42*'03. (a) DEMANDA'!L48 -> 0 | M42: =$C42*'03. (a) DEMANDA'!M48 -> 0 | N42: =$C42*'03. (a) DEMANDA'!N48 -> 0 | O42: =$C42*'03. (a) DEMANDA'!O48 -> 0 | P42: =$C42*'03. (a) DEMANDA'!P48 -> 0 | Q42: =$C42*'03. (a) DEMANDA'!Q48 -> 0 | R42: =$C42*'03. (a) DEMANDA'!R48 -> 0 | S42: =$C42*'03. (a) DEMANDA'!S48 -> 0 | T42: =$C42*'03. (a) DEMANDA'!T48 -> 0 | U42: =$C42*'03. (a) DEMANDA'!U48 -> 0 | V42: =$C42*'03. (a) DEMANDA'!V48 -> 0 | W42: =$C42*'03. (a) DEMANDA'!W48 -> 0 | X42: =$C42*'03. (a) DEMANDA'!X48 -> 0 | Y42: =$C42*'03. (a) DEMANDA'!Y48 -> 0 | Z42: =$C42*'03. (a) DEMANDA'!Z48 -> 0 | AA42: =$C42*'03. (a) DEMANDA'!AA48 -> 0 | AB42: =$C42*'03. (a) DEMANDA'!AB48 -> 0 | AC42: =$C42*'03. (a) DEMANDA'!AC48 -> 0 | AD42: =$C42*'03. (a) DEMANDA'!AD48 -> 0 | AE42: =$C42*'03. (a) DEMANDA'!AE48 -> 0 | AF42: =$C42*'03. (a) DEMANDA'!AF48 -> 0 | AG42: =$C42*'03. (a) DEMANDA'!AG48 -> 0 | AH42: =$C42*'03. (a) DEMANDA'!AH48 -> 0 | AI42: =$C42*'03. (a) DEMANDA'!AI48 -> 0 | AJ42: =$C42*'03. (a) DEMANDA'!AJ48 -> 0 | AK42: =$C42*'03. (a) DEMANDA'!AK48 -> 0 | AL42: =$C42*'03. (a) DEMANDA'!AL48 -> 0 | AN42: =SUM(D42:AL42) -> 0
B44: Outras UGC's | D44: =D46+D49+D52+D55+D58+D61+D64+D67+D70 -> 8.475536433 | E44: 9.290362876 | F44: 10.15922158 | G44: 11.07250428 | H44: 12.03380334 | I44: 12.22914415 | J44: 12.42413472 | K44: 12.61862826 | L44: 12.8125443 | M44: 13.00582274 | N44: 13.19839599 | O44: 13.39015524 | P44: 13.58098452 | Q44: 13.77082176 | R44: 13.95959754 | S44: 0 | T44: 0 | U44: 0 | V44: 0 | W44: 0 | X44: 0 | Y44: 0 | Z44: 0 | AA44: 0 | AB44: 0 | AC44: 0 | AD44: 0 | AE44: 0 | AF44: 0 | AG44: 0 | AH44: 0 | AI44: 0 | AJ44: 0 | AK44: 0 | AL44: 0 | AN44: =SUM(D44:AL44) -> 182.0216577
B46: ='01. PC'!O10 -> Cachoeirismo | D46: =D47*D48/10^6 -> 0.3382222194 | E46: =E47*E48/10^6 -> 0.3707384395 | F46: 0.4054108549 | G46: 0.4418560409 | H46: 0.4802173534 | I46: 0.488012565 | J46: 0.4957938006 | K46: 0.5035552015 | L46: 0.5112935568 | M46: 0.5190064686 | N46: 0.5266912387 | O46: 0.5343435262 | P46: 0.5419587023 | Q46: 0.5495342902 | R46: 0.5570675201 | S46: 0 | T46: 0 | U46: 0 | V46: 0 | W46: 0 | X46: 0 | Y46: 0 | Z46: 0 | AA46: 0 | AB46: 0 | AC46: 0 | AD46: 0 | AE46: 0 | AF46: 0 | AG46: 0 | AH46: 0 | AI46: 0 | AJ46: 0 | AK46: 0 | AL46: 0 | AN46: =SUM(D46:AL46) -> 7.263701778
B47: Visitantes | D47: =SUMIF('03. (a) DEMANDA'!$B:$B,$B46,'03. (a) DEMANDA'!D:D) -> 1780.116944 | E47: =SUMIF('03. (a) DEMANDA'!$B:$B,$B46,'03. (a) DEMANDA'!E:E) -> 1951.254945 | F47: =SUMIF('03. (a) DEMANDA'!$B:$B,$B46,'03. (a) DEMANDA'!F:F) -> 2133.741342 | G47: =SUMIF('03. (a) DEMANDA'!$B:$B,$B46,'03. (a) DEMANDA'!G:G) -> 2325.55811 | H47: =SUMIF('03. (a) DEMANDA'!$B:$B,$B46,'03. (a) DEMANDA'!H:H) -> 2527.459755 | I47: =SUMIF('03. (a) DEMANDA'!$B:$B,$B46,'03. (a) DEMANDA'!I:I) -> 2568.487184 | J47: =SUMIF('03. (a) DEMANDA'!$B:$B,$B46,'03. (a) DEMANDA'!J:J) -> 2609.441056 | K47: =SUMIF('03. (a) DEMANDA'!$B:$B,$B46,'03. (a) DEMANDA'!K:K) -> 2650.290534 | L47: =SUMIF('03. (a) DEMANDA'!$B:$B,$B46,'03. (a) DEMANDA'!L:L) -> 2691.01872 | M47: =SUMIF('03. (a) DEMANDA'!$B:$B,$B46,'03. (a) DEMANDA'!M:M) -> 2731.612992 | N47: =SUMIF('03. (a) DEMANDA'!$B:$B,$B46,'03. (a) DEMANDA'!N:N) -> 2772.059151 | O47: =SUMIF('03. (a) DEMANDA'!$B:$B,$B46,'03. (a) DEMANDA'!O:O) -> 2812.334349 | P47: =SUMIF('03. (a) DEMANDA'!$B:$B,$B46,'03. (a) DEMANDA'!P:P) -> 2852.414223 | Q47: =SUMIF('03. (a) DEMANDA'!$B:$B,$B46,'03. (a) DEMANDA'!Q:Q) -> 2892.285738 | R47: =SUMIF('03. (a) DEMANDA'!$B:$B,$B46,'03. (a) DEMANDA'!R:R) -> 2931.934316 | S47: =SUMIF('03. (a) DEMANDA'!$B:$B,$B46,'03. (a) DEMANDA'!S:S) -> 0 | T47: =SUMIF('03. (a) DEMANDA'!$B:$B,$B46,'03. (a) DEMANDA'!T:T) -> 0 | U47: =SUMIF('03. (a) DEMANDA'!$B:$B,$B46,'03. (a) DEMANDA'!U:U) -> 0 | V47: =SUMIF('03. (a) DEMANDA'!$B:$B,$B46,'03. (a) DEMANDA'!V:V) -> 0 | W47: =SUMIF('03. (a) DEMANDA'!$B:$B,$B46,'03. (a) DEMANDA'!W:W) -> 0 | X47: =SUMIF('03. (a) DEMANDA'!$B:$B,$B46,'03. (a) DEMANDA'!X:X) -> 0 | Y47: =SUMIF('03. (a) DEMANDA'!$B:$B,$B46,'03. (a) DEMANDA'!Y:Y) -> 0 | Z47: =SUMIF('03. (a) DEMANDA'!$B:$B,$B46,'03. (a) DEMANDA'!Z:Z) -> 0 | AA47: =SUMIF('03. (a) DEMANDA'!$B:$B,$B46,'03. (a) DEMANDA'!AA:AA) -> 0 | AB47: =SUMIF('03. (a) DEMANDA'!$B:$B,$B46,'03. (a) DEMANDA'!AB:AB) -> 0 | AC47: =SUMIF('03. (a) DEMANDA'!$B:$B,$B46,'03. (a) DEMANDA'!AC:AC) -> 0 | AD47: =SUMIF('03. (a) DEMANDA'!$B:$B,$B46,'03. (a) DEMANDA'!AD:AD) -> 0 | AE47: =SUMIF('03. (a) DEMANDA'!$B:$B,$B46,'03. (a) DEMANDA'!AE:AE) -> 0 | AF47: =SUMIF('03. (a) DEMANDA'!$B:$B,$B46,'03. (a) DEMANDA'!AF:AF) -> 0 | AG47: =SUMIF('03. (a) DEMANDA'!$B:$B,$B46,'03. (a) DEMANDA'!AG:AG) -> 0 | AH47: =SUMIF('03. (a) DEMANDA'!$B:$B,$B46,'03. (a) DEMANDA'!AH:AH) -> 0 | AI47: =SUMIF('03. (a) DEMANDA'!$B:$B,$B46,'03. (a) DEMANDA'!AI:AI) -> 0 | AJ47: =SUMIF('03. (a) DEMANDA'!$B:$B,$B46,'03. (a) DEMANDA'!AJ:AJ) -> 0 | AK47: =SUMIF('03. (a) DEMANDA'!$B:$B,$B46,'03. (a) DEMANDA'!AK:AK) -> 0 | AL47: =SUMIF('03. (a) DEMANDA'!$B:$B,$B46,'03. (a) DEMANDA'!AL:AL) -> 0 | AN47: =SUM(D47:AL47) -> 38230.00936
B48: Ingresso (R$) | D48: =VLOOKUP($B46,'01. PC'!$O$10:$T$18,5,0)*D$7 -> 190 | E48: =VLOOKUP($B46,'01. PC'!$O$10:$T$18,5,0)*E$7 -> 190 | F48: =VLOOKUP($B46,'01. PC'!$O$10:$T$18,5,0)*F$7 -> 190 | G48: =VLOOKUP($B46,'01. PC'!$O$10:$T$18,5,0)*G$7 -> 190 | H48: =VLOOKUP($B46,'01. PC'!$O$10:$T$18,5,0)*H$7 -> 190 | I48: =VLOOKUP($B46,'01. PC'!$O$10:$T$18,5,0)*I$7 -> 190 | J48: =VLOOKUP($B46,'01. PC'!$O$10:$T$18,5,0)*J$7 -> 190 | K48: =VLOOKUP($B46,'01. PC'!$O$10:$T$18,5,0)*K$7 -> 190 | L48: =VLOOKUP($B46,'01. PC'!$O$10:$T$18,5,0)*L$7 -> 190 | M48: =VLOOKUP($B46,'01. PC'!$O$10:$T$18,5,0)*M$7 -> 190 | N48: =VLOOKUP($B46,'01. PC'!$O$10:$T$18,5,0)*N$7 -> 190 | O48: =VLOOKUP($B46,'01. PC'!$O$10:$T$18,5,0)*O$7 -> 190 | P48: =VLOOKUP($B46,'01. PC'!$O$10:$T$18,5,0)*P$7 -> 190 | Q48: =VLOOKUP($B46,'01. PC'!$O$10:$T$18,5,0)*Q$7 -> 190 | R48: =VLOOKUP($B46,'01. PC'!$O$10:$T$18,5,0)*R$7 -> 190 | S48: =VLOOKUP($B46,'01. PC'!$O$10:$T$18,5,0)*S$7 -> 0 | T48: =VLOOKUP($B46,'01. PC'!$O$10:$T$18,5,0)*T$7 -> 0 | U48: =VLOOKUP($B46,'01. PC'!$O$10:$T$18,5,0)*U$7 -> 0 | V48: =VLOOKUP($B46,'01. PC'!$O$10:$T$18,5,0)*V$7 -> 0 | W48: =VLOOKUP($B46,'01. PC'!$O$10:$T$18,5,0)*W$7 -> 0 | X48: =VLOOKUP($B46,'01. PC'!$O$10:$T$18,5,0)*X$7 -> 0 | Y48: =VLOOKUP($B46,'01. PC'!$O$10:$T$18,5,0)*Y$7 -> 0 | Z48: =VLOOKUP($B46,'01. PC'!$O$10:$T$18,5,0)*Z$7 -> 0 | AA48: =VLOOKUP($B46,'01. PC'!$O$10:$T$18,5,0)*AA$7 -> 0 | AB48: =VLOOKUP($B46,'01. PC'!$O$10:$T$18,5,0)*AB$7 -> 0 | AC48: =VLOOKUP($B46,'01. PC'!$O$10:$T$18,5,0)*AC$7 -> 0 | AD48: =VLOOKUP($B46,'01. PC'!$O$10:$T$18,5,0)*AD$7 -> 0 | AE48: =VLOOKUP($B46,'01. PC'!$O$10:$T$18,5,0)*AE$7 -> 0 | AF48: =VLOOKUP($B46,'01. PC'!$O$10:$T$18,5,0)*AF$7 -> 0 | AG48: =VLOOKUP($B46,'01. PC'!$O$10:$T$18,5,0)*AG$7 -> 0 | AH48: =VLOOKUP($B46,'01. PC'!$O$10:$T$18,5,0)*AH$7 -> 0 | AI48: =VLOOKUP($B46,'01. PC'!$O$10:$T$18,5,0)*AI$7 -> 0 | AJ48: =VLOOKUP($B46,'01. PC'!$O$10:$T$18,5,0)*AJ$7 -> 0 | AK48: =VLOOKUP($B46,'01. PC'!$O$10:$T$18,5,0)*AK$7 -> 0 | AL48: =VLOOKUP($B46,'01. PC'!$O$10:$T$18,5,0)*AL$7 -> 0 | AN48: -
B49: ='01. PC'!O11 -> Rafting | D49: =D50*D51/10^6 -> 0.3382222194 | E49: =E50*E51/10^6 -> 0.3707384395 | F49: 0.4054108549 | G49: 0.4418560409 | H49: 0.4802173534 | I49: 0.488012565 | J49: 0.4957938006 | K49: 0.5035552015 | L49: 0.5112935568 | M49: 0.5190064686 | N49: 0.5266912387 | O49: 0.5343435262 | P49: 0.5419587023 | Q49: 0.5495342902 | R49: 0.5570675201 | S49: 0 | T49: 0 | U49: 0 | V49: 0 | W49: 0 | X49: 0 | Y49: 0 | Z49: 0 | AA49: 0 | AB49: 0 | AC49: 0 | AD49: 0 | AE49: 0 | AF49: 0 | AG49: 0 | AH49: 0 | AI49: 0 | AJ49: 0 | AK49: 0 | AL49: 0 | AN49: =SUM(D49:AL49) -> 7.263701778
B50: Visitantes | D50: =SUMIF('03. (a) DEMANDA'!$B:$B,$B49,'03. (a) DEMANDA'!D:D) -> 1780.116944 | E50: =SUMIF('03. (a) DEMANDA'!$B:$B,$B49,'03. (a) DEMANDA'!E:E) -> 1951.254945 | F50: =SUMIF('03. (a) DEMANDA'!$B:$B,$B49,'03. (a) DEMANDA'!F:F) -> 2133.741342 | G50: =SUMIF('03. (a) DEMANDA'!$B:$B,$B49,'03. (a) DEMANDA'!G:G) -> 2325.55811 | H50: =SUMIF('03. (a) DEMANDA'!$B:$B,$B49,'03. (a) DEMANDA'!H:H) -> 2527.459755 | I50: =SUMIF('03. (a) DEMANDA'!$B:$B,$B49,'03. (a) DEMANDA'!I:I) -> 2568.487184 | J50: =SUMIF('03. (a) DEMANDA'!$B:$B,$B49,'03. (a) DEMANDA'!J:J) -> 2609.441056 | K50: =SUMIF('03. (a) DEMANDA'!$B:$B,$B49,'03. (a) DEMANDA'!K:K) -> 2650.290534 | L50: =SUMIF('03. (a) DEMANDA'!$B:$B,$B49,'03. (a) DEMANDA'!L:L) -> 2691.01872 | M50: =SUMIF('03. (a) DEMANDA'!$B:$B,$B49,'03. (a) DEMANDA'!M:M) -> 2731.612992 | N50: =SUMIF('03. (a) DEMANDA'!$B:$B,$B49,'03. (a) DEMANDA'!N:N) -> 2772.059151 | O50: =SUMIF('03. (a) DEMANDA'!$B:$B,$B49,'03. (a) DEMANDA'!O:O) -> 2812.334349 | P50: =SUMIF('03. (a) DEMANDA'!$B:$B,$B49,'03. (a) DEMANDA'!P:P) -> 2852.414223 | Q50: =SUMIF('03. (a) DEMANDA'!$B:$B,$B49,'03. (a) DEMANDA'!Q:Q) -> 2892.285738 | R50: =SUMIF('03. (a) DEMANDA'!$B:$B,$B49,'03. (a) DEMANDA'!R:R) -> 2931.934316 | S50: =SUMIF('03. (a) DEMANDA'!$B:$B,$B49,'03. (a) DEMANDA'!S:S) -> 0 | T50: =SUMIF('03. (a) DEMANDA'!$B:$B,$B49,'03. (a) DEMANDA'!T:T) -> 0 | U50: =SUMIF('03. (a) DEMANDA'!$B:$B,$B49,'03. (a) DEMANDA'!U:U) -> 0 | V50: =SUMIF('03. (a) DEMANDA'!$B:$B,$B49,'03. (a) DEMANDA'!V:V) -> 0 | W50: =SUMIF('03. (a) DEMANDA'!$B:$B,$B49,'03. (a) DEMANDA'!W:W) -> 0 | X50: =SUMIF('03. (a) DEMANDA'!$B:$B,$B49,'03. (a) DEMANDA'!X:X) -> 0 | Y50: =SUMIF('03. (a) DEMANDA'!$B:$B,$B49,'03. (a) DEMANDA'!Y:Y) -> 0 | Z50: =SUMIF('03. (a) DEMANDA'!$B:$B,$B49,'03. (a) DEMANDA'!Z:Z) -> 0 | AA50: =SUMIF('03. (a) DEMANDA'!$B:$B,$B49,'03. (a) DEMANDA'!AA:AA) -> 0 | AB50: =SUMIF('03. (a) DEMANDA'!$B:$B,$B49,'03. (a) DEMANDA'!AB:AB) -> 0 | AC50: =SUMIF('03. (a) DEMANDA'!$B:$B,$B49,'03. (a) DEMANDA'!AC:AC) -> 0 | AD50: =SUMIF('03. (a) DEMANDA'!$B:$B,$B49,'03. (a) DEMANDA'!AD:AD) -> 0 | AE50: =SUMIF('03. (a) DEMANDA'!$B:$B,$B49,'03. (a) DEMANDA'!AE:AE) -> 0 | AF50: =SUMIF('03. (a) DEMANDA'!$B:$B,$B49,'03. (a) DEMANDA'!AF:AF) -> 0 | AG50: =SUMIF('03. (a) DEMANDA'!$B:$B,$B49,'03. (a) DEMANDA'!AG:AG) -> 0 | AH50: =SUMIF('03. (a) DEMANDA'!$B:$B,$B49,'03. (a) DEMANDA'!AH:AH) -> 0 | AI50: =SUMIF('03. (a) DEMANDA'!$B:$B,$B49,'03. (a) DEMANDA'!AI:AI) -> 0 | AJ50: =SUMIF('03. (a) DEMANDA'!$B:$B,$B49,'03. (a) DEMANDA'!AJ:AJ) -> 0 | AK50: =SUMIF('03. (a) DEMANDA'!$B:$B,$B49,'03. (a) DEMANDA'!AK:AK) -> 0 | AL50: =SUMIF('03. (a) DEMANDA'!$B:$B,$B49,'03. (a) DEMANDA'!AL:AL) -> 0 | AN50: =SUM(D50:AL50) -> 38230.00936
B51: Ingresso (R$) | D51: =VLOOKUP($B49,'01. PC'!$O$10:$T$18,5,0)*D$7 -> 190 | E51: =VLOOKUP($B49,'01. PC'!$O$10:$T$18,5,0)*E$7 -> 190 | F51: =VLOOKUP($B49,'01. PC'!$O$10:$T$18,5,0)*F$7 -> 190 | G51: =VLOOKUP($B49,'01. PC'!$O$10:$T$18,5,0)*G$7 -> 190 | H51: =VLOOKUP($B49,'01. PC'!$O$10:$T$18,5,0)*H$7 -> 190 | I51: =VLOOKUP($B49,'01. PC'!$O$10:$T$18,5,0)*I$7 -> 190 | J51: =VLOOKUP($B49,'01. PC'!$O$10:$T$18,5,0)*J$7 -> 190 | K51: =VLOOKUP($B49,'01. PC'!$O$10:$T$18,5,0)*K$7 -> 190 | L51: =VLOOKUP($B49,'01. PC'!$O$10:$T$18,5,0)*L$7 -> 190 | M51: =VLOOKUP($B49,'01. PC'!$O$10:$T$18,5,0)*M$7 -> 190 | N51: =VLOOKUP($B49,'01. PC'!$O$10:$T$18,5,0)*N$7 -> 190 | O51: =VLOOKUP($B49,'01. PC'!$O$10:$T$18,5,0)*O$7 -> 190 | P51: =VLOOKUP($B49,'01. PC'!$O$10:$T$18,5,0)*P$7 -> 190 | Q51: =VLOOKUP($B49,'01. PC'!$O$10:$T$18,5,0)*Q$7 -> 190 | R51: =VLOOKUP($B49,'01. PC'!$O$10:$T$18,5,0)*R$7 -> 190 | S51: =VLOOKUP($B49,'01. PC'!$O$10:$T$18,5,0)*S$7 -> 0 | T51: =VLOOKUP($B49,'01. PC'!$O$10:$T$18,5,0)*T$7 -> 0 | U51: =VLOOKUP($B49,'01. PC'!$O$10:$T$18,5,0)*U$7 -> 0 | V51: =VLOOKUP($B49,'01. PC'!$O$10:$T$18,5,0)*V$7 -> 0 | W51: =VLOOKUP($B49,'01. PC'!$O$10:$T$18,5,0)*W$7 -> 0 | X51: =VLOOKUP($B49,'01. PC'!$O$10:$T$18,5,0)*X$7 -> 0 | Y51: =VLOOKUP($B49,'01. PC'!$O$10:$T$18,5,0)*Y$7 -> 0 | Z51: =VLOOKUP($B49,'01. PC'!$O$10:$T$18,5,0)*Z$7 -> 0 | AA51: =VLOOKUP($B49,'01. PC'!$O$10:$T$18,5,0)*AA$7 -> 0 | AB51: =VLOOKUP($B49,'01. PC'!$O$10:$T$18,5,0)*AB$7 -> 0 | AC51: =VLOOKUP($B49,'01. PC'!$O$10:$T$18,5,0)*AC$7 -> 0 | AD51: =VLOOKUP($B49,'01. PC'!$O$10:$T$18,5,0)*AD$7 -> 0 | AE51: =VLOOKUP($B49,'01. PC'!$O$10:$T$18,5,0)*AE$7 -> 0 | AF51: =VLOOKUP($B49,'01. PC'!$O$10:$T$18,5,0)*AF$7 -> 0 | AG51: =VLOOKUP($B49,'01. PC'!$O$10:$T$18,5,0)*AG$7 -> 0 | AH51: =VLOOKUP($B49,'01. PC'!$O$10:$T$18,5,0)*AH$7 -> 0 | AI51: =VLOOKUP($B49,'01. PC'!$O$10:$T$18,5,0)*AI$7 -> 0 | AJ51: =VLOOKUP($B49,'01. PC'!$O$10:$T$18,5,0)*AJ$7 -> 0 | AK51: =VLOOKUP($B49,'01. PC'!$O$10:$T$18,5,0)*AK$7 -> 0 | AL51: =VLOOKUP($B49,'01. PC'!$O$10:$T$18,5,0)*AL$7 -> 0 | AN51: -
B52: ='01. PC'!O12 -> Aluguel de Caiaque | D52: =D53*D54/10^6 -> 0 | E52: =E53*E54/10^6 -> 0 | F52: 0 | G52: 0 | H52: 0 | I52: 0 | J52: 0 | K52: 0 | L52: 0 | M52: 0 | N52: 0 | O52: 0 | P52: 0 | Q52: 0 | R52: 0 | S52: 0 | T52: 0 | U52: 0 | V52: 0 | W52: 0 | X52: 0 | Y52: 0 | Z52: 0 | AA52: 0 | AB52: 0 | AC52: 0 | AD52: 0 | AE52: 0 | AF52: 0 | AG52: 0 | AH52: 0 | AI52: 0 | AJ52: 0 | AK52: 0 | AL52: 0 | AN52: =SUM(D52:AL52) -> 0
B53: Visitantes | D53: =SUMIF('03. (a) DEMANDA'!$B:$B,$B52,'03. (a) DEMANDA'!D:D) -> 0 | E53: =SUMIF('03. (a) DEMANDA'!$B:$B,$B52,'03. (a) DEMANDA'!E:E) -> 0 | F53: =SUMIF('03. (a) DEMANDA'!$B:$B,$B52,'03. (a) DEMANDA'!F:F) -> 0 | G53: =SUMIF('03. (a) DEMANDA'!$B:$B,$B52,'03. (a) DEMANDA'!G:G) -> 0 | H53: =SUMIF('03. (a) DEMANDA'!$B:$B,$B52,'03. (a) DEMANDA'!H:H) -> 0 | I53: =SUMIF('03. (a) DEMANDA'!$B:$B,$B52,'03. (a) DEMANDA'!I:I) -> 0 | J53: =SUMIF('03. (a) DEMANDA'!$B:$B,$B52,'03. (a) DEMANDA'!J:J) -> 0 | K53: =SUMIF('03. (a) DEMANDA'!$B:$B,$B52,'03. (a) DEMANDA'!K:K) -> 0 | L53: =SUMIF('03. (a) DEMANDA'!$B:$B,$B52,'03. (a) DEMANDA'!L:L) -> 0 | M53: =SUMIF('03. (a) DEMANDA'!$B:$B,$B52,'03. (a) DEMANDA'!M:M) -> 0 | N53: =SUMIF('03. (a) DEMANDA'!$B:$B,$B52,'03. (a) DEMANDA'!N:N) -> 0 | O53: =SUMIF('03. (a) DEMANDA'!$B:$B,$B52,'03. (a) DEMANDA'!O:O) -> 0 | P53: =SUMIF('03. (a) DEMANDA'!$B:$B,$B52,'03. (a) DEMANDA'!P:P) -> 0 | Q53: =SUMIF('03. (a) DEMANDA'!$B:$B,$B52,'03. (a) DEMANDA'!Q:Q) -> 0 | R53: =SUMIF('03. (a) DEMANDA'!$B:$B,$B52,'03. (a) DEMANDA'!R:R) -> 0 | S53: =SUMIF('03. (a) DEMANDA'!$B:$B,$B52,'03. (a) DEMANDA'!S:S) -> 0 | T53: =SUMIF('03. (a) DEMANDA'!$B:$B,$B52,'03. (a) DEMANDA'!T:T) -> 0 | U53: =SUMIF('03. (a) DEMANDA'!$B:$B,$B52,'03. (a) DEMANDA'!U:U) -> 0 | V53: =SUMIF('03. (a) DEMANDA'!$B:$B,$B52,'03. (a) DEMANDA'!V:V) -> 0 | W53: =SUMIF('03. (a) DEMANDA'!$B:$B,$B52,'03. (a) DEMANDA'!W:W) -> 0 | X53: =SUMIF('03. (a) DEMANDA'!$B:$B,$B52,'03. (a) DEMANDA'!X:X) -> 0 | Y53: =SUMIF('03. (a) DEMANDA'!$B:$B,$B52,'03. (a) DEMANDA'!Y:Y) -> 0 | Z53: =SUMIF('03. (a) DEMANDA'!$B:$B,$B52,'03. (a) DEMANDA'!Z:Z) -> 0 | AA53: =SUMIF('03. (a) DEMANDA'!$B:$B,$B52,'03. (a) DEMANDA'!AA:AA) -> 0 | AB53: =SUMIF('03. (a) DEMANDA'!$B:$B,$B52,'03. (a) DEMANDA'!AB:AB) -> 0 | AC53: =SUMIF('03. (a) DEMANDA'!$B:$B,$B52,'03. (a) DEMANDA'!AC:AC) -> 0 | AD53: =SUMIF('03. (a) DEMANDA'!$B:$B,$B52,'03. (a) DEMANDA'!AD:AD) -> 0 | AE53: =SUMIF('03. (a) DEMANDA'!$B:$B,$B52,'03. (a) DEMANDA'!AE:AE) -> 0 | AF53: =SUMIF('03. (a) DEMANDA'!$B:$B,$B52,'03. (a) DEMANDA'!AF:AF) -> 0 | AG53: =SUMIF('03. (a) DEMANDA'!$B:$B,$B52,'03. (a) DEMANDA'!AG:AG) -> 0 | AH53: =SUMIF('03. (a) DEMANDA'!$B:$B,$B52,'03. (a) DEMANDA'!AH:AH) -> 0 | AI53: =SUMIF('03. (a) DEMANDA'!$B:$B,$B52,'03. (a) DEMANDA'!AI:AI) -> 0 | AJ53: =SUMIF('03. (a) DEMANDA'!$B:$B,$B52,'03. (a) DEMANDA'!AJ:AJ) -> 0 | AK53: =SUMIF('03. (a) DEMANDA'!$B:$B,$B52,'03. (a) DEMANDA'!AK:AK) -> 0 | AL53: =SUMIF('03. (a) DEMANDA'!$B:$B,$B52,'03. (a) DEMANDA'!AL:AL) -> 0 | AN53: =SUM(D53:AL53) -> 0
B54: Ingresso (R$) | D54: =VLOOKUP($B52,'01. PC'!$O$10:$T$18,5,0)*D$7 -> 77.42857143 | E54: =VLOOKUP($B52,'01. PC'!$O$10:$T$18,5,0)*E$7 -> 77.42857143 | F54: =VLOOKUP($B52,'01. PC'!$O$10:$T$18,5,0)*F$7 -> 77.42857143 | G54: =VLOOKUP($B52,'01. PC'!$O$10:$T$18,5,0)*G$7 -> 77.42857143 | H54: =VLOOKUP($B52,'01. PC'!$O$10:$T$18,5,0)*H$7 -> 77.42857143 | I54: =VLOOKUP($B52,'01. PC'!$O$10:$T$18,5,0)*I$7 -> 77.42857143 | J54: =VLOOKUP($B52,'01. PC'!$O$10:$T$18,5,0)*J$7 -> 77.42857143 | K54: =VLOOKUP($B52,'01. PC'!$O$10:$T$18,5,0)*K$7 -> 77.42857143 | L54: =VLOOKUP($B52,'01. PC'!$O$10:$T$18,5,0)*L$7 -> 77.42857143 | M54: =VLOOKUP($B52,'01. PC'!$O$10:$T$18,5,0)*M$7 -> 77.42857143 | N54: =VLOOKUP($B52,'01. PC'!$O$10:$T$18,5,0)*N$7 -> 77.42857143 | O54: =VLOOKUP($B52,'01. PC'!$O$10:$T$18,5,0)*O$7 -> 77.42857143 | P54: =VLOOKUP($B52,'01. PC'!$O$10:$T$18,5,0)*P$7 -> 77.42857143 | Q54: =VLOOKUP($B52,'01. PC'!$O$10:$T$18,5,0)*Q$7 -> 77.42857143 | R54: =VLOOKUP($B52,'01. PC'!$O$10:$T$18,5,0)*R$7 -> 77.42857143 | S54: =VLOOKUP($B52,'01. PC'!$O$10:$T$18,5,0)*S$7 -> 0 | T54: =VLOOKUP($B52,'01. PC'!$O$10:$T$18,5,0)*T$7 -> 0 | U54: =VLOOKUP($B52,'01. PC'!$O$10:$T$18,5,0)*U$7 -> 0 | V54: =VLOOKUP($B52,'01. PC'!$O$10:$T$18,5,0)*V$7 -> 0 | W54: =VLOOKUP($B52,'01. PC'!$O$10:$T$18,5,0)*W$7 -> 0 | X54: =VLOOKUP($B52,'01. PC'!$O$10:$T$18,5,0)*X$7 -> 0 | Y54: =VLOOKUP($B52,'01. PC'!$O$10:$T$18,5,0)*Y$7 -> 0 | Z54: =VLOOKUP($B52,'01. PC'!$O$10:$T$18,5,0)*Z$7 -> 0 | AA54: =VLOOKUP($B52,'01. PC'!$O$10:$T$18,5,0)*AA$7 -> 0 | AB54: =VLOOKUP($B52,'01. PC'!$O$10:$T$18,5,0)*AB$7 -> 0 | AC54: =VLOOKUP($B52,'01. PC'!$O$10:$T$18,5,0)*AC$7 -> 0 | AD54: =VLOOKUP($B52,'01. PC'!$O$10:$T$18,5,0)*AD$7 -> 0 | AE54: =VLOOKUP($B52,'01. PC'!$O$10:$T$18,5,0)*AE$7 -> 0 | AF54: =VLOOKUP($B52,'01. PC'!$O$10:$T$18,5,0)*AF$7 -> 0 | AG54: =VLOOKUP($B52,'01. PC'!$O$10:$T$18,5,0)*AG$7 -> 0 | AH54: =VLOOKUP($B52,'01. PC'!$O$10:$T$18,5,0)*AH$7 -> 0 | AI54: =VLOOKUP($B52,'01. PC'!$O$10:$T$18,5,0)*AI$7 -> 0 | AJ54: =VLOOKUP($B52,'01. PC'!$O$10:$T$18,5,0)*AJ$7 -> 0 | AK54: =VLOOKUP($B52,'01. PC'!$O$10:$T$18,5,0)*AK$7 -> 0 | AL54: =VLOOKUP($B52,'01. PC'!$O$10:$T$18,5,0)*AL$7 -> 0 | AN54: -
B55: ='01. PC'!O13 -> Aluguel de Bicicleta | D55: =D56*D57/10^6 -> 0 | E55: =E56*E57/10^6 -> 0 | F55: 0 | G55: 0 | H55: 0 | I55: 0 | J55: 0 | K55: 0 | L55: 0 | M55: 0 | N55: 0 | O55: 0 | P55: 0 | Q55: 0 | R55: 0 | S55: 0 | T55: 0 | U55: 0 | V55: 0 | W55: 0 | X55: 0 | Y55: 0 | Z55: 0 | AA55: 0 | AB55: 0 | AC55: 0 | AD55: 0 | AE55: 0 | AF55: 0 | AG55: 0 | AH55: 0 | AI55: 0 | AJ55: 0 | AK55: 0 | AL55: 0 | AN55: =SUM(D55:AL55) -> 0
B56: Visitantes | D56: =SUMIF('03. (a) DEMANDA'!$B:$B,$B55,'03. (a) DEMANDA'!D:D) -> 0 | E56: =SUMIF('03. (a) DEMANDA'!$B:$B,$B55,'03. (a) DEMANDA'!E:E) -> 0 | F56: =SUMIF('03. (a) DEMANDA'!$B:$B,$B55,'03. (a) DEMANDA'!F:F) -> 0 | G56: =SUMIF('03. (a) DEMANDA'!$B:$B,$B55,'03. (a) DEMANDA'!G:G) -> 0 | H56: =SUMIF('03. (a) DEMANDA'!$B:$B,$B55,'03. (a) DEMANDA'!H:H) -> 0 | I56: =SUMIF('03. (a) DEMANDA'!$B:$B,$B55,'03. (a) DEMANDA'!I:I) -> 0 | J56: =SUMIF('03. (a) DEMANDA'!$B:$B,$B55,'03. (a) DEMANDA'!J:J) -> 0 | K56: =SUMIF('03. (a) DEMANDA'!$B:$B,$B55,'03. (a) DEMANDA'!K:K) -> 0 | L56: =SUMIF('03. (a) DEMANDA'!$B:$B,$B55,'03. (a) DEMANDA'!L:L) -> 0 | M56: =SUMIF('03. (a) DEMANDA'!$B:$B,$B55,'03. (a) DEMANDA'!M:M) -> 0 | N56: =SUMIF('03. (a) DEMANDA'!$B:$B,$B55,'03. (a) DEMANDA'!N:N) -> 0 | O56: =SUMIF('03. (a) DEMANDA'!$B:$B,$B55,'03. (a) DEMANDA'!O:O) -> 0 | P56: =SUMIF('03. (a) DEMANDA'!$B:$B,$B55,'03. (a) DEMANDA'!P:P) -> 0 | Q56: =SUMIF('03. (a) DEMANDA'!$B:$B,$B55,'03. (a) DEMANDA'!Q:Q) -> 0 | R56: =SUMIF('03. (a) DEMANDA'!$B:$B,$B55,'03. (a) DEMANDA'!R:R) -> 0 | S56: =SUMIF('03. (a) DEMANDA'!$B:$B,$B55,'03. (a) DEMANDA'!S:S) -> 0 | T56: =SUMIF('03. (a) DEMANDA'!$B:$B,$B55,'03. (a) DEMANDA'!T:T) -> 0 | U56: =SUMIF('03. (a) DEMANDA'!$B:$B,$B55,'03. (a) DEMANDA'!U:U) -> 0 | V56: =SUMIF('03. (a) DEMANDA'!$B:$B,$B55,'03. (a) DEMANDA'!V:V) -> 0 | W56: =SUMIF('03. (a) DEMANDA'!$B:$B,$B55,'03. (a) DEMANDA'!W:W) -> 0 | X56: =SUMIF('03. (a) DEMANDA'!$B:$B,$B55,'03. (a) DEMANDA'!X:X) -> 0 | Y56: =SUMIF('03. (a) DEMANDA'!$B:$B,$B55,'03. (a) DEMANDA'!Y:Y) -> 0 | Z56: =SUMIF('03. (a) DEMANDA'!$B:$B,$B55,'03. (a) DEMANDA'!Z:Z) -> 0 | AA56: =SUMIF('03. (a) DEMANDA'!$B:$B,$B55,'03. (a) DEMANDA'!AA:AA) -> 0 | AB56: =SUMIF('03. (a) DEMANDA'!$B:$B,$B55,'03. (a) DEMANDA'!AB:AB) -> 0 | AC56: =SUMIF('03. (a) DEMANDA'!$B:$B,$B55,'03. (a) DEMANDA'!AC:AC) -> 0 | AD56: =SUMIF('03. (a) DEMANDA'!$B:$B,$B55,'03. (a) DEMANDA'!AD:AD) -> 0 | AE56: =SUMIF('03. (a) DEMANDA'!$B:$B,$B55,'03. (a) DEMANDA'!AE:AE) -> 0 | AF56: =SUMIF('03. (a) DEMANDA'!$B:$B,$B55,'03. (a) DEMANDA'!AF:AF) -> 0 | AG56: =SUMIF('03. (a) DEMANDA'!$B:$B,$B55,'03. (a) DEMANDA'!AG:AG) -> 0 | AH56: =SUMIF('03. (a) DEMANDA'!$B:$B,$B55,'03. (a) DEMANDA'!AH:AH) -> 0 | AI56: =SUMIF('03. (a) DEMANDA'!$B:$B,$B55,'03. (a) DEMANDA'!AI:AI) -> 0 | AJ56: =SUMIF('03. (a) DEMANDA'!$B:$B,$B55,'03. (a) DEMANDA'!AJ:AJ) -> 0 | AK56: =SUMIF('03. (a) DEMANDA'!$B:$B,$B55,'03. (a) DEMANDA'!AK:AK) -> 0 | AL56: =SUMIF('03. (a) DEMANDA'!$B:$B,$B55,'03. (a) DEMANDA'!AL:AL) -> 0 | AN56: =SUM(D56:AL56) -> 0
B57: Ingresso (R$) | D57: =VLOOKUP($B55,'01. PC'!$O$10:$T$18,5,0)*D$7 -> 58.59649123 | E57: =VLOOKUP($B55,'01. PC'!$O$10:$T$18,5,0)*E$7 -> 58.59649123 | F57: =VLOOKUP($B55,'01. PC'!$O$10:$T$18,5,0)*F$7 -> 58.59649123 | G57: =VLOOKUP($B55,'01. PC'!$O$10:$T$18,5,0)*G$7 -> 58.59649123 | H57: =VLOOKUP($B55,'01. PC'!$O$10:$T$18,5,0)*H$7 -> 58.59649123 | I57: =VLOOKUP($B55,'01. PC'!$O$10:$T$18,5,0)*I$7 -> 58.59649123 | J57: =VLOOKUP($B55,'01. PC'!$O$10:$T$18,5,0)*J$7 -> 58.59649123 | K57: =VLOOKUP($B55,'01. PC'!$O$10:$T$18,5,0)*K$7 -> 58.59649123 | L57: =VLOOKUP($B55,'01. PC'!$O$10:$T$18,5,0)*L$7 -> 58.59649123 | M57: =VLOOKUP($B55,'01. PC'!$O$10:$T$18,5,0)*M$7 -> 58.59649123 | N57: =VLOOKUP($B55,'01. PC'!$O$10:$T$18,5,0)*N$7 -> 58.59649123 | O57: =VLOOKUP($B55,'01. PC'!$O$10:$T$18,5,0)*O$7 -> 58.59649123 | P57: =VLOOKUP($B55,'01. PC'!$O$10:$T$18,5,0)*P$7 -> 58.59649123 | Q57: =VLOOKUP($B55,'01. PC'!$O$10:$T$18,5,0)*Q$7 -> 58.59649123 | R57: =VLOOKUP($B55,'01. PC'!$O$10:$T$18,5,0)*R$7 -> 58.59649123 | S57: =VLOOKUP($B55,'01. PC'!$O$10:$T$18,5,0)*S$7 -> 0 | T57: =VLOOKUP($B55,'01. PC'!$O$10:$T$18,5,0)*T$7 -> 0 | U57: =VLOOKUP($B55,'01. PC'!$O$10:$T$18,5,0)*U$7 -> 0 | V57: =VLOOKUP($B55,'01. PC'!$O$10:$T$18,5,0)*V$7 -> 0 | W57: =VLOOKUP($B55,'01. PC'!$O$10:$T$18,5,0)*W$7 -> 0 | X57: =VLOOKUP($B55,'01. PC'!$O$10:$T$18,5,0)*X$7 -> 0 | Y57: =VLOOKUP($B55,'01. PC'!$O$10:$T$18,5,0)*Y$7 -> 0 | Z57: =VLOOKUP($B55,'01. PC'!$O$10:$T$18,5,0)*Z$7 -> 0 | AA57: =VLOOKUP($B55,'01. PC'!$O$10:$T$18,5,0)*AA$7 -> 0 | AB57: =VLOOKUP($B55,'01. PC'!$O$10:$T$18,5,0)*AB$7 -> 0 | AC57: =VLOOKUP($B55,'01. PC'!$O$10:$T$18,5,0)*AC$7 -> 0 | AD57: =VLOOKUP($B55,'01. PC'!$O$10:$T$18,5,0)*AD$7 -> 0 | AE57: =VLOOKUP($B55,'01. PC'!$O$10:$T$18,5,0)*AE$7 -> 0 | AF57: =VLOOKUP($B55,'01. PC'!$O$10:$T$18,5,0)*AF$7 -> 0 | AG57: =VLOOKUP($B55,'01. PC'!$O$10:$T$18,5,0)*AG$7 -> 0 | AH57: =VLOOKUP($B55,'01. PC'!$O$10:$T$18,5,0)*AH$7 -> 0 | AI57: =VLOOKUP($B55,'01. PC'!$O$10:$T$18,5,0)*AI$7 -> 0 | AJ57: =VLOOKUP($B55,'01. PC'!$O$10:$T$18,5,0)*AJ$7 -> 0 | AK57: =VLOOKUP($B55,'01. PC'!$O$10:$T$18,5,0)*AK$7 -> 0 | AL57: =VLOOKUP($B55,'01. PC'!$O$10:$T$18,5,0)*AL$7 -> 0 | AN57: -
B58: ='01. PC'!O14 -> Arvorismo | D58: =D59*D60/10^6 -> 0 | E58: =E59*E60/10^6 -> 0 | F58: 0 | G58: 0 | H58: 0 | I58: 0 | J58: 0 | K58: 0 | L58: 0 | M58: 0 | N58: 0 | O58: 0 | P58: 0 | Q58: 0 | R58: 0 | S58: 0 | T58: 0 | U58: 0 | V58: 0 | W58: 0 | X58: 0 | Y58: 0 | Z58: 0 | AA58: 0 | AB58: 0 | AC58: 0 | AD58: 0 | AE58: 0 | AF58: 0 | AG58: 0 | AH58: 0 | AI58: 0 | AJ58: 0 | AK58: 0 | AL58: 0 | AN58: =SUM(D58:AL58) -> 0
B59: Visitantes | D59: =SUMIF('03. (a) DEMANDA'!$B:$B,$B58,'03. (a) DEMANDA'!D:D) -> 0 | E59: =SUMIF('03. (a) DEMANDA'!$B:$B,$B58,'03. (a) DEMANDA'!E:E) -> 0 | F59: =SUMIF('03. (a) DEMANDA'!$B:$B,$B58,'03. (a) DEMANDA'!F:F) -> 0 | G59: =SUMIF('03. (a) DEMANDA'!$B:$B,$B58,'03. (a) DEMANDA'!G:G) -> 0 | H59: =SUMIF('03. (a) DEMANDA'!$B:$B,$B58,'03. (a) DEMANDA'!H:H) -> 0 | I59: =SUMIF('03. (a) DEMANDA'!$B:$B,$B58,'03. (a) DEMANDA'!I:I) -> 0 | J59: =SUMIF('03. (a) DEMANDA'!$B:$B,$B58,'03. (a) DEMANDA'!J:J) -> 0 | K59: =SUMIF('03. (a) DEMANDA'!$B:$B,$B58,'03. (a) DEMANDA'!K:K) -> 0 | L59: =SUMIF('03. (a) DEMANDA'!$B:$B,$B58,'03. (a) DEMANDA'!L:L) -> 0 | M59: =SUMIF('03. (a) DEMANDA'!$B:$B,$B58,'03. (a) DEMANDA'!M:M) -> 0 | N59: =SUMIF('03. (a) DEMANDA'!$B:$B,$B58,'03. (a) DEMANDA'!N:N) -> 0 | O59: =SUMIF('03. (a) DEMANDA'!$B:$B,$B58,'03. (a) DEMANDA'!O:O) -> 0 | P59: =SUMIF('03. (a) DEMANDA'!$B:$B,$B58,'03. (a) DEMANDA'!P:P) -> 0 | Q59: =SUMIF('03. (a) DEMANDA'!$B:$B,$B58,'03. (a) DEMANDA'!Q:Q) -> 0 | R59: =SUMIF('03. (a) DEMANDA'!$B:$B,$B58,'03. (a) DEMANDA'!R:R) -> 0 | S59: =SUMIF('03. (a) DEMANDA'!$B:$B,$B58,'03. (a) DEMANDA'!S:S) -> 0 | T59: =SUMIF('03. (a) DEMANDA'!$B:$B,$B58,'03. (a) DEMANDA'!T:T) -> 0 | U59: =SUMIF('03. (a) DEMANDA'!$B:$B,$B58,'03. (a) DEMANDA'!U:U) -> 0 | V59: =SUMIF('03. (a) DEMANDA'!$B:$B,$B58,'03. (a) DEMANDA'!V:V) -> 0 | W59: =SUMIF('03. (a) DEMANDA'!$B:$B,$B58,'03. (a) DEMANDA'!W:W) -> 0 | X59: =SUMIF('03. (a) DEMANDA'!$B:$B,$B58,'03. (a) DEMANDA'!X:X) -> 0 | Y59: =SUMIF('03. (a) DEMANDA'!$B:$B,$B58,'03. (a) DEMANDA'!Y:Y) -> 0 | Z59: =SUMIF('03. (a) DEMANDA'!$B:$B,$B58,'03. (a) DEMANDA'!Z:Z) -> 0 | AA59: =SUMIF('03. (a) DEMANDA'!$B:$B,$B58,'03. (a) DEMANDA'!AA:AA) -> 0 | AB59: =SUMIF('03. (a) DEMANDA'!$B:$B,$B58,'03. (a) DEMANDA'!AB:AB) -> 0 | AC59: =SUMIF('03. (a) DEMANDA'!$B:$B,$B58,'03. (a) DEMANDA'!AC:AC) -> 0 | AD59: =SUMIF('03. (a) DEMANDA'!$B:$B,$B58,'03. (a) DEMANDA'!AD:AD) -> 0 | AE59: =SUMIF('03. (a) DEMANDA'!$B:$B,$B58,'03. (a) DEMANDA'!AE:AE) -> 0 | AF59: =SUMIF('03. (a) DEMANDA'!$B:$B,$B58,'03. (a) DEMANDA'!AF:AF) -> 0 | AG59: =SUMIF('03. (a) DEMANDA'!$B:$B,$B58,'03. (a) DEMANDA'!AG:AG) -> 0 | AH59: =SUMIF('03. (a) DEMANDA'!$B:$B,$B58,'03. (a) DEMANDA'!AH:AH) -> 0 | AI59: =SUMIF('03. (a) DEMANDA'!$B:$B,$B58,'03. (a) DEMANDA'!AI:AI) -> 0 | AJ59: =SUMIF('03. (a) DEMANDA'!$B:$B,$B58,'03. (a) DEMANDA'!AJ:AJ) -> 0 | AK59: =SUMIF('03. (a) DEMANDA'!$B:$B,$B58,'03. (a) DEMANDA'!AK:AK) -> 0 | AL59: =SUMIF('03. (a) DEMANDA'!$B:$B,$B58,'03. (a) DEMANDA'!AL:AL) -> 0 | AN59: =SUM(D59:AL59) -> 0
B60: Ingresso (R$) | D60: =VLOOKUP($B58,'01. PC'!$O$10:$T$18,5,0)*D$7 -> 61.70212766 | E60: =VLOOKUP($B58,'01. PC'!$O$10:$T$18,5,0)*E$7 -> 61.70212766 | F60: =VLOOKUP($B58,'01. PC'!$O$10:$T$18,5,0)*F$7 -> 61.70212766 | G60: =VLOOKUP($B58,'01. PC'!$O$10:$T$18,5,0)*G$7 -> 61.70212766 | H60: =VLOOKUP($B58,'01. PC'!$O$10:$T$18,5,0)*H$7 -> 61.70212766 | I60: =VLOOKUP($B58,'01. PC'!$O$10:$T$18,5,0)*I$7 -> 61.70212766 | J60: =VLOOKUP($B58,'01. PC'!$O$10:$T$18,5,0)*J$7 -> 61.70212766 | K60: =VLOOKUP($B58,'01. PC'!$O$10:$T$18,5,0)*K$7 -> 61.70212766 | L60: =VLOOKUP($B58,'01. PC'!$O$10:$T$18,5,0)*L$7 -> 61.70212766 | M60: =VLOOKUP($B58,'01. PC'!$O$10:$T$18,5,0)*M$7 -> 61.70212766 | N60: =VLOOKUP($B58,'01. PC'!$O$10:$T$18,5,0)*N$7 -> 61.70212766 | O60: =VLOOKUP($B58,'01. PC'!$O$10:$T$18,5,0)*O$7 -> 61.70212766 | P60: =VLOOKUP($B58,'01. PC'!$O$10:$T$18,5,0)*P$7 -> 61.70212766 | Q60: =VLOOKUP($B58,'01. PC'!$O$10:$T$18,5,0)*Q$7 -> 61.70212766 | R60: =VLOOKUP($B58,'01. PC'!$O$10:$T$18,5,0)*R$7 -> 61.70212766 | S60: =VLOOKUP($B58,'01. PC'!$O$10:$T$18,5,0)*S$7 -> 0 | T60: =VLOOKUP($B58,'01. PC'!$O$10:$T$18,5,0)*T$7 -> 0 | U60: =VLOOKUP($B58,'01. PC'!$O$10:$T$18,5,0)*U$7 -> 0 | V60: =VLOOKUP($B58,'01. PC'!$O$10:$T$18,5,0)*V$7 -> 0 | W60: =VLOOKUP($B58,'01. PC'!$O$10:$T$18,5,0)*W$7 -> 0 | X60: =VLOOKUP($B58,'01. PC'!$O$10:$T$18,5,0)*X$7 -> 0 | Y60: =VLOOKUP($B58,'01. PC'!$O$10:$T$18,5,0)*Y$7 -> 0 | Z60: =VLOOKUP($B58,'01. PC'!$O$10:$T$18,5,0)*Z$7 -> 0 | AA60: =VLOOKUP($B58,'01. PC'!$O$10:$T$18,5,0)*AA$7 -> 0 | AB60: =VLOOKUP($B58,'01. PC'!$O$10:$T$18,5,0)*AB$7 -> 0 | AC60: =VLOOKUP($B58,'01. PC'!$O$10:$T$18,5,0)*AC$7 -> 0 | AD60: =VLOOKUP($B58,'01. PC'!$O$10:$T$18,5,0)*AD$7 -> 0 | AE60: =VLOOKUP($B58,'01. PC'!$O$10:$T$18,5,0)*AE$7 -> 0 | AF60: =VLOOKUP($B58,'01. PC'!$O$10:$T$18,5,0)*AF$7 -> 0 | AG60: =VLOOKUP($B58,'01. PC'!$O$10:$T$18,5,0)*AG$7 -> 0 | AH60: =VLOOKUP($B58,'01. PC'!$O$10:$T$18,5,0)*AH$7 -> 0 | AI60: =VLOOKUP($B58,'01. PC'!$O$10:$T$18,5,0)*AI$7 -> 0 | AJ60: =VLOOKUP($B58,'01. PC'!$O$10:$T$18,5,0)*AJ$7 -> 0 | AK60: =VLOOKUP($B58,'01. PC'!$O$10:$T$18,5,0)*AK$7 -> 0 | AL60: =VLOOKUP($B58,'01. PC'!$O$10:$T$18,5,0)*AL$7 -> 0 | AN60: -
B61: ='01. PC'!O15 -> Teleférico | D61: =D62*D63/10^6 -> 0 | E61: =E62*E63/10^6 -> 0 | F61: 0 | G61: 0 | H61: 0 | I61: 0 | J61: 0 | K61: 0 | L61: 0 | M61: 0 | N61: 0 | O61: 0 | P61: 0 | Q61: 0 | R61: 0 | S61: 0 | T61: 0 | U61: 0 | V61: 0 | W61: 0 | X61: 0 | Y61: 0 | Z61: 0 | AA61: 0 | AB61: 0 | AC61: 0 | AD61: 0 | AE61: 0 | AF61: 0 | AG61: 0 | AH61: 0 | AI61: 0 | AJ61: 0 | AK61: 0 | AL61: 0 | AN61: =SUM(D61:AL61) -> 0
B62: Visitantes | D62: =SUMIF('03. (a) DEMANDA'!$B:$B,$B61,'03. (a) DEMANDA'!D:D) -> 0 | E62: =SUMIF('03. (a) DEMANDA'!$B:$B,$B61,'03. (a) DEMANDA'!E:E) -> 0 | F62: =SUMIF('03. (a) DEMANDA'!$B:$B,$B61,'03. (a) DEMANDA'!F:F) -> 0 | G62: =SUMIF('03. (a) DEMANDA'!$B:$B,$B61,'03. (a) DEMANDA'!G:G) -> 0 | H62: =SUMIF('03. (a) DEMANDA'!$B:$B,$B61,'03. (a) DEMANDA'!H:H) -> 0 | I62: =SUMIF('03. (a) DEMANDA'!$B:$B,$B61,'03. (a) DEMANDA'!I:I) -> 0 | J62: =SUMIF('03. (a) DEMANDA'!$B:$B,$B61,'03. (a) DEMANDA'!J:J) -> 0 | K62: =SUMIF('03. (a) DEMANDA'!$B:$B,$B61,'03. (a) DEMANDA'!K:K) -> 0 | L62: =SUMIF('03. (a) DEMANDA'!$B:$B,$B61,'03. (a) DEMANDA'!L:L) -> 0 | M62: =SUMIF('03. (a) DEMANDA'!$B:$B,$B61,'03. (a) DEMANDA'!M:M) -> 0 | N62: =SUMIF('03. (a) DEMANDA'!$B:$B,$B61,'03. (a) DEMANDA'!N:N) -> 0 | O62: =SUMIF('03. (a) DEMANDA'!$B:$B,$B61,'03. (a) DEMANDA'!O:O) -> 0 | P62: =SUMIF('03. (a) DEMANDA'!$B:$B,$B61,'03. (a) DEMANDA'!P:P) -> 0 | Q62: =SUMIF('03. (a) DEMANDA'!$B:$B,$B61,'03. (a) DEMANDA'!Q:Q) -> 0 | R62: =SUMIF('03. (a) DEMANDA'!$B:$B,$B61,'03. (a) DEMANDA'!R:R) -> 0 | S62: =SUMIF('03. (a) DEMANDA'!$B:$B,$B61,'03. (a) DEMANDA'!S:S) -> 0 | T62: =SUMIF('03. (a) DEMANDA'!$B:$B,$B61,'03. (a) DEMANDA'!T:T) -> 0 | U62: =SUMIF('03. (a) DEMANDA'!$B:$B,$B61,'03. (a) DEMANDA'!U:U) -> 0 | V62: =SUMIF('03. (a) DEMANDA'!$B:$B,$B61,'03. (a) DEMANDA'!V:V) -> 0 | W62: =SUMIF('03. (a) DEMANDA'!$B:$B,$B61,'03. (a) DEMANDA'!W:W) -> 0 | X62: =SUMIF('03. (a) DEMANDA'!$B:$B,$B61,'03. (a) DEMANDA'!X:X) -> 0 | Y62: =SUMIF('03. (a) DEMANDA'!$B:$B,$B61,'03. (a) DEMANDA'!Y:Y) -> 0 | Z62: =SUMIF('03. (a) DEMANDA'!$B:$B,$B61,'03. (a) DEMANDA'!Z:Z) -> 0 | AA62: =SUMIF('03. (a) DEMANDA'!$B:$B,$B61,'03. (a) DEMANDA'!AA:AA) -> 0 | AB62: =SUMIF('03. (a) DEMANDA'!$B:$B,$B61,'03. (a) DEMANDA'!AB:AB) -> 0 | AC62: =SUMIF('03. (a) DEMANDA'!$B:$B,$B61,'03. (a) DEMANDA'!AC:AC) -> 0 | AD62: =SUMIF('03. (a) DEMANDA'!$B:$B,$B61,'03. (a) DEMANDA'!AD:AD) -> 0 | AE62: =SUMIF('03. (a) DEMANDA'!$B:$B,$B61,'03. (a) DEMANDA'!AE:AE) -> 0 | AF62: =SUMIF('03. (a) DEMANDA'!$B:$B,$B61,'03. (a) DEMANDA'!AF:AF) -> 0 | AG62: =SUMIF('03. (a) DEMANDA'!$B:$B,$B61,'03. (a) DEMANDA'!AG:AG) -> 0 | AH62: =SUMIF('03. (a) DEMANDA'!$B:$B,$B61,'03. (a) DEMANDA'!AH:AH) -> 0 | AI62: =SUMIF('03. (a) DEMANDA'!$B:$B,$B61,'03. (a) DEMANDA'!AI:AI) -> 0 | AJ62: =SUMIF('03. (a) DEMANDA'!$B:$B,$B61,'03. (a) DEMANDA'!AJ:AJ) -> 0 | AK62: =SUMIF('03. (a) DEMANDA'!$B:$B,$B61,'03. (a) DEMANDA'!AK:AK) -> 0 | AL62: =SUMIF('03. (a) DEMANDA'!$B:$B,$B61,'03. (a) DEMANDA'!AL:AL) -> 0 | AN62: =SUM(D62:AL62) -> 0
B63: Ingresso (R$) | D63: =VLOOKUP($B61,'01. PC'!$O$10:$T$18,5,0)*D$7 -> 102.5882353 | E63: =VLOOKUP($B61,'01. PC'!$O$10:$T$18,5,0)*E$7 -> 102.5882353 | F63: =VLOOKUP($B61,'01. PC'!$O$10:$T$18,5,0)*F$7 -> 102.5882353 | G63: =VLOOKUP($B61,'01. PC'!$O$10:$T$18,5,0)*G$7 -> 102.5882353 | H63: =VLOOKUP($B61,'01. PC'!$O$10:$T$18,5,0)*H$7 -> 102.5882353 | I63: =VLOOKUP($B61,'01. PC'!$O$10:$T$18,5,0)*I$7 -> 102.5882353 | J63: =VLOOKUP($B61,'01. PC'!$O$10:$T$18,5,0)*J$7 -> 102.5882353 | K63: =VLOOKUP($B61,'01. PC'!$O$10:$T$18,5,0)*K$7 -> 102.5882353 | L63: =VLOOKUP($B61,'01. PC'!$O$10:$T$18,5,0)*L$7 -> 102.5882353 | M63: =VLOOKUP($B61,'01. PC'!$O$10:$T$18,5,0)*M$7 -> 102.5882353 | N63: =VLOOKUP($B61,'01. PC'!$O$10:$T$18,5,0)*N$7 -> 102.5882353 | O63: =VLOOKUP($B61,'01. PC'!$O$10:$T$18,5,0)*O$7 -> 102.5882353 | P63: =VLOOKUP($B61,'01. PC'!$O$10:$T$18,5,0)*P$7 -> 102.5882353 | Q63: =VLOOKUP($B61,'01. PC'!$O$10:$T$18,5,0)*Q$7 -> 102.5882353 | R63: =VLOOKUP($B61,'01. PC'!$O$10:$T$18,5,0)*R$7 -> 102.5882353 | S63: =VLOOKUP($B61,'01. PC'!$O$10:$T$18,5,0)*S$7 -> 0 | T63: =VLOOKUP($B61,'01. PC'!$O$10:$T$18,5,0)*T$7 -> 0 | U63: =VLOOKUP($B61,'01. PC'!$O$10:$T$18,5,0)*U$7 -> 0 | V63: =VLOOKUP($B61,'01. PC'!$O$10:$T$18,5,0)*V$7 -> 0 | W63: =VLOOKUP($B61,'01. PC'!$O$10:$T$18,5,0)*W$7 -> 0 | X63: =VLOOKUP($B61,'01. PC'!$O$10:$T$18,5,0)*X$7 -> 0 | Y63: =VLOOKUP($B61,'01. PC'!$O$10:$T$18,5,0)*Y$7 -> 0 | Z63: =VLOOKUP($B61,'01. PC'!$O$10:$T$18,5,0)*Z$7 -> 0 | AA63: =VLOOKUP($B61,'01. PC'!$O$10:$T$18,5,0)*AA$7 -> 0 | AB63: =VLOOKUP($B61,'01. PC'!$O$10:$T$18,5,0)*AB$7 -> 0 | AC63: =VLOOKUP($B61,'01. PC'!$O$10:$T$18,5,0)*AC$7 -> 0 | AD63: =VLOOKUP($B61,'01. PC'!$O$10:$T$18,5,0)*AD$7 -> 0 | AE63: =VLOOKUP($B61,'01. PC'!$O$10:$T$18,5,0)*AE$7 -> 0 | AF63: =VLOOKUP($B61,'01. PC'!$O$10:$T$18,5,0)*AF$7 -> 0 | AG63: =VLOOKUP($B61,'01. PC'!$O$10:$T$18,5,0)*AG$7 -> 0 | AH63: =VLOOKUP($B61,'01. PC'!$O$10:$T$18,5,0)*AH$7 -> 0 | AI63: =VLOOKUP($B61,'01. PC'!$O$10:$T$18,5,0)*AI$7 -> 0 | AJ63: =VLOOKUP($B61,'01. PC'!$O$10:$T$18,5,0)*AJ$7 -> 0 | AK63: =VLOOKUP($B61,'01. PC'!$O$10:$T$18,5,0)*AK$7 -> 0 | AL63: =VLOOKUP($B61,'01. PC'!$O$10:$T$18,5,0)*AL$7 -> 0 | AN63: -
B64: ='01. PC'!O16 -> A&B | D64: =D65*D66/10^6 -> 6.3659509 | E64: =E65*E66/10^6 -> 6.977964685 | F64: 7.630561947 | G64: 8.31652594 | H64: 9.038554884 | I64: 9.185274797 | J64: 9.331731656 | K64: 9.477815189 | L64: 9.623464964 | M64: 9.768635844 | N64: 9.91327705 | O64: 10.05730687 | P64: 10.20063819 | Q64: 10.34322439 | R64: 10.48501334 | S64: 0 | T64: 0 | U64: 0 | V64: 0 | W64: 0 | X64: 0 | Y64: 0 | Z64: 0 | AA64: 0 | AB64: 0 | AC64: 0 | AD64: 0 | AE64: 0 | AF64: 0 | AG64: 0 | AH64: 0 | AI64: 0 | AJ64: 0 | AK64: 0 | AL64: 0 | AN64: =SUM(D64:AL64) -> 136.7159406
B65: Visitantes | D65: =SUMIF('03. (a) DEMANDA'!$B:$B,$B64,'03. (a) DEMANDA'!D:D) -> 135288.8877 | E65: =SUMIF('03. (a) DEMANDA'!$B:$B,$B64,'03. (a) DEMANDA'!E:E) -> 148295.3758 | F65: =SUMIF('03. (a) DEMANDA'!$B:$B,$B64,'03. (a) DEMANDA'!F:F) -> 162164.342 | G65: =SUMIF('03. (a) DEMANDA'!$B:$B,$B64,'03. (a) DEMANDA'!G:G) -> 176742.4163 | H65: =SUMIF('03. (a) DEMANDA'!$B:$B,$B64,'03. (a) DEMANDA'!H:H) -> 192086.9413 | I65: =SUMIF('03. (a) DEMANDA'!$B:$B,$B64,'03. (a) DEMANDA'!I:I) -> 195205.026 | J65: =SUMIF('03. (a) DEMANDA'!$B:$B,$B64,'03. (a) DEMANDA'!J:J) -> 198317.5203 | K65: =SUMIF('03. (a) DEMANDA'!$B:$B,$B64,'03. (a) DEMANDA'!K:K) -> 201422.0806 | L65: =SUMIF('03. (a) DEMANDA'!$B:$B,$B64,'03. (a) DEMANDA'!L:L) -> 204517.4227 | M65: =SUMIF('03. (a) DEMANDA'!$B:$B,$B64,'03. (a) DEMANDA'!M:M) -> 207602.5874 | N65: =SUMIF('03. (a) DEMANDA'!$B:$B,$B64,'03. (a) DEMANDA'!N:N) -> 210676.4955 | O65: =SUMIF('03. (a) DEMANDA'!$B:$B,$B64,'03. (a) DEMANDA'!O:O) -> 213737.4105 | P65: =SUMIF('03. (a) DEMANDA'!$B:$B,$B64,'03. (a) DEMANDA'!P:P) -> 216783.4809 | Q65: =SUMIF('03. (a) DEMANDA'!$B:$B,$B64,'03. (a) DEMANDA'!Q:Q) -> 219813.7161 | R65: =SUMIF('03. (a) DEMANDA'!$B:$B,$B64,'03. (a) DEMANDA'!R:R) -> 222827.008 | S65: =SUMIF('03. (a) DEMANDA'!$B:$B,$B64,'03. (a) DEMANDA'!S:S) -> 0 | T65: =SUMIF('03. (a) DEMANDA'!$B:$B,$B64,'03. (a) DEMANDA'!T:T) -> 0 | U65: =SUMIF('03. (a) DEMANDA'!$B:$B,$B64,'03. (a) DEMANDA'!U:U) -> 0 | V65: =SUMIF('03. (a) DEMANDA'!$B:$B,$B64,'03. (a) DEMANDA'!V:V) -> 0 | W65: =SUMIF('03. (a) DEMANDA'!$B:$B,$B64,'03. (a) DEMANDA'!W:W) -> 0 | X65: =SUMIF('03. (a) DEMANDA'!$B:$B,$B64,'03. (a) DEMANDA'!X:X) -> 0 | Y65: =SUMIF('03. (a) DEMANDA'!$B:$B,$B64,'03. (a) DEMANDA'!Y:Y) -> 0 | Z65: =SUMIF('03. (a) DEMANDA'!$B:$B,$B64,'03. (a) DEMANDA'!Z:Z) -> 0 | AA65: =SUMIF('03. (a) DEMANDA'!$B:$B,$B64,'03. (a) DEMANDA'!AA:AA) -> 0 | AB65: =SUMIF('03. (a) DEMANDA'!$B:$B,$B64,'03. (a) DEMANDA'!AB:AB) -> 0 | AC65: =SUMIF('03. (a) DEMANDA'!$B:$B,$B64,'03. (a) DEMANDA'!AC:AC) -> 0 | AD65: =SUMIF('03. (a) DEMANDA'!$B:$B,$B64,'03. (a) DEMANDA'!AD:AD) -> 0 | AE65: =SUMIF('03. (a) DEMANDA'!$B:$B,$B64,'03. (a) DEMANDA'!AE:AE) -> 0 | AF65: =SUMIF('03. (a) DEMANDA'!$B:$B,$B64,'03. (a) DEMANDA'!AF:AF) -> 0 | AG65: =SUMIF('03. (a) DEMANDA'!$B:$B,$B64,'03. (a) DEMANDA'!AG:AG) -> 0 | AH65: =SUMIF('03. (a) DEMANDA'!$B:$B,$B64,'03. (a) DEMANDA'!AH:AH) -> 0 | AI65: =SUMIF('03. (a) DEMANDA'!$B:$B,$B64,'03. (a) DEMANDA'!AI:AI) -> 0 | AJ65: =SUMIF('03. (a) DEMANDA'!$B:$B,$B64,'03. (a) DEMANDA'!AJ:AJ) -> 0 | AK65: =SUMIF('03. (a) DEMANDA'!$B:$B,$B64,'03. (a) DEMANDA'!AK:AK) -> 0 | AL65: =SUMIF('03. (a) DEMANDA'!$B:$B,$B64,'03. (a) DEMANDA'!AL:AL) -> 0 | AN65: =SUM(D65:AL65) -> 2905480.711
B66: Ticket médio (R$) | D66: =VLOOKUP($B64,'01. PC'!$O$10:$T$18,5,0)*D$7 -> 47.05449949 | E66: =VLOOKUP($B64,'01. PC'!$O$10:$T$18,5,0)*E$7 -> 47.05449949 | F66: =VLOOKUP($B64,'01. PC'!$O$10:$T$18,5,0)*F$7 -> 47.05449949 | G66: =VLOOKUP($B64,'01. PC'!$O$10:$T$18,5,0)*G$7 -> 47.05449949 | H66: =VLOOKUP($B64,'01. PC'!$O$10:$T$18,5,0)*H$7 -> 47.05449949 | I66: =VLOOKUP($B64,'01. PC'!$O$10:$T$18,5,0)*I$7 -> 47.05449949 | J66: =VLOOKUP($B64,'01. PC'!$O$10:$T$18,5,0)*J$7 -> 47.05449949 | K66: =VLOOKUP($B64,'01. PC'!$O$10:$T$18,5,0)*K$7 -> 47.05449949 | L66: =VLOOKUP($B64,'01. PC'!$O$10:$T$18,5,0)*L$7 -> 47.05449949 | M66: =VLOOKUP($B64,'01. PC'!$O$10:$T$18,5,0)*M$7 -> 47.05449949 | N66: =VLOOKUP($B64,'01. PC'!$O$10:$T$18,5,0)*N$7 -> 47.05449949 | O66: =VLOOKUP($B64,'01. PC'!$O$10:$T$18,5,0)*O$7 -> 47.05449949 | P66: =VLOOKUP($B64,'01. PC'!$O$10:$T$18,5,0)*P$7 -> 47.05449949 | Q66: =VLOOKUP($B64,'01. PC'!$O$10:$T$18,5,0)*Q$7 -> 47.05449949 | R66: =VLOOKUP($B64,'01. PC'!$O$10:$T$18,5,0)*R$7 -> 47.05449949 | S66: =VLOOKUP($B64,'01. PC'!$O$10:$T$18,5,0)*S$7 -> 0 | T66: =VLOOKUP($B64,'01. PC'!$O$10:$T$18,5,0)*T$7 -> 0 | U66: =VLOOKUP($B64,'01. PC'!$O$10:$T$18,5,0)*U$7 -> 0 | V66: =VLOOKUP($B64,'01. PC'!$O$10:$T$18,5,0)*V$7 -> 0 | W66: =VLOOKUP($B64,'01. PC'!$O$10:$T$18,5,0)*W$7 -> 0 | X66: =VLOOKUP($B64,'01. PC'!$O$10:$T$18,5,0)*X$7 -> 0 | Y66: =VLOOKUP($B64,'01. PC'!$O$10:$T$18,5,0)*Y$7 -> 0 | Z66: =VLOOKUP($B64,'01. PC'!$O$10:$T$18,5,0)*Z$7 -> 0 | AA66: =VLOOKUP($B64,'01. PC'!$O$10:$T$18,5,0)*AA$7 -> 0 | AB66: =VLOOKUP($B64,'01. PC'!$O$10:$T$18,5,0)*AB$7 -> 0 | AC66: =VLOOKUP($B64,'01. PC'!$O$10:$T$18,5,0)*AC$7 -> 0 | AD66: =VLOOKUP($B64,'01. PC'!$O$10:$T$18,5,0)*AD$7 -> 0 | AE66: =VLOOKUP($B64,'01. PC'!$O$10:$T$18,5,0)*AE$7 -> 0 | AF66: =VLOOKUP($B64,'01. PC'!$O$10:$T$18,5,0)*AF$7 -> 0 | AG66: =VLOOKUP($B64,'01. PC'!$O$10:$T$18,5,0)*AG$7 -> 0 | AH66: =VLOOKUP($B64,'01. PC'!$O$10:$T$18,5,0)*AH$7 -> 0 | AI66: =VLOOKUP($B64,'01. PC'!$O$10:$T$18,5,0)*AI$7 -> 0 | AJ66: =VLOOKUP($B64,'01. PC'!$O$10:$T$18,5,0)*AJ$7 -> 0 | AK66: =VLOOKUP($B64,'01. PC'!$O$10:$T$18,5,0)*AK$7 -> 0 | AL66: =VLOOKUP($B64,'01. PC'!$O$10:$T$18,5,0)*AL$7 -> 0 | AN66: -
B67: Souvenir | D67: =D68*D69/10^6 -> 1.433141094 | E67: 1.570921313 | F67: 1.717837927 | G67: 1.872266261 | H67: 2.034813752 | I67: 2.06784422 | J67: 2.100815468 | K67: 2.13370267 | L67: 2.166492222 | M67: 2.199173962 | N67: 2.231736459 | O67: 2.264161318 | P67: 2.296428925 | Q67: 2.328528786 | R67: 2.360449165 | S67: 0 | T67: 0 | U67: 0 | V67: 0 | W67: 0 | X67: 0 | Y67: 0 | Z67: 0 | AA67: 0 | AB67: 0 | AC67: 0 | AD67: 0 | AE67: 0 | AF67: 0 | AG67: 0 | AH67: 0 | AI67: 0 | AJ67: 0 | AK67: 0 | AL67: 0 | AN67: =SUM(D67:AL67) -> 30.77831354
B68: Visitantes | D68: =SUMIF('03. (a) DEMANDA'!$B:$B,$B67,'03. (a) DEMANDA'!D:D) -> 81173.33265 | E68: =SUMIF('03. (a) DEMANDA'!$B:$B,$B67,'03. (a) DEMANDA'!E:E) -> 88977.22548 | F68: =SUMIF('03. (a) DEMANDA'!$B:$B,$B67,'03. (a) DEMANDA'!F:F) -> 97298.60518 | G68: =SUMIF('03. (a) DEMANDA'!$B:$B,$B67,'03. (a) DEMANDA'!G:G) -> 106045.4498 | H68: =SUMIF('03. (a) DEMANDA'!$B:$B,$B67,'03. (a) DEMANDA'!H:H) -> 115252.1648 | I68: =SUMIF('03. (a) DEMANDA'!$B:$B,$B67,'03. (a) DEMANDA'!I:I) -> 117123.0156 | J68: =SUMIF('03. (a) DEMANDA'!$B:$B,$B67,'03. (a) DEMANDA'!J:J) -> 118990.5122 | K68: =SUMIF('03. (a) DEMANDA'!$B:$B,$B67,'03. (a) DEMANDA'!K:K) -> 120853.2484 | L68: =SUMIF('03. (a) DEMANDA'!$B:$B,$B67,'03. (a) DEMANDA'!L:L) -> 122710.4536 | M68: =SUMIF('03. (a) DEMANDA'!$B:$B,$B67,'03. (a) DEMANDA'!M:M) -> 124561.5525 | N68: =SUMIF('03. (a) DEMANDA'!$B:$B,$B67,'03. (a) DEMANDA'!N:N) -> 126405.8973 | O68: =SUMIF('03. (a) DEMANDA'!$B:$B,$B67,'03. (a) DEMANDA'!O:O) -> 128242.4463 | P68: =SUMIF('03. (a) DEMANDA'!$B:$B,$B67,'03. (a) DEMANDA'!P:P) -> 130070.0885 | Q68: =SUMIF('03. (a) DEMANDA'!$B:$B,$B67,'03. (a) DEMANDA'!Q:Q) -> 131888.2297 | R68: =SUMIF('03. (a) DEMANDA'!$B:$B,$B67,'03. (a) DEMANDA'!R:R) -> 133696.2048 | S68: =SUMIF('03. (a) DEMANDA'!$B:$B,$B67,'03. (a) DEMANDA'!S:S) -> 0 | T68: =SUMIF('03. (a) DEMANDA'!$B:$B,$B67,'03. (a) DEMANDA'!T:T) -> 0 | U68: =SUMIF('03. (a) DEMANDA'!$B:$B,$B67,'03. (a) DEMANDA'!U:U) -> 0 | V68: =SUMIF('03. (a) DEMANDA'!$B:$B,$B67,'03. (a) DEMANDA'!V:V) -> 0 | W68: =SUMIF('03. (a) DEMANDA'!$B:$B,$B67,'03. (a) DEMANDA'!W:W) -> 0 | X68: =SUMIF('03. (a) DEMANDA'!$B:$B,$B67,'03. (a) DEMANDA'!X:X) -> 0 | Y68: =SUMIF('03. (a) DEMANDA'!$B:$B,$B67,'03. (a) DEMANDA'!Y:Y) -> 0 | Z68: =SUMIF('03. (a) DEMANDA'!$B:$B,$B67,'03. (a) DEMANDA'!Z:Z) -> 0 | AA68: =SUMIF('03. (a) DEMANDA'!$B:$B,$B67,'03. (a) DEMANDA'!AA:AA) -> 0 | AB68: =SUMIF('03. (a) DEMANDA'!$B:$B,$B67,'03. (a) DEMANDA'!AB:AB) -> 0 | AC68: =SUMIF('03. (a) DEMANDA'!$B:$B,$B67,'03. (a) DEMANDA'!AC:AC) -> 0 | AD68: =SUMIF('03. (a) DEMANDA'!$B:$B,$B67,'03. (a) DEMANDA'!AD:AD) -> 0 | AE68: =SUMIF('03. (a) DEMANDA'!$B:$B,$B67,'03. (a) DEMANDA'!AE:AE) -> 0 | AF68: =SUMIF('03. (a) DEMANDA'!$B:$B,$B67,'03. (a) DEMANDA'!AF:AF) -> 0 | AG68: =SUMIF('03. (a) DEMANDA'!$B:$B,$B67,'03. (a) DEMANDA'!AG:AG) -> 0 | AH68: =SUMIF('03. (a) DEMANDA'!$B:$B,$B67,'03. (a) DEMANDA'!AH:AH) -> 0 | AI68: =SUMIF('03. (a) DEMANDA'!$B:$B,$B67,'03. (a) DEMANDA'!AI:AI) -> 0 | AJ68: =SUMIF('03. (a) DEMANDA'!$B:$B,$B67,'03. (a) DEMANDA'!AJ:AJ) -> 0 | AK68: =SUMIF('03. (a) DEMANDA'!$B:$B,$B67,'03. (a) DEMANDA'!AK:AK) -> 0 | AL68: =SUMIF('03. (a) DEMANDA'!$B:$B,$B67,'03. (a) DEMANDA'!AL:AL) -> 0 | AN68: =SUM(D68:AL68) -> 1743288.427
B69: Ticket médio (R$) | D69: =VLOOKUP($B67,'01. PC'!$O$10:$T$18,5,0)*D$7 -> 17.65531915 | E69: =VLOOKUP($B67,'01. PC'!$O$10:$T$18,5,0)*E$7 -> 17.65531915 | F69: =VLOOKUP($B67,'01. PC'!$O$10:$T$18,5,0)*F$7 -> 17.65531915 | G69: =VLOOKUP($B67,'01. PC'!$O$10:$T$18,5,0)*G$7 -> 17.65531915 | H69: =VLOOKUP($B67,'01. PC'!$O$10:$T$18,5,0)*H$7 -> 17.65531915 | I69: =VLOOKUP($B67,'01. PC'!$O$10:$T$18,5,0)*I$7 -> 17.65531915 | J69: =VLOOKUP($B67,'01. PC'!$O$10:$T$18,5,0)*J$7 -> 17.65531915 | K69: =VLOOKUP($B67,'01. PC'!$O$10:$T$18,5,0)*K$7 -> 17.65531915 | L69: =VLOOKUP($B67,'01. PC'!$O$10:$T$18,5,0)*L$7 -> 17.65531915 | M69: =VLOOKUP($B67,'01. PC'!$O$10:$T$18,5,0)*M$7 -> 17.65531915 | N69: =VLOOKUP($B67,'01. PC'!$O$10:$T$18,5,0)*N$7 -> 17.65531915 | O69: =VLOOKUP($B67,'01. PC'!$O$10:$T$18,5,0)*O$7 -> 17.65531915 | P69: =VLOOKUP($B67,'01. PC'!$O$10:$T$18,5,0)*P$7 -> 17.65531915 | Q69: =VLOOKUP($B67,'01. PC'!$O$10:$T$18,5,0)*Q$7 -> 17.65531915 | R69: =VLOOKUP($B67,'01. PC'!$O$10:$T$18,5,0)*R$7 -> 17.65531915 | S69: =VLOOKUP($B67,'01. PC'!$O$10:$T$18,5,0)*S$7 -> 0 | T69: =VLOOKUP($B67,'01. PC'!$O$10:$T$18,5,0)*T$7 -> 0 | U69: =VLOOKUP($B67,'01. PC'!$O$10:$T$18,5,0)*U$7 -> 0 | V69: =VLOOKUP($B67,'01. PC'!$O$10:$T$18,5,0)*V$7 -> 0 | W69: =VLOOKUP($B67,'01. PC'!$O$10:$T$18,5,0)*W$7 -> 0 | X69: =VLOOKUP($B67,'01. PC'!$O$10:$T$18,5,0)*X$7 -> 0 | Y69: =VLOOKUP($B67,'01. PC'!$O$10:$T$18,5,0)*Y$7 -> 0 | Z69: =VLOOKUP($B67,'01. PC'!$O$10:$T$18,5,0)*Z$7 -> 0 | AA69: =VLOOKUP($B67,'01. PC'!$O$10:$T$18,5,0)*AA$7 -> 0 | AB69: =VLOOKUP($B67,'01. PC'!$O$10:$T$18,5,0)*AB$7 -> 0 | AC69: =VLOOKUP($B67,'01. PC'!$O$10:$T$18,5,0)*AC$7 -> 0 | AD69: =VLOOKUP($B67,'01. PC'!$O$10:$T$18,5,0)*AD$7 -> 0 | AE69: =VLOOKUP($B67,'01. PC'!$O$10:$T$18,5,0)*AE$7 -> 0 | AF69: =VLOOKUP($B67,'01. PC'!$O$10:$T$18,5,0)*AF$7 -> 0 | AG69: =VLOOKUP($B67,'01. PC'!$O$10:$T$18,5,0)*AG$7 -> 0 | AH69: =VLOOKUP($B67,'01. PC'!$O$10:$T$18,5,0)*AH$7 -> 0 | AI69: =VLOOKUP($B67,'01. PC'!$O$10:$T$18,5,0)*AI$7 -> 0 | AJ69: =VLOOKUP($B67,'01. PC'!$O$10:$T$18,5,0)*AJ$7 -> 0 | AK69: =VLOOKUP($B67,'01. PC'!$O$10:$T$18,5,0)*AK$7 -> 0 | AL69: =VLOOKUP($B67,'01. PC'!$O$10:$T$18,5,0)*AL$7 -> 0 | AN69: -
B70: Locker | D70: =D71*D72/10^6 -> 0 | E70: 0 | F70: 0 | G70: 0 | H70: 0 | I70: 0 | J70: 0 | K70: 0 | L70: 0 | M70: 0 | N70: 0 | O70: 0 | P70: 0 | Q70: 0 | R70: 0 | S70: 0 | T70: 0 | U70: 0 | V70: 0 | W70: 0 | X70: 0 | Y70: 0 | Z70: 0 | AA70: 0 | AB70: 0 | AC70: 0 | AD70: 0 | AE70: 0 | AF70: 0 | AG70: 0 | AH70: 0 | AI70: 0 | AJ70: 0 | AK70: 0 | AL70: 0 | AN70: =SUM(D70:AL70) -> 0
B71: Visitantes | D71: =SUMIF('03. (a) DEMANDA'!$B:$B,$B70,'03. (a) DEMANDA'!D:D) -> 0 | E71: =SUMIF('03. (a) DEMANDA'!$B:$B,$B70,'03. (a) DEMANDA'!E:E) -> 0 | F71: =SUMIF('03. (a) DEMANDA'!$B:$B,$B70,'03. (a) DEMANDA'!F:F) -> 0 | G71: =SUMIF('03. (a) DEMANDA'!$B:$B,$B70,'03. (a) DEMANDA'!G:G) -> 0 | H71: =SUMIF('03. (a) DEMANDA'!$B:$B,$B70,'03. (a) DEMANDA'!H:H) -> 0 | I71: =SUMIF('03. (a) DEMANDA'!$B:$B,$B70,'03. (a) DEMANDA'!I:I) -> 0 | J71: =SUMIF('03. (a) DEMANDA'!$B:$B,$B70,'03. (a) DEMANDA'!J:J) -> 0 | K71: =SUMIF('03. (a) DEMANDA'!$B:$B,$B70,'03. (a) DEMANDA'!K:K) -> 0 | L71: =SUMIF('03. (a) DEMANDA'!$B:$B,$B70,'03. (a) DEMANDA'!L:L) -> 0 | M71: =SUMIF('03. (a) DEMANDA'!$B:$B,$B70,'03. (a) DEMANDA'!M:M) -> 0 | N71: =SUMIF('03. (a) DEMANDA'!$B:$B,$B70,'03. (a) DEMANDA'!N:N) -> 0 | O71: =SUMIF('03. (a) DEMANDA'!$B:$B,$B70,'03. (a) DEMANDA'!O:O) -> 0 | P71: =SUMIF('03. (a) DEMANDA'!$B:$B,$B70,'03. (a) DEMANDA'!P:P) -> 0 | Q71: =SUMIF('03. (a) DEMANDA'!$B:$B,$B70,'03. (a) DEMANDA'!Q:Q) -> 0 | R71: =SUMIF('03. (a) DEMANDA'!$B:$B,$B70,'03. (a) DEMANDA'!R:R) -> 0 | S71: =SUMIF('03. (a) DEMANDA'!$B:$B,$B70,'03. (a) DEMANDA'!S:S) -> 0 | T71: =SUMIF('03. (a) DEMANDA'!$B:$B,$B70,'03. (a) DEMANDA'!T:T) -> 0 | U71: =SUMIF('03. (a) DEMANDA'!$B:$B,$B70,'03. (a) DEMANDA'!U:U) -> 0 | V71: =SUMIF('03. (a) DEMANDA'!$B:$B,$B70,'03. (a) DEMANDA'!V:V) -> 0 | W71: =SUMIF('03. (a) DEMANDA'!$B:$B,$B70,'03. (a) DEMANDA'!W:W) -> 0 | X71: =SUMIF('03. (a) DEMANDA'!$B:$B,$B70,'03. (a) DEMANDA'!X:X) -> 0 | Y71: =SUMIF('03. (a) DEMANDA'!$B:$B,$B70,'03. (a) DEMANDA'!Y:Y) -> 0 | Z71: =SUMIF('03. (a) DEMANDA'!$B:$B,$B70,'03. (a) DEMANDA'!Z:Z) -> 0 | AA71: =SUMIF('03. (a) DEMANDA'!$B:$B,$B70,'03. (a) DEMANDA'!AA:AA) -> 0 | AB71: =SUMIF('03. (a) DEMANDA'!$B:$B,$B70,'03. (a) DEMANDA'!AB:AB) -> 0 | AC71: =SUMIF('03. (a) DEMANDA'!$B:$B,$B70,'03. (a) DEMANDA'!AC:AC) -> 0 | AD71: =SUMIF('03. (a) DEMANDA'!$B:$B,$B70,'03. (a) DEMANDA'!AD:AD) -> 0 | AE71: =SUMIF('03. (a) DEMANDA'!$B:$B,$B70,'03. (a) DEMANDA'!AE:AE) -> 0 | AF71: =SUMIF('03. (a) DEMANDA'!$B:$B,$B70,'03. (a) DEMANDA'!AF:AF) -> 0 | AG71: =SUMIF('03. (a) DEMANDA'!$B:$B,$B70,'03. (a) DEMANDA'!AG:AG) -> 0 | AH71: =SUMIF('03. (a) DEMANDA'!$B:$B,$B70,'03. (a) DEMANDA'!AH:AH) -> 0 | AI71: =SUMIF('03. (a) DEMANDA'!$B:$B,$B70,'03. (a) DEMANDA'!AI:AI) -> 0 | AJ71: =SUMIF('03. (a) DEMANDA'!$B:$B,$B70,'03. (a) DEMANDA'!AJ:AJ) -> 0 | AK71: =SUMIF('03. (a) DEMANDA'!$B:$B,$B70,'03. (a) DEMANDA'!AK:AK) -> 0 | AL71: =SUMIF('03. (a) DEMANDA'!$B:$B,$B70,'03. (a) DEMANDA'!AL:AL) -> 0 | AN71: =SUM(D71:AL71) -> 0
B72: Ticket médio (R$) | D72: =VLOOKUP($B70,'01. PC'!$O$10:$T$18,5,0)*D$7 -> 10 | E72: =VLOOKUP($B70,'01. PC'!$O$10:$T$18,5,0)*E$7 -> 10 | F72: =VLOOKUP($B70,'01. PC'!$O$10:$T$18,5,0)*F$7 -> 10 | G72: =VLOOKUP($B70,'01. PC'!$O$10:$T$18,5,0)*G$7 -> 10 | H72: =VLOOKUP($B70,'01. PC'!$O$10:$T$18,5,0)*H$7 -> 10 | I72: =VLOOKUP($B70,'01. PC'!$O$10:$T$18,5,0)*I$7 -> 10 | J72: =VLOOKUP($B70,'01. PC'!$O$10:$T$18,5,0)*J$7 -> 10 | K72: =VLOOKUP($B70,'01. PC'!$O$10:$T$18,5,0)*K$7 -> 10 | L72: =VLOOKUP($B70,'01. PC'!$O$10:$T$18,5,0)*L$7 -> 10 | M72: =VLOOKUP($B70,'01. PC'!$O$10:$T$18,5,0)*M$7 -> 10 | N72: =VLOOKUP($B70,'01. PC'!$O$10:$T$18,5,0)*N$7 -> 10 | O72: =VLOOKUP($B70,'01. PC'!$O$10:$T$18,5,0)*O$7 -> 10 | P72: =VLOOKUP($B70,'01. PC'!$O$10:$T$18,5,0)*P$7 -> 10 | Q72: =VLOOKUP($B70,'01. PC'!$O$10:$T$18,5,0)*Q$7 -> 10 | R72: =VLOOKUP($B70,'01. PC'!$O$10:$T$18,5,0)*R$7 -> 10 | S72: =VLOOKUP($B70,'01. PC'!$O$10:$T$18,5,0)*S$7 -> 0 | T72: =VLOOKUP($B70,'01. PC'!$O$10:$T$18,5,0)*T$7 -> 0 | U72: =VLOOKUP($B70,'01. PC'!$O$10:$T$18,5,0)*U$7 -> 0 | V72: =VLOOKUP($B70,'01. PC'!$O$10:$T$18,5,0)*V$7 -> 0 | W72: =VLOOKUP($B70,'01. PC'!$O$10:$T$18,5,0)*W$7 -> 0 | X72: =VLOOKUP($B70,'01. PC'!$O$10:$T$18,5,0)*X$7 -> 0 | Y72: =VLOOKUP($B70,'01. PC'!$O$10:$T$18,5,0)*Y$7 -> 0 | Z72: =VLOOKUP($B70,'01. PC'!$O$10:$T$18,5,0)*Z$7 -> 0 | AA72: =VLOOKUP($B70,'01. PC'!$O$10:$T$18,5,0)*AA$7 -> 0 | AB72: =VLOOKUP($B70,'01. PC'!$O$10:$T$18,5,0)*AB$7 -> 0 | AC72: =VLOOKUP($B70,'01. PC'!$O$10:$T$18,5,0)*AC$7 -> 0 | AD72: =VLOOKUP($B70,'01. PC'!$O$10:$T$18,5,0)*AD$7 -> 0 | AE72: =VLOOKUP($B70,'01. PC'!$O$10:$T$18,5,0)*AE$7 -> 0 | AF72: =VLOOKUP($B70,'01. PC'!$O$10:$T$18,5,0)*AF$7 -> 0 | AG72: =VLOOKUP($B70,'01. PC'!$O$10:$T$18,5,0)*AG$7 -> 0 | AH72: =VLOOKUP($B70,'01. PC'!$O$10:$T$18,5,0)*AH$7 -> 0 | AI72: =VLOOKUP($B70,'01. PC'!$O$10:$T$18,5,0)*AI$7 -> 0 | AJ72: =VLOOKUP($B70,'01. PC'!$O$10:$T$18,5,0)*AJ$7 -> 0 | AK72: =VLOOKUP($B70,'01. PC'!$O$10:$T$18,5,0)*AK$7 -> 0 | AL72: =VLOOKUP($B70,'01. PC'!$O$10:$T$18,5,0)*AL$7 -> 0 | AN72: -

Sheet 05. CAPEX
G4: Capex | H4: =SUM(I14:K14)*10^6 -> 45930750.03
G5: Recapex | H5: =SUM(L14:AQ14)*10^6 -> 1628502.84
B6: Capex (R$ milhões)
I8: =IF(I12<=prazo,1,0) -> 1 | J8: 1 | K8: 1 | L8: 1 | M8: 1 | N8: 1 | O8: 1 | P8: 1 | Q8: 1 | R8: 1 | S8: 1 | T8: 1 | U8: 1 | V8: 1 | W8: 1 | X8: 0 | Y8: 0 | Z8: 0 | AA8: 0 | AB8: 0 | AC8: 0 | AD8: 0 | AE8: 0 | AF8: 0 | AG8: 0 | AH8: 0 | AI8: 0 | AJ8: 0 | AK8: 0 | AL8: 0 | AM8: 0 | AN8: 0 | AO8: 0 | AP8: 0 | AQ8: 0
I10: =ano_inicial -> 2025 | J10: =I10+1 -> 2026 | K10: 2027 | L10: 2028 | M10: 2029 | N10: 2030 | O10: 2031 | P10: 2032 | Q10: 2033 | R10: 2034 | S10: 2035 | T10: 2036 | U10: 2037 | V10: 2038 | W10: 2039 | X10: 2040 | Y10: 2041 | Z10: 2042 | AA10: 2043 | AB10: 2044 | AC10: 2045 | AD10: 2046 | AE10: 2047 | AF10: 2048 | AG10: 2049 | AH10: 2050 | AI10: 2051 | AJ10: 2052 | AK10: 2053 | AL10: 2054 | AM10: 2055 | AN10: 2056 | AO10: 2057 | AP10: 2058 | AQ10: 2059
I12: 1 | J12: =I12+1 -> 2 | K12: 3 | L12: 4 | M12: 5 | N12: 6 | O12: 7 | P12: 8 | Q12: 9 | R12: 10 | S12: 11 | T12: 12 | U12: 13 | V12: 14 | W12: 15 | X12: 16 | Y12: 17 | Z12: 18 | AA12: 19 | AB12: 20 | AC12: 21 | AD12: 22 | AE12: 23 | AF12: 24 | AG12: 25 | AH12: 26 | AI12: 27 | AJ12: 28 | AK12: 29 | AL12: 30 | AM12: 31 | AN12: 32 | AO12: 33 | AP12: 34 | AQ12: 35 | AS12: TOTAL | AU12: RISCO
B14: Item | C14: Área de Visitação | D14: Descrição | E14: UGC | F14: Classe | G14: Código Recapex | H14: Nº de Intervenções | I14: =SUM(I16:I155) -> 23.66005543 | J14: 16.26258336 | K14: 6.008111243 | L14: 0 | M14: 0 | N14: 0.81425142 | O14: 0 | P14: 0 | Q14: 0 | R14: 0 | S14: 0.81425142 | T14: 0 | U14: 0 | V14: 0 | W14: 0 | X14: 0 | Y14: 0 | Z14: 0 | AA14: 0 | AB14: 0 | AC14: 0 | AD14: 0 | AE14: 0 | AF14: 0 | AG14: 0 | AH14: 0 | AI14: 0 | AJ14: 0 | AK14: 0 | AL14: 0 | AM14: 0 | AN14: 0 | AO14: 0 | AP14: 0 | AQ14: 0 | AS14: =SUM(I14:AQ14) -> 47.55925287
A16: =IF(E16="Encargo",1,IF(E16="Bilheteria",1,VLOOKUP($E16,'01. PC'!$O$10:$P$18,2,0))) -> 1 | B16: ='05. (a) CAPEX INPUT'!B11 -> 1.1.1.1 | C16: =VLOOKUP(VALUE(LEFT(B16,SEARCH(".",B16,1)-1)),$B$158:$F$174,2,0) -> Centro de Apoio aos Visitantes (CAV) | D16: ='05. (a) CAPEX INPUT'!G11 -> Demolição de Edificação | E16: ='05. (a) CAPEX INPUT'!E11 -> A&B | F16: ='05. (a) CAPEX INPUT'!F11 -> Edificações | G16: =VLOOKUP(B16,'05. (a) CAPEX INPUT'!$B$7:$N$237,3,0) -> 32 | H16: =IFERROR(VLOOKUP(G16,'05. (c) RECAPEX INPUT'!$B$7:$H$26,4,0),"-") -> - | I16: =(IF($B16="15.1.1.2",VLOOKUP($B16,'05. (a) CAPEX INPUT'!$B$7:$N$237,9,0)*SUMIF('05. (b) CAPEX INPUT'!$B$7:$B$42,I$12,'05. (b) CAPEX INPUT'!$C$7:$C$42)/10^6,IFERROR(VLOOKUP($B16,'05. (a) CAPEX INPUT'!$B$7:$N$237,13,0)*VLOOKUP($C16,$C$158:$F$174,I$12+1,0),0)/10^6)+IF(AND($H16=1,I$12=21,$D16<>"Caminhão Elétrico"),VLOOKUP($B16,'05. (a) CAPEX INPUT'!$B$7:$N$237,10,0),0)/10^6+IF(AND($H16=1,I$12=26,$D16="Caminhão Elétrico"),VLOOKUP($B16,'05. (a) CAPEX INPUT'!$B$7:$N$237,10,0),0)/10^6+IF(AND($H16=2,OR(I$12=16,I$12=30)),VLOOKUP($B16,'05. (a) CAPEX INPUT'!$B$7:$N$237,10,0),0)/10^6+IF(AND($H16=5,OR(I$12=6,I$12=11,I$12=16,I$12=21,I$12=26)),VLOOKUP($B16,'05. (a) CAPEX INPUT'!$B$7:$N$237,10,0),0)/10^6)*I$8*(1+$AU16)*$A16 -> 0.001145659383 | J16: =(IF($B16="15.1.1.2",VLOOKUP($B16,'05. (a) CAPEX INPUT'!$B$7:$N$237,9,0)*SUMIF('05. (b) CAPEX INPUT'!$B$7:$B$42,J$12,'05. (b) CAPEX INPUT'!$C$7:$C$42)/10^6,IFERROR(VLOOKUP($B16,'05. (a) CAPEX INPUT'!$B$7:$N$237,13,0)*VLOOKUP($C16,$C$158:$F$174,J$12+1,0),0)/10^6)+IF(AND($H16=1,J$12=21,$D16<>"Caminhão Elétrico"),VLOOKUP($B16,'05. (a) CAPEX INPUT'!$B$7:$N$237,10,0),0)/10^6+IF(AND($H16=1,J$12=26,$D16="Caminhão Elétrico"),VLOOKUP($B16,'05. (a) CAPEX INPUT'!$B$7:$N$237,10,0),0)/10^6+IF(AND($H16=2,OR(J$12=16,J$12=30)),VLOOKUP($B16,'05. (a) CAPEX INPUT'!$B$7:$N$237,10,0),0)/10^6+IF(AND($H16=5,OR(J$12=6,J$12=11,J$12=16,J$12=21,J$12=26)),VLOOKUP($B16,'05. (a) CAPEX INPUT'!$B$7:$N$237,10,0),0)/10^6)*J$8*(1+$AU16)*$A16 -> 0.002864148457 | K16: =(IF($B16="15.1.1.2",VLOOKUP($B16,'05. (a) CAPEX INPUT'!$B$7:$N$237,9,0)*SUMIF('05. (b) CAPEX INPUT'!$B$7:$B$42,K$12,'05. (b) CAPEX INPUT'!$C$7:$C$42)/10^6,IFERROR(VLOOKUP($B16,'05. (a) CAPEX INPUT'!$B$7:$N$237,13,0)*VLOOKUP($C16,$C$158:$F$174,K$12+1,0),0)/10^6)+IF(AND($H16=1,K$12=21,$D16<>"Caminhão Elétrico"),VLOOKUP($B16,'05. (a) CAPEX INPUT'!$B$7:$N$237,10,0),0)/10^6+IF(AND($H16=1,K$12=26,$D16="Caminhão Elétrico"),VLOOKUP($B16,'05. (a) CAPEX INPUT'!$B$7:$N$237,10,0),0)/10^6+IF(AND($H16=2,OR(K$12=16,K$12=30)),VLOOKUP($B16,'05. (a) CAPEX INPUT'!$B$7:$N$237,10,0),0)/10^6+IF(AND($H16=5,OR(K$12=6,K$12=11,K$12=16,K$12=21,K$12=26)),VLOOKUP($B16,'05. (a) CAPEX INPUT'!$B$7:$N$237,10,0),0)/10^6)*K$8*(1+$AU16)*$A16 -> 0 | L16: =(IF($B16="15.1.1.2",VLOOKUP($B16,'05. (a) CAPEX INPUT'!$B$7:$N$237,9,0)*SUMIF('05. (b) CAPEX INPUT'!$B$7:$B$42,L$12,'05. (b) CAPEX INPUT'!$C$7:$C$42)/10^6,IFERROR(VLOOKUP($B16,'05. (a) CAPEX INPUT'!$B$7:$N$237,13,0)*VLOOKUP($C16,$C$158:$F$174,L$12+1,0),0)/10^6)+IF(AND($H16=1,L$12=21,$D16<>"Caminhão Elétrico"),VLOOKUP($B16,'05. (a) CAPEX INPUT'!$B$7:$N$237,10,0),0)/10^6+IF(AND($H16=1,L$12=26,$D16="Caminhão Elétrico"),VLOOKUP($B16,'05. (a) CAPEX INPUT'!$B$7:$N$237,10,0),0)/10^6+IF(AND($H16=2,OR(L$12=16,L$12=30)),VLOOKUP($B16,'05. (a) CAPEX INPUT'!$B$7:$N$237,10,0),0)/10^6+IF(AND($H16=5,OR(L$12=6,L$12=11,L$12=16,L$12=21,L$12=26)),VLOOKUP($B16,'05. (a) CAPEX INPUT'!$B$7:$N$237,10,0),0)/10^6)*L$8*(1+$AU16)*$A16 -> 0 | M16: =(IF($B16="15.1.1.2",VLOOKUP($B16,'05. (a) CAPEX INPUT'!$B$7:$N$237,9,0)*SUMIF('05. (b) CAPEX INPUT'!$B$7:$B$42,M$12,'05. (b) CAPEX INPUT'!$C$7:$C$42)/10^6,IFERROR(VLOOKUP($B16,'05. (a) CAPEX INPUT'!$B$7:$N$237,13,0)*VLOOKUP($C16,$C$158:$F$174,M$12+1,0),0)/10^6)+IF(AND($H16=1,M$12=21,$D16<>"Caminhão Elétrico"),VLOOKUP($B16,'05. (a) CAPEX INPUT'!$B$7:$N$237,10,0),0)/10^6+IF(AND($H16=1,M$12=26,$D16="Caminhão Elétrico"),VLOOKUP($B16,'05. (a) CAPEX INPUT'!$B$7:$N$237,10,0),0)/10^6+IF(AND($H16=2,OR(M$12=16,M$12=30)),VLOOKUP($B16,'05. (a) CAPEX INPUT'!$B$7:$N$237,10,0),0)/10^6+IF(AND($H16=5,OR(M$12=6,M$12=11,M$12=16,M$12=21,M$12=26)),VLOOKUP($B16,'05. (a) CAPEX INPUT'!$B$7:$N$237,10,0),0)/10^6)*M$8*(1+$AU16)*$A16 -> 0 | N16: =(IF($B16="15.1.1.2",VLOOKUP($B16,'05. (a) CAPEX INPUT'!$B$7:$N$237,9,0)*SUMIF('05. (b) CAPEX INPUT'!$B$7:$B$42,N$12,'05. (b) CAPEX INPUT'!$C$7:$C$42)/10^6,IFERROR(VLOOKUP($B16,'05. (a) CAPEX INPUT'!$B$7:$N$237,13,0)*VLOOKUP($C16,$C$158:$F$174,N$12+1,0),0)/10^6)+IF(AND($H16=1,N$12=21,$D16<>"Caminhão Elétrico"),VLOOKUP($B16,'05. (a) CAPEX INPUT'!$B$7:$N$237,10,0),0)/10^6+IF(AND($H16=1,N$12=26,$D16="Caminhão Elétrico"),VLOOKUP($B16,'05. (a) CAPEX INPUT'!$B$7:$N$237,10,0),0)/10^6+IF(AND($H16=2,OR(N$12=16,N$12=30)),VLOOKUP($B16,'05. (a) CAPEX INPUT'!$B$7:$N$237,10,0),0)/10^6+IF(AND($H16=5,OR(N$12=6,N$12=11,N$12=16,N$12=21,N$12=26)),VLOOKUP($B16,'05. (a) CAPEX INPUT'!$B$7:$N$237,10,0),0)/10^6)*N$8*(1+$AU16)*$A16 -> 0 | O16: =(IF($B16="15.1.1.2",VLOOKUP($B16,'05. (a) CAPEX INPUT'!$B$7:$N$237,9,0)*SUMIF('05. (b) CAPEX INPUT'!$B$7:$B$42,O$12,'05. (b) CAPEX INPUT'!$C$7:$C$42)/10^6,IFERROR(VLOOKUP($B16,'05. (a) CAPEX INPUT'!$B$7:$N$237,13,0)*VLOOKUP($C16,$C$158:$F$174,O$12+1,0),0)/10^6)+IF(AND($H16=1,O$12=21,$D16<>"Caminhão Elétrico"),VLOOKUP($B16,'05. (a) CAPEX INPUT'!$B$7:$N$237,10,0),0)/10^6+IF(AND($H16=1,O$12=26,$D16="Caminhão Elétrico"),VLOOKUP($B16,'05. (a) CAPEX INPUT'!$B$7:$N$237,10,0),0)/10^6+IF(AND($H16=2,OR(O$12=16,O$12=30)),VLOOKUP($B16,'05. (a) CAPEX INPUT'!$B$7:$N$237,10,0),0)/10^6+IF(AND($H16=5,OR(O$12=6,O$12=11,O$12=16,O$12=21,O$12=26)),VLOOKUP($B16,'05. (a) CAPEX INPUT'!$B$7:$N$237,10,0),0)/10^6)*O$8*(1+$AU16)*$A16 -> 0 | P16: =(IF($B16="15.1.1.2",VLOOKUP($B16,'05. (a) CAPEX INPUT'!$B$7:$N$237,9,0)*SUMIF('05. (b) CAPEX INPUT'!$B$7:$B$42,P$12,'05. (b) CAPEX INPUT'!$C$7:$C$42)/10^6,IFERROR(VLOOKUP($B16,'05. (a) CAPEX INPUT'!$B$7:$N$237,13,0)*VLOOKUP($C16,$C$158:$F$174,P$12+1,0),0)/10^6)+IF(AND($H16=1,P$12=21,$D16<>"Caminhão Elétrico"),VLOOKUP($B16,'05. (a) CAPEX INPUT'!$B$7:$N$237,10,0),0)/10^6+IF(AND($H16=1,P$12=26,$D16="Caminhão Elétrico"),VLOOKUP($B16,'05. (a) CAPEX INPUT'!$B$7:$N$237,10,0),0)/10^6+IF(AND($H16=2,OR(P$12=16,P$12=30)),VLOOKUP($B16,'05. (a) CAPEX INPUT'!$B$7:$N$237,10,0),0)/10^6+IF(AND($H16=5,OR(P$12=6,P$12=11,P$12=16,P$12=21,P$12=26)),VLOOKUP($B16,'05. (a) CAPEX INPUT'!$B$7:$N$237,10,0),0)/10^6)*P$8*(1+$AU16)*$A16 -> 0 | Q16: =(IF($B16="15.1.1.2",VLOOKUP($B16,'05. (a) CAPEX INPUT'!$B$7:$N$237,9,0)*SUMIF('05. (b) CAPEX INPUT'!$B$7:$B$42,Q$12,'05. (b) CAPEX INPUT'!$C$7:$C$42)/10^6,IFERROR(VLOOKUP($B16,'05. (a) CAPEX INPUT'!$B$7:$N$237,13,0)*VLOOKUP($C16,$C$158:$F$174,Q$12+1,0),0)/10^6)+IF(AND($H16=1,Q$12=21,$D16<>"Caminhão Elétrico"),VLOOKUP($B16,'05. (a) CAPEX INPUT'!$B$7:$N$237,10,0),0)/10^6+IF(AND($H16=1,Q$12=26,$D16="Caminhão Elétrico"),VLOOKUP($B16,'05. (a) CAPEX INPUT'!$B$7:$N$237,10,0),0)/10^6+IF(AND($H16=2,OR(Q$12=16,Q$12=30)),VLOOKUP($B16,'05. (a) CAPEX INPUT'!$B$7:$N$237,10,0),0)/10^6+IF(AND($H16=5,OR(Q$12=6,Q$12=11,Q$12=16,Q$12=21,Q$12=26)),VLOOKUP($B16,'05. (a) CAPEX INPUT'!$B$7:$N$237,10,0),0)/10^6)*Q$8*(1+$AU16)*$A16 -> 0 | R16: =(IF($B16="15.1.1.2",VLOOKUP($B16,'05. (a) CAPEX INPUT'!$B$7:$N$237,9,0)*SUMIF('05. (b) CAPEX INPUT'!$B$7:$B$42,R$12,'05. (b) CAPEX INPUT'!$C$7:$C$42)/10^6,IFERROR(VLOOKUP($B16,'05. (a) CAPEX INPUT'!$B$7:$N$237,13,0)*VLOOKUP($C16,$C$158:$F$174,R$12+1,0),0)/10^6)+IF(AND($H16=1,R$12=21,$D16<>"Caminhão Elétrico"),VLOOKUP($B16,'05. (a) CAPEX INPUT'!$B$7:$N$237,10,0),0)/10^6+IF(AND($H16=1,R$12=26,$D16="Caminhão Elétrico"),VLOOKUP($B16,'05. (a) CAPEX INPUT'!$B$7:$N$237,10,0),0)/10^6+IF(AND($H16=2,OR(R$12=16,R$12=30)),VLOOKUP($B16,'05. (a) CAPEX INPUT'!$B$7:$N$237,10,0),0)/10^6+IF(AND($H16=5,OR(R$12=6,R$12=11,R$12=16,R$12=21,R$12=26)),VLOOKUP($B16,'05. (a) CAPEX INPUT'!$B$7:$N$237,10,0),0)/10^6)*R$8*(1+$AU16)*$A16 -> 0 | S16: =(IF($B16="15.1.1.2",VLOOKUP($B16,'05. (a) CAPEX INPUT'!$B$7:$N$237,9,0)*SUMIF('05. (b) CAPEX INPUT'!$B$7:$B$42,S$12,'05. (b) CAPEX INPUT'!$C$7:$C$42)/10^6,IFERROR(VLOOKUP($B16,'05. (a) CAPEX INPUT'!$B$7:$N$237,13,0)*VLOOKUP($C16,$C$158:$F$174,S$12+1,0),0)/10^6)+IF(AND($H16=1,S$12=21,$D16<>"Caminhão Elétrico"),VLOOKUP($B16,'05. (a) CAPEX INPUT'!$B$7:$N$237,10,0),0)/10^6+IF(AND($H16=1,S$12=26,$D16="Caminhão Elétrico"),VLOOKUP($B16,'05. (a) CAPEX INPUT'!$B$7:$N$237,10,0),0)/10^6+IF(AND($H16=2,OR(S$12=16,S$12=30)),VLOOKUP($B16,'05. (a) CAPEX INPUT'!$B$7:$N$237,10,0),0)/10^6+IF(AND($H16=5,OR(S$12=6,S$12=11,S$12=16,S$12=21,S$12=26)),VLOOKUP($B16,'05. (a) CAPEX INPUT'!$B$7:$N$237,10,0),0)/10^6)*S$8*(1+$AU16)*$A16 -> 0 | T16: =(IF($B16="15.1.1.2",VLOOKUP($B16,'05. (a) CAPEX INPUT'!$B$7:$N$237,9,0)*SUMIF('05. (b) CAPEX INPUT'!$B$7:$B$42,T$12,'05. (b) CAPEX INPUT'!$C$7:$C$42)/10^6,IFERROR(VLOOKUP($B16,'05. (a) CAPEX INPUT'!$B$7:$N$237,13,0)*VLOOKUP($C16,$C$158:$F$174,T$12+1,0),0)/10^6)+IF(AND($H16=1,T$12=21,$D16<>"Caminhão Elétrico"),VLOOKUP($B16,'05. (a) CAPEX INPUT'!$B$7:$N$237,10,0),0)/10^6+IF(AND($H16=1,T$12=26,$D16="Caminhão Elétrico"),VLOOKUP($B16,'05. (a) CAPEX INPUT'!$B$7:$N$237,10,0),0)/10^6+IF(AND($H16=2,OR(T$12=16,T$12=30)),VLOOKUP($B16,'05. (a) CAPEX INPUT'!$B$7:$N$237,10,0),0)/10^6+IF(AND($H16=5,OR(T$12=6,T$12=11,T$12=16,T$12=21,T$12=26)),VLOOKUP($B16,'05. (a) CAPEX INPUT'!$B$7:$N$237,10,0),0)/10^6)*T$8*(1+$AU16)*$A16 -> 0 | U16: =(IF($B16="15.1.1.2",VLOOKUP($B16,'05. (a) CAPEX INPUT'!$B$7:$N$237,9,0)*SUMIF('05. (b) CAPEX INPUT'!$B$7:$B$42,U$12,'05. (b) CAPEX INPUT'!$C$7:$C$42)/10^6,IFERROR(VLOOKUP($B16,'05. (a) CAPEX INPUT'!$B$7:$N$237,13,0)*VLOOKUP($C16,$C$158:$F$174,U$12+1,0),0)/10^6)+IF(AND($H16=1,U$12=21,$D16<>"Caminhão Elétrico"),VLOOKUP($B16,'05. (a) CAPEX INPUT'!$B$7:$N$237,10,0),0)/10^6+IF(AND($H16=1,U$12=26,$D16="Caminhão Elétrico"),VLOOKUP($B16,'05. (a) CAPEX INPUT'!$B$7:$N$237,10,0),0)/10^6+IF(AND($H16=2,OR(U$12=16,U$12=30)),VLOOKUP($B16,'05. (a) CAPEX INPUT'!$B$7:$N$237,10,0),0)/10^6+IF(AND($H16=5,OR(U$12=6,U$12=11,U$12=16,U$12=21,U$12=26)),VLOOKUP($B16,'05. (a) CAPEX INPUT'!$B$7:$N$237,10,0),0)/10^6)*U$8*(1+$AU16)*$A16 -> 0 | V16: =(IF($B16="15.1.1.2",VLOOKUP($B16,'05. (a) CAPEX INPUT'!$B$7:$N$237,9,0)*SUMIF('05. (b) CAPEX INPUT'!$B$7:$B$42,V$12,'05. (b) CAPEX INPUT'!$C$7:$C$42)/10^6,IFERROR(VLOOKUP($B16,'05. (a) CAPEX INPUT'!$B$7:$N$237,13,0)*VLOOKUP($C16,$C$158:$F$174,V$12+1,0),0)/10^6)+IF(AND($H16=1,V$12=21,$D16<>"Caminhão Elétrico"),VLOOKUP($B16,'05. (a) CAPEX INPUT'!$B$7:$N$237,10,0),0)/10^6+IF(AND($H16=1,V$12=26,$D16="Caminhão Elétrico"),VLOOKUP($B16,'05. (a) CAPEX INPUT'!$B$7:$N$237,10,0),0)/10^6+IF(AND($H16=2,OR(V$12=16,V$12=30)),VLOOKUP($B16,'05. (a) CAPEX INPUT'!$B$7:$N$237,10,0),0)/10^6+IF(AND($H16=5,OR(V$12=6,V$12=11,V$12=16,V$12=21,V$12=26)),VLOOKUP($B16,'05. (a) CAPEX INPUT'!$B$7:$N$237,10,0),0)/10^6)*V$8*(1+$AU16)*$A16 -> 0 | W16: =(IF($B16="15.1.1.2",VLOOKUP($B16,'05. (a) CAPEX INPUT'!$B$7:$N$237,9,0)*SUMIF('05. (b) CAPEX INPUT'!$B$7:$B$42,W$12,'05. (b) CAPEX INPUT'!$C$7:$C$42)/10^6,IFERROR(VLOOKUP($B16,'05. (a) CAPEX INPUT'!$B$7:$N$237,13,0)*VLOOKUP($C16,$C$158:$F$174,W$12+1,0),0)/10^6)+IF(AND($H16=1,W$12=21,$D16<>"Caminhão Elétrico"),VLOOKUP($B16,'05. (a) CAPEX INPUT'!$B$7:$N$237,10,0),0)/10^6+IF(AND($H16=1,W$12=26,$D16="Caminhão Elétrico"),VLOOKUP($B16,'05. (a) CAPEX INPUT'!$B$7:$N$237,10,0),0)/10^6+IF(AND($H16=2,OR(W$12=16,W$12=30)),VLOOKUP($B16,'05. (a) CAPEX INPUT'!$B$7:$N$237,10,0),0)/10^6+IF(AND($H16=5,OR(W$12=6,W$12=11,W$12=16,W$12=21,W$12=26)),VLOOKUP($B16,'05. (a) CAPEX INPUT'!$B$7:$N$237,10,0),0)/10^6)*W$8*(1+$AU16)*$A16 -> 0 | X16: =(IF($B16="15.1.1.2",VLOOKUP($B16,'05. (a) CAPEX INPUT'!$B$7:$N$237,9,0)*SUMIF('05. (b) CAPEX INPUT'!$B$7:$B$42,X$12,'05. (b) CAPEX INPUT'!$C$7:$C$42)/10^6,IFERROR(VLOOKUP($B16,'05. (a) CAPEX INPUT'!$B$7:$N$237,13,0)*VLOOKUP($C16,$C$158:$F$174,X$12+1,0),0)/10^6)+IF(AND($H16=1,X$12=21,$D16<>"Caminhão Elétrico"),VLOOKUP($B16,'05. (a) CAPEX INPUT'!$B$7:$N$237,10,0),0)/10^6+IF(AND($H16=1,X$12=26,$D16="Caminhão Elétrico"),VLOOKUP($B16,'05. (a) CAPEX INPUT'!$B$7:$N$237,10,0),0)/10^6+IF(AND($H16=2,OR(X$12=16,X$12=30)),VLOOKUP($B16,'05. (a) CAPEX INPUT'!$B$7:$N$237,10,0),0)/10^6+IF(AND($H16=5,OR(X$12=6,X$12=11,X$12=16,X$12=21,X$12=26)),VLOOKUP($B16,'05. (a) CAPEX INPUT'!$B$7:$N$237,10,0),0)/10^6)*X$8*(1+$AU16)*$A16 -> 0 | Y16: =(IF($B16="15.1.1.2",VLOOKUP($B16,'05. (a) CAPEX INPUT'!$B$7:$N$237,9,0)*SUMIF('05. (b) CAPEX INPUT'!$B$7:$B$42,Y$12,'05. (b) CAPEX INPUT'!$C$7:$C$42)/10^6,IFERROR(VLOOKUP($B16,'05. (a) CAPEX INPUT'!$B$7:$N$237,13,0)*VLOOKUP($C16,$C$158:$F$174,Y$12+1,0),0)/10^6)+IF(AND($H16=1,Y$12=21,$D16<>"Caminhão Elétrico"),VLOOKUP($B16,'05. (a) CAPEX INPUT'!$B$7:$N$237,10,0),0)/10^6+IF(AND($H16=1,Y$12=26,$D16="Caminhão Elétrico"),VLOOKUP($B16,'05. (a) CAPEX INPUT'!$B$7:$N$237,10,0),0)/10^6+IF(AND($H16=2,OR(Y$12=16,Y$12=30)),VLOOKUP($B16,'05. (a) CAPEX INPUT'!$B$7:$N$237,10,0),0)/10^6+IF(AND($H16=5,OR(Y$12=6,Y$12=11,Y$12=16,Y$12=21,Y$12=26)),VLOOKUP($B16,'05. (a) CAPEX INPUT'!$B$7:$N$237,10,0),0)/10^6)*Y$8*(1+$AU16)*$A16 -> 0 | Z16: =(IF($B16="15.1.1.2",VLOOKUP($B16,'05. (a) CAPEX INPUT'!$B$7:$N$237,9,0)*SUMIF('05. (b) CAPEX INPUT'!$B$7:$B$42,Z$12,'05. (b) CAPEX INPUT'!$C$7:$C$42)/10^6,IFERROR(VLOOKUP($B16,'05. (a) CAPEX INPUT'!$B$7:$N$237,13,0)*VLOOKUP($C16,$C$158:$F$174,Z$12+1,0),0)/10^6)+IF(AND($H16=1,Z$12=21,$D16<>"Caminhão Elétrico"),VLOOKUP($B16,'05. (a) CAPEX INPUT'!$B$7:$N$237,10,0),0)/10^6+IF(AND($H16=1,Z$12=26,$D16="Caminhão Elétrico"),VLOOKUP($B16,'05. (a) CAPEX INPUT'!$B$7:$N$237,10,0),0)/10^6+IF(AND($H16=2,OR(Z$12=16,Z$12=30)),VLOOKUP($B16,'05. (a) CAPEX INPUT'!$B$7:$N$237,10,0),0)/10^6+IF(AND($H16=5,OR(Z$12=6,Z$12=11,Z$12=16,Z$12=21,Z$12=26)),VLOOKUP($B16,'05. (a) CAPEX INPUT'!$B$7:$N$237,10,0),0)/10^6)*Z$8*(1+$AU16)*$A16 -> 0 | AA16: =(IF($B16="15.1.1.2",VLOOKUP($B16,'05. (a) CAPEX INPUT'!$B$7:$N$237,9,0)*SUMIF('05. (b) CAPEX INPUT'!$B$7:$B$42,AA$12,'05. (b) CAPEX INPUT'!$C$7:$C$42)/10^6,IFERROR(VLOOKUP($B16,'05. (a) CAPEX INPUT'!$B$7:$N$237,13,0)*VLOOKUP($C16,$C$158:$F$174,AA$12+1,0),0)/10^6)+IF(AND($H16=1,AA$12=21,$D16<>"Caminhão Elétrico"),VLOOKUP($B16,'05. (a) CAPEX INPUT'!$B$7:$N$237,10,0),0)/10^6+IF(AND($H16=1,AA$12=26,$D16="Caminhão Elétrico"),VLOOKUP($B16,'05. (a) CAPEX INPUT'!$B$7:$N$237,10,0),0)/10^6+IF(AND($H16=2,OR(AA$12=16,AA$12=30)),VLOOKUP($B16,'05. (a) CAPEX INPUT'!$B$7:$N$237,10,0),0)/10^6+IF(AND($H16=5,OR(AA$12=6,AA$12=11,AA$12=16,AA$12=21,AA$12=26)),VLOOKUP($B16,'05. (a) CAPEX INPUT'!$B$7:$N$237,10,0),0)/10^6)*AA$8*(1+$AU16)*$A16 -> 0 | AB16: =(IF($B16="15.1.1.2",VLOOKUP($B16,'05. (a) CAPEX INPUT'!$B$7:$N$237,9,0)*SUMIF('05. (b) CAPEX INPUT'!$B$7:$B$42,AB$12,'05. (b) CAPEX INPUT'!$C$7:$C$42)/10^6,IFERROR(VLOOKUP($B16,'05. (a) CAPEX INPUT'!$B$7:$N$237,13,0)*VLOOKUP($C16,$C$158:$F$174,AB$12+1,0),0)/10^6)+IF(AND($H16=1,AB$12=21,$D16<>"Caminhão Elétrico"),VLOOKUP($B16,'05. (a) CAPEX INPUT'!$B$7:$N$237,10,0),0)/10^6+IF(AND($H16=1,AB$12=26,$D16="Caminhão Elétrico"),VLOOKUP($B16,'05. (a) CAPEX INPUT'!$B$7:$N$237,10,0),0)/10^6+IF(AND($H16=2,OR(AB$12=16,AB$12=30)),VLOOKUP($B16,'05. (a) CAPEX INPUT'!$B$7:$N$237,10,0),0)/10^6+IF(AND($H16=5,OR(AB$12=6,AB$12=11,AB$12=16,AB$12=21,AB$12=26)),VLOOKUP($B16,'05. (a) CAPEX INPUT'!$B$7:$N$237,10,0),0)/10^6)*AB$8*(1+$AU16)*$A16 -> 0 | AC16: =(IF($B16="15.1.1.2",VLOOKUP($B16,'05. (a) CAPEX INPUT'!$B$7:$N$237,9,0)*SUMIF('05. (b) CAPEX INPUT'!$B$7:$B$42,AC$12,'05. (b) CAPEX INPUT'!$C$7:$C$42)/10^6,IFERROR(VLOOKUP($B16,'05. (a) CAPEX INPUT'!$B$7:$N$237,13,0)*VLOOKUP($C16,$C$158:$F$174,AC$12+1,0),0)/10^6)+IF(AND($H16=1,AC$12=21,$D16<>"Caminhão Elétrico"),VLOOKUP($B16,'05. (a) CAPEX INPUT'!$B$7:$N$237,10,0),0)/10^6+IF(AND($H16=1,AC$12=26,$D16="Caminhão Elétrico"),VLOOKUP($B16,'05. (a) CAPEX INPUT'!$B$7:$N$237,10,0),0)/10^6+IF(AND($H16=2,OR(AC$12=16,AC$12=30)),VLOOKUP($B16,'05. (a) CAPEX INPUT'!$B$7:$N$237,10,0),0)/10^6+IF(AND($H16=5,OR(AC$12=6,AC$12=11,AC$12=16,AC$12=21,AC$12=26)),VLOOKUP($B16,'05. (a) CAPEX INPUT'!$B$7:$N$237,10,0),0)/10^6)*AC$8*(1+$AU16)*$A16 -> 0 | AD16: =(IF($B16="15.1.1.2",VLOOKUP($B16,'05. (a) CAPEX INPUT'!$B$7:$N$237,9,0)*SUMIF('05. (b) CAPEX INPUT'!$B$7:$B$42,AD$12,'05. (b) CAPEX INPUT'!$C$7:$C$42)/10^6,IFERROR(VLOOKUP($B16,'05. (a) CAPEX INPUT'!$B$7:$N$237,13,0)*VLOOKUP($C16,$C$158:$F$174,AD$12+1,0),0)/10^6)+IF(AND($H16=1,AD$12=21,$D16<>"Caminhão Elétrico"),VLOOKUP($B16,'05. (a) CAPEX INPUT'!$B$7:$N$237,10,0),0)/10^6+IF(AND($H16=1,AD$12=26,$D16="Caminhão Elétrico"),VLOOKUP($B16,'05. (a) CAPEX INPUT'!$B$7:$N$237,10,0),0)/10^6+IF(AND($H16=2,OR(AD$12=16,AD$12=30)),VLOOKUP($B16,'05. (a) CAPEX INPUT'!$B$7:$N$237,10,0),0)/10^6+IF(AND($H16=5,OR(AD$12=6,AD$12=11,AD$12=16,AD$12=21,AD$12=26)),VLOOKUP($B16,'05. (a) CAPEX INPUT'!$B$7:$N$237,10,0),0)/10^6)*AD$8*(1+$AU16)*$A16 -> 0 | AE16: =(IF($B16="15.1.1.2",VLOOKUP($B16,'05. (a) CAPEX INPUT'!$B$7:$N$237,9,0)*SUMIF('05. (b) CAPEX INPUT'!$B$7:$B$42,AE$12,'05. (b) CAPEX INPUT'!$C$7:$C$42)/10^6,IFERROR(VLOOKUP($B16,'05. (a) CAPEX INPUT'!$B$7:$N$237,13,0)*VLOOKUP($C16,$C$158:$F$174,AE$12+1,0),0)/10^6)+IF(AND($H16=1,AE$12=21,$D16<>"Caminhão Elétrico"),VLOOKUP($B16,'05. (a) CAPEX INPUT'!$B$7:$N$237,10,0),0)/10^6+IF(AND($H16=1,AE$12=26,$D16="Caminhão Elétrico"),VLOOKUP($B16,'05. (a) CAPEX INPUT'!$B$7:$N$237,10,0),0)/10^6+IF(AND($H16=2,OR(AE$12=16,AE$12=30)),VLOOKUP($B16,'05. (a) CAPEX INPUT'!$B$7:$N$237,10,0),0)/10^6+IF(AND($H16=5,OR(AE$12=6,AE$12=11,AE$12=16,AE$12=21,AE$12=26)),VLOOKUP($B16,'05. (a) CAPEX INPUT'!$B$7:$N$237,10,0),0)/10^6)*AE$8*(1+$AU16)*$A16 -> 0 | AF16: =(IF($B16="15.1.1.2",VLOOKUP($B16,'05. (a) CAPEX INPUT'!$B$7:$N$237,9,0)*SUMIF('05. (b) CAPEX INPUT'!$B$7:$B$42,AF$12,'05. (b) CAPEX INPUT'!$C$7:$C$42)/10^6,IFERROR(VLOOKUP($B16,'05. (a) CAPEX INPUT'!$B$7:$N$237,13,0)*VLOOKUP($C16,$C$158:$F$174,AF$12+1,0),0)/10^6)+IF(AND($H16=1,AF$12=21,$D16<>"Caminhão Elétrico"),VLOOKUP($B16,'05. (a) CAPEX INPUT'!$B$7:$N$237,10,0),0)/10^6+IF(AND($H16=1,AF$12=26,$D16="Caminhão Elétrico"),VLOOKUP($B16,'05. (a) CAPEX INPUT'!$B$7:$N$237,10,0),0)/10^6+IF(AND($H16=2,OR(AF$12=16,AF$12=30)),VLOOKUP($B16,'05. (a) CAPEX INPUT'!$B$7:$N$237,10,0),0)/10^6+IF(AND($H16=5,OR(AF$12=6,AF$12=11,AF$12=16,AF$12=21,AF$12=26)),VLOOKUP($B16,'05. (a) CAPEX INPUT'!$B$7:$N$237,10,0),0)/10^6)*AF$8*(1+$AU16)*$A16 -> 0 | AG16: =(IF($B16="15.1.1.2",VLOOKUP($B16,'05. (a) CAPEX INPUT'!$B$7:$N$237,9,0)*SUMIF('05. (b) CAPEX INPUT'!$B$7:$B$42,AG$12,'05. (b) CAPEX INPUT'!$C$7:$C$42)/10^6,IFERROR(VLOOKUP($B16,'05. (a) CAPEX INPUT'!$B$7:$N$237,13,0)*VLOOKUP($C16,$C$158:$F$174,AG$12+1,0),0)/10^6)+IF(AND($H16=1,AG$12=21,$D16<>"Caminhão Elétrico"),VLOOKUP($B16,'05. (a) CAPEX INPUT'!$B$7:$N$237,10,0),0)/10^6+IF(AND($H16=1,AG$12=26,$D16="Caminhão Elétrico"),VLOOKUP($B16,'05. (a) CAPEX INPUT'!$B$7:$N$237,10,0),0)/10^6+IF(AND($H16=2,OR(AG$12=16,AG$12=30)),VLOOKUP($B16,'05. (a) CAPEX INPUT'!$B$7:$N$237,10,0),0)/10^6+IF(AND($H16=5,OR(AG$12=6,AG$12=11,AG$12=16,AG$12=21,AG$12=26)),VLOOKUP($B16,'05. (a) CAPEX INPUT'!$B$7:$N$237,10,0),0)/10^6)*AG$8*(1+$AU16)*$A16 -> 0 | AH16: =(IF($B16="15.1.1.2",VLOOKUP($B16,'05. (a) CAPEX INPUT'!$B$7:$N$237,9,0)*SUMIF('05. (b) CAPEX INPUT'!$B$7:$B$42,AH$12,'05. (b) CAPEX INPUT'!$C$7:$C$42)/10^6,IFERROR(VLOOKUP($B16,'05. (a) CAPEX INPUT'!$B$7:$N$237,13,0)*VLOOKUP($C16,$C$158:$F$174,AH$12+1,0),0)/10^6)+IF(AND($H16=1,AH$12=21,$D16<>"Caminhão Elétrico"),VLOOKUP($B16,'05. (a) CAPEX INPUT'!$B$7:$N$237,10,0),0)/10^6+IF(AND($H16=1,AH$12=26,$D16="Caminhão Elétrico"),VLOOKUP($B16,'05. (a) CAPEX INPUT'!$B$7:$N$237,10,0),0)/10^6+IF(AND($H16=2,OR(AH$12=16,AH$12=30)),VLOOKUP($B16,'05. (a) CAPEX INPUT'!$B$7:$N$237,10,0),0)/10^6+IF(AND($H16=5,OR(AH$12=6,AH$12=11,AH$12=16,AH$12=21,AH$12=26)),VLOOKUP($B16,'05. (a) CAPEX INPUT'!$B$7:$N$237,10,0),0)/10^6)*AH$8*(1+$AU16)*$A16 -> 0 | AI16: =(IF($B16="15.1.1.2",VLOOKUP($B16,'05. (a) CAPEX INPUT'!$B$7:$N$237,9,0)*SUMIF('05. (b) CAPEX INPUT'!$B$7:$B$42,AI$12,'05. (b) CAPEX INPUT'!$C$7:$C$42)/10^6,IFERROR(VLOOKUP($B16,'05. (a) CAPEX INPUT'!$B$7:$N$237,13,0)*VLOOKUP($C16,$C$158:$F$174,AI$12+1,0),0)/10^6)+IF(AND($H16=1,AI$12=21,$D16<>"Caminhão Elétrico"),VLOOKUP($B16,'05. (a) CAPEX INPUT'!$B$7:$N$237,10,0),0)/10^6+IF(AND($H16=1,AI$12=26,$D16="Caminhão Elétrico"),VLOOKUP($B16,'05. (a) CAPEX INPUT'!$B$7:$N$237,10,0),0)/10^6+IF(AND($H16=2,OR(AI$12=16,AI$12=30)),VLOOKUP($B16,'05. (a) CAPEX INPUT'!$B$7:$N$237,10,0),0)/10^6+IF(AND($H16=5,OR(AI$12=6,AI$12=11,AI$12=16,AI$12=21,AI$12=26)),VLOOKUP($B16,'05. (a) CAPEX INPUT'!$B$7:$N$237,10,0),0)/10^6)*AI$8*(1+$AU16)*$A16 -> 0 | AJ16: =(IF($B16="15.1.1.2",VLOOKUP($B16,'05. (a) CAPEX INPUT'!$B$7:$N$237,9,0)*SUMIF('05. (b) CAPEX INPUT'!$B$7:$B$42,AJ$12,'05. (b) CAPEX INPUT'!$C$7:$C$42)/10^6,IFERROR(VLOOKUP($B16,'05. (a) CAPEX INPUT'!$B$7:$N$237,13,0)*VLOOKUP($C16,$C$158:$F$174,AJ$12+1,0),0)/10^6)+IF(AND($H16=1,AJ$12=21,$D16<>"Caminhão Elétrico"),VLOOKUP($B16,'05. (a) CAPEX INPUT'!$B$7:$N$237,10,0),0)/10^6+IF(AND($H16=1,AJ$12=26,$D16="Caminhão Elétrico"),VLOOKUP($B16,'05. (a) CAPEX INPUT'!$B$7:$N$237,10,0),0)/10^6+IF(AND($H16=2,OR(AJ$12=16,AJ$12=30)),VLOOKUP($B16,'05. (a) CAPEX INPUT'!$B$7:$N$237,10,0),0)/10^6+IF(AND($H16=5,OR(AJ$12=6,AJ$12=11,AJ$12=16,AJ$12=21,AJ$12=26)),VLOOKUP($B16,'05. (a) CAPEX INPUT'!$B$7:$N$237,10,0),0)/10^6)*AJ$8*(1+$AU16)*$A16 -> 0 | AK16: =(IF($B16="15.1.1.2",VLOOKUP($B16,'05. (a) CAPEX INPUT'!$B$7:$N$237,9,0)*SUMIF('05. (b) CAPEX INPUT'!$B$7:$B$42,AK$12,'05. (b) CAPEX INPUT'!$C$7:$C$42)/10^6,IFERROR(VLOOKUP($B16,'05. (a) CAPEX INPUT'!$B$7:$N$237,13,0)*VLOOKUP($C16,$C$158:$F$174,AK$12+1,0),0)/10^6)+IF(AND($H16=1,AK$12=21,$D16<>"Caminhão Elétrico"),VLOOKUP($B16,'05. (a) CAPEX INPUT'!$B$7:$N$237,10,0),0)/10^6+IF(AND($H16=1,AK$12=26,$D16="Caminhão Elétrico"),VLOOKUP($B16,'05. (a) CAPEX INPUT'!$B$7:$N$237,10,0),0)/10^6+IF(AND($H16=2,OR(AK$12=16,AK$12=30)),VLOOKUP($B16,'05. (a) CAPEX INPUT'!$B$7:$N$237,10,0),0)/10^6+IF(AND($H16=5,OR(AK$12=6,AK$12=11,AK$12=16,AK$12=21,AK$12=26)),VLOOKUP($B16,'05. (a) CAPEX INPUT'!$B$7:$N$237,10,0),0)/10^6)*AK$8*(1+$AU16)*$A16 -> 0 | AL16: =(IF($B16="15.1.1.2",VLOOKUP($B16,'05. (a) CAPEX INPUT'!$B$7:$N$237,9,0)*SUMIF('05. (b) CAPEX INPUT'!$B$7:$B$42,AL$12,'05. (b) CAPEX INPUT'!$C$7:$C$42)/10^6,IFERROR(VLOOKUP($B16,'05. (a) CAPEX INPUT'!$B$7:$N$237,13,0)*VLOOKUP($C16,$C$158:$F$174,AL$12+1,0),0)/10^6)+IF(AND($H16=1,AL$12=21,$D16<>"Caminhão Elétrico"),VLOOKUP($B16,'05. (a) CAPEX INPUT'!$B$7:$N$237,10,0),0)/10^6+IF(AND($H16=1,AL$12=26,$D16="Caminhão Elétrico"),VLOOKUP($B16,'05. (a) CAPEX INPUT'!$B$7:$N$237,10,0),0)/10^6+IF(AND($H16=2,OR(AL$12=16,AL$12=30)),VLOOKUP($B16,'05. (a) CAPEX INPUT'!$B$7:$N$237,10,0),0)/10^6+IF(AND($H16=5,OR(AL$12=6,AL$12=11,AL$12=16,AL$12=21,AL$12=26)),VLOOKUP($B16,'05. (a) CAPEX INPUT'!$B$7:$N$237,10,0),0)/10^6)*AL$8*(1+$AU16)*$A16 -> 0 | AM16: =(IF($B16="15.1.1.2",VLOOKUP($B16,'05. (a) CAPEX INPUT'!$B$7:$N$237,9,0)*SUMIF('05. (b) CAPEX INPUT'!$B$7:$B$42,AM$12,'05. (b) CAPEX INPUT'!$C$7:$C$42)/10^6,IFERROR(VLOOKUP($B16,'05. (a) CAPEX INPUT'!$B$7:$N$237,13,0)*VLOOKUP($C16,$C$158:$F$174,AM$12+1,0),0)/10^6)+IF(AND($H16=1,AM$12=21,$D16<>"Caminhão Elétrico"),VLOOKUP($B16,'05. (a) CAPEX INPUT'!$B$7:$N$237,10,0),0)/10^6+IF(AND($H16=1,AM$12=26,$D16="Caminhão Elétrico"),VLOOKUP($B16,'05. (a) CAPEX INPUT'!$B$7:$N$237,10,0),0)/10^6+IF(AND($H16=2,OR(AM$12=16,AM$12=30)),VLOOKUP($B16,'05. (a) CAPEX INPUT'!$B$7:$N$237,10,0),0)/10^6+IF(AND($H16=5,OR(AM$12=6,AM$12=11,AM$12=16,AM$12=21,AM$12=26)),VLOOKUP($B16,'05. (a) CAPEX INPUT'!$B$7:$N$237,10,0),0)/10^6)*AM$8*(1+$AU16)*$A16 -> 0 | AN16: =(IF($B16="15.1.1.2",VLOOKUP($B16,'05. (a) CAPEX INPUT'!$B$7:$N$237,9,0)*SUMIF('05. (b) CAPEX INPUT'!$B$7:$B$42,AN$12,'05. (b) CAPEX INPUT'!$C$7:$C$42)/10^6,IFERROR(VLOOKUP($B16,'05. (a) CAPEX INPUT'!$B$7:$N$237,13,0)*VLOOKUP($C16,$C$158:$F$174,AN$12+1,0),0)/10^6)+IF(AND($H16=1,AN$12=21,$D16<>"Caminhão Elétrico"),VLOOKUP($B16,'05. (a) CAPEX INPUT'!$B$7:$N$237,10,0),0)/10^6+IF(AND($H16=1,AN$12=26,$D16="Caminhão Elétrico"),VLOOKUP($B16,'05. (a) CAPEX INPUT'!$B$7:$N$237,10,0),0)/10^6+IF(AND($H16=2,OR(AN$12=16,AN$12=30)),VLOOKUP($B16,'05. (a) CAPEX INPUT'!$B$7:$N$237,10,0),0)/10^6+IF(AND($H16=5,OR(AN$12=6,AN$12=11,AN$12=16,AN$12=21,AN$12=26)),VLOOKUP($B16,'05. (a) CAPEX INPUT'!$B$7:$N$237,10,0),0)/10^6)*AN$8*(1+$AU16)*$A16 -> 0 | AO16: =(IF($B16="15.1.1.2",VLOOKUP($B16,'05. (a) CAPEX INPUT'!$B$7:$N$237,9,0)*SUMIF('05. (b) CAPEX INPUT'!$B$7:$B$42,AO$12,'05. (b) CAPEX INPUT'!$C$7:$C$42)/10^6,IFERROR(VLOOKUP($B16,'05. (a) CAPEX INPUT'!$B$7:$N$237,13,0)*VLOOKUP($C16,$C$158:$F$174,AO$12+1,0),0)/10^6)+IF(AND($H16=1,AO$12=21,$D16<>"Caminhão Elétrico"),VLOOKUP($B16,'05. (a) CAPEX INPUT'!$B$7:$N$237,10,0),0)/10^6+IF(AND($H16=1,AO$12=26,$D16="Caminhão Elétrico"),VLOOKUP($B16,'05. (a) CAPEX INPUT'!$B$7:$N$237,10,0),0)/10^6+IF(AND($H16=2,OR(AO$12=16,AO$12=30)),VLOOKUP($B16,'05. (a) CAPEX INPUT'!$B$7:$N$237,10,0),0)/10^6+IF(AND($H16=5,OR(AO$12=6,AO$12=11,AO$12=16,AO$12=21,AO$12=26)),VLOOKUP($B16,'05. (a) CAPEX INPUT'!$B$7:$N$237,10,0),0)/10^6)*AO$8*(1+$AU16)*$A16 -> 0 | AP16: =(IF($B16="15.1.1.2",VLOOKUP($B16,'05. (a) CAPEX INPUT'!$B$7:$N$237,9,0)*SUMIF('05. (b) CAPEX INPUT'!$B$7:$B$42,AP$12,'05. (b) CAPEX INPUT'!$C$7:$C$42)/10^6,IFERROR(VLOOKUP($B16,'05. (a) CAPEX INPUT'!$B$7:$N$237,13,0)*VLOOKUP($C16,$C$158:$F$174,AP$12+1,0),0)/10^6)+IF(AND($H16=1,AP$12=21,$D16<>"Caminhão Elétrico"),VLOOKUP($B16,'05. (a) CAPEX INPUT'!$B$7:$N$237,10,0),0)/10^6+IF(AND($H16=1,AP$12=26,$D16="Caminhão Elétrico"),VLOOKUP($B16,'05. (a) CAPEX INPUT'!$B$7:$N$237,10,0),0)/10^6+IF(AND($H16=2,OR(AP$12=16,AP$12=30)),VLOOKUP($B16,'05. (a) CAPEX INPUT'!$B$7:$N$237,10,0),0)/10^6+IF(AND($H16=5,OR(AP$12=6,AP$12=11,AP$12=16,AP$12=21,AP$12=26)),VLOOKUP($B16,'05. (a) CAPEX INPUT'!$B$7:$N$237,10,0),0)/10^6)*AP$8*(1+$AU16)*$A16 -> 0 | AQ16: =(IF($B16="15.1.1.2",VLOOKUP($B16,'05. (a) CAPEX INPUT'!$B$7:$N$237,9,0)*SUMIF('05. (b) CAPEX INPUT'!$B$7:$B$42,AQ$12,'05. (b) CAPEX INPUT'!$C$7:$C$42)/10^6,IFERROR(VLOOKUP($B16,'05. (a) CAPEX INPUT'!$B$7:$N$237,13,0)*VLOOKUP($C16,$C$158:$F$174,AQ$12+1,0),0)/10^6)+IF(AND($H16=1,AQ$12=21,$D16<>"Caminhão Elétrico"),VLOOKUP($B16,'05. (a) CAPEX INPUT'!$B$7:$N$237,10,0),0)/10^6+IF(AND($H16=1,AQ$12=26,$D16="Caminhão Elétrico"),VLOOKUP($B16,'05. (a) CAPEX INPUT'!$B$7:$N$237,10,0),0)/10^6+IF(AND($H16=2,OR(AQ$12=16,AQ$12=30)),VLOOKUP($B16,'05. (a) CAPEX INPUT'!$B$7:$N$237,10,0),0)/10^6+IF(AND($H16=5,OR(AQ$12=6,AQ$12=11,AQ$12=16,AQ$12=21,AQ$12=26)),VLOOKUP($B16,'05. (a) CAPEX INPUT'!$B$7:$N$237,10,0),0)/10^6)*AQ$8*(1+$AU16)*$A16 -> 0 | AS16: =SUM(I16:AQ16) -> 0.004009807839 | AU16: ='01. PC'!$Q$25 -> 0
A17: =IF(E17="Encargo",1,IF(E17="Bilheteria",1,VLOOKUP($E17,'01. PC'!$O$10:$P$18,2,0))) -> 1 | B17: ='05. (a) CAPEX INPUT'!B12 -> 1.1.1.2 | C17: =VLOOKUP(VALUE(LEFT(B17,SEARCH(".",B17,1)-1)),$B$158:$F$174,2,0) -> Centro de Apoio aos Visitantes (CAV) | D17: ='05. (a) CAPEX INPUT'!G12 -> Demolição de Edificação | E17: ='05. (a) CAPEX INPUT'!E12 -> Souvenir | F17: ='05. (a) CAPEX INPUT'!F12 -> Edificações | G17: =VLOOKUP(B17,'05. (a) CAPEX INPUT'!$B$7:$N$237,3,0) -> 32 | H17: =IFERROR(VLOOKUP(G17,'05. (c) RECAPEX INPUT'!$B$7:$H$26,4,0),"-") -> - | I17: =(IF($B17="15.1.1.2",VLOOKUP($B17,'05. (a) CAPEX INPUT'!$B$7:$N$237,9,0)*SUMIF('05. (b) CAPEX INPUT'!$B$7:$B$42,I$12,'05. (b) CAPEX INPUT'!$C$7:$C$42)/10^6,IFERROR(VLOOKUP($B17,'05. (a) CAPEX INPUT'!$B$7:$N$237,13,0)*VLOOKUP($C17,$C$158:$F$174,I$12+1,0),0)/10^6)+IF(AND($H17=1,I$12=21,$D17<>"Caminhão Elétrico"),VLOOKUP($B17,'05. (a) CAPEX INPUT'!$B$7:$N$237,10,0),0)/10^6+IF(AND($H17=1,I$12=26,$D17="Caminhão Elétrico"),VLOOKUP($B17,'05. (a) CAPEX INPUT'!$B$7:$N$237,10,0),0)/10^6+IF(AND($H17=2,OR(I$12=16,I$12=30)),VLOOKUP($B17,'05. (a) CAPEX INPUT'!$B$7:$N$237,10,0),0)/10^6+IF(AND($H17=5,OR(I$12=6,I$12=11,I$12=16,I$12=21,I$12=26)),VLOOKUP($B17,'05. (a) CAPEX INPUT'!$B$7:$N$237,10,0),0)/10^6)*I$8*(1+$AU17)*$A17 -> 0.0005728296913 | J17: =(IF($B17="15.1.1.2",VLOOKUP($B17,'05. (a) CAPEX INPUT'!$B$7:$N$237,9,0)*SUMIF('05. (b) CAPEX INPUT'!$B$7:$B$42,J$12,'05. (b) CAPEX INPUT'!$C$7:$C$42)/10^6,IFERROR(VLOOKUP($B17,'05. (a) CAPEX INPUT'!$B$7:$N$237,13,0)*VLOOKUP($C17,$C$158:$F$174,J$12+1,0),0)/10^6)+IF(AND($H17=1,J$12=21,$D17<>"Caminhão Elétrico"),VLOOKUP($B17,'05. (a) CAPEX INPUT'!$B$7:$N$237,10,0),0)/10^6+IF(AND($H17=1,J$12=26,$D17="Caminhão Elétrico"),VLOOKUP($B17,'05. (a) CAPEX INPUT'!$B$7:$N$237,10,0),0)/10^6+IF(AND($H17=2,OR(J$12=16,J$12=30)),VLOOKUP($B17,'05. (a) CAPEX INPUT'!$B$7:$N$237,10,0),0)/10^6+IF(AND($H17=5,OR(J$12=6,J$12=11,J$12=16,J$12=21,J$12=26)),VLOOKUP($B17,'05. (a) CAPEX INPUT'!$B$7:$N$237,10,0),0)/10^6)*J$8*(1+$AU17)*$A17 -> 0.001432074228 | K17: =(IF($B17="15.1.1.2",VLOOKUP($B17,'05. (a) CAPEX INPUT'!$B$7:$N$237,9,0)*SUMIF('05. (b) CAPEX INPUT'!$B$7:$B$42,K$12,'05. (b) CAPEX INPUT'!$C$7:$C$42)/10^6,IFERROR(VLOOKUP($B17,'05. (a) CAPEX INPUT'!$B$7:$N$237,13,0)*VLOOKUP($C17,$C$158:$F$174,K$12+1,0),0)/10^6)+IF(AND($H17=1,K$12=21,$D17<>"Caminhão Elétrico"),VLOOKUP($B17,'05. (a) CAPEX INPUT'!$B$7:$N$237,10,0),0)/10^6+IF(AND($H17=1,K$12=26,$D17="Caminhão Elétrico"),VLOOKUP($B17,'05. (a) CAPEX INPUT'!$B$7:$N$237,10,0),0)/10^6+IF(AND($H17=2,OR(K$12=16,K$12=30)),VLOOKUP($B17,'05. (a) CAPEX INPUT'!$B$7:$N$237,10,0),0)/10^6+IF(AND($H17=5,OR(K$12=6,K$12=11,K$12=16,K$12=21,K$12=26)),VLOOKUP($B17,'05. (a) CAPEX INPUT'!$B$7:$N$237,10,0),0)/10^6)*K$8*(1+$AU17)*$A17 -> 0 | L17: =(IF($B17="15.1.1.2",VLOOKUP($B17,'05. (a) CAPEX INPUT'!$B$7:$N$237,9,0)*SUMIF('05. (b) CAPEX INPUT'!$B$7:$B$42,L$12,'05. (b) CAPEX INPUT'!$C$7:$C$42)/10^6,IFERROR(VLOOKUP($B17,'05. (a) CAPEX INPUT'!$B$7:$N$237,13,0)*VLOOKUP($C17,$C$158:$F$174,L$12+1,0),0)/10^6)+IF(AND($H17=1,L$12=21,$D17<>"Caminhão Elétrico"),VLOOKUP($B17,'05. (a) CAPEX INPUT'!$B$7:$N$237,10,0),0)/10^6+IF(AND($H17=1,L$12=26,$D17="Caminhão Elétrico"),VLOOKUP($B17,'05. (a) CAPEX INPUT'!$B$7:$N$237,10,0),0)/10^6+IF(AND($H17=2,OR(L$12=16,L$12=30)),VLOOKUP($B17,'05. (a) CAPEX INPUT'!$B$7:$N$237,10,0),0)/10^6+IF(AND($H17=5,OR(L$12=6,L$12=11,L$12=16,L$12=21,L$12=26)),VLOOKUP($B17,'05. (a) CAPEX INPUT'!$B$7:$N$237,10,0),0)/10^6)*L$8*(1+$AU17)*$A17 -> 0 | M17: =(IF($B17="15.1.1.2",VLOOKUP($B17,'05. (a) CAPEX INPUT'!$B$7:$N$237,9,0)*SUMIF('05. (b) CAPEX INPUT'!$B$7:$B$42,M$12,'05. (b) CAPEX INPUT'!$C$7:$C$42)/10^6,IFERROR(VLOOKUP($B17,'05. (a) CAPEX INPUT'!$B$7:$N$237,13,0)*VLOOKUP($C17,$C$158:$F$174,M$12+1,0),0)/10^6)+IF(AND($H17=1,M$12=21,$D17<>"Caminhão Elétrico"),VLOOKUP($B17,'05. (a) CAPEX INPUT'!$B$7:$N$237,10,0),0)/10^6+IF(AND($H17=1,M$12=26,$D17="Caminhão Elétrico"),VLOOKUP($B17,'05. (a) CAPEX INPUT'!$B$7:$N$237,10,0),0)/10^6+IF(AND($H17=2,OR(M$12=16,M$12=30)),VLOOKUP($B17,'05. (a) CAPEX INPUT'!$B$7:$N$237,10,0),0)/10^6+IF(AND($H17=5,OR(M$12=6,M$12=11,M$12=16,M$12=21,M$12=26)),VLOOKUP($B17,'05. (a) CAPEX INPUT'!$B$7:$N$237,10,0),0)/10^6)*M$8*(1+$AU17)*$A17 -> 0 | N17: =(IF($B17="15.1.1.2",VLOOKUP($B17,'05. (a) CAPEX INPUT'!$B$7:$N$237,9,0)*SUMIF('05. (b) CAPEX INPUT'!$B$7:$B$42,N$12,'05. (b) CAPEX INPUT'!$C$7:$C$42)/10^6,IFERROR(VLOOKUP($B17,'05. (a) CAPEX INPUT'!$B$7:$N$237,13,0)*VLOOKUP($C17,$C$158:$F$174,N$12+1,0),0)/10^6)+IF(AND($H17=1,N$12=21,$D17<>"Caminhão Elétrico"),VLOOKUP($B17,'05. (a) CAPEX INPUT'!$B$7:$N$237,10,0),0)/10^6+IF(AND($H17=1,N$12=26,$D17="Caminhão Elétrico"),VLOOKUP($B17,'05. (a) CAPEX INPUT'!$B$7:$N$237,10,0),0)/10^6+IF(AND($H17=2,OR(N$12=16,N$12=30)),VLOOKUP($B17,'05. (a) CAPEX INPUT'!$B$7:$N$237,10,0),0)/10^6+IF(AND($H17=5,OR(N$12=6,N$12=11,N$12=16,N$12=21,N$12=26)),VLOOKUP($B17,'05. (a) CAPEX INPUT'!$B$7:$N$237,10,0),0)/10^6)*N$8*(1+$AU17)*$A17 -> 0 | O17: =(IF($B17="15.1.1.2",VLOOKUP($B17,'05. (a) CAPEX INPUT'!$B$7:$N$237,9,0)*SUMIF('05. (b) CAPEX INPUT'!$B$7:$B$42,O$12,'05. (b) CAPEX INPUT'!$C$7:$C$42)/10^6,IFERROR(VLOOKUP($B17,'05. (a) CAPEX INPUT'!$B$7:$N$237,13,0)*VLOOKUP($C17,$C$158:$F$174,O$12+1,0),0)/10^6)+IF(AND($H17=1,O$12=21,$D17<>"Caminhão Elétrico"),VLOOKUP($B17,'05. (a) CAPEX INPUT'!$B$7:$N$237,10,0),0)/10^6+IF(AND($H17=1,O$12=26,$D17="Caminhão Elétrico"),VLOOKUP($B17,'05. (a) CAPEX INPUT'!$B$7:$N$237,10,0),0)/10^6+IF(AND($H17=2,OR(O$12=16,O$12=30)),VLOOKUP($B17,'05. (a) CAPEX INPUT'!$B$7:$N$237,10,0),0)/10^6+IF(AND($H17=5,OR(O$12=6,O$12=11,O$12=16,O$12=21,O$12=26)),VLOOKUP($B17,'05. (a) CAPEX INPUT'!$B$7:$N$237,10,0),0)/10^6)*O$8*(1+$AU17)*$A17 -> 0 | P17: =(IF($B17="15.1.1.2",VLOOKUP($B17,'05. (a) CAPEX INPUT'!$B$7:$N$237,9,0)*SUMIF('05. (b) CAPEX INPUT'!$B$7:$B$42,P$12,'05. (b) CAPEX INPUT'!$C$7:$C$42)/10^6,IFERROR(VLOOKUP($B17,'05. (a) CAPEX INPUT'!$B$7:$N$237,13,0)*VLOOKUP($C17,$C$158:$F$174,P$12+1,0),0)/10^6)+IF(AND($H17=1,P$12=21,$D17<>"Caminhão Elétrico"),VLOOKUP($B17,'05. (a) CAPEX INPUT'!$B$7:$N$237,10,0),0)/10^6+IF(AND($H17=1,P$12=26,$D17="Caminhão Elétrico"),VLOOKUP($B17,'05. (a) CAPEX INPUT'!$B$7:$N$237,10,0),0)/10^6+IF(AND($H17=2,OR(P$12=16,P$12=30)),VLOOKUP($B17,'05. (a) CAPEX INPUT'!$B$7:$N$237,10,0),0)/10^6+IF(AND($H17=5,OR(P$12=6,P$12=11,P$12=16,P$12=21,P$12=26)),VLOOKUP($B17,'05. (a) CAPEX INPUT'!$B$7:$N$237,10,0),0)/10^6)*P$8*(1+$AU17)*$A17 -> 0 | Q17: =(IF($B17="15.1.1.2",VLOOKUP($B17,'05. (a) CAPEX INPUT'!$B$7:$N$237,9,0)*SUMIF('05. (b) CAPEX INPUT'!$B$7:$B$42,Q$12,'05. (b) CAPEX INPUT'!$C$7:$C$42)/10^6,IFERROR(VLOOKUP($B17,'05. (a) CAPEX INPUT'!$B$7:$N$237,13,0)*VLOOKUP($C17,$C$158:$F$174,Q$12+1,0),0)/10^6)+IF(AND($H17=1,Q$12=21,$D17<>"Caminhão Elétrico"),VLOOKUP($B17,'05. (a) CAPEX INPUT'!$B$7:$N$237,10,0),0)/10^6+IF(AND($H17=1,Q$12=26,$D17="Caminhão Elétrico"),VLOOKUP($B17,'05. (a) CAPEX INPUT'!$B$7:$N$237,10,0),0)/10^6+IF(AND($H17=2,OR(Q$12=16,Q$12=30)),VLOOKUP($B17,'05. (a) CAPEX INPUT'!$B$7:$N$237,10,0),0)/10^6+IF(AND($H17=5,OR(Q$12=6,Q$12=11,Q$12=16,Q$12=21,Q$12=26)),VLOOKUP($B17,'05. (a) CAPEX INPUT'!$B$7:$N$237,10,0),0)/10^6)*Q$8*(1+$AU17)*$A17 -> 0 | R17: =(IF($B17="15.1.1.2",VLOOKUP($B17,'05. (a) CAPEX INPUT'!$B$7:$N$237,9,0)*SUMIF('05. (b) CAPEX INPUT'!$B$7:$B$42,R$12,'05. (b) CAPEX INPUT'!$C$7:$C$42)/10^6,IFERROR(VLOOKUP($B17,'05. (a) CAPEX INPUT'!$B$7:$N$237,13,0)*VLOOKUP($C17,$C$158:$F$174,R$12+1,0),0)/10^6)+IF(AND($H17=1,R$12=21,$D17<>"Caminhão Elétrico"),VLOOKUP($B17,'05. (a) CAPEX INPUT'!$B$7:$N$237,10,0),0)/10^6+IF(AND($H17=1,R$12=26,$D17="Caminhão Elétrico"),VLOOKUP($B17,'05. (a) CAPEX INPUT'!$B$7:$N$237,10,0),0)/10^6+IF(AND($H17=2,OR(R$12=16,R$12=30)),VLOOKUP($B17,'05. (a) CAPEX INPUT'!$B$7:$N$237,10,0),0)/10^6+IF(AND($H17=5,OR(R$12=6,R$12=11,R$12=16,R$12=21,R$12=26)),VLOOKUP($B17,'05. (a) CAPEX INPUT'!$B$7:$N$237,10,0),0)/10^6)*R$8*(1+$AU17)*$A17 -> 0 | S17: =(IF($B17="15.1.1.2",VLOOKUP($B17,'05. (a) CAPEX INPUT'!$B$7:$N$237,9,0)*SUMIF('05. (b) CAPEX INPUT'!$B$7:$B$42,S$12,'05. (b) CAPEX INPUT'!$C$7:$C$42)/10^6,IFERROR(VLOOKUP($B17,'05. (a) CAPEX INPUT'!$B$7:$N$237,13,0)*VLOOKUP($C17,$C$158:$F$174,S$12+1,0),0)/10^6)+IF(AND($H17=1,S$12=21,$D17<>"Caminhão Elétrico"),VLOOKUP($B17,'05. (a) CAPEX INPUT'!$B$7:$N$237,10,0),0)/10^6+IF(AND($H17=1,S$12=26,$D17="Caminhão Elétrico"),VLOOKUP($B17,'05. (a) CAPEX INPUT'!$B$7:$N$237,10,0),0)/10^6+IF(AND($H17=2,OR(S$12=16,S$12=30)),VLOOKUP($B17,'05. (a) CAPEX INPUT'!$B$7:$N$237,10,0),0)/10^6+IF(AND($H17=5,OR(S$12=6,S$12=11,S$12=16,S$12=21,S$12=26)),VLOOKUP($B17,'05. (a) CAPEX INPUT'!$B$7:$N$237,10,0),0)/10^6)*S$8*(1+$AU17)*$A17 -> 0 | T17: =(IF($B17="15.1.1.2",VLOOKUP($B17,'05. (a) CAPEX INPUT'!$B$7:$N$237,9,0)*SUMIF('05. (b) CAPEX INPUT'!$B$7:$B$42,T$12,'05. (b) CAPEX INPUT'!$C$7:$C$42)/10^6,IFERROR(VLOOKUP($B17,'05. (a) CAPEX INPUT'!$B$7:$N$237,13,0)*VLOOKUP($C17,$C$158:$F$174,T$12+1,0),0)/10^6)+IF(AND($H17=1,T$12=21,$D17<>"Caminhão Elétrico"),VLOOKUP($B17,'05. (a) CAPEX INPUT'!$B$7:$N$237,10,0),0)/10^6+IF(AND($H17=1,T$12=26,$D17="Caminhão Elétrico"),VLOOKUP($B17,'05. (a) CAPEX INPUT'!$B$7:$N$237,10,0),0)/10^6+IF(AND($H17=2,OR(T$12=16,T$12=30)),VLOOKUP($B17,'05. (a) CAPEX INPUT'!$B$7:$N$237,10,0),0)/10^6+IF(AND($H17=5,OR(T$12=6,T$12=11,T$12=16,T$12=21,T$12=26)),VLOOKUP($B17,'05. (a) CAPEX INPUT'!$B$7:$N$237,10,0),0)/10^6)*T$8*(1+$AU17)*$A17 -> 0 | U17: =(IF($B17="15.1.1.2",VLOOKUP($B17,'05. (a) CAPEX INPUT'!$B$7:$N$237,9,0)*SUMIF('05. (b) CAPEX INPUT'!$B$7:$B$42,U$12,'05. (b) CAPEX INPUT'!$C$7:$C$42)/10^6,IFERROR(VLOOKUP($B17,'05. (a) CAPEX INPUT'!$B$7:$N$237,13,0)*VLOOKUP($C17,$C$158:$F$174,U$12+1,0),0)/10^6)+IF(AND($H17=1,U$12=21,$D17<>"Caminhão Elétrico"),VLOOKUP($B17,'05. (a) CAPEX INPUT'!$B$7:$N$237,10,0),0)/10^6+IF(AND($H17=1,U$12=26,$D17="Caminhão Elétrico"),VLOOKUP($B17,'05. (a) CAPEX INPUT'!$B$7:$N$237,10,0),0)/10^6+IF(AND($H17=2,OR(U$12=16,U$12=30)),VLOOKUP($B17,'05. (a) CAPEX INPUT'!$B$7:$N$237,10,0),0)/10^6+IF(AND($H17=5,OR(U$12=6,U$12=11,U$12=16,U$12=21,U$12=26)),VLOOKUP($B17,'05. (a) CAPEX INPUT'!$B$7:$N$237,10,0),0)/10^6)*U$8*(1+$AU17)*$A17 -> 0 | V17: =(IF($B17="15.1.1.2",VLOOKUP($B17,'05. (a) CAPEX INPUT'!$B$7:$N$237,9,0)*SUMIF('05. (b) CAPEX INPUT'!$B$7:$B$42,V$12,'05. (b) CAPEX INPUT'!$C$7:$C$42)/10^6,IFERROR(VLOOKUP($B17,'05. (a) CAPEX INPUT'!$B$7:$N$237,13,0)*VLOOKUP($C17,$C$158:$F$174,V$12+1,0),0)/10^6)+IF(AND($H17=1,V$12=21,$D17<>"Caminhão Elétrico"),VLOOKUP($B17,'05. (a) CAPEX INPUT'!$B$7:$N$237,10,0),0)/10^6+IF(AND($H17=1,V$12=26,$D17="Caminhão Elétrico"),VLOOKUP($B17,'05. (a) CAPEX INPUT'!$B$7:$N$237,10,0),0)/10^6+IF(AND($H17=2,OR(V$12=16,V$12=30)),VLOOKUP($B17,'05. (a) CAPEX INPUT'!$B$7:$N$237,10,0),0)/10^6+IF(AND($H17=5,OR(V$12=6,V$12=11,V$12=16,V$12=21,V$12=26)),VLOOKUP($B17,'05. (a) CAPEX INPUT'!$B$7:$N$237,10,0),0)/10^6)*V$8*(1+$AU17)*$A17 -> 0 | W17: =(IF($B17="15.1.1.2",VLOOKUP($B17,'05. (a) CAPEX INPUT'!$B$7:$N$237,9,0)*SUMIF('05. (b) CAPEX INPUT'!$B$7:$B$42,W$12,'05. (b) CAPEX INPUT'!$C$7:$C$42)/10^6,IFERROR(VLOOKUP($B17,'05. (a) CAPEX INPUT'!$B$7:$N$237,13,0)*VLOOKUP($C17,$C$158:$F$174,W$12+1,0),0)/10^6)+IF(AND($H17=1,W$12=21,$D17<>"Caminhão Elétrico"),VLOOKUP($B17,'05. (a) CAPEX INPUT'!$B$7:$N$237,10,0),0)/10^6+IF(AND($H17=1,W$12=26,$D17="Caminhão Elétrico"),VLOOKUP($B17,'05. (a) CAPEX INPUT'!$B$7:$N$237,10,0),0)/10^6+IF(AND($H17=2,OR(W$12=16,W$12=30)),VLOOKUP($B17,'05. (a) CAPEX INPUT'!$B$7:$N$237,10,0),0)/10^6+IF(AND($H17=5,OR(W$12=6,W$12=11,W$12=16,W$12=21,W$12=26)),VLOOKUP($B17,'05. (a) CAPEX INPUT'!$B$7:$N$237,10,0),0)/10^6)*W$8*(1+$AU17)*$A17 -> 0 | X17: =(IF($B17="15.1.1.2",VLOOKUP($B17,'05. (a) CAPEX INPUT'!$B$7:$N$237,9,0)*SUMIF('05. (b) CAPEX INPUT'!$B$7:$B$42,X$12,'05. (b) CAPEX INPUT'!$C$7:$C$42)/10^6,IFERROR(VLOOKUP($B17,'05. (a) CAPEX INPUT'!$B$7:$N$237,13,0)*VLOOKUP($C17,$C$158:$F$174,X$12+1,0),0)/10^6)+IF(AND($H17=1,X$12=21,$D17<>"Caminhão Elétrico"),VLOOKUP($B17,'05. (a) CAPEX INPUT'!$B$7:$N$237,10,0),0)/10^6+IF(AND($H17=1,X$12=26,$D17="Caminhão Elétrico"),VLOOKUP($B17,'05. (a) CAPEX INPUT'!$B$7:$N$237,10,0),0)/10^6+IF(AND($H17=2,OR(X$12=16,X$12=30)),VLOOKUP($B17,'05. (a) CAPEX INPUT'!$B$7:$N$237,10,0),0)/10^6+IF(AND($H17=5,OR(X$12=6,X$12=11,X$12=16,X$12=21,X$12=26)),VLOOKUP($B17,'05. (a) CAPEX INPUT'!$B$7:$N$237,10,0),0)/10^6)*X$8*(1+$AU17)*$A17 -> 0 | Y17: =(IF($B17="15.1.1.2",VLOOKUP($B17,'05. (a) CAPEX INPUT'!$B$7:$N$237,9,0)*SUMIF('05. (b) CAPEX INPUT'!$B$7:$B$42,Y$12,'05. (b) CAPEX INPUT'!$C$7:$C$42)/10^6,IFERROR(VLOOKUP($B17,'05. (a) CAPEX INPUT'!$B$7:$N$237,13,0)*VLOOKUP($C17,$C$158:$F$174,Y$12+1,0),0)/10^6)+IF(AND($H17=1,Y$12=21,$D17<>"Caminhão Elétrico"),VLOOKUP($B17,'05. (a) CAPEX INPUT'!$B$7:$N$237,10,0),0)/10^6+IF(AND($H17=1,Y$12=26,$D17="Caminhão Elétrico"),VLOOKUP($B17,'05. (a) CAPEX INPUT'!$B$7:$N$237,10,0),0)/10^6+IF(AND($H17=2,OR(Y$12=16,Y$12=30)),VLOOKUP($B17,'05. (a) CAPEX INPUT'!$B$7:$N$237,10,0),0)/10^6+IF(AND($H17=5,OR(Y$12=6,Y$12=11,Y$12=16,Y$12=21,Y$12=26)),VLOOKUP($B17,'05. (a) CAPEX INPUT'!$B$7:$N$237,10,0),0)/10^6)*Y$8*(1+$AU17)*$A17 -> 0 | Z17: =(IF($B17="15.1.1.2",VLOOKUP($B17,'05. (a) CAPEX INPUT'!$B$7:$N$237,9,0)*SUMIF('05. (b) CAPEX INPUT'!$B$7:$B$42,Z$12,'05. (b) CAPEX INPUT'!$C$7:$C$42)/10^6,IFERROR(VLOOKUP($B17,'05. (a) CAPEX INPUT'!$B$7:$N$237,13,0)*VLOOKUP($C17,$C$158:$F$174,Z$12+1,0),0)/10^6)+IF(AND($H17=1,Z$12=21,$D17<>"Caminhão Elétrico"),VLOOKUP($B17,'05. (a) CAPEX INPUT'!$B$7:$N$237,10,0),0)/10^6+IF(AND($H17=1,Z$12=26,$D17="Caminhão Elétrico"),VLOOKUP($B17,'05. (a) CAPEX INPUT'!$B$7:$N$237,10,0),0)/10^6+IF(AND($H17=2,OR(Z$12=16,Z$12=30)),VLOOKUP($B17,'05. (a) CAPEX INPUT'!$B$7:$N$237,10,0),0)/10^6+IF(AND($H17=5,OR(Z$12=6,Z$12=11,Z$12=16,Z$12=21,Z$12=26)),VLOOKUP($B17,'05. (a) CAPEX INPUT'!$B$7:$N$237,10,0),0)/10^6)*Z$8*(1+$AU17)*$A17 -> 0 | AA17: =(IF($B17="15.1.1.2",VLOOKUP($B17,'05. (a) CAPEX INPUT'!$B$7:$N$237,9,0)*SUMIF('05. (b) CAPEX INPUT'!$B$7:$B$42,AA$12,'05. (b) CAPEX INPUT'!$C$7:$C$42)/10^6,IFERROR(VLOOKUP($B17,'05. (a) CAPEX INPUT'!$B$7:$N$237,13,0)*VLOOKUP($C17,$C$158:$F$174,AA$12+1,0),0)/10^6)+IF(AND($H17=1,AA$12=21,$D17<>"Caminhão Elétrico"),VLOOKUP($B17,'05. (a) CAPEX INPUT'!$B$7:$N$237,10,0),0)/10^6+IF(AND($H17=1,AA$12=26,$D17="Caminhão Elétrico"),VLOOKUP($B17,'05. (a) CAPEX INPUT'!$B$7:$N$237,10,0),0)/10^6+IF(AND($H17=2,OR(AA$12=16,AA$12=30)),VLOOKUP($B17,'05. (a) CAPEX INPUT'!$B$7:$N$237,10,0),0)/10^6+IF(AND($H17=5,OR(AA$12=6,AA$12=11,AA$12=16,AA$12=21,AA$12=26)),VLOOKUP($B17,'05. (a) CAPEX INPUT'!$B$7:$N$237,10,0),0)/10^6)*AA$8*(1+$AU17)*$A17 -> 0 | AB17: =(IF($B17="15.1.1.2",VLOOKUP($B17,'05. (a) CAPEX INPUT'!$B$7:$N$237,9,0)*SUMIF('05. (b) CAPEX INPUT'!$B$7:$B$42,AB$12,'05. (b) CAPEX INPUT'!$C$7:$C$42)/10^6,IFERROR(VLOOKUP($B17,'05. (a) CAPEX INPUT'!$B$7:$N$237,13,0)*VLOOKUP($C17,$C$158:$F$174,AB$12+1,0),0)/10^6)+IF(AND($H17=1,AB$12=21,$D17<>"Caminhão Elétrico"),VLOOKUP($B17,'05. (a) CAPEX INPUT'!$B$7:$N$237,10,0),0)/10^6+IF(AND($H17=1,AB$12=26,$D17="Caminhão Elétrico"),VLOOKUP($B17,'05. (a) CAPEX INPUT'!$B$7:$N$237,10,0),0)/10^6+IF(AND($H17=2,OR(AB$12=16,AB$12=30)),VLOOKUP($B17,'05. (a) CAPEX INPUT'!$B$7:$N$237,10,0),0)/10^6+IF(AND($H17=5,OR(AB$12=6,AB$12=11,AB$12=16,AB$12=21,AB$12=26)),VLOOKUP($B17,'05. (a) CAPEX INPUT'!$B$7:$N$237,10,0),0)/10^6)*AB$8*(1+$AU17)*$A17 -> 0 | AC17: =(IF($B17="15.1.1.2",VLOOKUP($B17,'05. (a) CAPEX INPUT'!$B$7:$N$237,9,0)*SUMIF('05. (b) CAPEX INPUT'!$B$7:$B$42,AC$12,'05. (b) CAPEX INPUT'!$C$7:$C$42)/10^6,IFERROR(VLOOKUP($B17,'05. (a) CAPEX INPUT'!$B$7:$N$237,13,0)*VLOOKUP($C17,$C$158:$F$174,AC$12+1,0),0)/10^6)+IF(AND($H17=1,AC$12=21,$D17<>"Caminhão Elétrico"),VLOOKUP($B17,'05. (a) CAPEX INPUT'!$B$7:$N$237,10,0),0)/10^6+IF(AND($H17=1,AC$12=26,$D17="Caminhão Elétrico"),VLOOKUP($B17,'05. (a) CAPEX INPUT'!$B$7:$N$237,10,0),0)/10^6+IF(AND($H17=2,OR(AC$12=16,AC$12=30)),VLOOKUP($B17,'05. (a) CAPEX INPUT'!$B$7:$N$237,10,0),0)/10^6+IF(AND($H17=5,OR(AC$12=6,AC$12=11,AC$12=16,AC$12=21,AC$12=26)),VLOOKUP($B17,'05. (a) CAPEX INPUT'!$B$7:$N$237,10,0),0)/10^6)*AC$8*(1+$AU17)*$A17 -> 0 | AD17: =(IF($B17="15.1.1.2",VLOOKUP($B17,'05. (a) CAPEX INPUT'!$B$7:$N$237,9,0)*SUMIF('05. (b) CAPEX INPUT'!$B$7:$B$42,AD$12,'05. (b) CAPEX INPUT'!$C$7:$C$42)/10^6,IFERROR(VLOOKUP($B17,'05. (a) CAPEX INPUT'!$B$7:$N$237,13,0)*VLOOKUP($C17,$C$158:$F$174,AD$12+1,0),0)/10^6)+IF(AND($H17=1,AD$12=21,$D17<>"Caminhão Elétrico"),VLOOKUP($B17,'05. (a) CAPEX INPUT'!$B$7:$N$237,10,0),0)/10^6+IF(AND($H17=1,AD$12=26,$D17="Caminhão Elétrico"),VLOOKUP($B17,'05. (a) CAPEX INPUT'!$B$7:$N$237,10,0),0)/10^6+IF(AND($H17=2,OR(AD$12=16,AD$12=30)),VLOOKUP($B17,'05. (a) CAPEX INPUT'!$B$7:$N$237,10,0),0)/10^6+IF(AND($H17=5,OR(AD$12=6,AD$12=11,AD$12=16,AD$12=21,AD$12=26)),VLOOKUP($B17,'05. (a) CAPEX INPUT'!$B$7:$N$237,10,0),0)/10^6)*AD$8*(1+$AU17)*$A17 -> 0 | AE17: =(IF($B17="15.1.1.2",VLOOKUP($B17,'05. (a) CAPEX INPUT'!$B$7:$N$237,9,0)*SUMIF('05. (b) CAPEX INPUT'!$B$7:$B$42,AE$12,'05. (b) CAPEX INPUT'!$C$7:$C$42)/10^6,IFERROR(VLOOKUP($B17,'05. (a) CAPEX INPUT'!$B$7:$N$237,13,0)*VLOOKUP($C17,$C$158:$F$174,AE$12+1,0),0)/10^6)+IF(AND($H17=1,AE$12=21,$D17<>"Caminhão Elétrico"),VLOOKUP($B17,'05. (a) CAPEX INPUT'!$B$7:$N$237,10,0),0)/10^6+IF(AND($H17=1,AE$12=26,$D17="Caminhão Elétrico"),VLOOKUP($B17,'05. (a) CAPEX INPUT'!$B$7:$N$237,10,0),0)/10^6+IF(AND($H17=2,OR(AE$12=16,AE$12=30)),VLOOKUP($B17,'05. (a) CAPEX INPUT'!$B$7:$N$237,10,0),0)/10^6+IF(AND($H17=5,OR(AE$12=6,AE$12=11,AE$12=16,AE$12=21,AE$12=26)),VLOOKUP($B17,'05. (a) CAPEX INPUT'!$B$7:$N$237,10,0),0)/10^6)*AE$8*(1+$AU17)*$A17 -> 0 | AF17: =(IF($B17="15.1.1.2",VLOOKUP($B17,'05. (a) CAPEX INPUT'!$B$7:$N$237,9,0)*SUMIF('05. (b) CAPEX INPUT'!$B$7:$B$42,AF$12,'05. (b) CAPEX INPUT'!$C$7:$C$42)/10^6,IFERROR(VLOOKUP($B17,'05. (a) CAPEX INPUT'!$B$7:$N$237,13,0)*VLOOKUP($C17,$C$158:$F$174,AF$12+1,0),0)/10^6)+IF(AND($H17=1,AF$12=21,$D17<>"Caminhão Elétrico"),VLOOKUP($B17,'05. (a) CAPEX INPUT'!$B$7:$N$237,10,0),0)/10^6+IF(AND($H17=1,AF$12=26,$D17="Caminhão Elétrico"),VLOOKUP($B17,'05. (a) CAPEX INPUT'!$B$7:$N$237,10,0),0)/10^6+IF(AND($H17=2,OR(AF$12=16,AF$12=30)),VLOOKUP($B17,'05. (a) CAPEX INPUT'!$B$7:$N$237,10,0),0)/10^6+IF(AND($H17=5,OR(AF$12=6,AF$12=11,AF$12=16,AF$12=21,AF$12=26)),VLOOKUP($B17,'05. (a) CAPEX INPUT'!$B$7:$N$237,10,0),0)/10^6)*AF$8*(1+$AU17)*$A17 -> 0 | AG17: =(IF($B17="15.1.1.2",VLOOKUP($B17,'05. (a) CAPEX INPUT'!$B$7:$N$237,9,0)*SUMIF('05. (b) CAPEX INPUT'!$B$7:$B$42,AG$12,'05. (b) CAPEX INPUT'!$C$7:$C$42)/10^6,IFERROR(VLOOKUP($B17,'05. (a) CAPEX INPUT'!$B$7:$N$237,13,0)*VLOOKUP($C17,$C$158:$F$174,AG$12+1,0),0)/10^6)+IF(AND($H17=1,AG$12=21,$D17<>"Caminhão Elétrico"),VLOOKUP($B17,'05. (a) CAPEX INPUT'!$B$7:$N$237,10,0),0)/10^6+IF(AND($H17=1,AG$12=26,$D17="Caminhão Elétrico"),VLOOKUP($B17,'05. (a) CAPEX INPUT'!$B$7:$N$237,10,0),0)/10^6+IF(AND($H17=2,OR(AG$12=16,AG$12=30)),VLOOKUP($B17,'05. (a) CAPEX INPUT'!$B$7:$N$237,10,0),0)/10^6+IF(AND($H17=5,OR(AG$12=6,AG$12=11,AG$12=16,AG$12=21,AG$12=26)),VLOOKUP($B17,'05. (a) CAPEX INPUT'!$B$7:$N$237,10,0),0)/10^6)*AG$8*(1+$AU17)*$A17 -> 0 | AH17: =(IF($B17="15.1.1.2",VLOOKUP($B17,'05. (a) CAPEX INPUT'!$B$7:$N$237,9,0)*SUMIF('05. (b) CAPEX INPUT'!$B$7:$B$42,AH$12,'05. (b) CAPEX INPUT'!$C$7:$C$42)/10^6,IFERROR(VLOOKUP($B17,'05. (a) CAPEX INPUT'!$B$7:$N$237,13,0)*VLOOKUP($C17,$C$158:$F$174,AH$12+1,0),0)/10^6)+IF(AND($H17=1,AH$12=21,$D17<>"Caminhão Elétrico"),VLOOKUP($B17,'05. (a) CAPEX INPUT'!$B$7:$N$237,10,0),0)/10^6+IF(AND($H17=1,AH$12=26,$D17="Caminhão Elétrico"),VLOOKUP($B17,'05. (a) CAPEX INPUT'!$B$7:$N$237,10,0),0)/10^6+IF(AND($H17=2,OR(AH$12=16,AH$12=30)),VLOOKUP($B17,'05. (a) CAPEX INPUT'!$B$7:$N$237,10,0),0)/10^6+IF(AND($H17=5,OR(AH$12=6,AH$12=11,AH$12=16,AH$12=21,AH$12=26)),VLOOKUP($B17,'05. (a) CAPEX INPUT'!$B$7:$N$237,10,0),0)/10^6)*AH$8*(1+$AU17)*$A17 -> 0 | AI17: =(IF($B17="15.1.1.2",VLOOKUP($B17,'05. (a) CAPEX INPUT'!$B$7:$N$237,9,0)*SUMIF('05. (b) CAPEX INPUT'!$B$7:$B$42,AI$12,'05. (b) CAPEX INPUT'!$C$7:$C$42)/10^6,IFERROR(VLOOKUP($B17,'05. (a) CAPEX INPUT'!$B$7:$N$237,13,0)*VLOOKUP($C17,$C$158:$F$174,AI$12+1,0),0)/10^6)+IF(AND($H17=1,AI$12=21,$D17<>"Caminhão Elétrico"),VLOOKUP($B17,'05. (a) CAPEX INPUT'!$B$7:$N$237,10,0),0)/10^6+IF(AND($H17=1,AI$12=26,$D17="Caminhão Elétrico"),VLOOKUP($B17,'05. (a) CAPEX INPUT'!$B$7:$N$237,10,0),0)/10^6+IF(AND($H17=2,OR(AI$12=16,AI$12=30)),VLOOKUP($B17,'05. (a) CAPEX INPUT'!$B$7:$N$237,10,0),0)/10^6+IF(AND($H17=5,OR(AI$12=6,AI$12=11,AI$12=16,AI$12=21,AI$12=26)),VLOOKUP($B17,'05. (a) CAPEX INPUT'!$B$7:$N$237,10,0),0)/10^6)*AI$8*(1+$AU17)*$A17 -> 0 | AJ17: =(IF($B17="15.1.1.2",VLOOKUP($B17,'05. (a) CAPEX INPUT'!$B$7:$N$237,9,0)*SUMIF('05. (b) CAPEX INPUT'!$B$7:$B$42,AJ$12,'05. (b) CAPEX INPUT'!$C$7:$C$42)/10^6,IFERROR(VLOOKUP($B17,'05. (a) CAPEX INPUT'!$B$7:$N$237,13,0)*VLOOKUP($C17,$C$158:$F$174,AJ$12+1,0),0)/10^6)+IF(AND($H17=1,AJ$12=21,$D17<>"Caminhão Elétrico"),VLOOKUP($B17,'05. (a) CAPEX INPUT'!$B$7:$N$237,10,0),0)/10^6+IF(AND($H17=1,AJ$12=26,$D17="Caminhão Elétrico"),VLOOKUP($B17,'05. (a) CAPEX INPUT'!$B$7:$N$237,10,0),0)/10^6+IF(AND($H17=2,OR(AJ$12=16,AJ$12=30)),VLOOKUP($B17,'05. (a) CAPEX INPUT'!$B$7:$N$237,10,0),0)/10^6+IF(AND($H17=5,OR(AJ$12=6,AJ$12=11,AJ$12=16,AJ$12=21,AJ$12=26)),VLOOKUP($B17,'05. (a) CAPEX INPUT'!$B$7:$N$237,10,0),0)/10^6)*AJ$8*(1+$AU17)*$A17 -> 0 | AK17: =(IF($B17="15.1.1.2",VLOOKUP($B17,'05. (a) CAPEX INPUT'!$B$7:$N$237,9,0)*SUMIF('05. (b) CAPEX INPUT'!$B$7:$B$42,AK$12,'05. (b) CAPEX INPUT'!$C$7:$C$42)/10^6,IFERROR(VLOOKUP($B17,'05. (a) CAPEX INPUT'!$B$7:$N$237,13,0)*VLOOKUP($C17,$C$158:$F$174,AK$12+1,0),0)/10^6)+IF(AND($H17=1,AK$12=21,$D17<>"Caminhão Elétrico"),VLOOKUP($B17,'05. (a) CAPEX INPUT'!$B$7:$N$237,10,0),0)/10^6+IF(AND($H17=1,AK$12=26,$D17="Caminhão Elétrico"),VLOOKUP($B17,'05. (a) CAPEX INPUT'!$B$7:$N$237,10,0),0)/10^6+IF(AND($H17=2,OR(AK$12=16,AK$12=30)),VLOOKUP($B17,'05. (a) CAPEX INPUT'!$B$7:$N$237,10,0),0)/10^6+IF(AND($H17=5,OR(AK$12=6,AK$12=11,AK$12=16,AK$12=21,AK$12=26)),VLOOKUP($B17,'05. (a) CAPEX INPUT'!$B$7:$N$237,10,0),0)/10^6)*AK$8*(1+$AU17)*$A17 -> 0 | AL17: =(IF($B17="15.1.1.2",VLOOKUP($B17,'05. (a) CAPEX INPUT'!$B$7:$N$237,9,0)*SUMIF('05. (b) CAPEX INPUT'!$B$7:$B$42,AL$12,'05. (b) CAPEX INPUT'!$C$7:$C$42)/10^6,IFERROR(VLOOKUP($B17,'05. (a) CAPEX INPUT'!$B$7:$N$237,13,0)*VLOOKUP($C17,$C$158:$F$174,AL$12+1,0),0)/10^6)+IF(AND($H17=1,AL$12=21,$D17<>"Caminhão Elétrico"),VLOOKUP($B17,'05. (a) CAPEX INPUT'!$B$7:$N$237,10,0),0)/10^6+IF(AND($H17=1,AL$12=26,$D17="Caminhão Elétrico"),VLOOKUP($B17,'05. (a) CAPEX INPUT'!$B$7:$N$237,10,0),0)/10^6+IF(AND($H17=2,OR(AL$12=16,AL$12=30)),VLOOKUP($B17,'05. (a) CAPEX INPUT'!$B$7:$N$237,10,0),0)/10^6+IF(AND($H17=5,OR(AL$12=6,AL$12=11,AL$12=16,AL$12=21,AL$12=26)),VLOOKUP($B17,'05. (a) CAPEX INPUT'!$B$7:$N$237,10,0),0)/10^6)*AL$8*(1+$AU17)*$A17 -> 0 | AM17: =(IF($B17="15.1.1.2",VLOOKUP($B17,'05. (a) CAPEX INPUT'!$B$7:$N$237,9,0)*SUMIF('05. (b) CAPEX INPUT'!$B$7:$B$42,AM$12,'05. (b) CAPEX INPUT'!$C$7:$C$42)/10^6,IFERROR(VLOOKUP($B17,'05. (a) CAPEX INPUT'!$B$7:$N$237,13,0)*VLOOKUP($C17,$C$158:$F$174,AM$12+1,0),0)/10^6)+IF(AND($H17=1,AM$12=21,$D17<>"Caminhão Elétrico"),VLOOKUP($B17,'05. (a) CAPEX INPUT'!$B$7:$N$237,10,0),0)/10^6+IF(AND($H17=1,AM$12=26,$D17="Caminhão Elétrico"),VLOOKUP($B17,'05. (a) CAPEX INPUT'!$B$7:$N$237,10,0),0)/10^6+IF(AND($H17=2,OR(AM$12=16,AM$12=30)),VLOOKUP($B17,'05. (a) CAPEX INPUT'!$B$7:$N$237,10,0),0)/10^6+IF(AND($H17=5,OR(AM$12=6,AM$12=11,AM$12=16,AM$12=21,AM$12=26)),VLOOKUP($B17,'05. (a) CAPEX INPUT'!$B$7:$N$237,10,0),0)/10^6)*AM$8*(1+$AU17)*$A17 -> 0 | AN17: =(IF($B17="15.1.1.2",VLOOKUP($B17,'05. (a) CAPEX INPUT'!$B$7:$N$237,9,0)*SUMIF('05. (b) CAPEX INPUT'!$B$7:$B$42,AN$12,'05. (b) CAPEX INPUT'!$C$7:$C$42)/10^6,IFERROR(VLOOKUP($B17,'05. (a) CAPEX INPUT'!$B$7:$N$237,13,0)*VLOOKUP($C17,$C$158:$F$174,AN$12+1,0),0)/10^6)+IF(AND($H17=1,AN$12=21,$D17<>"Caminhão Elétrico"),VLOOKUP($B17,'05. (a) CAPEX INPUT'!$B$7:$N$237,10,0),0)/10^6+IF(AND($H17=1,AN$12=26,$D17="Caminhão Elétrico"),VLOOKUP($B17,'05. (a) CAPEX INPUT'!$B$7:$N$237,10,0),0)/10^6+IF(AND($H17=2,OR(AN$12=16,AN$12=30)),VLOOKUP($B17,'05. (a) CAPEX INPUT'!$B$7:$N$237,10,0),0)/10^6+IF(AND($H17=5,OR(AN$12=6,AN$12=11,AN$12=16,AN$12=21,AN$12=26)),VLOOKUP($B17,'05. (a) CAPEX INPUT'!$B$7:$N$237,10,0),0)/10^6)*AN$8*(1+$AU17)*$A17 -> 0 | AO17: =(IF($B17="15.1.1.2",VLOOKUP($B17,'05. (a) CAPEX INPUT'!$B$7:$N$237,9,0)*SUMIF('05. (b) CAPEX INPUT'!$B$7:$B$42,AO$12,'05. (b) CAPEX INPUT'!$C$7:$C$42)/10^6,IFERROR(VLOOKUP($B17,'05. (a) CAPEX INPUT'!$B$7:$N$237,13,0)*VLOOKUP($C17,$C$158:$F$174,AO$12+1,0),0)/10^6)+IF(AND($H17=1,AO$12=21,$D17<>"Caminhão Elétrico"),VLOOKUP($B17,'05. (a) CAPEX INPUT'!$B$7:$N$237,10,0),0)/10^6+IF(AND($H17=1,AO$12=26,$D17="Caminhão Elétrico"),VLOOKUP($B17,'05. (a) CAPEX INPUT'!$B$7:$N$237,10,0),0)/10^6+IF(AND($H17=2,OR(AO$12=16,AO$12=30)),VLOOKUP($B17,'05. (a) CAPEX INPUT'!$B$7:$N$237,10,0),0)/10^6+IF(AND($H17=5,OR(AO$12=6,AO$12=11,AO$12=16,AO$12=21,AO$12=26)),VLOOKUP($B17,'05. (a) CAPEX INPUT'!$B$7:$N$237,10,0),0)/10^6)*AO$8*(1+$AU17)*$A17 -> 0 | AP17: =(IF($B17="15.1.1.2",VLOOKUP($B17,'05. (a) CAPEX INPUT'!$B$7:$N$237,9,0)*SUMIF('05. (b) CAPEX INPUT'!$B$7:$B$42,AP$12,'05. (b) CAPEX INPUT'!$C$7:$C$42)/10^6,IFERROR(VLOOKUP($B17,'05. (a) CAPEX INPUT'!$B$7:$N$237,13,0)*VLOOKUP($C17,$C$158:$F$174,AP$12+1,0),0)/10^6)+IF(AND($H17=1,AP$12=21,$D17<>"Caminhão Elétrico"),VLOOKUP($B17,'05. (a) CAPEX INPUT'!$B$7:$N$237,10,0),0)/10^6+IF(AND($H17=1,AP$12=26,$D17="Caminhão Elétrico"),VLOOKUP($B17,'05. (a) CAPEX INPUT'!$B$7:$N$237,10,0),0)/10^6+IF(AND($H17=2,OR(AP$12=16,AP$12=30)),VLOOKUP($B17,'05. (a) CAPEX INPUT'!$B$7:$N$237,10,0),0)/10^6+IF(AND($H17=5,OR(AP$12=6,AP$12=11,AP$12=16,AP$12=21,AP$12=26)),VLOOKUP($B17,'05. (a) CAPEX INPUT'!$B$7:$N$237,10,0),0)/10^6)*AP$8*(1+$AU17)*$A17 -> 0 | AQ17: =(IF($B17="15.1.1.2",VLOOKUP($B17,'05. (a) CAPEX INPUT'!$B$7:$N$237,9,0)*SUMIF('05. (b) CAPEX INPUT'!$B$7:$B$42,AQ$12,'05. (b) CAPEX INPUT'!$C$7:$C$42)/10^6,IFERROR(VLOOKUP($B17,'05. (a) CAPEX INPUT'!$B$7:$N$237,13,0)*VLOOKUP($C17,$C$158:$F$174,AQ$12+1,0),0)/10^6)+IF(AND($H17=1,AQ$12=21,$D17<>"Caminhão Elétrico"),VLOOKUP($B17,'05. (a) CAPEX INPUT'!$B$7:$N$237,10,0),0)/10^6+IF(AND($H17=1,AQ$12=26,$D17="Caminhão Elétrico"),VLOOKUP($B17,'05. (a) CAPEX INPUT'!$B$7:$N$237,10,0),0)/10^6+IF(AND($H17=2,OR(AQ$12=16,AQ$12=30)),VLOOKUP($B17,'05. (a) CAPEX INPUT'!$B$7:$N$237,10,0),0)/10^6+IF(AND($H17=5,OR(AQ$12=6,AQ$12=11,AQ$12=16,AQ$12=21,AQ$12=26)),VLOOKUP($B17,'05. (a) CAPEX INPUT'!$B$7:$N$237,10,0),0)/10^6)*AQ$8*(1+$AU17)*$A17 -> 0 | AS17: =SUM(I17:AQ17) -> 0.00200490392 | AU17: ='01. PC'!$Q$25 -> 0
A18: =IF(E18="Encargo",1,IF(E18="Bilheteria",1,VLOOKUP($E18,'01. PC'!$O$10:$P$18,2,0))) -> 1 | B18: ='05. (a) CAPEX INPUT'!B13 -> 1.1.1.3 | C18: =VLOOKUP(VALUE(LEFT(B18,SEARCH(".",B18,1)-1)),$B$158:$F$174,2,0) -> Centro de Apoio aos Visitantes (CAV) | D18: ='05. (a) CAPEX INPUT'!G13 -> Demolição de Edificação | E18: ='05. (a) CAPEX INPUT'!E13 -> Encargo | F18: ='05. (a) CAPEX INPUT'!F13 -> Edificações | G18: =VLOOKUP(B18,'05. (a) CAPEX INPUT'!$B$7:$N$237,3,0) -> 32 | H18: =IFERROR(VLOOKUP(G18,'05. (c) RECAPEX INPUT'!$B$7:$H$26,4,0),"-") -> - | I18: =(IF($B18="15.1.1.2",VLOOKUP($B18,'05. (a) CAPEX INPUT'!$B$7:$N$237,9,0)*SUMIF('05. (b) CAPEX INPUT'!$B$7:$B$42,I$12,'05. (b) CAPEX INPUT'!$C$7:$C$42)/10^6,IFERROR(VLOOKUP($B18,'05. (a) CAPEX INPUT'!$B$7:$N$237,13,0)*VLOOKUP($C18,$C$158:$F$174,I$12+1,0),0)/10^6)+IF(AND($H18=1,I$12=21,$D18<>"Caminhão Elétrico"),VLOOKUP($B18,'05. (a) CAPEX INPUT'!$B$7:$N$237,10,0),0)/10^6+IF(AND($H18=1,I$12=26,$D18="Caminhão Elétrico"),VLOOKUP($B18,'05. (a) CAPEX INPUT'!$B$7:$N$237,10,0),0)/10^6+IF(AND($H18=2,OR(I$12=16,I$12=30)),VLOOKUP($B18,'05. (a) CAPEX INPUT'!$B$7:$N$237,10,0),0)/10^6+IF(AND($H18=5,OR(I$12=6,I$12=11,I$12=16,I$12=21,I$12=26)),VLOOKUP($B18,'05. (a) CAPEX INPUT'!$B$7:$N$237,10,0),0)/10^6)*I$8*(1+$AU18)*$A18 -> 0.0005728296913 | J18: =(IF($B18="15.1.1.2",VLOOKUP($B18,'05. (a) CAPEX INPUT'!$B$7:$N$237,9,0)*SUMIF('05. (b) CAPEX INPUT'!$B$7:$B$42,J$12,'05. (b) CAPEX INPUT'!$C$7:$C$42)/10^6,IFERROR(VLOOKUP($B18,'05. (a) CAPEX INPUT'!$B$7:$N$237,13,0)*VLOOKUP($C18,$C$158:$F$174,J$12+1,0),0)/10^6)+IF(AND($H18=1,J$12=21,$D18<>"Caminhão Elétrico"),VLOOKUP($B18,'05. (a) CAPEX INPUT'!$B$7:$N$237,10,0),0)/10^6+IF(AND($H18=1,J$12=26,$D18="Caminhão Elétrico"),VLOOKUP($B18,'05. (a) CAPEX INPUT'!$B$7:$N$237,10,0),0)/10^6+IF(AND($H18=2,OR(J$12=16,J$12=30)),VLOOKUP($B18,'05. (a) CAPEX INPUT'!$B$7:$N$237,10,0),0)/10^6+IF(AND($H18=5,OR(J$12=6,J$12=11,J$12=16,J$12=21,J$12=26)),VLOOKUP($B18,'05. (a) CAPEX INPUT'!$B$7:$N$237,10,0),0)/10^6)*J$8*(1+$AU18)*$A18 -> 0.001432074228 | K18: =(IF($B18="15.1.1.2",VLOOKUP($B18,'05. (a) CAPEX INPUT'!$B$7:$N$237,9,0)*SUMIF('05. (b) CAPEX INPUT'!$B$7:$B$42,K$12,'05. (b) CAPEX INPUT'!$C$7:$C$42)/10^6,IFERROR(VLOOKUP($B18,'05. (a) CAPEX INPUT'!$B$7:$N$237,13,0)*VLOOKUP($C18,$C$158:$F$174,K$12+1,0),0)/10^6)+IF(AND($H18=1,K$12=21,$D18<>"Caminhão Elétrico"),VLOOKUP($B18,'05. (a) CAPEX INPUT'!$B$7:$N$237,10,0),0)/10^6+IF(AND($H18=1,K$12=26,$D18="Caminhão Elétrico"),VLOOKUP($B18,'05. (a) CAPEX INPUT'!$B$7:$N$237,10,0),0)/10^6+IF(AND($H18=2,OR(K$12=16,K$12=30)),VLOOKUP($B18,'05. (a) CAPEX INPUT'!$B$7:$N$237,10,0),0)/10^6+IF(AND($H18=5,OR(K$12=6,K$12=11,K$12=16,K$12=21,K$12=26)),VLOOKUP($B18,'05. (a) CAPEX INPUT'!$B$7:$N$237,10,0),0)/10^6)*K$8*(1+$AU18)*$A18 -> 0 | L18: =(IF($B18="15.1.1.2",VLOOKUP($B18,'05. (a) CAPEX INPUT'!$B$7:$N$237,9,0)*SUMIF('05. (b) CAPEX INPUT'!$B$7:$B$42,L$12,'05. (b) CAPEX INPUT'!$C$7:$C$42)/10^6,IFERROR(VLOOKUP($B18,'05. (a) CAPEX INPUT'!$B$7:$N$237,13,0)*VLOOKUP($C18,$C$158:$F$174,L$12+1,0),0)/10^6)+IF(AND($H18=1,L$12=21,$D18<>"Caminhão Elétrico"),VLOOKUP($B18,'05. (a) CAPEX INPUT'!$B$7:$N$237,10,0),0)/10^6+IF(AND($H18=1,L$12=26,$D18="Caminhão Elétrico"),VLOOKUP($B18,'05. (a) CAPEX INPUT'!$B$7:$N$237,10,0),0)/10^6+IF(AND($H18=2,OR(L$12=16,L$12=30)),VLOOKUP($B18,'05. (a) CAPEX INPUT'!$B$7:$N$237,10,0),0)/10^6+IF(AND($H18=5,OR(L$12=6,L$12=11,L$12=16,L$12=21,L$12=26)),VLOOKUP($B18,'05. (a) CAPEX INPUT'!$B$7:$N$237,10,0),0)/10^6)*L$8*(1+$AU18)*$A18 -> 0 | M18: =(IF($B18="15.1.1.2",VLOOKUP($B18,'05. (a) CAPEX INPUT'!$B$7:$N$237,9,0)*SUMIF('05. (b) CAPEX INPUT'!$B$7:$B$42,M$12,'05. (b) CAPEX INPUT'!$C$7:$C$42)/10^6,IFERROR(VLOOKUP($B18,'05. (a) CAPEX INPUT'!$B$7:$N$237,13,0)*VLOOKUP($C18,$C$158:$F$174,M$12+1,0),0)/10^6)+IF(AND($H18=1,M$12=21,$D18<>"Caminhão Elétrico"),VLOOKUP($B18,'05. (a) CAPEX INPUT'!$B$7:$N$237,10,0),0)/10^6+IF(AND($H18=1,M$12=26,$D18="Caminhão Elétrico"),VLOOKUP($B18,'05. (a) CAPEX INPUT'!$B$7:$N$237,10,0),0)/10^6+IF(AND($H18=2,OR(M$12=16,M$12=30)),VLOOKUP($B18,'05. (a) CAPEX INPUT'!$B$7:$N$237,10,0),0)/10^6+IF(AND($H18=5,OR(M$12=6,M$12=11,M$12=16,M$12=21,M$12=26)),VLOOKUP($B18,'05. (a) CAPEX INPUT'!$B$7:$N$237,10,0),0)/10^6)*M$8*(1+$AU18)*$A18 -> 0 | N18: =(IF($B18="15.1.1.2",VLOOKUP($B18,'05. (a) CAPEX INPUT'!$B$7:$N$237,9,0)*SUMIF('05. (b) CAPEX INPUT'!$B$7:$B$42,N$12,'05. (b) CAPEX INPUT'!$C$7:$C$42)/10^6,IFERROR(VLOOKUP($B18,'05. (a) CAPEX INPUT'!$B$7:$N$237,13,0)*VLOOKUP($C18,$C$158:$F$174,N$12+1,0),0)/10^6)+IF(AND($H18=1,N$12=21,$D18<>"Caminhão Elétrico"),VLOOKUP($B18,'05. (a) CAPEX INPUT'!$B$7:$N$237,10,0),0)/10^6+IF(AND($H18=1,N$12=26,$D18="Caminhão Elétrico"),VLOOKUP($B18,'05. (a) CAPEX INPUT'!$B$7:$N$237,10,0),0)/10^6+IF(AND($H18=2,OR(N$12=16,N$12=30)),VLOOKUP($B18,'05. (a) CAPEX INPUT'!$B$7:$N$237,10,0),0)/10^6+IF(AND($H18=5,OR(N$12=6,N$12=11,N$12=16,N$12=21,N$12=26)),VLOOKUP($B18,'05. (a) CAPEX INPUT'!$B$7:$N$237,10,0),0)/10^6)*N$8*(1+$AU18)*$A18 -> 0 | O18: =(IF($B18="15.1.1.2",VLOOKUP($B18,'05. (a) CAPEX INPUT'!$B$7:$N$237,9,0)*SUMIF('05. (b) CAPEX INPUT'!$B$7:$B$42,O$12,'05. (b) CAPEX INPUT'!$C$7:$C$42)/10^6,IFERROR(VLOOKUP($B18,'05. (a) CAPEX INPUT'!$B$7:$N$237,13,0)*VLOOKUP($C18,$C$158:$F$174,O$12+1,0),0)/10^6)+IF(AND($H18=1,O$12=21,$D18<>"Caminhão Elétrico"),VLOOKUP($B18,'05. (a) CAPEX INPUT'!$B$7:$N$237,10,0),0)/10^6+IF(AND($H18=1,O$12=26,$D18="Caminhão Elétrico"),VLOOKUP($B18,'05. (a) CAPEX INPUT'!$B$7:$N$237,10,0),0)/10^6+IF(AND($H18=2,OR(O$12=16,O$12=30)),VLOOKUP($B18,'05. (a) CAPEX INPUT'!$B$7:$N$237,10,0),0)/10^6+IF(AND($H18=5,OR(O$12=6,O$12=11,O$12=16,O$12=21,O$12=26)),VLOOKUP($B18,'05. (a) CAPEX INPUT'!$B$7:$N$237,10,0),0)/10^6)*O$8*(1+$AU18)*$A18 -> 0 | P18: =(IF($B18="15.1.1.2",VLOOKUP($B18,'05. (a) CAPEX INPUT'!$B$7:$N$237,9,0)*SUMIF('05. (b) CAPEX INPUT'!$B$7:$B$42,P$12,'05. (b) CAPEX INPUT'!$C$7:$C$42)/10^6,IFERROR(VLOOKUP($B18,'05. (a) CAPEX INPUT'!$B$7:$N$237,13,0)*VLOOKUP($C18,$C$158:$F$174,P$12+1,0),0)/10^6)+IF(AND($H18=1,P$12=21,$D18<>"Caminhão Elétrico"),VLOOKUP($B18,'05. (a) CAPEX INPUT'!$B$7:$N$237,10,0),0)/10^6+IF(AND($H18=1,P$12=26,$D18="Caminhão Elétrico"),VLOOKUP($B18,'05. (a) CAPEX INPUT'!$B$7:$N$237,10,0),0)/10^6+IF(AND($H18=2,OR(P$12=16,P$12=30)),VLOOKUP($B18,'05. (a) CAPEX INPUT'!$B$7:$N$237,10,0),0)/10^6+IF(AND($H18=5,OR(P$12=6,P$12=11,P$12=16,P$12=21,P$12=26)),VLOOKUP($B18,'05. (a) CAPEX INPUT'!$B$7:$N$237,10,0),0)/10^6)*P$8*(1+$AU18)*$A18 -> 0 | Q18: =(IF($B18="15.1.1.2",VLOOKUP($B18,'05. (a) CAPEX INPUT'!$B$7:$N$237,9,0)*SUMIF('05. (b) CAPEX INPUT'!$B$7:$B$42,Q$12,'05. (b) CAPEX INPUT'!$C$7:$C$42)/10^6,IFERROR(VLOOKUP($B18,'05. (a) CAPEX INPUT'!$B$7:$N$237,13,0)*VLOOKUP($C18,$C$158:$F$174,Q$12+1,0),0)/10^6)+IF(AND($H18=1,Q$12=21,$D18<>"Caminhão Elétrico"),VLOOKUP($B18,'05. (a) CAPEX INPUT'!$B$7:$N$237,10,0),0)/10^6+IF(AND($H18=1,Q$12=26,$D18="Caminhão Elétrico"),VLOOKUP($B18,'05. (a) CAPEX INPUT'!$B$7:$N$237,10,0),0)/10^6+IF(AND($H18=2,OR(Q$12=16,Q$12=30)),VLOOKUP($B18,'05. (a) CAPEX INPUT'!$B$7:$N$237,10,0),0)/10^6+IF(AND($H18=5,OR(Q$12=6,Q$12=11,Q$12=16,Q$12=21,Q$12=26)),VLOOKUP($B18,'05. (a) CAPEX INPUT'!$B$7:$N$237,10,0),0)/10^6)*Q$8*(1+$AU18)*$A18 -> 0 | R18: =(IF($B18="15.1.1.2",VLOOKUP($B18,'05. (a) CAPEX INPUT'!$B$7:$N$237,9,0)*SUMIF('05. (b) CAPEX INPUT'!$B$7:$B$42,R$12,'05. (b) CAPEX INPUT'!$C$7:$C$42)/10^6,IFERROR(VLOOKUP($B18,'05. (a) CAPEX INPUT'!$B$7:$N$237,13,0)*VLOOKUP($C18,$C$158:$F$174,R$12+1,0),0)/10^6)+IF(AND($H18=1,R$12=21,$D18<>"Caminhão Elétrico"),VLOOKUP($B18,'05. (a) CAPEX INPUT'!$B$7:$N$237,10,0),0)/10^6+IF(AND($H18=1,R$12=26,$D18="Caminhão Elétrico"),VLOOKUP($B18,'05. (a) CAPEX INPUT'!$B$7:$N$237,10,0),0)/10^6+IF(AND($H18=2,OR(R$12=16,R$12=30)),VLOOKUP($B18,'05. (a) CAPEX INPUT'!$B$7:$N$237,10,0),0)/10^6+IF(AND($H18=5,OR(R$12=6,R$12=11,R$12=16,R$12=21,R$12=26)),VLOOKUP($B18,'05. (a) CAPEX INPUT'!$B$7:$N$237,10,0),0)/10^6)*R$8*(1+$AU18)*$A18 -> 0 | S18: =(IF($B18="15.1.1.2",VLOOKUP($B18,'05. (a) CAPEX INPUT'!$B$7:$N$237,9,0)*SUMIF('05. (b) CAPEX INPUT'!$B$7:$B$42,S$12,'05. (b) CAPEX INPUT'!$C$7:$C$42)/10^6,IFERROR(VLOOKUP($B18,'05. (a) CAPEX INPUT'!$B$7:$N$237,13,0)*VLOOKUP($C18,$C$158:$F$174,S$12+1,0),0)/10^6)+IF(AND($H18=1,S$12=21,$D18<>"Caminhão Elétrico"),VLOOKUP($B18,'05. (a) CAPEX INPUT'!$B$7:$N$237,10,0),0)/10^6+IF(AND($H18=1,S$12=26,$D18="Caminhão Elétrico"),VLOOKUP($B18,'05. (a) CAPEX INPUT'!$B$7:$N$237,10,0),0)/10^6+IF(AND($H18=2,OR(S$12=16,S$12=30)),VLOOKUP($B18,'05. (a) CAPEX INPUT'!$B$7:$N$237,10,0),0)/10^6+IF(AND($H18=5,OR(S$12=6,S$12=11,S$12=16,S$12=21,S$12=26)),VLOOKUP($B18,'05. (a) CAPEX INPUT'!$B$7:$N$237,10,0),0)/10^6)*S$8*(1+$AU18)*$A18 -> 0 | T18: =(IF($B18="15.1.1.2",VLOOKUP($B18,'05. (a) CAPEX INPUT'!$B$7:$N$237,9,0)*SUMIF('05. (b) CAPEX INPUT'!$B$7:$B$42,T$12,'05. (b) CAPEX INPUT'!$C$7:$C$42)/10^6,IFERROR(VLOOKUP($B18,'05. (a) CAPEX INPUT'!$B$7:$N$237,13,0)*VLOOKUP($C18,$C$158:$F$174,T$12+1,0),0)/10^6)+IF(AND($H18=1,T$12=21,$D18<>"Caminhão Elétrico"),VLOOKUP($B18,'05. (a) CAPEX INPUT'!$B$7:$N$237,10,0),0)/10^6+IF(AND($H18=1,T$12=26,$D18="Caminhão Elétrico"),VLOOKUP($B18,'05. (a) CAPEX INPUT'!$B$7:$N$237,10,0),0)/10^6+IF(AND($H18=2,OR(T$12=16,T$12=30)),VLOOKUP($B18,'05. (a) CAPEX INPUT'!$B$7:$N$237,10,0),0)/10^6+IF(AND($H18=5,OR(T$12=6,T$12=11,T$12=16,T$12=21,T$12=26)),VLOOKUP($B18,'05. (a) CAPEX INPUT'!$B$7:$N$237,10,0),0)/10^6)*T$8*(1+$AU18)*$A18 -> 0 | U18: =(IF($B18="15.1.1.2",VLOOKUP($B18,'05. (a) CAPEX INPUT'!$B$7:$N$237,9,0)*SUMIF('05. (b) CAPEX INPUT'!$B$7:$B$42,U$12,'05. (b) CAPEX INPUT'!$C$7:$C$42)/10^6,IFERROR(VLOOKUP($B18,'05. (a) CAPEX INPUT'!$B$7:$N$237,13,0)*VLOOKUP($C18,$C$158:$F$174,U$12+1,0),0)/10^6)+IF(AND($H18=1,U$12=21,$D18<>"Caminhão Elétrico"),VLOOKUP($B18,'05. (a) CAPEX INPUT'!$B$7:$N$237,10,0),0)/10^6+IF(AND($H18=1,U$12=26,$D18="Caminhão Elétrico"),VLOOKUP($B18,'05. (a) CAPEX INPUT'!$B$7:$N$237,10,0),0)/10^6+IF(AND($H18=2,OR(U$12=16,U$12=30)),VLOOKUP($B18,'05. (a) CAPEX INPUT'!$B$7:$N$237,10,0),0)/10^6+IF(AND($H18=5,OR(U$12=6,U$12=11,U$12=16,U$12=21,U$12=26)),VLOOKUP($B18,'05. (a) CAPEX INPUT'!$B$7:$N$237,10,0),0)/10^6)*U$8*(1+$AU18)*$A18 -> 0 | V18: =(IF($B18="15.1.1.2",VLOOKUP($B18,'05. (a) CAPEX INPUT'!$B$7:$N$237,9,0)*SUMIF('05. (b) CAPEX INPUT'!$B$7:$B$42,V$12,'05. (b) CAPEX INPUT'!$C$7:$C$42)/10^6,IFERROR(VLOOKUP($B18,'05. (a) CAPEX INPUT'!$B$7:$N$237,13,0)*VLOOKUP($C18,$C$158:$F$174,V$12+1,0),0)/10^6)+IF(AND($H18=1,V$12=21,$D18<>"Caminhão Elétrico"),VLOOKUP($B18,'05. (a) CAPEX INPUT'!$B$7:$N$237,10,0),0)/10^6+IF(AND($H18=1,V$12=26,$D18="Caminhão Elétrico"),VLOOKUP($B18,'05. (a) CAPEX INPUT'!$B$7:$N$237,10,0),0)/10^6+IF(AND($H18=2,OR(V$12=16,V$12=30)),VLOOKUP($B18,'05. (a) CAPEX INPUT'!$B$7:$N$237,10,0),0)/10^6+IF(AND($H18=5,OR(V$12=6,V$12=11,V$12=16,V$12=21,V$12=26)),VLOOKUP($B18,'05. (a) CAPEX INPUT'!$B$7:$N$237,10,0),0)/10^6)*V$8*(1+$AU18)*$A18 -> 0 | W18: =(IF($B18="15.1.1.2",VLOOKUP($B18,'05. (a) CAPEX INPUT'!$B$7:$N$237,9,0)*SUMIF('05. (b) CAPEX INPUT'!$B$7:$B$42,W$12,'05. (b) CAPEX INPUT'!$C$7:$C$42)/10^6,IFERROR(VLOOKUP($B18,'05. (a) CAPEX INPUT'!$B$7:$N$237,13,0)*VLOOKUP($C18,$C$158:$F$174,W$12+1,0),0)/10^6)+IF(AND($H18=1,W$12=21,$D18<>"Caminhão Elétrico"),VLOOKUP($B18,'05. (a) CAPEX INPUT'!$B$7:$N$237,10,0),0)/10^6+IF(AND($H18=1,W$12=26,$D18="Caminhão Elétrico"),VLOOKUP($B18,'05. (a) CAPEX INPUT'!$B$7:$N$237,10,0),0)/10^6+IF(AND($H18=2,OR(W$12=16,W$12=30)),VLOOKUP($B18,'05. (a) CAPEX INPUT'!$B$7:$N$237,10,0),0)/10^6+IF(AND($H18=5,OR(W$12=6,W$12=11,W$12=16,W$12=21,W$12=26)),VLOOKUP($B18,'05. (a) CAPEX INPUT'!$B$7:$N$237,10,0),0)/10^6)*W$8*(1+$AU18)*$A18 -> 0 | X18: =(IF($B18="15.1.1.2",VLOOKUP($B18,'05. (a) CAPEX INPUT'!$B$7:$N$237,9,0)*SUMIF('05. (b) CAPEX INPUT'!$B$7:$B$42,X$12,'05. (b) CAPEX INPUT'!$C$7:$C$42)/10^6,IFERROR(VLOOKUP($B18,'05. (a) CAPEX INPUT'!$B$7:$N$237,13,0)*VLOOKUP($C18,$C$158:$F$174,X$12+1,0),0)/10^6)+IF(AND($H18=1,X$12=21,$D18<>"Caminhão Elétrico"),VLOOKUP($B18,'05. (a) CAPEX INPUT'!$B$7:$N$237,10,0),0)/10^6+IF(AND($H18=1,X$12=26,$D18="Caminhão Elétrico"),VLOOKUP($B18,'05. (a) CAPEX INPUT'!$B$7:$N$237,10,0),0)/10^6+IF(AND($H18=2,OR(X$12=16,X$12=30)),VLOOKUP($B18,'05. (a) CAPEX INPUT'!$B$7:$N$237,10,0),0)/10^6+IF(AND($H18=5,OR(X$12=6,X$12=11,X$12=16,X$12=21,X$12=26)),VLOOKUP($B18,'05. (a) CAPEX INPUT'!$B$7:$N$237,10,0),0)/10^6)*X$8*(1+$AU18)*$A18 -> 0 | Y18: =(IF($B18="15.1.1.2",VLOOKUP($B18,'05. (a) CAPEX INPUT'!$B$7:$N$237,9,0)*SUMIF('05. (b) CAPEX INPUT'!$B$7:$B$42,Y$12,'05. (b) CAPEX INPUT'!$C$7:$C$42)/10^6,IFERROR(VLOOKUP($B18,'05. (a) CAPEX INPUT'!$B$7:$N$237,13,0)*VLOOKUP($C18,$C$158:$F$174,Y$12+1,0),0)/10^6)+IF(AND($H18=1,Y$12=21,$D18<>"Caminhão Elétrico"),VLOOKUP($B18,'05. (a) CAPEX INPUT'!$B$7:$N$237,10,0),0)/10^6+IF(AND($H18=1,Y$12=26,$D18="Caminhão Elétrico"),VLOOKUP($B18,'05. (a) CAPEX INPUT'!$B$7:$N$237,10,0),0)/10^6+IF(AND($H18=2,OR(Y$12=16,Y$12=30)),VLOOKUP($B18,'05. (a) CAPEX INPUT'!$B$7:$N$237,10,0),0)/10^6+IF(AND($H18=5,OR(Y$12=6,Y$12=11,Y$12=16,Y$12=21,Y$12=26)),VLOOKUP($B18,'05. (a) CAPEX INPUT'!$B$7:$N$237,10,0),0)/10^6)*Y$8*(1+$AU18)*$A18 -> 0 | Z18: =(IF($B18="15.1.1.2",VLOOKUP($B18,'05. (a) CAPEX INPUT'!$B$7:$N$237,9,0)*SUMIF('05. (b) CAPEX INPUT'!$B$7:$B$42,Z$12,'05. (b) CAPEX INPUT'!$C$7:$C$42)/10^6,IFERROR(VLOOKUP($B18,'05. (a) CAPEX INPUT'!$B$7:$N$237,13,0)*VLOOKUP($C18,$C$158:$F$174,Z$12+1,0),0)/10^6)+IF(AND($H18=1,Z$12=21,$D18<>"Caminhão Elétrico"),VLOOKUP($B18,'05. (a) CAPEX INPUT'!$B$7:$N$237,10,0),0)/10^6+IF(AND($H18=1,Z$12=26,$D18="Caminhão Elétrico"),VLOOKUP($B18,'05. (a) CAPEX INPUT'!$B$7:$N$237,10,0),0)/10^6+IF(AND($H18=2,OR(Z$12=16,Z$12=30)),VLOOKUP($B18,'05. (a) CAPEX INPUT'!$B$7:$N$237,10,0),0)/10^6+IF(AND($H18=5,OR(Z$12=6,Z$12=11,Z$12=16,Z$12=21,Z$12=26)),VLOOKUP($B18,'05. (a) CAPEX INPUT'!$B$7:$N$237,10,0),0)/10^6)*Z$8*(1+$AU18)*$A18 -> 0 | AA18: =(IF($B18="15.1.1.2",VLOOKUP($B18,'05. (a) CAPEX INPUT'!$B$7:$N$237,9,0)*SUMIF('05. (b) CAPEX INPUT'!$B$7:$B$42,AA$12,'05. (b) CAPEX INPUT'!$C$7:$C$42)/10^6,IFERROR(VLOOKUP($B18,'05. (a) CAPEX INPUT'!$B$7:$N$237,13,0)*VLOOKUP($C18,$C$158:$F$174,AA$12+1,0),0)/10^6)+IF(AND($H18=1,AA$12=21,$D18<>"Caminhão Elétrico"),VLOOKUP($B18,'05. (a) CAPEX INPUT'!$B$7:$N$237,10,0),0)/10^6+IF(AND($H18=1,AA$12=26,$D18="Caminhão Elétrico"),VLOOKUP($B18,'05. (a) CAPEX INPUT'!$B$7:$N$237,10,0),0)/10^6+IF(AND($H18=2,OR(AA$12=16,AA$12=30)),VLOOKUP($B18,'05. (a) CAPEX INPUT'!$B$7:$N$237,10,0),0)/10^6+IF(AND($H18=5,OR(AA$12=6,AA$12=11,AA$12=16,AA$12=21,AA$12=26)),VLOOKUP($B18,'05. (a) CAPEX INPUT'!$B$7:$N$237,10,0),0)/10^6)*AA$8*(1+$AU18)*$A18 -> 0 | AB18: =(IF($B18="15.1.1.2",VLOOKUP($B18,'05. (a) CAPEX INPUT'!$B$7:$N$237,9,0)*SUMIF('05. (b) CAPEX INPUT'!$B$7:$B$42,AB$12,'05. (b) CAPEX INPUT'!$C$7:$C$42)/10^6,IFERROR(VLOOKUP($B18,'05. (a) CAPEX INPUT'!$B$7:$N$237,13,0)*VLOOKUP($C18,$C$158:$F$174,AB$12+1,0),0)/10^6)+IF(AND($H18=1,AB$12=21,$D18<>"Caminhão Elétrico"),VLOOKUP($B18,'05. (a) CAPEX INPUT'!$B$7:$N$237,10,0),0)/10^6+IF(AND($H18=1,AB$12=26,$D18="Caminhão Elétrico"),VLOOKUP($B18,'05. (a) CAPEX INPUT'!$B$7:$N$237,10,0),0)/10^6+IF(AND($H18=2,OR(AB$12=16,AB$12=30)),VLOOKUP($B18,'05. (a) CAPEX INPUT'!$B$7:$N$237,10,0),0)/10^6+IF(AND($H18=5,OR(AB$12=6,AB$12=11,AB$12=16,AB$12=21,AB$12=26)),VLOOKUP($B18,'05. (a) CAPEX INPUT'!$B$7:$N$237,10,0),0)/10^6)*AB$8*(1+$AU18)*$A18 -> 0 | AC18: =(IF($B18="15.1.1.2",VLOOKUP($B18,'05. (a) CAPEX INPUT'!$B$7:$N$237,9,0)*SUMIF('05. (b) CAPEX INPUT'!$B$7:$B$42,AC$12,'05. (b) CAPEX INPUT'!$C$7:$C$42)/10^6,IFERROR(VLOOKUP($B18,'05. (a) CAPEX INPUT'!$B$7:$N$237,13,0)*VLOOKUP($C18,$C$158:$F$174,AC$12+1,0),0)/10^6)+IF(AND($H18=1,AC$12=21,$D18<>"Caminhão Elétrico"),VLOOKUP($B18,'05. (a) CAPEX INPUT'!$B$7:$N$237,10,0),0)/10^6+IF(AND($H18=1,AC$12=26,$D18="Caminhão Elétrico"),VLOOKUP($B18,'05. (a) CAPEX INPUT'!$B$7:$N$237,10,0),0)/10^6+IF(AND($H18=2,OR(AC$12=16,AC$12=30)),VLOOKUP($B18,'05. (a) CAPEX INPUT'!$B$7:$N$237,10,0),0)/10^6+IF(AND($H18=5,OR(AC$12=6,AC$12=11,AC$12=16,AC$12=21,AC$12=26)),VLOOKUP($B18,'05. (a) CAPEX INPUT'!$B$7:$N$237,10,0),0)/10^6)*AC$8*(1+$AU18)*$A18 -> 0 | AD18: =(IF($B18="15.1.1.2",VLOOKUP($B18,'05. (a) CAPEX INPUT'!$B$7:$N$237,9,0)*SUMIF('05. (b) CAPEX INPUT'!$B$7:$B$42,AD$12,'05. (b) CAPEX INPUT'!$C$7:$C$42)/10^6,IFERROR(VLOOKUP($B18,'05. (a) CAPEX INPUT'!$B$7:$N$237,13,0)*VLOOKUP($C18,$C$158:$F$174,AD$12+1,0),0)/10^6)+IF(AND($H18=1,AD$12=21,$D18<>"Caminhão Elétrico"),VLOOKUP($B18,'05. (a) CAPEX INPUT'!$B$7:$N$237,10,0),0)/10^6+IF(AND($H18=1,AD$12=26,$D18="Caminhão Elétrico"),VLOOKUP($B18,'05. (a) CAPEX INPUT'!$B$7:$N$237,10,0),0)/10^6+IF(AND($H18=2,OR(AD$12=16,AD$12=30)),VLOOKUP($B18,'05. (a) CAPEX INPUT'!$B$7:$N$237,10,0),0)/10^6+IF(AND($H18=5,OR(AD$12=6,AD$12=11,AD$12=16,AD$12=21,AD$12=26)),VLOOKUP($B18,'05. (a) CAPEX INPUT'!$B$7:$N$237,10,0),0)/10^6)*AD$8*(1+$AU18)*$A18 -> 0 | AE18: =(IF($B18="15.1.1.2",VLOOKUP($B18,'05. (a) CAPEX INPUT'!$B$7:$N$237,9,0)*SUMIF('05. (b) CAPEX INPUT'!$B$7:$B$42,AE$12,'05. (b) CAPEX INPUT'!$C$7:$C$42)/10^6,IFERROR(VLOOKUP($B18,'05. (a) CAPEX INPUT'!$B$7:$N$237,13,0)*VLOOKUP($C18,$C$158:$F$174,AE$12+1,0),0)/10^6)+IF(AND($H18=1,AE$12=21,$D18<>"Caminhão Elétrico"),VLOOKUP($B18,'05. (a) CAPEX INPUT'!$B$7:$N$237,10,0),0)/10^6+IF(AND($H18=1,AE$12=26,$D18="Caminhão Elétrico"),VLOOKUP($B18,'05. (a) CAPEX INPUT'!$B$7:$N$237,10,0),0)/10^6+IF(AND($H18=2,OR(AE$12=16,AE$12=30)),VLOOKUP($B18,'05. (a) CAPEX INPUT'!$B$7:$N$237,10,0),0)/10^6+IF(AND($H18=5,OR(AE$12=6,AE$12=11,AE$12=16,AE$12=21,AE$12=26)),VLOOKUP($B18,'05. (a) CAPEX INPUT'!$B$7:$N$237,10,0),0)/10^6)*AE$8*(1+$AU18)*$A18 -> 0 | AF18: =(IF($B18="15.1.1.2",VLOOKUP($B18,'05. (a) CAPEX INPUT'!$B$7:$N$237,9,0)*SUMIF('05. (b) CAPEX INPUT'!$B$7:$B$42,AF$12,'05. (b) CAPEX INPUT'!$C$7:$C$42)/10^6,IFERROR(VLOOKUP($B18,'05. (a) CAPEX INPUT'!$B$7:$N$237,13,0)*VLOOKUP($C18,$C$158:$F$174,AF$12+1,0),0)/10^6)+IF(AND($H18=1,AF$12=21,$D18<>"Caminhão Elétrico"),VLOOKUP($B18,'05. (a) CAPEX INPUT'!$B$7:$N$237,10,0),0)/10^6+IF(AND($H18=1,AF$12=26,$D18="Caminhão Elétrico"),VLOOKUP($B18,'05. (a) CAPEX INPUT'!$B$7:$N$237,10,0),0)/10^6+IF(AND($H18=2,OR(AF$12=16,AF$12=30)),VLOOKUP($B18,'05. (a) CAPEX INPUT'!$B$7:$N$237,10,0),0)/10^6+IF(AND($H18=5,OR(AF$12=6,AF$12=11,AF$12=16,AF$12=21,AF$12=26)),VLOOKUP($B18,'05. (a) CAPEX INPUT'!$B$7:$N$237,10,0),0)/10^6)*AF$8*(1+$AU18)*$A18 -> 0 | AG18: =(IF($B18="15.1.1.2",VLOOKUP($B18,'05. (a) CAPEX INPUT'!$B$7:$N$237,9,0)*SUMIF('05. (b) CAPEX INPUT'!$B$7:$B$42,AG$12,'05. (b) CAPEX INPUT'!$C$7:$C$42)/10^6,IFERROR(VLOOKUP($B18,'05. (a) CAPEX INPUT'!$B$7:$N$237,13,0)*VLOOKUP($C18,$C$158:$F$174,AG$12+1,0),0)/10^6)+IF(AND($H18=1,AG$12=21,$D18<>"Caminhão Elétrico"),VLOOKUP($B18,'05. (a) CAPEX INPUT'!$B$7:$N$237,10,0),0)/10^6+IF(AND($H18=1,AG$12=26,$D18="Caminhão Elétrico"),VLOOKUP($B18,'05. (a) CAPEX INPUT'!$B$7:$N$237,10,0),0)/10^6+IF(AND($H18=2,OR(AG$12=16,AG$12=30)),VLOOKUP($B18,'05. (a) CAPEX INPUT'!$B$7:$N$237,10,0),0)/10^6+IF(AND($H18=5,OR(AG$12=6,AG$12=11,AG$12=16,AG$12=21,AG$12=26)),VLOOKUP($B18,'05. (a) CAPEX INPUT'!$B$7:$N$237,10,0),0)/10^6)*AG$8*(1+$AU18)*$A18 -> 0 | AH18: =(IF($B18="15.1.1.2",VLOOKUP($B18,'05. (a) CAPEX INPUT'!$B$7:$N$237,9,0)*SUMIF('05. (b) CAPEX INPUT'!$B$7:$B$42,AH$12,'05. (b) CAPEX INPUT'!$C$7:$C$42)/10^6,IFERROR(VLOOKUP($B18,'05. (a) CAPEX INPUT'!$B$7:$N$237,13,0)*VLOOKUP($C18,$C$158:$F$174,AH$12+1,0),0)/10^6)+IF(AND($H18=1,AH$12=21,$D18<>"Caminhão Elétrico"),VLOOKUP($B18,'05. (a) CAPEX INPUT'!$B$7:$N$237,10,0),0)/10^6+IF(AND($H18=1,AH$12=26,$D18="Caminhão Elétrico"),VLOOKUP($B18,'05. (a) CAPEX INPUT'!$B$7:$N$237,10,0),0)/10^6+IF(AND($H18=2,OR(AH$12=16,AH$12=30)),VLOOKUP($B18,'05. (a) CAPEX INPUT'!$B$7:$N$237,10,0),0)/10^6+IF(AND($H18=5,OR(AH$12=6,AH$12=11,AH$12=16,AH$12=21,AH$12=26)),VLOOKUP($B18,'05. (a) CAPEX INPUT'!$B$7:$N$237,10,0),0)/10^6)*AH$8*(1+$AU18)*$A18 -> 0 | AI18: =(IF($B18="15.1.1.2",VLOOKUP($B18,'05. (a) CAPEX INPUT'!$B$7:$N$237,9,0)*SUMIF('05. (b) CAPEX INPUT'!$B$7:$B$42,AI$12,'05. (b) CAPEX INPUT'!$C$7:$C$42)/10^6,IFERROR(VLOOKUP($B18,'05. (a) CAPEX INPUT'!$B$7:$N$237,13,0)*VLOOKUP($C18,$C$158:$F$174,AI$12+1,0),0)/10^6)+IF(AND($H18=1,AI$12=21,$D18<>"Caminhão Elétrico"),VLOOKUP($B18,'05. (a) CAPEX INPUT'!$B$7:$N$237,10,0),0)/10^6+IF(AND($H18=1,AI$12=26,$D18="Caminhão Elétrico"),VLOOKUP($B18,'05. (a) CAPEX INPUT'!$B$7:$N$237,10,0),0)/10^6+IF(AND($H18=2,OR(AI$12=16,AI$12=30)),VLOOKUP($B18,'05. (a) CAPEX INPUT'!$B$7:$N$237,10,0),0)/10^6+IF(AND($H18=5,OR(AI$12=6,AI$12=11,AI$12=16,AI$12=21,AI$12=26)),VLOOKUP($B18,'05. (a) CAPEX INPUT'!$B$7:$N$237,10,0),0)/10^6)*AI$8*(1+$AU18)*$A18 -> 0 | AJ18: =(IF($B18="15.1.1.2",VLOOKUP($B18,'05. (a) CAPEX INPUT'!$B$7:$N$237,9,0)*SUMIF('05. (b) CAPEX INPUT'!$B$7:$B$42,AJ$12,'05. (b) CAPEX INPUT'!$C$7:$C$42)/10^6,IFERROR(VLOOKUP($B18,'05. (a) CAPEX INPUT'!$B$7:$N$237,13,0)*VLOOKUP($C18,$C$158:$F$174,AJ$12+1,0),0)/10^6)+IF(AND($H18=1,AJ$12=21,$D18<>"Caminhão Elétrico"),VLOOKUP($B18,'05. (a) CAPEX INPUT'!$B$7:$N$237,10,0),0)/10^6+IF(AND($H18=1,AJ$12=26,$D18="Caminhão Elétrico"),VLOOKUP($B18,'05. (a) CAPEX INPUT'!$B$7:$N$237,10,0),0)/10^6+IF(AND($H18=2,OR(AJ$12=16,AJ$12=30)),VLOOKUP($B18,'05. (a) CAPEX INPUT'!$B$7:$N$237,10,0),0)/10^6+IF(AND($H18=5,OR(AJ$12=6,AJ$12=11,AJ$12=16,AJ$12=21,AJ$12=26)),VLOOKUP($B18,'05. (a) CAPEX INPUT'!$B$7:$N$237,10,0),0)/10^6)*AJ$8*(1+$AU18)*$A18 -> 0 | AK18: =(IF($B18="15.1.1.2",VLOOKUP($B18,'05. (a) CAPEX INPUT'!$B$7:$N$237,9,0)*SUMIF('05. (b) CAPEX INPUT'!$B$7:$B$42,AK$12,'05. (b) CAPEX INPUT'!$C$7:$C$42)/10^6,IFERROR(VLOOKUP($B18,'05. (a) CAPEX INPUT'!$B$7:$N$237,13,0)*VLOOKUP($C18,$C$158:$F$174,AK$12+1,0),0)/10^6)+IF(AND($H18=1,AK$12=21,$D18<>"Caminhão Elétrico"),VLOOKUP($B18,'05. (a) CAPEX INPUT'!$B$7:$N$237,10,0),0)/10^6+IF(AND($H18=1,AK$12=26,$D18="Caminhão Elétrico"),VLOOKUP($B18,'05. (a) CAPEX INPUT'!$B$7:$N$237,10,0),0)/10^6+IF(AND($H18=2,OR(AK$12=16,AK$12=30)),VLOOKUP($B18,'05. (a) CAPEX INPUT'!$B$7:$N$237,10,0),0)/10^6+IF(AND($H18=5,OR(AK$12=6,AK$12=11,AK$12=16,AK$12=21,AK$12=26)),VLOOKUP($B18,'05. (a) CAPEX INPUT'!$B$7:$N$237,10,0),0)/10^6)*AK$8*(1+$AU18)*$A18 -> 0 | AL18: =(IF($B18="15.1.1.2",VLOOKUP($B18,'05. (a) CAPEX INPUT'!$B$7:$N$237,9,0)*SUMIF('05. (b) CAPEX INPUT'!$B$7:$B$42,AL$12,'05. (b) CAPEX INPUT'!$C$7:$C$42)/10^6,IFERROR(VLOOKUP($B18,'05. (a) CAPEX INPUT'!$B$7:$N$237,13,0)*VLOOKUP($C18,$C$158:$F$174,AL$12+1,0),0)/10^6)+IF(AND($H18=1,AL$12=21,$D18<>"Caminhão Elétrico"),VLOOKUP($B18,'05. (a) CAPEX INPUT'!$B$7:$N$237,10,0),0)/10^6+IF(AND($H18=1,AL$12=26,$D18="Caminhão Elétrico"),VLOOKUP($B18,'05. (a) CAPEX INPUT'!$B$7:$N$237,10,0),0)/10^6+IF(AND($H18=2,OR(AL$12=16,AL$12=30)),VLOOKUP($B18,'05. (a) CAPEX INPUT'!$B$7:$N$237,10,0),0)/10^6+IF(AND($H18=5,OR(AL$12=6,AL$12=11,AL$12=16,AL$12=21,AL$12=26)),VLOOKUP($B18,'05. (a) CAPEX INPUT'!$B$7:$N$237,10,0),0)/10^6)*AL$8*(1+$AU18)*$A18 -> 0 | AM18: =(IF($B18="15.1.1.2",VLOOKUP($B18,'05. (a) CAPEX INPUT'!$B$7:$N$237,9,0)*SUMIF('05. (b) CAPEX INPUT'!$B$7:$B$42,AM$12,'05. (b) CAPEX INPUT'!$C$7:$C$42)/10^6,IFERROR(VLOOKUP($B18,'05. (a) CAPEX INPUT'!$B$7:$N$237,13,0)*VLOOKUP($C18,$C$158:$F$174,AM$12+1,0),0)/10^6)+IF(AND($H18=1,AM$12=21,$D18<>"Caminhão Elétrico"),VLOOKUP($B18,'05. (a) CAPEX INPUT'!$B$7:$N$237,10,0),0)/10^6+IF(AND($H18=1,AM$12=26,$D18="Caminhão Elétrico"),VLOOKUP($B18,'05. (a) CAPEX INPUT'!$B$7:$N$237,10,0),0)/10^6+IF(AND($H18=2,OR(AM$12=16,AM$12=30)),VLOOKUP($B18,'05. (a) CAPEX INPUT'!$B$7:$N$237,10,0),0)/10^6+IF(AND($H18=5,OR(AM$12=6,AM$12=11,AM$12=16,AM$12=21,AM$12=26)),VLOOKUP($B18,'05. (a) CAPEX INPUT'!$B$7:$N$237,10,0),0)/10^6)*AM$8*(1+$AU18)*$A18 -> 0 | AN18: =(IF($B18="15.1.1.2",VLOOKUP($B18,'05. (a) CAPEX INPUT'!$B$7:$N$237,9,0)*SUMIF('05. (b) CAPEX INPUT'!$B$7:$B$42,AN$12,'05. (b) CAPEX INPUT'!$C$7:$C$42)/10^6,IFERROR(VLOOKUP($B18,'05. (a) CAPEX INPUT'!$B$7:$N$237,13,0)*VLOOKUP($C18,$C$158:$F$174,AN$12+1,0),0)/10^6)+IF(AND($H18=1,AN$12=21,$D18<>"Caminhão Elétrico"),VLOOKUP($B18,'05. (a) CAPEX INPUT'!$B$7:$N$237,10,0),0)/10^6+IF(AND($H18=1,AN$12=26,$D18="Caminhão Elétrico"),VLOOKUP($B18,'05. (a) CAPEX INPUT'!$B$7:$N$237,10,0),0)/10^6+IF(AND($H18=2,OR(AN$12=16,AN$12=30)),VLOOKUP($B18,'05. (a) CAPEX INPUT'!$B$7:$N$237,10,0),0)/10^6+IF(AND($H18=5,OR(AN$12=6,AN$12=11,AN$12=16,AN$12=21,AN$12=26)),VLOOKUP($B18,'05. (a) CAPEX INPUT'!$B$7:$N$237,10,0),0)/10^6)*AN$8*(1+$AU18)*$A18 -> 0 | AO18: =(IF($B18="15.1.1.2",VLOOKUP($B18,'05. (a) CAPEX INPUT'!$B$7:$N$237,9,0)*SUMIF('05. (b) CAPEX INPUT'!$B$7:$B$42,AO$12,'05. (b) CAPEX INPUT'!$C$7:$C$42)/10^6,IFERROR(VLOOKUP($B18,'05. (a) CAPEX INPUT'!$B$7:$N$237,13,0)*VLOOKUP($C18,$C$158:$F$174,AO$12+1,0),0)/10^6)+IF(AND($H18=1,AO$12=21,$D18<>"Caminhão Elétrico"),VLOOKUP($B18,'05. (a) CAPEX INPUT'!$B$7:$N$237,10,0),0)/10^6+IF(AND($H18=1,AO$12=26,$D18="Caminhão Elétrico"),VLOOKUP($B18,'05. (a) CAPEX INPUT'!$B$7:$N$237,10,0),0)/10^6+IF(AND($H18=2,OR(AO$12=16,AO$12=30)),VLOOKUP($B18,'05. (a) CAPEX INPUT'!$B$7:$N$237,10,0),0)/10^6+IF(AND($H18=5,OR(AO$12=6,AO$12=11,AO$12=16,AO$12=21,AO$12=26)),VLOOKUP($B18,'05. (a) CAPEX INPUT'!$B$7:$N$237,10,0),0)/10^6)*AO$8*(1+$AU18)*$A18 -> 0 | AP18: =(IF($B18="15.1.1.2",VLOOKUP($B18,'05. (a) CAPEX INPUT'!$B$7:$N$237,9,0)*SUMIF('05. (b) CAPEX INPUT'!$B$7:$B$42,AP$12,'05. (b) CAPEX INPUT'!$C$7:$C$42)/10^6,IFERROR(VLOOKUP($B18,'05. (a) CAPEX INPUT'!$B$7:$N$237,13,0)*VLOOKUP($C18,$C$158:$F$174,AP$12+1,0),0)/10^6)+IF(AND($H18=1,AP$12=21,$D18<>"Caminhão Elétrico"),VLOOKUP($B18,'05. (a) CAPEX INPUT'!$B$7:$N$237,10,0),0)/10^6+IF(AND($H18=1,AP$12=26,$D18="Caminhão Elétrico"),VLOOKUP($B18,'05. (a) CAPEX INPUT'!$B$7:$N$237,10,0),0)/10^6+IF(AND($H18=2,OR(AP$12=16,AP$12=30)),VLOOKUP($B18,'05. (a) CAPEX INPUT'!$B$7:$N$237,10,0),0)/10^6+IF(AND($H18=5,OR(AP$12=6,AP$12=11,AP$12=16,AP$12=21,AP$12=26)),VLOOKUP($B18,'05. (a) CAPEX INPUT'!$B$7:$N$237,10,0),0)/10^6)*AP$8*(1+$AU18)*$A18 -> 0 | AQ18: =(IF($B18="15.1.1.2",VLOOKUP($B18,'05. (a) CAPEX INPUT'!$B$7:$N$237,9,0)*SUMIF('05. (b) CAPEX INPUT'!$B$7:$B$42,AQ$12,'05. (b) CAPEX INPUT'!$C$7:$C$42)/10^6,IFERROR(VLOOKUP($B18,'05. (a) CAPEX INPUT'!$B$7:$N$237,13,0)*VLOOKUP($C18,$C$158:$F$174,AQ$12+1,0),0)/10^6)+IF(AND($H18=1,AQ$12=21,$D18<>"Caminhão Elétrico"),VLOOKUP($B18,'05. (a) CAPEX INPUT'!$B$7:$N$237,10,0),0)/10^6+IF(AND($H18=1,AQ$12=26,$D18="Caminhão Elétrico"),VLOOKUP($B18,'05. (a) CAPEX INPUT'!$B$7:$N$237,10,0),0)/10^6+IF(AND($H18=2,OR(AQ$12=16,AQ$12=30)),VLOOKUP($B18,'05. (a) CAPEX INPUT'!$B$7:$N$237,10,0),0)/10^6+IF(AND($H18=5,OR(AQ$12=6,AQ$12=11,AQ$12=16,AQ$12=21,AQ$12=26)),VLOOKUP($B18,'05. (a) CAPEX INPUT'!$B$7:$N$237,10,0),0)/10^6)*AQ$8*(1+$AU18)*$A18 -> 0 | AS18: 0.00200490392 | AU18: ='01. PC'!$Q$25 -> 0
A19: =IF(E19="Encargo",1,IF(E19="Bilheteria",1,VLOOKUP($E19,'01. PC'!$O$10:$P$18,2,0))) -> 1 | B19: ='05. (a) CAPEX INPUT'!B15 -> 1.1.2.1 | C19: =VLOOKUP(VALUE(LEFT(B19,SEARCH(".",B19,1)-1)),$B$158:$F$174,2,0) -> Centro de Apoio aos Visitantes (CAV) | D19: ='05. (a) CAPEX INPUT'!G15 -> Demolição de Edificação | E19: ='05. (a) CAPEX INPUT'!E15 -> Encargo | F19: ='05. (a) CAPEX INPUT'!F15 -> Edificações | G19: =VLOOKUP(B19,'05. (a) CAPEX INPUT'!$B$7:$N$237,3,0) -> 32 | H19: =IFERROR(VLOOKUP(G19,'05. (c) RECAPEX INPUT'!$B$7:$H$26,4,0),"-") -> - | I19: =(IF($B19="15.1.1.2",VLOOKUP($B19,'05. (a) CAPEX INPUT'!$B$7:$N$237,9,0)*SUMIF('05. (b) CAPEX INPUT'!$B$7:$B$42,I$12,'05. (b) CAPEX INPUT'!$C$7:$C$42)/10^6,IFERROR(VLOOKUP($B19,'05. (a) CAPEX INPUT'!$B$7:$N$237,13,0)*VLOOKUP($C19,$C$158:$F$174,I$12+1,0),0)/10^6)+IF(AND($H19=1,I$12=21,$D19<>"Caminhão Elétrico"),VLOOKUP($B19,'05. (a) CAPEX INPUT'!$B$7:$N$237,10,0),0)/10^6+IF(AND($H19=1,I$12=26,$D19="Caminhão Elétrico"),VLOOKUP($B19,'05. (a) CAPEX INPUT'!$B$7:$N$237,10,0),0)/10^6+IF(AND($H19=2,OR(I$12=16,I$12=30)),VLOOKUP($B19,'05. (a) CAPEX INPUT'!$B$7:$N$237,10,0),0)/10^6+IF(AND($H19=5,OR(I$12=6,I$12=11,I$12=16,I$12=21,I$12=26)),VLOOKUP($B19,'05. (a) CAPEX INPUT'!$B$7:$N$237,10,0),0)/10^6)*I$8*(1+$AU19)*$A19 -> 0.005499163629 | J19: =(IF($B19="15.1.1.2",VLOOKUP($B19,'05. (a) CAPEX INPUT'!$B$7:$N$237,9,0)*SUMIF('05. (b) CAPEX INPUT'!$B$7:$B$42,J$12,'05. (b) CAPEX INPUT'!$C$7:$C$42)/10^6,IFERROR(VLOOKUP($B19,'05. (a) CAPEX INPUT'!$B$7:$N$237,13,0)*VLOOKUP($C19,$C$158:$F$174,J$12+1,0),0)/10^6)+IF(AND($H19=1,J$12=21,$D19<>"Caminhão Elétrico"),VLOOKUP($B19,'05. (a) CAPEX INPUT'!$B$7:$N$237,10,0),0)/10^6+IF(AND($H19=1,J$12=26,$D19="Caminhão Elétrico"),VLOOKUP($B19,'05. (a) CAPEX INPUT'!$B$7:$N$237,10,0),0)/10^6+IF(AND($H19=2,OR(J$12=16,J$12=30)),VLOOKUP($B19,'05. (a) CAPEX INPUT'!$B$7:$N$237,10,0),0)/10^6+IF(AND($H19=5,OR(J$12=6,J$12=11,J$12=16,J$12=21,J$12=26)),VLOOKUP($B19,'05. (a) CAPEX INPUT'!$B$7:$N$237,10,0),0)/10^6)*J$8*(1+$AU19)*$A19 -> 0.01374790907 | K19: =(IF($B19="15.1.1.2",VLOOKUP($B19,'05. (a) CAPEX INPUT'!$B$7:$N$237,9,0)*SUMIF('05. (b) CAPEX INPUT'!$B$7:$B$42,K$12,'05. (b) CAPEX INPUT'!$C$7:$C$42)/10^6,IFERROR(VLOOKUP($B19,'05. (a) CAPEX INPUT'!$B$7:$N$237,13,0)*VLOOKUP($C19,$C$158:$F$174,K$12+1,0),0)/10^6)+IF(AND($H19=1,K$12=21,$D19<>"Caminhão Elétrico"),VLOOKUP($B19,'05. (a) CAPEX INPUT'!$B$7:$N$237,10,0),0)/10^6+IF(AND($H19=1,K$12=26,$D19="Caminhão Elétrico"),VLOOKUP($B19,'05. (a) CAPEX INPUT'!$B$7:$N$237,10,0),0)/10^6+IF(AND($H19=2,OR(K$12=16,K$12=30)),VLOOKUP($B19,'05. (a) CAPEX INPUT'!$B$7:$N$237,10,0),0)/10^6+IF(AND($H19=5,OR(K$12=6,K$12=11,K$12=16,K$12=21,K$12=26)),VLOOKUP($B19,'05. (a) CAPEX INPUT'!$B$7:$N$237,10,0),0)/10^6)*K$8*(1+$AU19)*$A19 -> 0 | L19: =(IF($B19="15.1.1.2",VLOOKUP($B19,'05. (a) CAPEX INPUT'!$B$7:$N$237,9,0)*SUMIF('05. (b) CAPEX INPUT'!$B$7:$B$42,L$12,'05. (b) CAPEX INPUT'!$C$7:$C$42)/10^6,IFERROR(VLOOKUP($B19,'05. (a) CAPEX INPUT'!$B$7:$N$237,13,0)*VLOOKUP($C19,$C$158:$F$174,L$12+1,0),0)/10^6)+IF(AND($H19=1,L$12=21,$D19<>"Caminhão Elétrico"),VLOOKUP($B19,'05. (a) CAPEX INPUT'!$B$7:$N$237,10,0),0)/10^6+IF(AND($H19=1,L$12=26,$D19="Caminhão Elétrico"),VLOOKUP($B19,'05. (a) CAPEX INPUT'!$B$7:$N$237,10,0),0)/10^6+IF(AND($H19=2,OR(L$12=16,L$12=30)),VLOOKUP($B19,'05. (a) CAPEX INPUT'!$B$7:$N$237,10,0),0)/10^6+IF(AND($H19=5,OR(L$12=6,L$12=11,L$12=16,L$12=21,L$12=26)),VLOOKUP($B19,'05. (a) CAPEX INPUT'!$B$7:$N$237,10,0),0)/10^6)*L$8*(1+$AU19)*$A19 -> 0 | M19: =(IF($B19="15.1.1.2",VLOOKUP($B19,'05. (a) CAPEX INPUT'!$B$7:$N$237,9,0)*SUMIF('05. (b) CAPEX INPUT'!$B$7:$B$42,M$12,'05. (b) CAPEX INPUT'!$C$7:$C$42)/10^6,IFERROR(VLOOKUP($B19,'05. (a) CAPEX INPUT'!$B$7:$N$237,13,0)*VLOOKUP($C19,$C$158:$F$174,M$12+1,0),0)/10^6)+IF(AND($H19=1,M$12=21,$D19<>"Caminhão Elétrico"),VLOOKUP($B19,'05. (a) CAPEX INPUT'!$B$7:$N$237,10,0),0)/10^6+IF(AND($H19=1,M$12=26,$D19="Caminhão Elétrico"),VLOOKUP($B19,'05. (a) CAPEX INPUT'!$B$7:$N$237,10,0),0)/10^6+IF(AND($H19=2,OR(M$12=16,M$12=30)),VLOOKUP($B19,'05. (a) CAPEX INPUT'!$B$7:$N$237,10,0),0)/10^6+IF(AND($H19=5,OR(M$12=6,M$12=11,M$12=16,M$12=21,M$12=26)),VLOOKUP($B19,'05. (a) CAPEX INPUT'!$B$7:$N$237,10,0),0)/10^6)*M$8*(1+$AU19)*$A19 -> 0 | N19: =(IF($B19="15.1.1.2",VLOOKUP($B19,'05. (a) CAPEX INPUT'!$B$7:$N$237,9,0)*SUMIF('05. (b) CAPEX INPUT'!$B$7:$B$42,N$12,'05. (b) CAPEX INPUT'!$C$7:$C$42)/10^6,IFERROR(VLOOKUP($B19,'05. (a) CAPEX INPUT'!$B$7:$N$237,13,0)*VLOOKUP($C19,$C$158:$F$174,N$12+1,0),0)/10^6)+IF(AND($H19=1,N$12=21,$D19<>"Caminhão Elétrico"),VLOOKUP($B19,'05. (a) CAPEX INPUT'!$B$7:$N$237,10,0),0)/10^6+IF(AND($H19=1,N$12=26,$D19="Caminhão Elétrico"),VLOOKUP($B19,'05. (a) CAPEX INPUT'!$B$7:$N$237,10,0),0)/10^6+IF(AND($H19=2,OR(N$12=16,N$12=30)),VLOOKUP($B19,'05. (a) CAPEX INPUT'!$B$7:$N$237,10,0),0)/10^6+IF(AND($H19=5,OR(N$12=6,N$12=11,N$12=16,N$12=21,N$12=26)),VLOOKUP($B19,'05. (a) CAPEX INPUT'!$B$7:$N$237,10,0),0)/10^6)*N$8*(1+$AU19)*$A19 -> 0 | O19: =(IF($B19="15.1.1.2",VLOOKUP($B19,'05. (a) CAPEX INPUT'!$B$7:$N$237,9,0)*SUMIF('05. (b) CAPEX INPUT'!$B$7:$B$42,O$12,'05. (b) CAPEX INPUT'!$C$7:$C$42)/10^6,IFERROR(VLOOKUP($B19,'05. (a) CAPEX INPUT'!$B$7:$N$237,13,0)*VLOOKUP($C19,$C$158:$F$174,O$12+1,0),0)/10^6)+IF(AND($H19=1,O$12=21,$D19<>"Caminhão Elétrico"),VLOOKUP($B19,'05. (a) CAPEX INPUT'!$B$7:$N$237,10,0),0)/10^6+IF(AND($H19=1,O$12=26,$D19="Caminhão Elétrico"),VLOOKUP($B19,'05. (a) CAPEX INPUT'!$B$7:$N$237,10,0),0)/10^6+IF(AND($H19=2,OR(O$12=16,O$12=30)),VLOOKUP($B19,'05. (a) CAPEX INPUT'!$B$7:$N$237,10,0),0)/10^6+IF(AND($H19=5,OR(O$12=6,O$12=11,O$12=16,O$12=21,O$12=26)),VLOOKUP($B19,'05. (a) CAPEX INPUT'!$B$7:$N$237,10,0),0)/10^6)*O$8*(1+$AU19)*$A19 -> 0 | P19: =(IF($B19="15.1.1.2",VLOOKUP($B19,'05. (a) CAPEX INPUT'!$B$7:$N$237,9,0)*SUMIF('05. (b) CAPEX INPUT'!$B$7:$B$42,P$12,'05. (b) CAPEX INPUT'!$C$7:$C$42)/10^6,IFERROR(VLOOKUP($B19,'05. (a) CAPEX INPUT'!$B$7:$N$237,13,0)*VLOOKUP($C19,$C$158:$F$174,P$12+1,0),0)/10^6)+IF(AND($H19=1,P$12=21,$D19<>"Caminhão Elétrico"),VLOOKUP($B19,'05. (a) CAPEX INPUT'!$B$7:$N$237,10,0),0)/10^6+IF(AND($H19=1,P$12=26,$D19="Caminhão Elétrico"),VLOOKUP($B19,'05. (a) CAPEX INPUT'!$B$7:$N$237,10,0),0)/10^6+IF(AND($H19=2,OR(P$12=16,P$12=30)),VLOOKUP($B19,'05. (a) CAPEX INPUT'!$B$7:$N$237,10,0),0)/10^6+IF(AND($H19=5,OR(P$12=6,P$12=11,P$12=16,P$12=21,P$12=26)),VLOOKUP($B19,'05. (a) CAPEX INPUT'!$B$7:$N$237,10,0),0)/10^6)*P$8*(1+$AU19)*$A19 -> 0 | Q19: =(IF($B19="15.1.1.2",VLOOKUP($B19,'05. (a) CAPEX INPUT'!$B$7:$N$237,9,0)*SUMIF('05. (b) CAPEX INPUT'!$B$7:$B$42,Q$12,'05. (b) CAPEX INPUT'!$C$7:$C$42)/10^6,IFERROR(VLOOKUP($B19,'05. (a) CAPEX INPUT'!$B$7:$N$237,13,0)*VLOOKUP($C19,$C$158:$F$174,Q$12+1,0),0)/10^6)+IF(AND($H19=1,Q$12=21,$D19<>"Caminhão Elétrico"),VLOOKUP($B19,'05. (a) CAPEX INPUT'!$B$7:$N$237,10,0),0)/10^6+IF(AND($H19=1,Q$12=26,$D19="Caminhão Elétrico"),VLOOKUP($B19,'05. (a) CAPEX INPUT'!$B$7:$N$237,10,0),0)/10^6+IF(AND($H19=2,OR(Q$12=16,Q$12=30)),VLOOKUP($B19,'05. (a) CAPEX INPUT'!$B$7:$N$237,10,0),0)/10^6+IF(AND($H19=5,OR(Q$12=6,Q$12=11,Q$12=16,Q$12=21,Q$12=26)),VLOOKUP($B19,'05. (a) CAPEX INPUT'!$B$7:$N$237,10,0),0)/10^6)*Q$8*(1+$AU19)*$A19 -> 0 | R19: =(IF($B19="15.1.1.2",VLOOKUP($B19,'05. (a) CAPEX INPUT'!$B$7:$N$237,9,0)*SUMIF('05. (b) CAPEX INPUT'!$B$7:$B$42,R$12,'05. (b) CAPEX INPUT'!$C$7:$C$42)/10^6,IFERROR(VLOOKUP($B19,'05. (a) CAPEX INPUT'!$B$7:$N$237,13,0)*VLOOKUP($C19,$C$158:$F$174,R$12+1,0),0)/10^6)+IF(AND($H19=1,R$12=21,$D19<>"Caminhão Elétrico"),VLOOKUP($B19,'05. (a) CAPEX INPUT'!$B$7:$N$237,10,0),0)/10^6+IF(AND($H19=1,R$12=26,$D19="Caminhão Elétrico"),VLOOKUP($B19,'05. (a) CAPEX INPUT'!$B$7:$N$237,10,0),0)/10^6+IF(AND($H19=2,OR(R$12=16,R$12=30)),VLOOKUP($B19,'05. (a) CAPEX INPUT'!$B$7:$N$237,10,0),0)/10^6+IF(AND($H19=5,OR(R$12=6,R$12=11,R$12=16,R$12=21,R$12=26)),VLOOKUP($B19,'05. (a) CAPEX INPUT'!$B$7:$N$237,10,0),0)/10^6)*R$8*(1+$AU19)*$A19 -> 0 | S19: =(IF($B19="15.1.1.2",VLOOKUP($B19,'05. (a) CAPEX INPUT'!$B$7:$N$237,9,0)*SUMIF('05. (b) CAPEX INPUT'!$B$7:$B$42,S$12,'05. (b) CAPEX INPUT'!$C$7:$C$42)/10^6,IFERROR(VLOOKUP($B19,'05. (a) CAPEX INPUT'!$B$7:$N$237,13,0)*VLOOKUP($C19,$C$158:$F$174,S$12+1,0),0)/10^6)+IF(AND($H19=1,S$12=21,$D19<>"Caminhão Elétrico"),VLOOKUP($B19,'05. (a) CAPEX INPUT'!$B$7:$N$237,10,0),0)/10^6+IF(AND($H19=1,S$12=26,$D19="Caminhão Elétrico"),VLOOKUP($B19,'05. (a) CAPEX INPUT'!$B$7:$N$237,10,0),0)/10^6+IF(AND($H19=2,OR(S$12=16,S$12=30)),VLOOKUP($B19,'05. (a) CAPEX INPUT'!$B$7:$N$237,10,0),0)/10^6+IF(AND($H19=5,OR(S$12=6,S$12=11,S$12=16,S$12=21,S$12=26)),VLOOKUP($B19,'05. (a) CAPEX INPUT'!$B$7:$N$237,10,0),0)/10^6)*S$8*(1+$AU19)*$A19 -> 0 | T19: =(IF($B19="15.1.1.2",VLOOKUP($B19,'05. (a) CAPEX INPUT'!$B$7:$N$237,9,0)*SUMIF('05. (b) CAPEX INPUT'!$B$7:$B$42,T$12,'05. (b) CAPEX INPUT'!$C$7:$C$42)/10^6,IFERROR(VLOOKUP($B19,'05. (a) CAPEX INPUT'!$B$7:$N$237,13,0)*VLOOKUP($C19,$C$158:$F$174,T$12+1,0),0)/10^6)+IF(AND($H19=1,T$12=21,$D19<>"Caminhão Elétrico"),VLOOKUP($B19,'05. (a) CAPEX INPUT'!$B$7:$N$237,10,0),0)/10^6+IF(AND($H19=1,T$12=26,$D19="Caminhão Elétrico"),VLOOKUP($B19,'05. (a) CAPEX INPUT'!$B$7:$N$237,10,0),0)/10^6+IF(AND($H19=2,OR(T$12=16,T$12=30)),VLOOKUP($B19,'05. (a) CAPEX INPUT'!$B$7:$N$237,10,0),0)/10^6+IF(AND($H19=5,OR(T$12=6,T$12=11,T$12=16,T$12=21,T$12=26)),VLOOKUP($B19,'05. (a) CAPEX INPUT'!$B$7:$N$237,10,0),0)/10^6)*T$8*(1+$AU19)*$A19 -> 0 | U19: =(IF($B19="15.1.1.2",VLOOKUP($B19,'05. (a) CAPEX INPUT'!$B$7:$N$237,9,0)*SUMIF('05. (b) CAPEX INPUT'!$B$7:$B$42,U$12,'05. (b) CAPEX INPUT'!$C$7:$C$42)/10^6,IFERROR(VLOOKUP($B19,'05. (a) CAPEX INPUT'!$B$7:$N$237,13,0)*VLOOKUP($C19,$C$158:$F$174,U$12+1,0),0)/10^6)+IF(AND($H19=1,U$12=21,$D19<>"Caminhão Elétrico"),VLOOKUP($B19,'05. (a) CAPEX INPUT'!$B$7:$N$237,10,0),0)/10^6+IF(AND($H19=1,U$12=26,$D19="Caminhão Elétrico"),VLOOKUP($B19,'05. (a) CAPEX INPUT'!$B$7:$N$237,10,0),0)/10^6+IF(AND($H19=2,OR(U$12=16,U$12=30)),VLOOKUP($B19,'05. (a) CAPEX INPUT'!$B$7:$N$237,10,0),0)/10^6+IF(AND($H19=5,OR(U$12=6,U$12=11,U$12=16,U$12=21,U$12=26)),VLOOKUP($B19,'05. (a) CAPEX INPUT'!$B$7:$N$237,10,0),0)/10^6)*U$8*(1+$AU19)*$A19 -> 0 | V19: =(IF($B19="15.1.1.2",VLOOKUP($B19,'05. (a) CAPEX INPUT'!$B$7:$N$237,9,0)*SUMIF('05. (b) CAPEX INPUT'!$B$7:$B$42,V$12,'05. (b) CAPEX INPUT'!$C$7:$C$42)/10^6,IFERROR(VLOOKUP($B19,'05. (a) CAPEX INPUT'!$B$7:$N$237,13,0)*VLOOKUP($C19,$C$158:$F$174,V$12+1,0),0)/10^6)+IF(AND($H19=1,V$12=21,$D19<>"Caminhão Elétrico"),VLOOKUP($B19,'05. (a) CAPEX INPUT'!$B$7:$N$237,10,0),0)/10^6+IF(AND($H19=1,V$12=26,$D19="Caminhão Elétrico"),VLOOKUP($B19,'05. (a) CAPEX INPUT'!$B$7:$N$237,10,0),0)/10^6+IF(AND($H19=2,OR(V$12=16,V$12=30)),VLOOKUP($B19,'05. (a) CAPEX INPUT'!$B$7:$N$237,10,0),0)/10^6+IF(AND($H19=5,OR(V$12=6,V$12=11,V$12=16,V$12=21,V$12=26)),VLOOKUP($B19,'05. (a) CAPEX INPUT'!$B$7:$N$237,10,0),0)/10^6)*V$8*(1+$AU19)*$A19 -> 0 | W19: =(IF($B19="15.1.1.2",VLOOKUP($B19,'05. (a) CAPEX INPUT'!$B$7:$N$237,9,0)*SUMIF('05. (b) CAPEX INPUT'!$B$7:$B$42,W$12,'05. (b) CAPEX INPUT'!$C$7:$C$42)/10^6,IFERROR(VLOOKUP($B19,'05. (a) CAPEX INPUT'!$B$7:$N$237,13,0)*VLOOKUP($C19,$C$158:$F$174,W$12+1,0),0)/10^6)+IF(AND($H19=1,W$12=21,$D19<>"Caminhão Elétrico"),VLOOKUP($B19,'05. (a) CAPEX INPUT'!$B$7:$N$237,10,0),0)/10^6+IF(AND($H19=1,W$12=26,$D19="Caminhão Elétrico"),VLOOKUP($B19,'05. (a) CAPEX INPUT'!$B$7:$N$237,10,0),0)/10^6+IF(AND($H19=2,OR(W$12=16,W$12=30)),VLOOKUP($B19,'05. (a) CAPEX INPUT'!$B$7:$N$237,10,0),0)/10^6+IF(AND($H19=5,OR(W$12=6,W$12=11,W$12=16,W$12=21,W$12=26)),VLOOKUP($B19,'05. (a) CAPEX INPUT'!$B$7:$N$237,10,0),0)/10^6)*W$8*(1+$AU19)*$A19 -> 0 | X19: =(IF($B19="15.1.1.2",VLOOKUP($B19,'05. (a) CAPEX INPUT'!$B$7:$N$237,9,0)*SUMIF('05. (b) CAPEX INPUT'!$B$7:$B$42,X$12,'05. (b) CAPEX INPUT'!$C$7:$C$42)/10^6,IFERROR(VLOOKUP($B19,'05. (a) CAPEX INPUT'!$B$7:$N$237,13,0)*VLOOKUP($C19,$C$158:$F$174,X$12+1,0),0)/10^6)+IF(AND($H19=1,X$12=21,$D19<>"Caminhão Elétrico"),VLOOKUP($B19,'05. (a) CAPEX INPUT'!$B$7:$N$237,10,0),0)/10^6+IF(AND($H19=1,X$12=26,$D19="Caminhão Elétrico"),VLOOKUP($B19,'05. (a) CAPEX INPUT'!$B$7:$N$237,10,0),0)/10^6+IF(AND($H19=2,OR(X$12=16,X$12=30)),VLOOKUP($B19,'05. (a) CAPEX INPUT'!$B$7:$N$237,10,0),0)/10^6+IF(AND($H19=5,OR(X$12=6,X$12=11,X$12=16,X$12=21,X$12=26)),VLOOKUP($B19,'05. (a) CAPEX INPUT'!$B$7:$N$237,10,0),0)/10^6)*X$8*(1+$AU19)*$A19 -> 0 | Y19: =(IF($B19="15.1.1.2",VLOOKUP($B19,'05. (a) CAPEX INPUT'!$B$7:$N$237,9,0)*SUMIF('05. (b) CAPEX INPUT'!$B$7:$B$42,Y$12,'05. (b) CAPEX INPUT'!$C$7:$C$42)/10^6,IFERROR(VLOOKUP($B19,'05. (a) CAPEX INPUT'!$B$7:$N$237,13,0)*VLOOKUP($C19,$C$158:$F$174,Y$12+1,0),0)/10^6)+IF(AND($H19=1,Y$12=21,$D19<>"Caminhão Elétrico"),VLOOKUP($B19,'05. (a) CAPEX INPUT'!$B$7:$N$237,10,0),0)/10^6+IF(AND($H19=1,Y$12=26,$D19="Caminhão Elétrico"),VLOOKUP($B19,'05. (a) CAPEX INPUT'!$B$7:$N$237,10,0),0)/10^6+IF(AND($H19=2,OR(Y$12=16,Y$12=30)),VLOOKUP($B19,'05. (a) CAPEX INPUT'!$B$7:$N$237,10,0),0)/10^6+IF(AND($H19=5,OR(Y$12=6,Y$12=11,Y$12=16,Y$12=21,Y$12=26)),VLOOKUP($B19,'05. (a) CAPEX INPUT'!$B$7:$N$237,10,0),0)/10^6)*Y$8*(1+$AU19)*$A19 -> 0 | Z19: =(IF($B19="15.1.1.2",VLOOKUP($B19,'05. (a) CAPEX INPUT'!$B$7:$N$237,9,0)*SUMIF('05. (b) CAPEX INPUT'!$B$7:$B$42,Z$12,'05. (b) CAPEX INPUT'!$C$7:$C$42)/10^6,IFERROR(VLOOKUP($B19,'05. (a) CAPEX INPUT'!$B$7:$N$237,13,0)*VLOOKUP($C19,$C$158:$F$174,Z$12+1,0),0)/10^6)+IF(AND($H19=1,Z$12=21,$D19<>"Caminhão Elétrico"),VLOOKUP($B19,'05. (a) CAPEX INPUT'!$B$7:$N$237,10,0),0)/10^6+IF(AND($H19=1,Z$12=26,$D19="Caminhão Elétrico"),VLOOKUP($B19,'05. (a) CAPEX INPUT'!$B$7:$N$237,10,0),0)/10^6+IF(AND($H19=2,OR(Z$12=16,Z$12=30)),VLOOKUP($B19,'05. (a) CAPEX INPUT'!$B$7:$N$237,10,0),0)/10^6+IF(AND($H19=5,OR(Z$12=6,Z$12=11,Z$12=16,Z$12=21,Z$12=26)),VLOOKUP($B19,'05. (a) CAPEX INPUT'!$B$7:$N$237,10,0),0)/10^6)*Z$8*(1+$AU19)*$A19 -> 0 | AA19: =(IF($B19="15.1.1.2",VLOOKUP($B19,'05. (a) CAPEX INPUT'!$B$7:$N$237,9,0)*SUMIF('05. (b) CAPEX INPUT'!$B$7:$B$42,AA$12,'05. (b) CAPEX INPUT'!$C$7:$C$42)/10^6,IFERROR(VLOOKUP($B19,'05. (a) CAPEX INPUT'!$B$7:$N$237,13,0)*VLOOKUP($C19,$C$158:$F$174,AA$12+1,0),0)/10^6)+IF(AND($H19=1,AA$12=21,$D19<>"Caminhão Elétrico"),VLOOKUP($B19,'05. (a) CAPEX INPUT'!$B$7:$N$237,10,0),0)/10^6+IF(AND($H19=1,AA$12=26,$D19="Caminhão Elétrico"),VLOOKUP($B19,'05. (a) CAPEX INPUT'!$B$7:$N$237,10,0),0)/10^6+IF(AND($H19=2,OR(AA$12=16,AA$12=30)),VLOOKUP($B19,'05. (a) CAPEX INPUT'!$B$7:$N$237,10,0),0)/10^6+IF(AND($H19=5,OR(AA$12=6,AA$12=11,AA$12=16,AA$12=21,AA$12=26)),VLOOKUP($B19,'05. (a) CAPEX INPUT'!$B$7:$N$237,10,0),0)/10^6)*AA$8*(1+$AU19)*$A19 -> 0 | AB19: =(IF($B19="15.1.1.2",VLOOKUP($B19,'05. (a) CAPEX INPUT'!$B$7:$N$237,9,0)*SUMIF('05. (b) CAPEX INPUT'!$B$7:$B$42,AB$12,'05. (b) CAPEX INPUT'!$C$7:$C$42)/10^6,IFERROR(VLOOKUP($B19,'05. (a) CAPEX INPUT'!$B$7:$N$237,13,0)*VLOOKUP($C19,$C$158:$F$174,AB$12+1,0),0)/10^6)+IF(AND($H19=1,AB$12=21,$D19<>"Caminhão Elétrico"),VLOOKUP($B19,'05. (a) CAPEX INPUT'!$B$7:$N$237,10,0),0)/10^6+IF(AND($H19=1,AB$12=26,$D19="Caminhão Elétrico"),VLOOKUP($B19,'05. (a) CAPEX INPUT'!$B$7:$N$237,10,0),0)/10^6+IF(AND($H19=2,OR(AB$12=16,AB$12=30)),VLOOKUP($B19,'05. (a) CAPEX INPUT'!$B$7:$N$237,10,0),0)/10^6+IF(AND($H19=5,OR(AB$12=6,AB$12=11,AB$12=16,AB$12=21,AB$12=26)),VLOOKUP($B19,'05. (a) CAPEX INPUT'!$B$7:$N$237,10,0),0)/10^6)*AB$8*(1+$AU19)*$A19 -> 0 | AC19: =(IF($B19="15.1.1.2",VLOOKUP($B19,'05. (a) CAPEX INPUT'!$B$7:$N$237,9,0)*SUMIF('05. (b) CAPEX INPUT'!$B$7:$B$42,AC$12,'05. (b) CAPEX INPUT'!$C$7:$C$42)/10^6,IFERROR(VLOOKUP($B19,'05. (a) CAPEX INPUT'!$B$7:$N$237,13,0)*VLOOKUP($C19,$C$158:$F$174,AC$12+1,0),0)/10^6)+IF(AND($H19=1,AC$12=21,$D19<>"Caminhão Elétrico"),VLOOKUP($B19,'05. (a) CAPEX INPUT'!$B$7:$N$237,10,0),0)/10^6+IF(AND($H19=1,AC$12=26,$D19="Caminhão Elétrico"),VLOOKUP($B19,'05. (a) CAPEX INPUT'!$B$7:$N$237,10,0),0)/10^6+IF(AND($H19=2,OR(AC$12=16,AC$12=30)),VLOOKUP($B19,'05. (a) CAPEX INPUT'!$B$7:$N$237,10,0),0)/10^6+IF(AND($H19=5,OR(AC$12=6,AC$12=11,AC$12=16,AC$12=21,AC$12=26)),VLOOKUP($B19,'05. (a) CAPEX INPUT'!$B$7:$N$237,10,0),0)/10^6)*AC$8*(1+$AU19)*$A19 -> 0 | AD19: =(IF($B19="15.1.1.2",VLOOKUP($B19,'05. (a) CAPEX INPUT'!$B$7:$N$237,9,0)*SUMIF('05. (b) CAPEX INPUT'!$B$7:$B$42,AD$12,'05. (b) CAPEX INPUT'!$C$7:$C$42)/10^6,IFERROR(VLOOKUP($B19,'05. (a) CAPEX INPUT'!$B$7:$N$237,13,0)*VLOOKUP($C19,$C$158:$F$174,AD$12+1,0),0)/10^6)+IF(AND($H19=1,AD$12=21,$D19<>"Caminhão Elétrico"),VLOOKUP($B19,'05. (a) CAPEX INPUT'!$B$7:$N$237,10,0),0)/10^6+IF(AND($H19=1,AD$12=26,$D19="Caminhão Elétrico"),VLOOKUP($B19,'05. (a) CAPEX INPUT'!$B$7:$N$237,10,0),0)/10^6+IF(AND($H19=2,OR(AD$12=16,AD$12=30)),VLOOKUP($B19,'05. (a) CAPEX INPUT'!$B$7:$N$237,10,0),0)/10^6+IF(AND($H19=5,OR(AD$12=6,AD$12=11,AD$12=16,AD$12=21,AD$12=26)),VLOOKUP($B19,'05. (a) CAPEX INPUT'!$B$7:$N$237,10,0),0)/10^6)*AD$8*(1+$AU19)*$A19 -> 0 | AE19: =(IF($B19="15.1.1.2",VLOOKUP($B19,'05. (a) CAPEX INPUT'!$B$7:$N$237,9,0)*SUMIF('05. (b) CAPEX INPUT'!$B$7:$B$42,AE$12,'05. (b) CAPEX INPUT'!$C$7:$C$42)/10^6,IFERROR(VLOOKUP($B19,'05. (a) CAPEX INPUT'!$B$7:$N$237,13,0)*VLOOKUP($C19,$C$158:$F$174,AE$12+1,0),0)/10^6)+IF(AND($H19=1,AE$12=21,$D19<>"Caminhão Elétrico"),VLOOKUP($B19,'05. (a) CAPEX INPUT'!$B$7:$N$237,10,0),0)/10^6+IF(AND($H19=1,AE$12=26,$D19="Caminhão Elétrico"),VLOOKUP($B19,'05. (a) CAPEX INPUT'!$B$7:$N$237,10,0),0)/10^6+IF(AND($H19=2,OR(AE$12=16,AE$12=30)),VLOOKUP($B19,'05. (a) CAPEX INPUT'!$B$7:$N$237,10,0),0)/10^6+IF(AND($H19=5,OR(AE$12=6,AE$12=11,AE$12=16,AE$12=21,AE$12=26)),VLOOKUP($B19,'05. (a) CAPEX INPUT'!$B$7:$N$237,10,0),0)/10^6)*AE$8*(1+$AU19)*$A19 -> 0 | AF19: =(IF($B19="15.1.1.2",VLOOKUP($B19,'05. (a) CAPEX INPUT'!$B$7:$N$237,9,0)*SUMIF('05. (b) CAPEX INPUT'!$B$7:$B$42,AF$12,'05. (b) CAPEX INPUT'!$C$7:$C$42)/10^6,IFERROR(VLOOKUP($B19,'05. (a) CAPEX INPUT'!$B$7:$N$237,13,0)*VLOOKUP($C19,$C$158:$F$174,AF$12+1,0),0)/10^6)+IF(AND($H19=1,AF$12=21,$D19<>"Caminhão Elétrico"),VLOOKUP($B19,'05. (a) CAPEX INPUT'!$B$7:$N$237,10,0),0)/10^6+IF(AND($H19=1,AF$12=26,$D19="Caminhão Elétrico"),VLOOKUP($B19,'05. (a) CAPEX INPUT'!$B$7:$N$237,10,0),0)/10^6+IF(AND($H19=2,OR(AF$12=16,AF$12=30)),VLOOKUP($B19,'05. (a) CAPEX INPUT'!$B$7:$N$237,10,0),0)/10^6+IF(AND($H19=5,OR(AF$12=6,AF$12=11,AF$12=16,AF$12=21,AF$12=26)),VLOOKUP($B19,'05. (a) CAPEX INPUT'!$B$7:$N$237,10,0),0)/10^6)*AF$8*(1+$AU19)*$A19 -> 0 | AG19: =(IF($B19="15.1.1.2",VLOOKUP($B19,'05. (a) CAPEX INPUT'!$B$7:$N$237,9,0)*SUMIF('05. (b) CAPEX INPUT'!$B$7:$B$42,AG$12,'05. (b) CAPEX INPUT'!$C$7:$C$42)/10^6,IFERROR(VLOOKUP($B19,'05. (a) CAPEX INPUT'!$B$7:$N$237,13,0)*VLOOKUP($C19,$C$158:$F$174,AG$12+1,0),0)/10^6)+IF(AND($H19=1,AG$12=21,$D19<>"Caminhão Elétrico"),VLOOKUP($B19,'05. (a) CAPEX INPUT'!$B$7:$N$237,10,0),0)/10^6+IF(AND($H19=1,AG$12=26,$D19="Caminhão Elétrico"),VLOOKUP($B19,'05. (a) CAPEX INPUT'!$B$7:$N$237,10,0),0)/10^6+IF(AND($H19=2,OR(AG$12=16,AG$12=30)),VLOOKUP($B19,'05. (a) CAPEX INPUT'!$B$7:$N$237,10,0),0)/10^6+IF(AND($H19=5,OR(AG$12=6,AG$12=11,AG$12=16,AG$12=21,AG$12=26)),VLOOKUP($B19,'05. (a) CAPEX INPUT'!$B$7:$N$237,10,0),0)/10^6)*AG$8*(1+$AU19)*$A19 -> 0 | AH19: =(IF($B19="15.1.1.2",VLOOKUP($B19,'05. (a) CAPEX INPUT'!$B$7:$N$237,9,0)*SUMIF('05. (b) CAPEX INPUT'!$B$7:$B$42,AH$12,'05. (b) CAPEX INPUT'!$C$7:$C$42)/10^6,IFERROR(VLOOKUP($B19,'05. (a) CAPEX INPUT'!$B$7:$N$237,13,0)*VLOOKUP($C19,$C$158:$F$174,AH$12+1,0),0)/10^6)+IF(AND($H19=1,AH$12=21,$D19<>"Caminhão Elétrico"),VLOOKUP($B19,'05. (a) CAPEX INPUT'!$B$7:$N$237,10,0),0)/10^6+IF(AND($H19=1,AH$12=26,$D19="Caminhão Elétrico"),VLOOKUP($B19,'05. (a) CAPEX INPUT'!$B$7:$N$237,10,0),0)/10^6+IF(AND($H19=2,OR(AH$12=16,AH$12=30)),VLOOKUP($B19,'05. (a) CAPEX INPUT'!$B$7:$N$237,10,0),0)/10^6+IF(AND($H19=5,OR(AH$12=6,AH$12=11,AH$12=16,AH$12=21,AH$12=26)),VLOOKUP($B19,'05. (a) CAPEX INPUT'!$B$7:$N$237,10,0),0)/10^6)*AH$8*(1+$AU19)*$A19 -> 0 | AI19: =(IF($B19="15.1.1.2",VLOOKUP($B19,'05. (a) CAPEX INPUT'!$B$7:$N$237,9,0)*SUMIF('05. (b) CAPEX INPUT'!$B$7:$B$42,AI$12,'05. (b) CAPEX INPUT'!$C$7:$C$42)/10^6,IFERROR(VLOOKUP($B19,'05. (a) CAPEX INPUT'!$B$7:$N$237,13,0)*VLOOKUP($C19,$C$158:$F$174,AI$12+1,0),0)/10^6)+IF(AND($H19=1,AI$12=21,$D19<>"Caminhão Elétrico"),VLOOKUP($B19,'05. (a) CAPEX INPUT'!$B$7:$N$237,10,0),0)/10^6+IF(AND($H19=1,AI$12=26,$D19="Caminhão Elétrico"),VLOOKUP($B19,'05. (a) CAPEX INPUT'!$B$7:$N$237,10,0),0)/10^6+IF(AND($H19=2,OR(AI$12=16,AI$12=30)),VLOOKUP($B19,'05. (a) CAPEX INPUT'!$B$7:$N$237,10,0),0)/10^6+IF(AND($H19=5,OR(AI$12=6,AI$12=11,AI$12=16,AI$12=21,AI$12=26)),VLOOKUP($B19,'05. (a) CAPEX INPUT'!$B$7:$N$237,10,0),0)/10^6)*AI$8*(1+$AU19)*$A19 -> 0 | AJ19: =(IF($B19="15.1.1.2",VLOOKUP($B19,'05. (a) CAPEX INPUT'!$B$7:$N$237,9,0)*SUMIF('05. (b) CAPEX INPUT'!$B$7:$B$42,AJ$12,'05. (b) CAPEX INPUT'!$C$7:$C$42)/10^6,IFERROR(VLOOKUP($B19,'05. (a) CAPEX INPUT'!$B$7:$N$237,13,0)*VLOOKUP($C19,$C$158:$F$174,AJ$12+1,0),0)/10^6)+IF(AND($H19=1,AJ$12=21,$D19<>"Caminhão Elétrico"),VLOOKUP($B19,'05. (a) CAPEX INPUT'!$B$7:$N$237,10,0),0)/10^6+IF(AND($H19=1,AJ$12=26,$D19="Caminhão Elétrico"),VLOOKUP($B19,'05. (a) CAPEX INPUT'!$B$7:$N$237,10,0),0)/10^6+IF(AND($H19=2,OR(AJ$12=16,AJ$12=30)),VLOOKUP($B19,'05. (a) CAPEX INPUT'!$B$7:$N$237,10,0),0)/10^6+IF(AND($H19=5,OR(AJ$12=6,AJ$12=11,AJ$12=16,AJ$12=21,AJ$12=26)),VLOOKUP($B19,'05. (a) CAPEX INPUT'!$B$7:$N$237,10,0),0)/10^6)*AJ$8*(1+$AU19)*$A19 -> 0 | AK19: =(IF($B19="15.1.1.2",VLOOKUP($B19,'05. (a) CAPEX INPUT'!$B$7:$N$237,9,0)*SUMIF('05. (b) CAPEX INPUT'!$B$7:$B$42,AK$12,'05. (b) CAPEX INPUT'!$C$7:$C$42)/10^6,IFERROR(VLOOKUP($B19,'05. (a) CAPEX INPUT'!$B$7:$N$237,13,0)*VLOOKUP($C19,$C$158:$F$174,AK$12+1,0),0)/10^6)+IF(AND($H19=1,AK$12=21,$D19<>"Caminhão Elétrico"),VLOOKUP($B19,'05. (a) CAPEX INPUT'!$B$7:$N$237,10,0),0)/10^6+IF(AND($H19=1,AK$12=26,$D19="Caminhão Elétrico"),VLOOKUP($B19,'05. (a) CAPEX INPUT'!$B$7:$N$237,10,0),0)/10^6+IF(AND($H19=2,OR(AK$12=16,AK$12=30)),VLOOKUP($B19,'05. (a) CAPEX INPUT'!$B$7:$N$237,10,0),0)/10^6+IF(AND($H19=5,OR(AK$12=6,AK$12=11,AK$12=16,AK$12=21,AK$12=26)),VLOOKUP($B19,'05. (a) CAPEX INPUT'!$B$7:$N$237,10,0),0)/10^6)*AK$8*(1+$AU19)*$A19 -> 0 | AL19: =(IF($B19="15.1.1.2",VLOOKUP($B19,'05. (a) CAPEX INPUT'!$B$7:$N$237,9,0)*SUMIF('05. (b) CAPEX INPUT'!$B$7:$B$42,AL$12,'05. (b) CAPEX INPUT'!$C$7:$C$42)/10^6,IFERROR(VLOOKUP($B19,'05. (a) CAPEX INPUT'!$B$7:$N$237,13,0)*VLOOKUP($C19,$C$158:$F$174,AL$12+1,0),0)/10^6)+IF(AND($H19=1,AL$12=21,$D19<>"Caminhão Elétrico"),VLOOKUP($B19,'05. (a) CAPEX INPUT'!$B$7:$N$237,10,0),0)/10^6+IF(AND($H19=1,AL$12=26,$D19="Caminhão Elétrico"),VLOOKUP($B19,'05. (a) CAPEX INPUT'!$B$7:$N$237,10,0),0)/10^6+IF(AND($H19=2,OR(AL$12=16,AL$12=30)),VLOOKUP($B19,'05. (a) CAPEX INPUT'!$B$7:$N$237,10,0),0)/10^6+IF(AND($H19=5,OR(AL$12=6,AL$12=11,AL$12=16,AL$12=21,AL$12=26)),VLOOKUP($B19,'05. (a) CAPEX INPUT'!$B$7:$N$237,10,0),0)/10^6)*AL$8*(1+$AU19)*$A19 -> 0 | AM19: =(IF($B19="15.1.1.2",VLOOKUP($B19,'05. (a) CAPEX INPUT'!$B$7:$N$237,9,0)*SUMIF('05. (b) CAPEX INPUT'!$B$7:$B$42,AM$12,'05. (b) CAPEX INPUT'!$C$7:$C$42)/10^6,IFERROR(VLOOKUP($B19,'05. (a) CAPEX INPUT'!$B$7:$N$237,13,0)*VLOOKUP($C19,$C$158:$F$174,AM$12+1,0),0)/10^6)+IF(AND($H19=1,AM$12=21,$D19<>"Caminhão Elétrico"),VLOOKUP($B19,'05. (a) CAPEX INPUT'!$B$7:$N$237,10,0),0)/10^6+IF(AND($H19=1,AM$12=26,$D19="Caminhão Elétrico"),VLOOKUP($B19,'05. (a) CAPEX INPUT'!$B$7:$N$237,10,0),0)/10^6+IF(AND($H19=2,OR(AM$12=16,AM$12=30)),VLOOKUP($B19,'05. (a) CAPEX INPUT'!$B$7:$N$237,10,0),0)/10^6+IF(AND($H19=5,OR(AM$12=6,AM$12=11,AM$12=16,AM$12=21,AM$12=26)),VLOOKUP($B19,'05. (a) CAPEX INPUT'!$B$7:$N$237,10,0),0)/10^6)*AM$8*(1+$AU19)*$A19 -> 0 | AN19: =(IF($B19="15.1.1.2",VLOOKUP($B19,'05. (a) CAPEX INPUT'!$B$7:$N$237,9,0)*SUMIF('05. (b) CAPEX INPUT'!$B$7:$B$42,AN$12,'05. (b) CAPEX INPUT'!$C$7:$C$42)/10^6,IFERROR(VLOOKUP($B19,'05. (a) CAPEX INPUT'!$B$7:$N$237,13,0)*VLOOKUP($C19,$C$158:$F$174,AN$12+1,0),0)/10^6)+IF(AND($H19=1,AN$12=21,$D19<>"Caminhão Elétrico"),VLOOKUP($B19,'05. (a) CAPEX INPUT'!$B$7:$N$237,10,0),0)/10^6+IF(AND($H19=1,AN$12=26,$D19="Caminhão Elétrico"),VLOOKUP($B19,'05. (a) CAPEX INPUT'!$B$7:$N$237,10,0),0)/10^6+IF(AND($H19=2,OR(AN$12=16,AN$12=30)),VLOOKUP($B19,'05. (a) CAPEX INPUT'!$B$7:$N$237,10,0),0)/10^6+IF(AND($H19=5,OR(AN$12=6,AN$12=11,AN$12=16,AN$12=21,AN$12=26)),VLOOKUP($B19,'05. (a) CAPEX INPUT'!$B$7:$N$237,10,0),0)/10^6)*AN$8*(1+$AU19)*$A19 -> 0 | AO19: =(IF($B19="15.1.1.2",VLOOKUP($B19,'05. (a) CAPEX INPUT'!$B$7:$N$237,9,0)*SUMIF('05. (b) CAPEX INPUT'!$B$7:$B$42,AO$12,'05. (b) CAPEX INPUT'!$C$7:$C$42)/10^6,IFERROR(VLOOKUP($B19,'05. (a) CAPEX INPUT'!$B$7:$N$237,13,0)*VLOOKUP($C19,$C$158:$F$174,AO$12+1,0),0)/10^6)+IF(AND($H19=1,AO$12=21,$D19<>"Caminhão Elétrico"),VLOOKUP($B19,'05. (a) CAPEX INPUT'!$B$7:$N$237,10,0),0)/10^6+IF(AND($H19=1,AO$12=26,$D19="Caminhão Elétrico"),VLOOKUP($B19,'05. (a) CAPEX INPUT'!$B$7:$N$237,10,0),0)/10^6+IF(AND($H19=2,OR(AO$12=16,AO$12=30)),VLOOKUP($B19,'05. (a) CAPEX INPUT'!$B$7:$N$237,10,0),0)/10^6+IF(AND($H19=5,OR(AO$12=6,AO$12=11,AO$12=16,AO$12=21,AO$12=26)),VLOOKUP($B19,'05. (a) CAPEX INPUT'!$B$7:$N$237,10,0),0)/10^6)*AO$8*(1+$AU19)*$A19 -> 0 | AP19: =(IF($B19="15.1.1.2",VLOOKUP($B19,'05. (a) CAPEX INPUT'!$B$7:$N$237,9,0)*SUMIF('05. (b) CAPEX INPUT'!$B$7:$B$42,AP$12,'05. (b) CAPEX INPUT'!$C$7:$C$42)/10^6,IFERROR(VLOOKUP($B19,'05. (a) CAPEX INPUT'!$B$7:$N$237,13,0)*VLOOKUP($C19,$C$158:$F$174,AP$12+1,0),0)/10^6)+IF(AND($H19=1,AP$12=21,$D19<>"Caminhão Elétrico"),VLOOKUP($B19,'05. (a) CAPEX INPUT'!$B$7:$N$237,10,0),0)/10^6+IF(AND($H19=1,AP$12=26,$D19="Caminhão Elétrico"),VLOOKUP($B19,'05. (a) CAPEX INPUT'!$B$7:$N$237,10,0),0)/10^6+IF(AND($H19=2,OR(AP$12=16,AP$12=30)),VLOOKUP($B19,'05. (a) CAPEX INPUT'!$B$7:$N$237,10,0),0)/10^6+IF(AND($H19=5,OR(AP$12=6,AP$12=11,AP$12=16,AP$12=21,AP$12=26)),VLOOKUP($B19,'05. (a) CAPEX INPUT'!$B$7:$N$237,10,0),0)/10^6)*AP$8*(1+$AU19)*$A19 -> 0 | AQ19: =(IF($B19="15.1.1.2",VLOOKUP($B19,'05. (a) CAPEX INPUT'!$B$7:$N$237,9,0)*SUMIF('05. (b) CAPEX INPUT'!$B$7:$B$42,AQ$12,'05. (b) CAPEX INPUT'!$C$7:$C$42)/10^6,IFERROR(VLOOKUP($B19,'05. (a) CAPEX INPUT'!$B$7:$N$237,13,0)*VLOOKUP($C19,$C$158:$F$174,AQ$12+1,0),0)/10^6)+IF(AND($H19=1,AQ$12=21,$D19<>"Caminhão Elétrico"),VLOOKUP($B19,'05. (a) CAPEX INPUT'!$B$7:$N$237,10,0),0)/10^6+IF(AND($H19=1,AQ$12=26,$D19="Caminhão Elétrico"),VLOOKUP($B19,'05. (a) CAPEX INPUT'!$B$7:$N$237,10,0),0)/10^6+IF(AND($H19=2,OR(AQ$12=16,AQ$12=30)),VLOOKUP($B19,'05. (a) CAPEX INPUT'!$B$7:$N$237,10,0),0)/10^6+IF(AND($H19=5,OR(AQ$12=6,AQ$12=11,AQ$12=16,AQ$12=21,AQ$12=26)),VLOOKUP($B19,'05. (a) CAPEX INPUT'!$B$7:$N$237,10,0),0)/10^6)*AQ$8*(1+$AU19)*$A19 -> 0 | AS19: 0.0192470727 | AU19: ='01. PC'!$Q$25 -> 0
A20: =IF(E20="Encargo",1,IF(E20="Bilheteria",1,VLOOKUP($E20,'01. PC'!$O$10:$P$18,2,0))) -> 1 | B20: ='05. (a) CAPEX INPUT'!B16 -> 1.1.2.2 | C20: =VLOOKUP(VALUE(LEFT(B20,SEARCH(".",B20,1)-1)),$B$158:$F$174,2,0) -> Centro de Apoio aos Visitantes (CAV) | D20: ='05. (a) CAPEX INPUT'!G16 -> Reparo em Alvenaria | E20: ='05. (a) CAPEX INPUT'!E16 -> Encargo | F20: ='05. (a) CAPEX INPUT'!F16 -> Edificações | G20: =VLOOKUP(B20,'05. (a) CAPEX INPUT'!$B$7:$N$237,3,0) -> 15 | H20: =IFERROR(VLOOKUP(G20,'05. (c) RECAPEX INPUT'!$B$7:$H$26,4,0),"-") -> - | I20: =(IF($B20="15.1.1.2",VLOOKUP($B20,'05. (a) CAPEX INPUT'!$B$7:$N$237,9,0)*SUMIF('05. (b) CAPEX INPUT'!$B$7:$B$42,I$12,'05. (b) CAPEX INPUT'!$C$7:$C$42)/10^6,IFERROR(VLOOKUP($B20,'05. (a) CAPEX INPUT'!$B$7:$N$237,13,0)*VLOOKUP($C20,$C$158:$F$174,I$12+1,0),0)/10^6)+IF(AND($H20=1,I$12=21,$D20<>"Caminhão Elétrico"),VLOOKUP($B20,'05. (a) CAPEX INPUT'!$B$7:$N$237,10,0),0)/10^6+IF(AND($H20=1,I$12=26,$D20="Caminhão Elétrico"),VLOOKUP($B20,'05. (a) CAPEX INPUT'!$B$7:$N$237,10,0),0)/10^6+IF(AND($H20=2,OR(I$12=16,I$12=30)),VLOOKUP($B20,'05. (a) CAPEX INPUT'!$B$7:$N$237,10,0),0)/10^6+IF(AND($H20=5,OR(I$12=6,I$12=11,I$12=16,I$12=21,I$12=26)),VLOOKUP($B20,'05. (a) CAPEX INPUT'!$B$7:$N$237,10,0),0)/10^6)*I$8*(1+$AU20)*$A20 -> 0.01573361119 | J20: =(IF($B20="15.1.1.2",VLOOKUP($B20,'05. (a) CAPEX INPUT'!$B$7:$N$237,9,0)*SUMIF('05. (b) CAPEX INPUT'!$B$7:$B$42,J$12,'05. (b) CAPEX INPUT'!$C$7:$C$42)/10^6,IFERROR(VLOOKUP($B20,'05. (a) CAPEX INPUT'!$B$7:$N$237,13,0)*VLOOKUP($C20,$C$158:$F$174,J$12+1,0),0)/10^6)+IF(AND($H20=1,J$12=21,$D20<>"Caminhão Elétrico"),VLOOKUP($B20,'05. (a) CAPEX INPUT'!$B$7:$N$237,10,0),0)/10^6+IF(AND($H20=1,J$12=26,$D20="Caminhão Elétrico"),VLOOKUP($B20,'05. (a) CAPEX INPUT'!$B$7:$N$237,10,0),0)/10^6+IF(AND($H20=2,OR(J$12=16,J$12=30)),VLOOKUP($B20,'05. (a) CAPEX INPUT'!$B$7:$N$237,10,0),0)/10^6+IF(AND($H20=5,OR(J$12=6,J$12=11,J$12=16,J$12=21,J$12=26)),VLOOKUP($B20,'05. (a) CAPEX INPUT'!$B$7:$N$237,10,0),0)/10^6)*J$8*(1+$AU20)*$A20 -> 0.03933402798 | K20: =(IF($B20="15.1.1.2",VLOOKUP($B20,'05. (a) CAPEX INPUT'!$B$7:$N$237,9,0)*SUMIF('05. (b) CAPEX INPUT'!$B$7:$B$42,K$12,'05. (b) CAPEX INPUT'!$C$7:$C$42)/10^6,IFERROR(VLOOKUP($B20,'05. (a) CAPEX INPUT'!$B$7:$N$237,13,0)*VLOOKUP($C20,$C$158:$F$174,K$12+1,0),0)/10^6)+IF(AND($H20=1,K$12=21,$D20<>"Caminhão Elétrico"),VLOOKUP($B20,'05. (a) CAPEX INPUT'!$B$7:$N$237,10,0),0)/10^6+IF(AND($H20=1,K$12=26,$D20="Caminhão Elétrico"),VLOOKUP($B20,'05. (a) CAPEX INPUT'!$B$7:$N$237,10,0),0)/10^6+IF(AND($H20=2,OR(K$12=16,K$12=30)),VLOOKUP($B20,'05. (a) CAPEX INPUT'!$B$7:$N$237,10,0),0)/10^6+IF(AND($H20=5,OR(K$12=6,K$12=11,K$12=16,K$12=21,K$12=26)),VLOOKUP($B20,'05. (a) CAPEX INPUT'!$B$7:$N$237,10,0),0)/10^6)*K$8*(1+$AU20)*$A20 -> 0 | L20: =(IF($B20="15.1.1.2",VLOOKUP($B20,'05. (a) CAPEX INPUT'!$B$7:$N$237,9,0)*SUMIF('05. (b) CAPEX INPUT'!$B$7:$B$42,L$12,'05. (b) CAPEX INPUT'!$C$7:$C$42)/10^6,IFERROR(VLOOKUP($B20,'05. (a) CAPEX INPUT'!$B$7:$N$237,13,0)*VLOOKUP($C20,$C$158:$F$174,L$12+1,0),0)/10^6)+IF(AND($H20=1,L$12=21,$D20<>"Caminhão Elétrico"),VLOOKUP($B20,'05. (a) CAPEX INPUT'!$B$7:$N$237,10,0),0)/10^6+IF(AND($H20=1,L$12=26,$D20="Caminhão Elétrico"),VLOOKUP($B20,'05. (a) CAPEX INPUT'!$B$7:$N$237,10,0),0)/10^6+IF(AND($H20=2,OR(L$12=16,L$12=30)),VLOOKUP($B20,'05. (a) CAPEX INPUT'!$B$7:$N$237,10,0),0)/10^6+IF(AND($H20=5,OR(L$12=6,L$12=11,L$12=16,L$12=21,L$12=26)),VLOOKUP($B20,'05. (a) CAPEX INPUT'!$B$7:$N$237,10,0),0)/10^6)*L$8*(1+$AU20)*$A20 -> 0 | M20: =(IF($B20="15.1.1.2",VLOOKUP($B20,'05. (a) CAPEX INPUT'!$B$7:$N$237,9,0)*SUMIF('05. (b) CAPEX INPUT'!$B$7:$B$42,M$12,'05. (b) CAPEX INPUT'!$C$7:$C$42)/10^6,IFERROR(VLOOKUP($B20,'05. (a) CAPEX INPUT'!$B$7:$N$237,13,0)*VLOOKUP($C20,$C$158:$F$174,M$12+1,0),0)/10^6)+IF(AND($H20=1,M$12=21,$D20<>"Caminhão Elétrico"),VLOOKUP($B20,'05. (a) CAPEX INPUT'!$B$7:$N$237,10,0),0)/10^6+IF(AND($H20=1,M$12=26,$D20="Caminhão Elétrico"),VLOOKUP($B20,'05. (a) CAPEX INPUT'!$B$7:$N$237,10,0),0)/10^6+IF(AND($H20=2,OR(M$12=16,M$12=30)),VLOOKUP($B20,'05. (a) CAPEX INPUT'!$B$7:$N$237,10,0),0)/10^6+IF(AND($H20=5,OR(M$12=6,M$12=11,M$12=16,M$12=21,M$12=26)),VLOOKUP($B20,'05. (a) CAPEX INPUT'!$B$7:$N$237,10,0),0)/10^6)*M$8*(1+$AU20)*$A20 -> 0 | N20: =(IF($B20="15.1.1.2",VLOOKUP($B20,'05. (a) CAPEX INPUT'!$B$7:$N$237,9,0)*SUMIF('05. (b) CAPEX INPUT'!$B$7:$B$42,N$12,'05. (b) CAPEX INPUT'!$C$7:$C$42)/10^6,IFERROR(VLOOKUP($B20,'05. (a) CAPEX INPUT'!$B$7:$N$237,13,0)*VLOOKUP($C20,$C$158:$F$174,N$12+1,0),0)/10^6)+IF(AND($H20=1,N$12=21,$D20<>"Caminhão Elétrico"),VLOOKUP($B20,'05. (a) CAPEX INPUT'!$B$7:$N$237,10,0),0)/10^6+IF(AND($H20=1,N$12=26,$D20="Caminhão Elétrico"),VLOOKUP($B20,'05. (a) CAPEX INPUT'!$B$7:$N$237,10,0),0)/10^6+IF(AND($H20=2,OR(N$12=16,N$12=30)),VLOOKUP($B20,'05. (a) CAPEX INPUT'!$B$7:$N$237,10,0),0)/10^6+IF(AND($H20=5,OR(N$12=6,N$12=11,N$12=16,N$12=21,N$12=26)),VLOOKUP($B20,'05. (a) CAPEX INPUT'!$B$7:$N$237,10,0),0)/10^6)*N$8*(1+$AU20)*$A20 -> 0 | O20: =(IF($B20="15.1.1.2",VLOOKUP($B20,'05. (a) CAPEX INPUT'!$B$7:$N$237,9,0)*SUMIF('05. (b) CAPEX INPUT'!$B$7:$B$42,O$12,'05. (b) CAPEX INPUT'!$C$7:$C$42)/10^6,IFERROR(VLOOKUP($B20,'05. (a) CAPEX INPUT'!$B$7:$N$237,13,0)*VLOOKUP($C20,$C$158:$F$174,O$12+1,0),0)/10^6)+IF(AND($H20=1,O$12=21,$D20<>"Caminhão Elétrico"),VLOOKUP($B20,'05. (a) CAPEX INPUT'!$B$7:$N$237,10,0),0)/10^6+IF(AND($H20=1,O$12=26,$D20="Caminhão Elétrico"),VLOOKUP($B20,'05. (a) CAPEX INPUT'!$B$7:$N$237,10,0),0)/10^6+IF(AND($H20=2,OR(O$12=16,O$12=30)),VLOOKUP($B20,'05. (a) CAPEX INPUT'!$B$7:$N$237,10,0),0)/10^6+IF(AND($H20=5,OR(O$12=6,O$12=11,O$12=16,O$12=21,O$12=26)),VLOOKUP($B20,'05. (a) CAPEX INPUT'!$B$7:$N$237,10,0),0)/10^6)*O$8*(1+$AU20)*$A20 -> 0 | P20: =(IF($B20="15.1.1.2",VLOOKUP($B20,'05. (a) CAPEX INPUT'!$B$7:$N$237,9,0)*SUMIF('05. (b) CAPEX INPUT'!$B$7:$B$42,P$12,'05. (b) CAPEX INPUT'!$C$7:$C$42)/10^6,IFERROR(VLOOKUP($B20,'05. (a) CAPEX INPUT'!$B$7:$N$237,13,0)*VLOOKUP($C20,$C$158:$F$174,P$12+1,0),0)/10^6)+IF(AND($H20=1,P$12=21,$D20<>"Caminhão Elétrico"),VLOOKUP($B20,'05. (a) CAPEX INPUT'!$B$7:$N$237,10,0),0)/10^6+IF(AND($H20=1,P$12=26,$D20="Caminhão Elétrico"),VLOOKUP($B20,'05. (a) CAPEX INPUT'!$B$7:$N$237,10,0),0)/10^6+IF(AND($H20=2,OR(P$12=16,P$12=30)),VLOOKUP($B20,'05. (a) CAPEX INPUT'!$B$7:$N$237,10,0),0)/10^6+IF(AND($H20=5,OR(P$12=6,P$12=11,P$12=16,P$12=21,P$12=26)),VLOOKUP($B20,'05. (a) CAPEX INPUT'!$B$7:$N$237,10,0),0)/10^6)*P$8*(1+$AU20)*$A20 -> 0 | Q20: =(IF($B20="15.1.1.2",VLOOKUP($B20,'05. (a) CAPEX INPUT'!$B$7:$N$237,9,0)*SUMIF('05. (b) CAPEX INPUT'!$B$7:$B$42,Q$12,'05. (b) CAPEX INPUT'!$C$7:$C$42)/10^6,IFERROR(VLOOKUP($B20,'05. (a) CAPEX INPUT'!$B$7:$N$237,13,0)*VLOOKUP($C20,$C$158:$F$174,Q$12+1,0),0)/10^6)+IF(AND($H20=1,Q$12=21,$D20<>"Caminhão Elétrico"),VLOOKUP($B20,'05. (a) CAPEX INPUT'!$B$7:$N$237,10,0),0)/10^6+IF(AND($H20=1,Q$12=26,$D20="Caminhão Elétrico"),VLOOKUP($B20,'05. (a) CAPEX INPUT'!$B$7:$N$237,10,0),0)/10^6+IF(AND($H20=2,OR(Q$12=16,Q$12=30)),VLOOKUP($B20,'05. (a) CAPEX INPUT'!$B$7:$N$237,10,0),0)/10^6+IF(AND($H20=5,OR(Q$12=6,Q$12=11,Q$12=16,Q$12=21,Q$12=26)),VLOOKUP($B20,'05. (a) CAPEX INPUT'!$B$7:$N$237,10,0),0)/10^6)*Q$8*(1+$AU20)*$A20 -> 0 | R20: =(IF($B20="15.1.1.2",VLOOKUP($B20,'05. (a) CAPEX INPUT'!$B$7:$N$237,9,0)*SUMIF('05. (b) CAPEX INPUT'!$B$7:$B$42,R$12,'05. (b) CAPEX INPUT'!$C$7:$C$42)/10^6,IFERROR(VLOOKUP($B20,'05. (a) CAPEX INPUT'!$B$7:$N$237,13,0)*VLOOKUP($C20,$C$158:$F$174,R$12+1,0),0)/10^6)+IF(AND($H20=1,R$12=21,$D20<>"Caminhão Elétrico"),VLOOKUP($B20,'05. (a) CAPEX INPUT'!$B$7:$N$237,10,0),0)/10^6+IF(AND($H20=1,R$12=26,$D20="Caminhão Elétrico"),VLOOKUP($B20,'05. (a) CAPEX INPUT'!$B$7:$N$237,10,0),0)/10^6+IF(AND($H20=2,OR(R$12=16,R$12=30)),VLOOKUP($B20,'05. (a) CAPEX INPUT'!$B$7:$N$237,10,0),0)/10^6+IF(AND($H20=5,OR(R$12=6,R$12=11,R$12=16,R$12=21,R$12=26)),VLOOKUP($B20,'05. (a) CAPEX INPUT'!$B$7:$N$237,10,0),0)/10^6)*R$8*(1+$AU20)*$A20 -> 0 | S20: =(IF($B20="15.1.1.2",VLOOKUP($B20,'05. (a) CAPEX INPUT'!$B$7:$N$237,9,0)*SUMIF('05. (b) CAPEX INPUT'!$B$7:$B$42,S$12,'05. (b) CAPEX INPUT'!$C$7:$C$42)/10^6,IFERROR(VLOOKUP($B20,'05. (a) CAPEX INPUT'!$B$7:$N$237,13,0)*VLOOKUP($C20,$C$158:$F$174,S$12+1,0),0)/10^6)+IF(AND($H20=1,S$12=21,$D20<>"Caminhão Elétrico"),VLOOKUP($B20,'05. (a) CAPEX INPUT'!$B$7:$N$237,10,0),0)/10^6+IF(AND($H20=1,S$12=26,$D20="Caminhão Elétrico"),VLOOKUP($B20,'05. (a) CAPEX INPUT'!$B$7:$N$237,10,0),0)/10^6+IF(AND($H20=2,OR(S$12=16,S$12=30)),VLOOKUP($B20,'05. (a) CAPEX INPUT'!$B$7:$N$237,10,0),0)/10^6+IF(AND($H20=5,OR(S$12=6,S$12=11,S$12=16,S$12=21,S$12=26)),VLOOKUP($B20,'05. (a) CAPEX INPUT'!$B$7:$N$237,10,0),0)/10^6)*S$8*(1+$AU20)*$A20 -> 0 | T20: =(IF($B20="15.1.1.2",VLOOKUP($B20,'05. (a) CAPEX INPUT'!$B$7:$N$237,9,0)*SUMIF('05. (b) CAPEX INPUT'!$B$7:$B$42,T$12,'05. (b) CAPEX INPUT'!$C$7:$C$42)/10^6,IFERROR(VLOOKUP($B20,'05. (a) CAPEX INPUT'!$B$7:$N$237,13,0)*VLOOKUP($C20,$C$158:$F$174,T$12+1,0),0)/10^6)+IF(AND($H20=1,T$12=21,$D20<>"Caminhão Elétrico"),VLOOKUP($B20,'05. (a) CAPEX INPUT'!$B$7:$N$237,10,0),0)/10^6+IF(AND($H20=1,T$12=26,$D20="Caminhão Elétrico"),VLOOKUP($B20,'05. (a) CAPEX INPUT'!$B$7:$N$237,10,0),0)/10^6+IF(AND($H20=2,OR(T$12=16,T$12=30)),VLOOKUP($B20,'05. (a) CAPEX INPUT'!$B$7:$N$237,10,0),0)/10^6+IF(AND($H20=5,OR(T$12=6,T$12=11,T$12=16,T$12=21,T$12=26)),VLOOKUP($B20,'05. (a) CAPEX INPUT'!$B$7:$N$237,10,0),0)/10^6)*T$8*(1+$AU20)*$A20 -> 0 | U20: =(IF($B20="15.1.1.2",VLOOKUP($B20,'05. (a) CAPEX INPUT'!$B$7:$N$237,9,0)*SUMIF('05. (b) CAPEX INPUT'!$B$7:$B$42,U$12,'05. (b) CAPEX INPUT'!$C$7:$C$42)/10^6,IFERROR(VLOOKUP($B20,'05. (a) CAPEX INPUT'!$B$7:$N$237,13,0)*VLOOKUP($C20,$C$158:$F$174,U$12+1,0),0)/10^6)+IF(AND($H20=1,U$12=21,$D20<>"Caminhão Elétrico"),VLOOKUP($B20,'05. (a) CAPEX INPUT'!$B$7:$N$237,10,0),0)/10^6+IF(AND($H20=1,U$12=26,$D20="Caminhão Elétrico"),VLOOKUP($B20,'05. (a) CAPEX INPUT'!$B$7:$N$237,10,0),0)/10^6+IF(AND($H20=2,OR(U$12=16,U$12=30)),VLOOKUP($B20,'05. (a) CAPEX INPUT'!$B$7:$N$237,10,0),0)/10^6+IF(AND($H20=5,OR(U$12=6,U$12=11,U$12=16,U$12=21,U$12=26)),VLOOKUP($B20,'05. (a) CAPEX INPUT'!$B$7:$N$237,10,0),0)/10^6)*U$8*(1+$AU20)*$A20 -> 0 | V20: =(IF($B20="15.1.1.2",VLOOKUP($B20,'05. (a) CAPEX INPUT'!$B$7:$N$237,9,0)*SUMIF('05. (b) CAPEX INPUT'!$B$7:$B$42,V$12,'05. (b) CAPEX INPUT'!$C$7:$C$42)/10^6,IFERROR(VLOOKUP($B20,'05. (a) CAPEX INPUT'!$B$7:$N$237,13,0)*VLOOKUP($C20,$C$158:$F$174,V$12+1,0),0)/10^6)+IF(AND($H20=1,V$12=21,$D20<>"Caminhão Elétrico"),VLOOKUP($B20,'05. (a) CAPEX INPUT'!$B$7:$N$237,10,0),0)/10^6+IF(AND($H20=1,V$12=26,$D20="Caminhão Elétrico"),VLOOKUP($B20,'05. (a) CAPEX INPUT'!$B$7:$N$237,10,0),0)/10^6+IF(AND($H20=2,OR(V$12=16,V$12=30)),VLOOKUP($B20,'05. (a) CAPEX INPUT'!$B$7:$N$237,10,0),0)/10^6+IF(AND($H20=5,OR(V$12=6,V$12=11,V$12=16,V$12=21,V$12=26)),VLOOKUP($B20,'05. (a) CAPEX INPUT'!$B$7:$N$237,10,0),0)/10^6)*V$8*(1+$AU20)*$A20 -> 0 | W20: =(IF($B20="15.1.1.2",VLOOKUP($B20,'05. (a) CAPEX INPUT'!$B$7:$N$237,9,0)*SUMIF('05. (b) CAPEX INPUT'!$B$7:$B$42,W$12,'05. (b) CAPEX INPUT'!$C$7:$C$42)/10^6,IFERROR(VLOOKUP($B20,'05. (a) CAPEX INPUT'!$B$7:$N$237,13,0)*VLOOKUP($C20,$C$158:$F$174,W$12+1,0),0)/10^6)+IF(AND($H20=1,W$12=21,$D20<>"Caminhão Elétrico"),VLOOKUP($B20,'05. (a) CAPEX INPUT'!$B$7:$N$237,10,0),0)/10^6+IF(AND($H20=1,W$12=26,$D20="Caminhão Elétrico"),VLOOKUP($B20,'05. (a) CAPEX INPUT'!$B$7:$N$237,10,0),0)/10^6+IF(AND($H20=2,OR(W$12=16,W$12=30)),VLOOKUP($B20,'05. (a) CAPEX INPUT'!$B$7:$N$237,10,0),0)/10^6+IF(AND($H20=5,OR(W$12=6,W$12=11,W$12=16,W$12=21,W$12=26)),VLOOKUP($B20,'05. (a) CAPEX INPUT'!$B$7:$N$237,10,0),0)/10^6)*W$8*(1+$AU20)*$A20 -> 0 | X20: =(IF($B20="15.1.1.2",VLOOKUP($B20,'05. (a) CAPEX INPUT'!$B$7:$N$237,9,0)*SUMIF('05. (b) CAPEX INPUT'!$B$7:$B$42,X$12,'05. (b) CAPEX INPUT'!$C$7:$C$42)/10^6,IFERROR(VLOOKUP($B20,'05. (a) CAPEX INPUT'!$B$7:$N$237,13,0)*VLOOKUP($C20,$C$158:$F$174,X$12+1,0),0)/10^6)+IF(AND($H20=1,X$12=21,$D20<>"Caminhão Elétrico"),VLOOKUP($B20,'05. (a) CAPEX INPUT'!$B$7:$N$237,10,0),0)/10^6+IF(AND($H20=1,X$12=26,$D20="Caminhão Elétrico"),VLOOKUP($B20,'05. (a) CAPEX INPUT'!$B$7:$N$237,10,0),0)/10^6+IF(AND($H20=2,OR(X$12=16,X$12=30)),VLOOKUP($B20,'05. (a) CAPEX INPUT'!$B$7:$N$237,10,0),0)/10^6+IF(AND($H20=5,OR(X$12=6,X$12=11,X$12=16,X$12=21,X$12=26)),VLOOKUP($B20,'05. (a) CAPEX INPUT'!$B$7:$N$237,10,0),0)/10^6)*X$8*(1+$AU20)*$A20 -> 0 | Y20: =(IF($B20="15.1.1.2",VLOOKUP($B20,'05. (a) CAPEX INPUT'!$B$7:$N$237,9,0)*SUMIF('05. (b) CAPEX INPUT'!$B$7:$B$42,Y$12,'05. (b) CAPEX INPUT'!$C$7:$C$42)/10^6,IFERROR(VLOOKUP($B20,'05. (a) CAPEX INPUT'!$B$7:$N$237,13,0)*VLOOKUP($C20,$C$158:$F$174,Y$12+1,0),0)/10^6)+IF(AND($H20=1,Y$12=21,$D20<>"Caminhão Elétrico"),VLOOKUP($B20,'05. (a) CAPEX INPUT'!$B$7:$N$237,10,0),0)/10^6+IF(AND($H20=1,Y$12=26,$D20="Caminhão Elétrico"),VLOOKUP($B20,'05. (a) CAPEX INPUT'!$B$7:$N$237,10,0),0)/10^6+IF(AND($H20=2,OR(Y$12=16,Y$12=30)),VLOOKUP($B20,'05. (a) CAPEX INPUT'!$B$7:$N$237,10,0),0)/10^6+IF(AND($H20=5,OR(Y$12=6,Y$12=11,Y$12=16,Y$12=21,Y$12=26)),VLOOKUP($B20,'05. (a) CAPEX INPUT'!$B$7:$N$237,10,0),0)/10^6)*Y$8*(1+$AU20)*$A20 -> 0 | Z20: =(IF($B20="15.1.1.2",VLOOKUP($B20,'05. (a) CAPEX INPUT'!$B$7:$N$237,9,0)*SUMIF('05. (b) CAPEX INPUT'!$B$7:$B$42,Z$12,'05. (b) CAPEX INPUT'!$C$7:$C$42)/10^6,IFERROR(VLOOKUP($B20,'05. (a) CAPEX INPUT'!$B$7:$N$237,13,0)*VLOOKUP($C20,$C$158:$F$174,Z$12+1,0),0)/10^6)+IF(AND($H20=1,Z$12=21,$D20<>"Caminhão Elétrico"),VLOOKUP($B20,'05. (a) CAPEX INPUT'!$B$7:$N$237,10,0),0)/10^6+IF(AND($H20=1,Z$12=26,$D20="Caminhão Elétrico"),VLOOKUP($B20,'05. (a) CAPEX INPUT'!$B$7:$N$237,10,0),0)/10^6+IF(AND($H20=2,OR(Z$12=16,Z$12=30)),VLOOKUP($B20,'05. (a) CAPEX INPUT'!$B$7:$N$237,10,0),0)/10^6+IF(AND($H20=5,OR(Z$12=6,Z$12=11,Z$12=16,Z$12=21,Z$12=26)),VLOOKUP($B20,'05. (a) CAPEX INPUT'!$B$7:$N$237,10,0),0)/10^6)*Z$8*(1+$AU20)*$A20 -> 0 | AA20: =(IF($B20="15.1.1.2",VLOOKUP($B20,'05. (a) CAPEX INPUT'!$B$7:$N$237,9,0)*SUMIF('05. (b) CAPEX INPUT'!$B$7:$B$42,AA$12,'05. (b) CAPEX INPUT'!$C$7:$C$42)/10^6,IFERROR(VLOOKUP($B20,'05. (a) CAPEX INPUT'!$B$7:$N$237,13,0)*VLOOKUP($C20,$C$158:$F$174,AA$12+1,0),0)/10^6)+IF(AND($H20=1,AA$12=21,$D20<>"Caminhão Elétrico"),VLOOKUP($B20,'05. (a) CAPEX INPUT'!$B$7:$N$237,10,0),0)/10^6+IF(AND($H20=1,AA$12=26,$D20="Caminhão Elétrico"),VLOOKUP($B20,'05. (a) CAPEX INPUT'!$B$7:$N$237,10,0),0)/10^6+IF(AND($H20=2,OR(AA$12=16,AA$12=30)),VLOOKUP($B20,'05. (a) CAPEX INPUT'!$B$7:$N$237,10,0),0)/10^6+IF(AND($H20=5,OR(AA$12=6,AA$12=11,AA$12=16,AA$12=21,AA$12=26)),VLOOKUP($B20,'05. (a) CAPEX INPUT'!$B$7:$N$237,10,0),0)/10^6)*AA$8*(1+$AU20)*$A20 -> 0 | AB20: =(IF($B20="15.1.1.2",VLOOKUP($B20,'05. (a) CAPEX INPUT'!$B$7:$N$237,9,0)*SUMIF('05. (b) CAPEX INPUT'!$B$7:$B$42,AB$12,'05. (b) CAPEX INPUT'!$C$7:$C$42)/10^6,IFERROR(VLOOKUP($B20,'05. (a) CAPEX INPUT'!$B$7:$N$237,13,0)*VLOOKUP($C20,$C$158:$F$174,AB$12+1,0),0)/10^6)+IF(AND($H20=1,AB$12=21,$D20<>"Caminhão Elétrico"),VLOOKUP($B20,'05. (a) CAPEX INPUT'!$B$7:$N$237,10,0),0)/10^6+IF(AND($H20=1,AB$12=26,$D20="Caminhão Elétrico"),VLOOKUP($B20,'05. (a) CAPEX INPUT'!$B$7:$N$237,10,0),0)/10^6+IF(AND($H20=2,OR(AB$12=16,AB$12=30)),VLOOKUP($B20,'05. (a) CAPEX INPUT'!$B$7:$N$237,10,0),0)/10^6+IF(AND($H20=5,OR(AB$12=6,AB$12=11,AB$12=16,AB$12=21,AB$12=26)),VLOOKUP($B20,'05. (a) CAPEX INPUT'!$B$7:$N$237,10,0),0)/10^6)*AB$8*(1+$AU20)*$A20 -> 0 | AC20: =(IF($B20="15.1.1.2",VLOOKUP($B20,'05. (a) CAPEX INPUT'!$B$7:$N$237,9,0)*SUMIF('05. (b) CAPEX INPUT'!$B$7:$B$42,AC$12,'05. (b) CAPEX INPUT'!$C$7:$C$42)/10^6,IFERROR(VLOOKUP($B20,'05. (a) CAPEX INPUT'!$B$7:$N$237,13,0)*VLOOKUP($C20,$C$158:$F$174,AC$12+1,0),0)/10^6)+IF(AND($H20=1,AC$12=21,$D20<>"Caminhão Elétrico"),VLOOKUP($B20,'05. (a) CAPEX INPUT'!$B$7:$N$237,10,0),0)/10^6+IF(AND($H20=1,AC$12=26,$D20="Caminhão Elétrico"),VLOOKUP($B20,'05. (a) CAPEX INPUT'!$B$7:$N$237,10,0),0)/10^6+IF(AND($H20=2,OR(AC$12=16,AC$12=30)),VLOOKUP($B20,'05. (a) CAPEX INPUT'!$B$7:$N$237,10,0),0)/10^6+IF(AND($H20=5,OR(AC$12=6,AC$12=11,AC$12=16,AC$12=21,AC$12=26)),VLOOKUP($B20,'05. (a) CAPEX INPUT'!$B$7:$N$237,10,0),0)/10^6)*AC$8*(1+$AU20)*$A20 -> 0 | AD20: =(IF($B20="15.1.1.2",VLOOKUP($B20,'05. (a) CAPEX INPUT'!$B$7:$N$237,9,0)*SUMIF('05. (b) CAPEX INPUT'!$B$7:$B$42,AD$12,'05. (b) CAPEX INPUT'!$C$7:$C$42)/10^6,IFERROR(VLOOKUP($B20,'05. (a) CAPEX INPUT'!$B$7:$N$237,13,0)*VLOOKUP($C20,$C$158:$F$174,AD$12+1,0),0)/10^6)+IF(AND($H20=1,AD$12=21,$D20<>"Caminhão Elétrico"),VLOOKUP($B20,'05. (a) CAPEX INPUT'!$B$7:$N$237,10,0),0)/10^6+IF(AND($H20=1,AD$12=26,$D20="Caminhão Elétrico"),VLOOKUP($B20,'05. (a) CAPEX INPUT'!$B$7:$N$237,10,0),0)/10^6+IF(AND($H20=2,OR(AD$12=16,AD$12=30)),VLOOKUP($B20,'05. (a) CAPEX INPUT'!$B$7:$N$237,10,0),0)/10^6+IF(AND($H20=5,OR(AD$12=6,AD$12=11,AD$12=16,AD$12=21,AD$12=26)),VLOOKUP($B20,'05. (a) CAPEX INPUT'!$B$7:$N$237,10,0),0)/10^6)*AD$8*(1+$AU20)*$A20 -> 0 | AE20: =(IF($B20="15.1.1.2",VLOOKUP($B20,'05. (a) CAPEX INPUT'!$B$7:$N$237,9,0)*SUMIF('05. (b) CAPEX INPUT'!$B$7:$B$42,AE$12,'05. (b) CAPEX INPUT'!$C$7:$C$42)/10^6,IFERROR(VLOOKUP($B20,'05. (a) CAPEX INPUT'!$B$7:$N$237,13,0)*VLOOKUP($C20,$C$158:$F$174,AE$12+1,0),0)/10^6)+IF(AND($H20=1,AE$12=21,$D20<>"Caminhão Elétrico"),VLOOKUP($B20,'05. (a) CAPEX INPUT'!$B$7:$N$237,10,0),0)/10^6+IF(AND($H20=1,AE$12=26,$D20="Caminhão Elétrico"),VLOOKUP($B20,'05. (a) CAPEX INPUT'!$B$7:$N$237,10,0),0)/10^6+IF(AND($H20=2,OR(AE$12=16,AE$12=30)),VLOOKUP($B20,'05. (a) CAPEX INPUT'!$B$7:$N$237,10,0),0)/10^6+IF(AND($H20=5,OR(AE$12=6,AE$12=11,AE$12=16,AE$12=21,AE$12=26)),VLOOKUP($B20,'05. (a) CAPEX INPUT'!$B$7:$N$237,10,0),0)/10^6)*AE$8*(1+$AU20)*$A20 -> 0 | AF20: =(IF($B20="15.1.1.2",VLOOKUP($B20,'05. (a) CAPEX INPUT'!$B$7:$N$237,9,0)*SUMIF('05. (b) CAPEX INPUT'!$B$7:$B$42,AF$12,'05. (b) CAPEX INPUT'!$C$7:$C$42)/10^6,IFERROR(VLOOKUP($B20,'05. (a) CAPEX INPUT'!$B$7:$N$237,13,0)*VLOOKUP($C20,$C$158:$F$174,AF$12+1,0),0)/10^6)+IF(AND($H20=1,AF$12=21,$D20<>"Caminhão Elétrico"),VLOOKUP($B20,'05. (a) CAPEX INPUT'!$B$7:$N$237,10,0),0)/10^6+IF(AND($H20=1,AF$12=26,$D20="Caminhão Elétrico"),VLOOKUP($B20,'05. (a) CAPEX INPUT'!$B$7:$N$237,10,0),0)/10^6+IF(AND($H20=2,OR(AF$12=16,AF$12=30)),VLOOKUP($B20,'05. (a) CAPEX INPUT'!$B$7:$N$237,10,0),0)/10^6+IF(AND($H20=5,OR(AF$12=6,AF$12=11,AF$12=16,AF$12=21,AF$12=26)),VLOOKUP($B20,'05. (a) CAPEX INPUT'!$B$7:$N$237,10,0),0)/10^6)*AF$8*(1+$AU20)*$A20 -> 0 | AG20: =(IF($B20="15.1.1.2",VLOOKUP($B20,'05. (a) CAPEX INPUT'!$B$7:$N$237,9,0)*SUMIF('05. (b) CAPEX INPUT'!$B$7:$B$42,AG$12,'05. (b) CAPEX INPUT'!$C$7:$C$42)/10^6,IFERROR(VLOOKUP($B20,'05. (a) CAPEX INPUT'!$B$7:$N$237,13,0)*VLOOKUP($C20,$C$158:$F$174,AG$12+1,0),0)/10^6)+IF(AND($H20=1,AG$12=21,$D20<>"Caminhão Elétrico"),VLOOKUP($B20,'05. (a) CAPEX INPUT'!$B$7:$N$237,10,0),0)/10^6+IF(AND($H20=1,AG$12=26,$D20="Caminhão Elétrico"),VLOOKUP($B20,'05. (a) CAPEX INPUT'!$B$7:$N$237,10,0),0)/10^6+IF(AND($H20=2,OR(AG$12=16,AG$12=30)),VLOOKUP($B20,'05. (a) CAPEX INPUT'!$B$7:$N$237,10,0),0)/10^6+IF(AND($H20=5,OR(AG$12=6,AG$12=11,AG$12=16,AG$12=21,AG$12=26)),VLOOKUP($B20,'05. (a) CAPEX INPUT'!$B$7:$N$237,10,0),0)/10^6)*AG$8*(1+$AU20)*$A20 -> 0 | AH20: =(IF($B20="15.1.1.2",VLOOKUP($B20,'05. (a) CAPEX INPUT'!$B$7:$N$237,9,0)*SUMIF('05. (b) CAPEX INPUT'!$B$7:$B$42,AH$12,'05. (b) CAPEX INPUT'!$C$7:$C$42)/10^6,IFERROR(VLOOKUP($B20,'05. (a) CAPEX INPUT'!$B$7:$N$237,13,0)*VLOOKUP($C20,$C$158:$F$174,AH$12+1,0),0)/10^6)+IF(AND($H20=1,AH$12=21,$D20<>"Caminhão Elétrico"),VLOOKUP($B20,'05. (a) CAPEX INPUT'!$B$7:$N$237,10,0),0)/10^6+IF(AND($H20=1,AH$12=26,$D20="Caminhão Elétrico"),VLOOKUP($B20,'05. (a) CAPEX INPUT'!$B$7:$N$237,10,0),0)/10^6+IF(AND($H20=2,OR(AH$12=16,AH$12=30)),VLOOKUP($B20,'05. (a) CAPEX INPUT'!$B$7:$N$237,10,0),0)/10^6+IF(AND($H20=5,OR(AH$12=6,AH$12=11,AH$12=16,AH$12=21,AH$12=26)),VLOOKUP($B20,'05. (a) CAPEX INPUT'!$B$7:$N$237,10,0),0)/10^6)*AH$8*(1+$AU20)*$A20 -> 0 | AI20: =(IF($B20="15.1.1.2",VLOOKUP($B20,'05. (a) CAPEX INPUT'!$B$7:$N$237,9,0)*SUMIF('05. (b) CAPEX INPUT'!$B$7:$B$42,AI$12,'05. (b) CAPEX INPUT'!$C$7:$C$42)/10^6,IFERROR(VLOOKUP($B20,'05. (a) CAPEX INPUT'!$B$7:$N$237,13,0)*VLOOKUP($C20,$C$158:$F$174,AI$12+1,0),0)/10^6)+IF(AND($H20=1,AI$12=21,$D20<>"Caminhão Elétrico"),VLOOKUP($B20,'05. (a) CAPEX INPUT'!$B$7:$N$237,10,0),0)/10^6+IF(AND($H20=1,AI$12=26,$D20="Caminhão Elétrico"),VLOOKUP($B20,'05. (a) CAPEX INPUT'!$B$7:$N$237,10,0),0)/10^6+IF(AND($H20=2,OR(AI$12=16,AI$12=30)),VLOOKUP($B20,'05. (a) CAPEX INPUT'!$B$7:$N$237,10,0),0)/10^6+IF(AND($H20=5,OR(AI$12=6,AI$12=11,AI$12=16,AI$12=21,AI$12=26)),VLOOKUP($B20,'05. (a) CAPEX INPUT'!$B$7:$N$237,10,0),0)/10^6)*AI$8*(1+$AU20)*$A20 -> 0 | AJ20: =(IF($B20="15.1.1.2",VLOOKUP($B20,'05. (a) CAPEX INPUT'!$B$7:$N$237,9,0)*SUMIF('05. (b) CAPEX INPUT'!$B$7:$B$42,AJ$12,'05. (b) CAPEX INPUT'!$C$7:$C$42)/10^6,IFERROR(VLOOKUP($B20,'05. (a) CAPEX INPUT'!$B$7:$N$237,13,0)*VLOOKUP($C20,$C$158:$F$174,AJ$12+1,0),0)/10^6)+IF(AND($H20=1,AJ$12=21,$D20<>"Caminhão Elétrico"),VLOOKUP($B20,'05. (a) CAPEX INPUT'!$B$7:$N$237,10,0),0)/10^6+IF(AND($H20=1,AJ$12=26,$D20="Caminhão Elétrico"),VLOOKUP($B20,'05. (a) CAPEX INPUT'!$B$7:$N$237,10,0),0)/10^6+IF(AND($H20=2,OR(AJ$12=16,AJ$12=30)),VLOOKUP($B20,'05. (a) CAPEX INPUT'!$B$7:$N$237,10,0),0)/10^6+IF(AND($H20=5,OR(AJ$12=6,AJ$12=11,AJ$12=16,AJ$12=21,AJ$12=26)),VLOOKUP($B20,'05. (a) CAPEX INPUT'!$B$7:$N$237,10,0),0)/10^6)*AJ$8*(1+$AU20)*$A20 -> 0 | AK20: =(IF($B20="15.1.1.2",VLOOKUP($B20,'05. (a) CAPEX INPUT'!$B$7:$N$237,9,0)*SUMIF('05. (b) CAPEX INPUT'!$B$7:$B$42,AK$12,'05. (b) CAPEX INPUT'!$C$7:$C$42)/10^6,IFERROR(VLOOKUP($B20,'05. (a) CAPEX INPUT'!$B$7:$N$237,13,0)*VLOOKUP($C20,$C$158:$F$174,AK$12+1,0),0)/10^6)+IF(AND($H20=1,AK$12=21,$D20<>"Caminhão Elétrico"),VLOOKUP($B20,'05. (a) CAPEX INPUT'!$B$7:$N$237,10,0),0)/10^6+IF(AND($H20=1,AK$12=26,$D20="Caminhão Elétrico"),VLOOKUP($B20,'05. (a) CAPEX INPUT'!$B$7:$N$237,10,0),0)/10^6+IF(AND($H20=2,OR(AK$12=16,AK$12=30)),VLOOKUP($B20,'05. (a) CAPEX INPUT'!$B$7:$N$237,10,0),0)/10^6+IF(AND($H20=5,OR(AK$12=6,AK$12=11,AK$12=16,AK$12=21,AK$12=26)),VLOOKUP($B20,'05. (a) CAPEX INPUT'!$B$7:$N$237,10,0),0)/10^6)*AK$8*(1+$AU20)*$A20 -> 0 | AL20: =(IF($B20="15.1.1.2",VLOOKUP($B20,'05. (a) CAPEX INPUT'!$B$7:$N$237,9,0)*SUMIF('05. (b) CAPEX INPUT'!$B$7:$B$42,AL$12,'05. (b) CAPEX INPUT'!$C$7:$C$42)/10^6,IFERROR(VLOOKUP($B20,'05. (a) CAPEX INPUT'!$B$7:$N$237,13,0)*VLOOKUP($C20,$C$158:$F$174,AL$12+1,0),0)/10^6)+IF(AND($H20=1,AL$12=21,$D20<>"Caminhão Elétrico"),VLOOKUP($B20,'05. (a) CAPEX INPUT'!$B$7:$N$237,10,0),0)/10^6+IF(AND($H20=1,AL$12=26,$D20="Caminhão Elétrico"),VLOOKUP($B20,'05. (a) CAPEX INPUT'!$B$7:$N$237,10,0),0)/10^6+IF(AND($H20=2,OR(AL$12=16,AL$12=30)),VLOOKUP($B20,'05. (a) CAPEX INPUT'!$B$7:$N$237,10,0),0)/10^6+IF(AND($H20=5,OR(AL$12=6,AL$12=11,AL$12=16,AL$12=21,AL$12=26)),VLOOKUP($B20,'05. (a) CAPEX INPUT'!$B$7:$N$237,10,0),0)/10^6)*AL$8*(1+$AU20)*$A20 -> 0 | AM20: =(IF($B20="15.1.1.2",VLOOKUP($B20,'05. (a) CAPEX INPUT'!$B$7:$N$237,9,0)*SUMIF('05. (b) CAPEX INPUT'!$B$7:$B$42,AM$12,'05. (b) CAPEX INPUT'!$C$7:$C$42)/10^6,IFERROR(VLOOKUP($B20,'05. (a) CAPEX INPUT'!$B$7:$N$237,13,0)*VLOOKUP($C20,$C$158:$F$174,AM$12+1,0),0)/10^6)+IF(AND($H20=1,AM$12=21,$D20<>"Caminhão Elétrico"),VLOOKUP($B20,'05. (a) CAPEX INPUT'!$B$7:$N$237,10,0),0)/10^6+IF(AND($H20=1,AM$12=26,$D20="Caminhão Elétrico"),VLOOKUP($B20,'05. (a) CAPEX INPUT'!$B$7:$N$237,10,0),0)/10^6+IF(AND($H20=2,OR(AM$12=16,AM$12=30)),VLOOKUP($B20,'05. (a) CAPEX INPUT'!$B$7:$N$237,10,0),0)/10^6+IF(AND($H20=5,OR(AM$12=6,AM$12=11,AM$12=16,AM$12=21,AM$12=26)),VLOOKUP($B20,'05. (a) CAPEX INPUT'!$B$7:$N$237,10,0),0)/10^6)*AM$8*(1+$AU20)*$A20 -> 0 | AN20: =(IF($B20="15.1.1.2",VLOOKUP($B20,'05. (a) CAPEX INPUT'!$B$7:$N$237,9,0)*SUMIF('05. (b) CAPEX INPUT'!$B$7:$B$42,AN$12,'05. (b) CAPEX INPUT'!$C$7:$C$42)/10^6,IFERROR(VLOOKUP($B20,'05. (a) CAPEX INPUT'!$B$7:$N$237,13,0)*VLOOKUP($C20,$C$158:$F$174,AN$12+1,0),0)/10^6)+IF(AND($H20=1,AN$12=21,$D20<>"Caminhão Elétrico"),VLOOKUP($B20,'05. (a) CAPEX INPUT'!$B$7:$N$237,10,0),0)/10^6+IF(AND($H20=1,AN$12=26,$D20="Caminhão Elétrico"),VLOOKUP($B20,'05. (a) CAPEX INPUT'!$B$7:$N$237,10,0),0)/10^6+IF(AND($H20=2,OR(AN$12=16,AN$12=30)),VLOOKUP($B20,'05. (a) CAPEX INPUT'!$B$7:$N$237,10,0),0)/10^6+IF(AND($H20=5,OR(AN$12=6,AN$12=11,AN$12=16,AN$12=21,AN$12=26)),VLOOKUP($B20,'05. (a) CAPEX INPUT'!$B$7:$N$237,10,0),0)/10^6)*AN$8*(1+$AU20)*$A20 -> 0 | AO20: =(IF($B20="15.1.1.2",VLOOKUP($B20,'05. (a) CAPEX INPUT'!$B$7:$N$237,9,0)*SUMIF('05. (b) CAPEX INPUT'!$B$7:$B$42,AO$12,'05. (b) CAPEX INPUT'!$C$7:$C$42)/10^6,IFERROR(VLOOKUP($B20,'05. (a) CAPEX INPUT'!$B$7:$N$237,13,0)*VLOOKUP($C20,$C$158:$F$174,AO$12+1,0),0)/10^6)+IF(AND($H20=1,AO$12=21,$D20<>"Caminhão Elétrico"),VLOOKUP($B20,'05. (a) CAPEX INPUT'!$B$7:$N$237,10,0),0)/10^6+IF(AND($H20=1,AO$12=26,$D20="Caminhão Elétrico"),VLOOKUP($B20,'05. (a) CAPEX INPUT'!$B$7:$N$237,10,0),0)/10^6+IF(AND($H20=2,OR(AO$12=16,AO$12=30)),VLOOKUP($B20,'05. (a) CAPEX INPUT'!$B$7:$N$237,10,0),0)/10^6+IF(AND($H20=5,OR(AO$12=6,AO$12=11,AO$12=16,AO$12=21,AO$12=26)),VLOOKUP($B20,'05. (a) CAPEX INPUT'!$B$7:$N$237,10,0),0)/10^6)*AO$8*(1+$AU20)*$A20 -> 0 | AP20: =(IF($B20="15.1.1.2",VLOOKUP($B20,'05. (a) CAPEX INPUT'!$B$7:$N$237,9,0)*SUMIF('05. (b) CAPEX INPUT'!$B$7:$B$42,AP$12,'05. (b) CAPEX INPUT'!$C$7:$C$42)/10^6,IFERROR(VLOOKUP($B20,'05. (a) CAPEX INPUT'!$B$7:$N$237,13,0)*VLOOKUP($C20,$C$158:$F$174,AP$12+1,0),0)/10^6)+IF(AND($H20=1,AP$12=21,$D20<>"Caminhão Elétrico"),VLOOKUP($B20,'05. (a) CAPEX INPUT'!$B$7:$N$237,10,0),0)/10^6+IF(AND($H20=1,AP$12=26,$D20="Caminhão Elétrico"),VLOOKUP($B20,'05. (a) CAPEX INPUT'!$B$7:$N$237,10,0),0)/10^6+IF(AND($H20=2,OR(AP$12=16,AP$12=30)),VLOOKUP($B20,'05. (a) CAPEX INPUT'!$B$7:$N$237,10,0),0)/10^6+IF(AND($H20=5,OR(AP$12=6,AP$12=11,AP$12=16,AP$12=21,AP$12=26)),VLOOKUP($B20,'05. (a) CAPEX INPUT'!$B$7:$N$237,10,0),0)/10^6)*AP$8*(1+$AU20)*$A20 -> 0 | AQ20: =(IF($B20="15.1.1.2",VLOOKUP($B20,'05. (a) CAPEX INPUT'!$B$7:$N$237,9,0)*SUMIF('05. (b) CAPEX INPUT'!$B$7:$B$42,AQ$12,'05. (b) CAPEX INPUT'!$C$7:$C$42)/10^6,IFERROR(VLOOKUP($B20,'05. (a) CAPEX INPUT'!$B$7:$N$237,13,0)*VLOOKUP($C20,$C$158:$F$174,AQ$12+1,0),0)/10^6)+IF(AND($H20=1,AQ$12=21,$D20<>"Caminhão Elétrico"),VLOOKUP($B20,'05. (a) CAPEX INPUT'!$B$7:$N$237,10,0),0)/10^6+IF(AND($H20=1,AQ$12=26,$D20="Caminhão Elétrico"),VLOOKUP($B20,'05. (a) CAPEX INPUT'!$B$7:$N$237,10,0),0)/10^6+IF(AND($H20=2,OR(AQ$12=16,AQ$12=30)),VLOOKUP($B20,'05. (a) CAPEX INPUT'!$B$7:$N$237,10,0),0)/10^6+IF(AND($H20=5,OR(AQ$12=6,AQ$12=11,AQ$12=16,AQ$12=21,AQ$12=26)),VLOOKUP($B20,'05. (a) CAPEX INPUT'!$B$7:$N$237,10,0),0)/10^6)*AQ$8*(1+$AU20)*$A20 -> 0 | AS20: 0.05506763917 | AU20: ='01. PC'!$Q$25 -> 0
